Workbook

Sheet MacrosDeactivated
B3: UIC 541-3 Evaluation tool
B7: Please read the following text before you start working with the UIC 541-3 Evaluation tool: The evaluation tool requires the use of Excel macros. Macros are currently deactivated on your computer. To start with the evaluation please activate macros. Depending on the settings of your computer a dialog box should appear in the upper part of this Excel window where you can enable the use of macros. In case this box does not appear please change the settings in the Microsoft Office Security Center to a level that allows you to activate macros when necessary. Please contact the authors in case you need support.
B21: Created by Tobias Rauh and Matthias Niessner | I21: www.hm.edu/rail
B22: Please send comments to matthias.niessner@hm.edu

Sheet Info (hidden)
B3: UIC 541-3 classification scheme for Loco, Motor units and Freight cars (corresponding to EN14535-3 for brake discs)
B6: Class | C6: Max. energy [MJ] | D6: Max. power [kW] | E6: Max. speed [km/h] | F6: Max. braked mass [t] | G6: Max. calculated decceleration rate [m/s²] | H6: Max. FB [kN] (w/o parking) | I6: No. of brake applications (w/o cont. and parking) | J6: Leaflet edition | K6: Application
B11: A1 | C11: 6.3 | D11: 338 | E11: 120 | F11: 11.25 | G11: 0.9 | H11: 46 | I11: 134 | J11: 8th edition | K11: Freight cars
B12: B1 | C12: 7.9 | D12: 427 | E12: 160 | F12: 8 | G12: 1.2 | H12: 44 | I12: 146 | J12: 8th edition | K12: MU, Loco
B13: B2 | C13: 9.9 | D13: 533 | E13: 160 | F13: 10 | G13: 1.2 | H13: 55 | I13: 146 | J13: 8th edition | K13: MU, Loco
B14: C1 | C14: 12.3 | D14: 533 | E14: 200 | F14: 8 | G14: 1.2 | H14: 44 | I14: 161 | J14: 8th edition | K14: MU, Loco
B15: C2 | C15: 15.4 | D15: 667 | E15: 200 | F15: 10 | G15: 1.2 | H15: 55 | I15: 161 | J15: 8th edition | K15: MU, Loco
B16: C3 | C16: 18.5 | D16: 800 | E16: 200 | F16: 12 | G16: 1.2 | H16: 54 | I16: 87 | J16: 8th edition | K16: MU, Loco
B17: D1 | C17: 15.7 | D17: 361 | E17: 250 | F17: 6.5 | G17: 0.8 | H17: 37 | I17: 120 | J17: 8th edition | K17: MU (AMD)
B18: D2 | C18: 25.3 | D18: 583 | E18: 250 | F18: 10.5 | G18: 0.8 | H18: 55 | I18: 128 | J18: 8th edition | K18: MU (WMD)
B19: E1 | C19: 27.8 | D19: 533 | E19: 300 | F19: 8 | G19: 0.8 | H19: 49 | I19: 114 | J19: 8th edition | K19: High-speed
B20: F1 | C20: 23.6 | D20: 389 | E20: 350 | F20: 5 | G20: 0.8 | H20: 25 | I20: 120 | J20: 8th edition | K20: High-speed
B21: F2 | C21: 28.4 | D21: 467 | E21: 350 | F21: 6 | G21: 0.8 | H21: 37 | I21: 120 | J21: 8th edition | K21: High-speed
B22: F3 | C22: 33.1 | D22: 544 | E22: 350 | F22: 7 | G22: 0.8 | H22: 43 | I22: 120 | J22: 8th edition | K22: High-speed
B23: G1 | C23: 37 | D23: 533 | E23: 400 | F23: 6 | G23: 0.8 | H23: 37 | I23: 126 | J23: 8th edition | K23: High-speed
B25: Freely programmable version | E25: For R&D purpose only!
B28: Created by Tobias Rauh and Matthias Niessner
B29: To receive information about updates of the tool please register by sending | I29: www.hm.edu/rail
B30: an e-mail with the subject "evaluation tool" to matthias.niessner@hm.edu
B32: Version history
B34: Version | D34: Description of modification (build no.) | L34: Date
B35: 1.0 | D35: First Release (2142) | L35: 2016-05-16
B36: 1.1 | D36: New criteria for Prio 1 (-6%/+12%), meeting of WG B126/541-3 on 19th of July 2016 in Minden (2143) | L36: 2016-08-02
B39: Disclaimer
B41: This evaluation tool was created to support the user in the assessment of friction material. The tool was programmed and tested according to the best knowledge of the authors and is provided as it is. The authors make no representations or warranties of any kind concerning the safety, suitability, and accuracy of the tool. The user is asked to double-check the results for plausibility. There are inherent dangers in the use of any software, and the user is responsible for determining whether this tool is compatible with his equipment and other software installed on his equipment. The user is also responsible for the protection of his equipment and data backup. The authors will not be liable for any damages the user may suffer in connection with using this tool.

Sheet Sample (hidden)
A1: Sample
B4: Test No./Bench No. | F4: 123456789 / Bench 3 | I4: Date of test: | J4: 2015-06-01 | K4: Continuous braking | L4: mmax: | M4: 0.42 | N4: 0.01 | V4: =B4 -> Test No./Bench No. | X4: =IF($F$4<>0,$F$4,"---") -> 123456789 / Bench 3 | AB4: =IF($J$4<>0,$J$4,"---") -> 2015-06-01
B5: Brake Pad | F5: Sample pad | L5: mmin: | M5: 0.321 | N5: max. Dm/min
B6: 2.8 | C6: 360 | F6: UIC175 | G6: 02/2015 | I6: Disc: | J6: Ø / Width: | K6: Material: | L6: Manufacturer: | N6: =IF($CG$20=0,"Head complete","Missing entry(s)") -> Head complete | V6: Brake pad: | X6: =IF($F$5<>0,(F5&" "&"("&F6&" - "&G6&")"),"---") -> Sample pad (UIC175 - 02/2015) | AB6: =B8 -> UIC 541-3 Class A1
B7: Densitiy | C7: Net area | F7: Type | G7: Batch | J7: 590/110 | K7: GJL (GG) | L7: ABCBrakDiscs | BK7: Checks and intermediate results (not included in print-out) | BQ7: Bedding | CI7: Calculation of deviation class
B8: UIC 541-3 Class A1 | V8: Brake disc: | X8: =IF($J$7<>0,$J$7,"---") -> 590/110 | Z8: =IF($K$7<>0,$K$7,"---") -> GJL (GG) | AB8: =IF($L$7<>0,$L$7,"---") -> ABCBrakDiscs | BQ8: Start row | BR8: 13
BQ9: Events | BR9: =COUNTIF($C$13:$C$212,">0") -> 100
B10: Bedding | F10: Weighing results in g | G10: Brake appl. no. | H10: wet=1 | I10: Brake Priority | J10: Speed v [km/h] | K10: FB [kN] | L10: Braked mass per disc [t] | M10: mm | N10: Max. disc temp. [°C] | O10: Anmerk. | X10: Diameter / width | Z10: Material | AB10: Manufacturer | BQ10: to 100% | BR10: =ADDRESS(($BR$8+$BR$9)-1,3) -> $C$112 | BS10: =($BR$8+$BR$9)-1 -> 112 | CI10: km/h | CW10: Cell Formatting
B11: (min. 15 entries) | BQ11: to 30% | BR11: =IF(BT16=1,ADDRESS(BS11,3),"") -> $C$42 | BS11: =IF(BT16=1,BR25+12,"") -> 42 | BT11: =($BR$8+ROUNDUP($BR$9*0.3,0))-1 -> 42 | CH11: Summe | CW11: Bedding | CY11: Stop in TB (0=out) | CZ11: Bedding in TB? | DA11: Valid entry ym?
B12: No. | C12: mm | F12: 7180.5 | R12: Energy in kJ | BK12: Data plausibility check | BQ12: from 30% | BR12: =ADDRESS(BS12,3) -> $C$43 | BS12: =BR26+12 -> 43 | BT12: =($BR$8+ROUNDUP($BR$9*0.3,0)) -> 43 | CG12: Head | CH12: Deviation | CI12: 400 | CJ12: 350 | CK12: 300 | CL12: 250 | CM12: 220 | CN12: 200 | CO12: 160 | CP12: 140 | CQ12: 120 | CR12: 100 | CS12: 80 | CT12: 70 | CU12: 50
B13: 1 | C13: 0.255 | F13: Dry brake applications, minimal mass | G13: 1 | H13: 0 | I13: 4 | J13: 50 | K13: 8.5 | L13: 2.35 | M13: 0.321 | N13: 30 | R13: =0.5*L13*(J13/3.6)^2 -> 226.7 | BQ13: Nominal | BR13: =IF($BR$9>=5,AVERAGEIFS($C$13:$C$212,$B$13:$B$212,"<="&$BR$9,$B$13:$B$212,">"&$BR$9-5),"n<5") -> 0.346 | CH13: =IF(OR(ISERROR(SUM(CI13:CU13)),$I13<1),"-1",SUM(CI13:CU13)) -> 3 | CI13: =IF($J13=CI$12,MATCH(ROUND($M13,3),$BM$50:$BZ$50,1)-1,0)+IF(AND($J13=CI$12,ROUND($M13,3)>$AP$61),1,0) -> 0 | CJ13: =IF($J13=CJ$12,MATCH(ROUND($M13,3),$BM$51:$BZ$51,1)-1,0)+IF(AND($J13=CJ$12,ROUND($M13,3)>$AP$62),1,0) -> 0 | CK13: =IF($J13=CK$12,MATCH(ROUND($M13,3),$BM$52:$BZ$52,1)-1,0)+IF(AND($J13=CK$12,ROUND($M13,3)>$AP$63),1,0) -> 0 | CL13: =IF($J13=CL$12,MATCH(ROUND($M13,3),$BM$53:$BZ$53,1)-1,0)+IF(AND($J13=CL$12,ROUND($M13,3)>$AP$64),1,0) -> 0 | CM13: =IF($J13=CM$12,MATCH(ROUND($M13,3),$BM$54:$BZ$54,1)-1,0)+IF(AND($J13=CM$12,ROUND($M13,3)>$AP$65),1,0) -> 0 | CN13: =IF($J13=CN$12,MATCH(ROUND($M13,3),$BM$55:$BZ$55,1)-1,0)+IF(AND($J13=CN$12,ROUND($M13,3)>$AP$66),1,0) -> 0 | CO13: =IF($J13=CO$12,MATCH(ROUND($M13,3),$BM$56:$BZ$56,1)-1,0)+IF(AND($J13=CO$12,ROUND($M13,3)>$AP$67),1,0) -> 0 | CP13: =IF($J13=CP$12,MATCH(ROUND($M13,3),$BM$57:$BZ$57,1)-1,0)+IF(AND($J13=CP$12,ROUND($M13,3)>$AP$68),1,0) -> 0 | CQ13: =IF($J13=CQ$12,MATCH(ROUND($M13,3),$BM$58:$BZ$58,1)-1,0)+IF(AND($J13=CQ$12,ROUND($M13,3)>$AP$69),1,0) -> 0 | CR13: =IF($J13=CR$12,MATCH(ROUND($M13,3),$BM$59:$BZ$59,1)-1,0)+IF(AND($J13=CR$12,ROUND($M13,3)>$AP$70),1,0) -> 0 | CS13: =IF($J13=CS$12,MATCH(ROUND($M13,3),$BM$60:$BZ$60,1)-1,0)+IF(AND($J13=CS$12,ROUND($M13,3)>$AP$71),1,0) -> 0 | CT13: =IF($J13=CT$12,MATCH(ROUND($M13,3),$BM$61:$BZ$61,1)-1,0)+IF(AND($J13=CT$12,ROUND($M13,3)>$AP$72),1,0) -> 0 | CU13: =IF($J13=CU$12,MATCH(ROUND($M13,3),$BM$62:$BZ$62,1)-1,0)+IF(AND($J13=CU$12,ROUND($M13,3)>$AP$73),1,0) -> 3 | CW13: =IF($C13>0,$B13,#N/A) -> 1 | CX13: =IF($C13>0,ROUND($C13,3),#N/A) -> 0.255 | CY13: =IF(I13>0,IF(OR(AND($I13=1,$CH13>=5,$CH13<=8),AND(I13=2,$CH13>=4,$CH13<=9),AND($I13=3,$CH13>=3,$CH13<=10),AND($I13=4,$CH13>=2,$CH13<=11)),1,IF(OR(AND($I13=1,OR($CH13=4,$CH13=9)),AND($I13=2,OR($CH13=3,$CH13=10)),AND($I13=3,OR($CH13=2,$CH13=11)),AND($I13=4,OR($CH13=1,$CH13=12))),2,0)),#N/A) -> 1 | CZ13: =IF($C13>0,IF(OR(AND($B13>=$BR$24,$B13<=$BR$25,OR($C13>$BS$24,$C13<$BT$24)),AND($B13>=$BR$26,$B13<=$BR$27,OR($C13>$BS$26,$C13<$BT$26))),0,1),#N/A) -> 1 | DA13: =IF($I13>0,IF(AND(ISNUMBER(M13),$M13>0),1,0),"") -> 1
B14: 2 | C14: 0.268 | G14: =G13+1 -> 2 | H14: 0 | I14: 4 | J14: 80 | K14: 8.5 | L14: 2.35 | M14: 0.268 | N14: 45 | R14: =0.5*L14*(J14/3.6)^2 -> 580.2 | CH14: 1 | CI14: 0 | CJ14: 0 | CK14: 0 | CL14: 0 | CM14: 0 | CN14: 0 | CO14: 0 | CP14: 0 | CQ14: 0 | CR14: 0 | CS14: 1 | CT14: 0 | CU14: 0 | CW14: 2 | CX14: 0.268 | CY14: 2 | CZ14: =IF($C14>0,IF(OR(AND($B14>=$BR$24,$B14<=$BR$25,OR($C14>$BS$24,$C14<$BT$24)),AND($B14>=$BR$26,$B14<=$BR$27,OR($C14>$BS$26,$C14<$BT$26))),0,1),#N/A) -> 1 | DA14: =IF($I14>0,IF(AND(ISNUMBER(M14),$M14>0),1,0),"") -> 1
B15: 3 | C15: 0.251 | G15: 3 | H15: 0 | I15: 4 | J15: 100 | K15: 8.5 | L15: 2.35 | M15: 0.349 | N15: 64 | R15: 906.6 | BK15: =IF(BL15<>0,"failed","passed") -> passed | BL15: =IF(OR($BT$21<14,BT21-BR21<>0),">1",0) -> 0 | BM15: Missing or invalid bedding data | BQ15: >30% | BR15: =IF(BT16=1,COUNTIFS($C$23:INDIRECT($BR$11),">"&($BR$13+$BR$13*0.3)),0) -> 0 | BT15: 30% existing | CG15: =IF(COUNTA($F$4:$H$6)=4,0,1) -> 0 | CH15: 6 | CI15: 0 | CJ15: 0 | CK15: 0 | CL15: 0 | CM15: 0 | CN15: 0 | CO15: 0 | CP15: 0 | CQ15: 0 | CR15: 6 | CS15: 0 | CT15: 0 | CU15: 0 | CW15: 3 | CX15: 0.251 | CY15: 1 | CZ15: 1 | DA15: 1
B16: 4 | C16: 0.28 | G16: 4 | H16: 0 | I16: 4 | J16: 120 | K16: 8.5 | L16: 2.35 | M16: 0.347 | N16: 87 | R16: 1305.6 | BQ16: +/- 30% | BR16: =IF(BT16=1,COUNTIFS($C$23:INDIRECT($BR$11),">"&($BR$13-$BR$13*0.3),$C$23:INDIRECT($BR$11),"<"&($BR$13+$BR$13*0.3)),0) -> 20 | BS16: =ROUND(BR9*0.3,0) -> 30 | BT16: =IF(BS16<=10,0,1) -> 1 | CG16: =IF(COUNTA($J$4)=1,0,1) -> 0 | CH16: 7 | CI16: 0 | CJ16: 0 | CK16: 0 | CL16: 0 | CM16: 0 | CN16: 0 | CO16: 0 | CP16: 0 | CQ16: 7 | CR16: 0 | CS16: 0 | CT16: 0 | CU16: 0 | CW16: 4 | CX16: 0.28 | CY16: 1 | CZ16: 1 | DA16: 1
B17: 5 | C17: 0.28 | G17: 5 | H17: 0 | I17: 4 | J17: 50 | K17: 4.5 | L17: 2.35 | M17: 0.38 | N17: 63 | R17: 226.7 | BK17: =IF(BL17<>0,"failed","passed") -> passed | BL17: =COUNTIFS($I$13:$I$212,">0",$M$13:$M$212,"") -> 0 | BM17: Missing or invalid entries (except Prio 0 brake applications) | BQ17: <-30% | BR17: =IF(BT16=1,COUNTIFS($C$23:INDIRECT($BR$11),"<"&($BR$13-$BR$13*0.3)),0) -> 0 | CG17: =IF(COUNTA($J$7:$K$7)=2,0,1) -> 0 | CH17: 7 | CI17: 0 | CJ17: 0 | CK17: 0 | CL17: 0 | CM17: 0 | CN17: 0 | CO17: 0 | CP17: 0 | CQ17: 0 | CR17: 0 | CS17: 0 | CT17: 0 | CU17: 7 | CW17: 5 | CX17: 0.28 | CY17: 1 | CZ17: 1 | DA17: 1
B18: 6 | C18: 0.28 | G18: 6 | H18: 0 | I18: 4 | J18: 80 | K18: 4.5 | L18: 2.35 | M18: 0.354 | N18: 67 | R18: 580.2 | BQ18: >15% | BR18: =IF(BT19=1,COUNTIFS(INDIRECT($BR$12):INDIRECT($BR$10),">"&($BR$13+$BR$13*0.15)),0) -> 0 | BT18: 15% existing | CG18: =IF(COUNTA($L$7)=1,0,1) -> 0 | CH18: 6 | CI18: 0 | CJ18: 0 | CK18: 0 | CL18: 0 | CM18: 0 | CN18: 0 | CO18: 0 | CP18: 0 | CQ18: 0 | CR18: 0 | CS18: 6 | CT18: 0 | CU18: 0 | CW18: 6 | CX18: 0.28 | CY18: 1 | CZ18: 1 | DA18: 1
B19: 7 | C19: 0.22 | G19: 7 | H19: 0 | I19: 4 | J19: 100 | K19: 4.5 | L19: 2.35 | M19: 0.345 | N19: 76 | R19: 906.6 | BK19: =IF(BL19<>0,"failed","passed") -> passed | BL19: =COUNTIFS($I$13:$I$212,">0",$M$13:$M$212,"<0,1") -> 0 | BM19: single mm value lower 0,1 | BQ19: +/- 15% | BR19: =IF(BT19=1,COUNTIFS(INDIRECT($BR$12):INDIRECT($BR$10),">"&($BR$13-$BR$13*0.15),INDIRECT($BR$12):INDIRECT($BR$10),"<"&($BR$13+$BR$13*0.15)),0) -> 70 | BS19: =ROUND(BR9*0.7,0) -> 70 | BT19: =IF(BS19<=10,0,1) -> 1 | CG19: =IF(COUNTA($M$4:$N$5)=4,0,1) -> 0 | CH19: 6 | CI19: 0 | CJ19: 0 | CK19: 0 | CL19: 0 | CM19: 0 | CN19: 0 | CO19: 0 | CP19: 0 | CQ19: 0 | CR19: 6 | CS19: 0 | CT19: 0 | CU19: 0 | CW19: 7 | CX19: 0.22 | CY19: 1 | CZ19: 1 | DA19: 1
B20: 8 | C20: 0.29 | G20: 8 | H20: 0 | I20: 4 | J20: 120 | K20: 4.5 | L20: 2.35 | M20: 0.35 | N20: 84 | R20: 1305.6 | BQ20: <-15% | BR20: =IF(BT19=1,COUNTIFS(INDIRECT($BR$12):INDIRECT($BR$10),"<"&($BR$13-$BR$13*0.15)),0) -> 0 | CG20: =SUM($CG$15:$CG$19) -> 0 | CH20: 7 | CI20: 0 | CJ20: 0 | CK20: 0 | CL20: 0 | CM20: 0 | CN20: 0 | CO20: 0 | CP20: 0 | CQ20: 7 | CR20: 0 | CS20: 0 | CT20: 0 | CU20: 0 | CW20: 8 | CX20: 0.29 | CY20: 1 | CZ20: 1 | DA20: 1
B21: 9 | C21: 0.26 | G21: 9 | H21: 0 | I21: 1 | J21: 50 | K21: 12.5 | L21: 2.35 | M21: 0.394 | N21: 66 | R21: 226.7 | BK21: =IF(BL21<>0,"failed","passed") -> passed | BL21: =COUNTIFS($I$13:$I$212,">0",$M$13:$M$212,">0,6") -> 0 | BM21: single mm value higher 0,6 | BQ21: Check | BR21: =SUM($BR$15:$BR$20)+10 -> 100 | BS21: Amount of Entries: | BT21: =COUNTIFS(($C$13:$C$212),">0") -> 100 | CG21: =IF($CG$20>0,"Kopf un - vollständig","Kopf vollständig") -> Kopf vollständig | CH21: 7 | CI21: 0 | CJ21: 0 | CK21: 0 | CL21: 0 | CM21: 0 | CN21: 0 | CO21: 0 | CP21: 0 | CQ21: 0 | CR21: 0 | CS21: 0 | CT21: 0 | CU21: 7 | CW21: 9 | CX21: 0.26 | CY21: 1 | CZ21: 1 | DA21: 1
B22: 10 | C22: 0.29 | G22: 10 | H22: 0 | I22: 1 | J22: 80 | K22: 12.5 | L22: 2.35 | M22: 0.358 | N22: 76 | R22: 580.2 | BQ22: Result | BR22: =IF($BR$21<>$BR$9,"error",IF($BR$9<=14,"not evaluable",IF($BR$15+$BR$17+$BR$18+$BR$20=0,"passed","failed"))) -> passed | CH22: 6 | CI22: 0 | CJ22: 0 | CK22: 0 | CL22: 0 | CM22: 0 | CN22: 0 | CO22: 0 | CP22: 0 | CQ22: 0 | CR22: 0 | CS22: 6 | CT22: 0 | CU22: 0 | CW22: 10 | CX22: 0.29 | CY22: 1 | CZ22: 1 | DA22: 1
B23: 11 | C23: 0.29 | G23: 11 | H23: 0 | I23: 1 | J23: 100 | K23: 12.5 | L23: 2.35 | M23: 0.346 | N23: 89 | R23: 906.6 | BK23: =IF($BL$23=Info!I11,"passed","failed") -> passed | BL23: =$W$72 -> 134 | BM23: ="Sum all entries ="&TEXT(Info!I11,0) -> Sum all entries =134 | CH23: 6 | CI23: 0 | CJ23: 0 | CK23: 0 | CL23: 0 | CM23: 0 | CN23: 0 | CO23: 0 | CP23: 0 | CQ23: 0 | CR23: 6 | CS23: 0 | CT23: 0 | CU23: 0 | CW23: 11 | CX23: 0.29 | CY23: 1 | CZ23: 1 | DA23: 1
B24: 12 | C24: 0.31 | G24: 12 | H24: 0 | I24: 1 | J24: 120 | K24: 12.5 | L24: 2.35 | M24: 0.346 | N24: 99 | R24: 1305.6 | BQ24: 30% lines | BR24: =IF(BT16=1,11,-1) -> 11 | BS24: =IF(BR24>0,$BR$13+$BR$13*0.3,"") -> 0.4498 | BT24: =IF(BR24>0,$BR$13-$BR$13*0.3,"") -> 0.2422 | CH24: 7 | CI24: 0 | CJ24: 0 | CK24: 0 | CL24: 0 | CM24: 0 | CN24: 0 | CO24: 0 | CP24: 0 | CQ24: 7 | CR24: 0 | CS24: 0 | CT24: 0 | CU24: 0 | CW24: 12 | CX24: 0.31 | CY24: 1 | CZ24: 1 | DA24: 1
B25: 13 | C25: 0.32 | G25: 13 | H25: 0 | I25: 4 | J25: 50 | K25: 8.5 | L25: 2.35 | M25: 0.381 | N25: 65 | R25: 226.7 | BR25: =IF(BT16=1,BS16,-1) -> 30 | BS25: =IF(BR25>0,$BR$13+$BR$13*0.3,"") -> 0.4498 | BT25: =IF(BR24>0,$BR$13-$BR$13*0.3,"") -> 0.2422 | CH25: 7 | CI25: 0 | CJ25: 0 | CK25: 0 | CL25: 0 | CM25: 0 | CN25: 0 | CO25: 0 | CP25: 0 | CQ25: 0 | CR25: 0 | CS25: 0 | CT25: 0 | CU25: 7 | CW25: 13 | CX25: 0.32 | CY25: 1 | CZ25: 1 | DA25: 1
B26: 14 | C26: 0.33 | G26: 14 | H26: 0 | I26: 4 | J26: 80 | K26: 8.5 | L26: 2.35 | M26: 0.356 | N26: 74 | R26: 580.2 | BK26: =IF(OR($BK$15="failed",$BK$17="failed",$BK$19="failed",$BK$21="failed",$BK$23="failed"),"failed","passed") -> passed | BQ26: 15% lines | BR26: =IF(AND(BT16=1,BT19=1),$BR$25+1,IF(AND(BT16=0,BT19=1),11,-1)) -> 31 | BS26: =IF(BR26>0,$BR$13+$BR$13*0.15,"") -> 0.3979 | BT26: =IF(BR26>0,$BR$13-$BR$13*0.15,"") -> 0.2941 | CG26: Transfor - mation | CH26: 6 | CI26: 0 | CJ26: 0 | CK26: 0 | CL26: 0 | CM26: 0 | CN26: 0 | CO26: 0 | CP26: 0 | CQ26: 0 | CR26: 0 | CS26: 6 | CT26: 0 | CU26: 0 | CW26: 14 | CX26: 0.33 | CY26: 1 | CZ26: 1 | DA26: 1
B27: 15 | C27: 0.32 | G27: 15 | H27: 0 | I27: 4 | J27: 100 | K27: 8.5 | L27: 2.35 | M27: 0.345 | N27: 86 | R27: 906.6 | BR27: =IF($BR$26>10,$BR$9,-1) -> 100 | BS27: =IF(BR26>0,$BR$13+$BR$13*0.15,"") -> 0.3979 | BT27: =IF(BR26>0,$BR$13-$BR$13*0.15,"") -> 0.2941 | CH27: 6 | CI27: 0 | CJ27: 0 | CK27: 0 | CL27: 0 | CM27: 0 | CN27: 0 | CO27: 0 | CP27: 0 | CQ27: 0 | CR27: 6 | CS27: 0 | CT27: 0 | CU27: 0 | CW27: 15 | CX27: 0.32 | CY27: 1 | CZ27: 1 | DA27: 1
B28: 16 | C28: 0.34 | G28: 16 | H28: 0 | I28: 4 | J28: 120 | K28: 8.5 | L28: 2.35 | M28: 0.346 | N28: 94 | R28: 1305.6 | CH28: 7 | CI28: 0 | CJ28: 0 | CK28: 0 | CL28: 0 | CM28: 0 | CN28: 0 | CO28: 0 | CP28: 0 | CQ28: 7 | CR28: 0 | CS28: 0 | CT28: 0 | CU28: 0 | CW28: 16 | CX28: 0.34 | CY28: 1 | CZ28: 1 | DA28: 1
B29: 17 | C29: 0.32 | G29: 17 | H29: 0 | I29: 4 | J29: 50 | K29: 4.5 | L29: 2.35 | M29: 0.384 | N29: 63 | R29: 226.7 | BP29: Average coefficient of friction per Prio and speed | CH29: 7 | CI29: 0 | CJ29: 0 | CK29: 0 | CL29: 0 | CM29: 0 | CN29: 0 | CO29: 0 | CP29: 0 | CQ29: 0 | CR29: 0 | CS29: 0 | CT29: 0 | CU29: 7 | CW29: 17 | CX29: 0.32 | CY29: 1 | CZ29: 1 | DA29: 1
B30: 18 | C30: 0.34 | G30: 18 | H30: 0 | I30: 4 | J30: 80 | K30: 4.5 | L30: 2.35 | M30: 0.353 | N30: 68 | R30: 580.2 | BP30: Speed | BQ30: Prio 1 | BR30: Prio 2 | BS30: Prio 3 | BT30: Prio 4 | CG30: ym | CH30: 6 | CI30: 0 | CJ30: 0 | CK30: 0 | CL30: 0 | CM30: 0 | CN30: 0 | CO30: 0 | CP30: 0 | CQ30: 0 | CR30: 0 | CS30: 6 | CT30: 0 | CU30: 0 | CW30: 18 | CX30: 0.34 | CY30: 1 | CZ30: 1 | DA30: 1
B31: 19 | C31: 0.33 | G31: 19 | H31: 0 | I31: 4 | J31: 100 | K31: 4.5 | L31: 2.35 | M31: 0.347 | N31: 77 | R31: 906.6 | BK31: Average cefficient of friction | BM31: 400 | BN31: >0 | BO31: >0 | BP31: 400 | BQ31: =IF(ISERROR(AVERAGEIFS($M$13:$M$212,$H$13:$H$212,"<>1",$I$13:$I$212,"=1",$J$13:$J$212,$BM31,$K$13:$K$212,$BN31,$L$13:$L$212,$BO31)),"---",AVERAGEIFS($M$13:$M$212,$H$13:$H$212,"<>1",$I$13:$I$212,"=1",$J$13:$J$212,$BM31,$K$13:$K$212,$BN31,$L$13:$L$212,$BO31)) -> --- | BR31: =IF(ISERROR(AVERAGEIFS($M$13:$M$212,$H$13:$H$212,"<>1",$I$13:$I$212,"=2",$J$13:$J$212,$BM31,$K$13:$K$212,$BN31,$L$13:$L$212,$BO31)),"---",AVERAGEIFS($M$13:$M$212,$H$13:$H$212,"<>1",$I$13:$I$212,"=2",$J$13:$J$212,$BM31,$K$13:$K$212,$BN31,$L$13:$L$212,$BO31)) -> --- | BS31: =IF(ISERROR(AVERAGEIFS($M$13:$M$212,$H$13:$H$212,"<>1",$I$13:$I$212,"=3",$J$13:$J$212,$BM31,$K$13:$K$212,$BN31,$L$13:$L$212,$BO31)),"---",AVERAGEIFS($M$13:$M$212,$H$13:$H$212,"<>1",$I$13:$I$212,"=3",$J$13:$J$212,$BM31,$K$13:$K$212,$BN31,$L$13:$L$212,$BO31)) -> --- | BT31: =IF(ISERROR(AVERAGEIFS($M$13:$M$212,$H$13:$H$212,"<>1",$I$13:$I$212,"=4",$J$13:$J$212,$BM31,$K$13:$K$212,$BN31,$L$13:$L$212,$BO31)),"---",AVERAGEIFS($M$13:$M$212,$H$13:$H$212,"<>1",$I$13:$I$212,"=4",$J$13:$J$212,$BM31,$K$13:$K$212,$BN31,$L$13:$L$212,$BO31)) -> --- | CG31: mm | CH31: 6 | CI31: 0 | CJ31: 0 | CK31: 0 | CL31: 0 | CM31: 0 | CN31: 0 | CO31: 0 | CP31: 0 | CQ31: 0 | CR31: 6 | CS31: 0 | CT31: 0 | CU31: 0 | CW31: 19 | CX31: 0.33 | CY31: 1 | CZ31: 1 | DA31: 1
B32: 20 | C32: 0.32 | G32: 20 | H32: 0 | I32: 4 | J32: 120 | K32: 4.5 | L32: 2.35 | M32: 0.352 | N32: 84 | R32: 1305.6 | BM32: 350 | BN32: >0 | BO32: >0 | BP32: 350 | BQ32: --- | BR32: --- | BS32: --- | BT32: --- | CH32: 7 | CI32: 0 | CJ32: 0 | CK32: 0 | CL32: 0 | CM32: 0 | CN32: 0 | CO32: 0 | CP32: 0 | CQ32: 7 | CR32: 0 | CS32: 0 | CT32: 0 | CU32: 0 | CW32: 20 | CX32: 0.32 | CY32: 1 | CZ32: 1 | DA32: 1
B33: 21 | C33: 0.32 | G33: 21 | H33: 0 | I33: 1 | J33: 50 | K33: 12.5 | L33: 2.35 | M33: 0.394 | N33: 66 | R33: 226.7 | BM33: 300 | BN33: >0 | BO33: >0 | BP33: 300 | BQ33: --- | BR33: --- | BS33: --- | BT33: --- | CH33: 7 | CI33: 0 | CJ33: 0 | CK33: 0 | CL33: 0 | CM33: 0 | CN33: 0 | CO33: 0 | CP33: 0 | CQ33: 0 | CR33: 0 | CS33: 0 | CT33: 0 | CU33: 7 | CW33: 21 | CX33: 0.32 | CY33: 1 | CZ33: 1 | DA33: 1
B34: 22 | C34: 0.28 | G34: 22 | H34: 0 | I34: 1 | J34: 80 | K34: 12.5 | L34: 2.35 | M34: 0.357 | N34: 76 | R34: 580.2 | BM34: 250 | BN34: >0 | BO34: >0 | BP34: 250 | BQ34: --- | BR34: --- | BS34: --- | BT34: --- | CH34: 6 | CI34: 0 | CJ34: 0 | CK34: 0 | CL34: 0 | CM34: 0 | CN34: 0 | CO34: 0 | CP34: 0 | CQ34: 0 | CR34: 0 | CS34: 6 | CT34: 0 | CU34: 0 | CW34: 22 | CX34: 0.28 | CY34: 1 | CZ34: 1 | DA34: 1
B35: 23 | C35: 0.33 | G35: 23 | H35: 0 | I35: 1 | J35: 100 | K35: 12.5 | L35: 2.35 | M35: 0.349 | N35: 89 | R35: 906.6 | BM35: 220 | BN35: >0 | BO35: >0 | BP35: 220 | BQ35: --- | BR35: --- | BS35: --- | BT35: --- | CG35: Criteria for contious brake application fullfilled? | CH35: 6 | CI35: 0 | CJ35: 0 | CK35: 0 | CL35: 0 | CM35: 0 | CN35: 0 | CO35: 0 | CP35: 0 | CQ35: 0 | CR35: 6 | CS35: 0 | CT35: 0 | CU35: 0 | CW35: 23 | CX35: 0.33 | CY35: 1 | CZ35: 1 | DA35: 1
B36: 24 | C36: 0.32 | G36: 24 | H36: 0 | I36: 1 | J36: 120 | K36: 12.5 | L36: 2.35 | M36: 0.352 | N36: 99 | R36: 1305.6 | BM36: 200 | BN36: >0 | BO36: >0 | BP36: 200 | BQ36: --- | BR36: --- | BS36: --- | BT36: --- | CH36: 7 | CI36: 0 | CJ36: 0 | CK36: 0 | CL36: 0 | CM36: 0 | CN36: 0 | CO36: 0 | CP36: 0 | CQ36: 7 | CR36: 0 | CS36: 0 | CT36: 0 | CU36: 0 | CW36: 24 | CX36: 0.32 | CY36: 1 | CZ36: 1 | DA36: 1
B37: 25 | C37: 0.34 | G37: 25 | H37: 0 | I37: 4 | J37: 50 | K37: 8.5 | L37: 2.35 | M37: 0.395 | N37: 66 | R37: 226.7 | BM37: 160 | BN37: >0 | BO37: >0 | BP37: 160 | BQ37: --- | BR37: --- | BS37: --- | BT37: --- | CH37: 7 | CI37: 0 | CJ37: 0 | CK37: 0 | CL37: 0 | CM37: 0 | CN37: 0 | CO37: 0 | CP37: 0 | CQ37: 0 | CR37: 0 | CS37: 0 | CT37: 0 | CU37: 7 | CW37: 25 | CX37: 0.34 | CY37: 1 | CZ37: 1 | DA37: 1
B38: 26 | C38: 0.34 | G38: 26 | H38: 0 | I38: 4 | J38: 80 | K38: 8.5 | L38: 2.35 | M38: 0.354 | N38: 74 | R38: 580.2 | BM38: 140 | BN38: >0 | BO38: >0 | BP38: 140 | BQ38: --- | BR38: --- | BS38: --- | BT38: --- | CH38: 6 | CI38: 0 | CJ38: 0 | CK38: 0 | CL38: 0 | CM38: 0 | CN38: 0 | CO38: 0 | CP38: 0 | CQ38: 0 | CR38: 0 | CS38: 6 | CT38: 0 | CU38: 0 | CW38: 26 | CX38: 0.34 | CY38: 1 | CZ38: 1 | DA38: 1
B39: 27 | C39: 0.34 | G39: 27 | H39: 0 | I39: 4 | J39: 100 | K39: 8.5 | L39: 2.35 | M39: 0.345 | N39: 86 | R39: 906.6 | BM39: 120 | BN39: >0 | BO39: >0 | BP39: 120 | BQ39: 0.3495 | BR39: 0.351 | BS39: --- | BT39: 0.347429 | CH39: 6 | CI39: 0 | CJ39: 0 | CK39: 0 | CL39: 0 | CM39: 0 | CN39: 0 | CO39: 0 | CP39: 0 | CQ39: 0 | CR39: 6 | CS39: 0 | CT39: 0 | CU39: 0 | CW39: 27 | CX39: 0.34 | CY39: 1 | CZ39: 1 | DA39: 1
B40: 28 | C40: 0.35 | G40: 28 | H40: 0 | I40: 4 | J40: 120 | K40: 8.5 | L40: 2.35 | M40: 0.349 | N40: 94 | R40: 1305.6 | BM40: 100 | BN40: >0 | BO40: >0 | BP40: 100 | BQ40: 0.353857 | BR40: 0.34 | BS40: 0.38 | BT40: 0.365406 | CH40: 7 | CI40: 0 | CJ40: 0 | CK40: 0 | CL40: 0 | CM40: 0 | CN40: 0 | CO40: 0 | CP40: 0 | CQ40: 7 | CR40: 0 | CS40: 0 | CT40: 0 | CU40: 0 | CW40: 28 | CX40: 0.35 | CY40: 1 | CZ40: 1 | DA40: 1
B41: 29 | C41: 0.34 | G41: 29 | H41: 0 | I41: 4 | J41: 50 | K41: 4.5 | L41: 2.35 | M41: 0.387 | N41: 64 | R41: 226.7 | BM41: 80 | BN41: >0 | BO41: >0 | BP41: 80 | BQ41: 0.358 | BR41: 0.347 | BS41: --- | BT41: 0.3508 | CH41: 7 | CI41: 0 | CJ41: 0 | CK41: 0 | CL41: 0 | CM41: 0 | CN41: 0 | CO41: 0 | CP41: 0 | CQ41: 0 | CR41: 0 | CS41: 0 | CT41: 0 | CU41: 7 | CW41: 29 | CX41: 0.34 | CY41: 1 | CZ41: 1 | DA41: 1
B42: 30 | C42: 0.34 | G42: 30 | H42: 0 | I42: 4 | J42: 80 | K42: 4.5 | L42: 2.35 | M42: 0.351 | N42: 68 | R42: 580.2 | BM42: 70 | BN42: >0 | BO42: >0 | BP42: 70 | BQ42: --- | BR42: --- | BS42: 0.378 | BT42: --- | CG42: TRUE | CH42: 6 | CI42: 0 | CJ42: 0 | CK42: 0 | CL42: 0 | CM42: 0 | CN42: 0 | CO42: 0 | CP42: 0 | CQ42: 0 | CR42: 0 | CS42: 6 | CT42: 0 | CU42: 0 | CW42: 30 | CX42: 0.34 | CY42: 1 | CZ42: 1 | DA42: 1
B43: 31 | C43: 0.34 | G43: 31 | H43: 0 | I43: 4 | J43: 100 | K43: 4.5 | L43: 2.35 | M43: 0.343 | N43: 77 | R43: 906.6 | BM43: 50 | BN43: >0 | BO43: >0 | BP43: 50 | BQ43: 0.383667 | BR43: --- | BS43: --- | BT43: 0.3946 | CH43: 6 | CI43: 0 | CJ43: 0 | CK43: 0 | CL43: 0 | CM43: 0 | CN43: 0 | CO43: 0 | CP43: 0 | CQ43: 0 | CR43: 6 | CS43: 0 | CT43: 0 | CU43: 0 | CW43: 31 | CX43: 0.34 | CY43: 1 | CZ43: 1 | DA43: 1
B44: 32 | C44: 0.35 | G44: 32 | H44: 0 | I44: 4 | J44: 120 | K44: 4.5 | L44: 2.35 | M44: 0.348 | N44: 84 | R44: 1305.6 | BK44: Average: | BM44: >=50 | BN44: >0 | BO44: >0 | BP44: >=50 | BQ44: 0.360846 | BR44: 0.346 | BS44: 0.379 | BT44: 0.364974 | CG44: =IF(ISERROR(SEARCH("WAHR",$CG$42)),"0",SEARCH("WAHR",$CG$42)) -> 1 | CH44: 7 | CI44: 0 | CJ44: 0 | CK44: 0 | CL44: 0 | CM44: 0 | CN44: 0 | CO44: 0 | CP44: 0 | CQ44: 7 | CR44: 0 | CS44: 0 | CT44: 0 | CU44: 0 | CW44: 32 | CX44: 0.35 | CY44: 1 | CZ44: 1 | DA44: 1
B45: 33 | C45: 0.34 | G45: 33 | H45: 0 | I45: 1 | J45: 50 | K45: 12.5 | L45: 2.35 | M45: 0.397 | N45: 66 | R45: 226.7 | CH45: =IF(OR(ISERROR(SUM(CI45:CU45)),$I45<1),"-1",SUM(CI45:CU45)) -> 7 | CI45: =IF($J45=CI$12,MATCH(ROUND($M45,3),$BM$50:$BZ$50,1)-1,0)+IF(AND($J45=CI$12,ROUND($M45,3)>$AP$61),1,0) -> 0 | CJ45: =IF($J45=CJ$12,MATCH(ROUND($M45,3),$BM$51:$BZ$51,1)-1,0)+IF(AND($J45=CJ$12,ROUND($M45,3)>$AP$62),1,0) -> 0 | CK45: =IF($J45=CK$12,MATCH(ROUND($M45,3),$BM$52:$BZ$52,1)-1,0)+IF(AND($J45=CK$12,ROUND($M45,3)>$AP$63),1,0) -> 0 | CL45: =IF($J45=CL$12,MATCH(ROUND($M45,3),$BM$53:$BZ$53,1)-1,0)+IF(AND($J45=CL$12,ROUND($M45,3)>$AP$64),1,0) -> 0 | CM45: =IF($J45=CM$12,MATCH(ROUND($M45,3),$BM$54:$BZ$54,1)-1,0)+IF(AND($J45=CM$12,ROUND($M45,3)>$AP$65),1,0) -> 0 | CN45: =IF($J45=CN$12,MATCH(ROUND($M45,3),$BM$55:$BZ$55,1)-1,0)+IF(AND($J45=CN$12,ROUND($M45,3)>$AP$66),1,0) -> 0 | CO45: =IF($J45=CO$12,MATCH(ROUND($M45,3),$BM$56:$BZ$56,1)-1,0)+IF(AND($J45=CO$12,ROUND($M45,3)>$AP$67),1,0) -> 0 | CP45: =IF($J45=CP$12,MATCH(ROUND($M45,3),$BM$57:$BZ$57,1)-1,0)+IF(AND($J45=CP$12,ROUND($M45,3)>$AP$68),1,0) -> 0 | CQ45: =IF($J45=CQ$12,MATCH(ROUND($M45,3),$BM$58:$BZ$58,1)-1,0)+IF(AND($J45=CQ$12,ROUND($M45,3)>$AP$69),1,0) -> 0 | CR45: =IF($J45=CR$12,MATCH(ROUND($M45,3),$BM$59:$BZ$59,1)-1,0)+IF(AND($J45=CR$12,ROUND($M45,3)>$AP$70),1,0) -> 0 | CS45: =IF($J45=CS$12,MATCH(ROUND($M45,3),$BM$60:$BZ$60,1)-1,0)+IF(AND($J45=CS$12,ROUND($M45,3)>$AP$71),1,0) -> 0 | CT45: =IF($J45=CT$12,MATCH(ROUND($M45,3),$BM$61:$BZ$61,1)-1,0)+IF(AND($J45=CT$12,ROUND($M45,3)>$AP$72),1,0) -> 0 | CU45: =IF($J45=CU$12,MATCH(ROUND($M45,3),$BM$62:$BZ$62,1)-1,0)+IF(AND($J45=CU$12,ROUND($M45,3)>$AP$73),1,0) -> 7 | CW45: =IF($C45>0,$B45,#N/A) -> 33 | CX45: =IF($C45>0,ROUND($C45,3),#N/A) -> 0.34 | CY45: =IF(I45>0,IF(OR(AND($I45=1,$CH45>=5,$CH45<=8),AND(I45=2,$CH45>=4,$CH45<=9),AND($I45=3,$CH45>=3,$CH45<=10),AND($I45=4,$CH45>=2,$CH45<=11)),1,IF(OR(AND($I45=1,OR($CH45=4,$CH45=9)),AND($I45=2,OR($CH45=3,$CH45=10)),AND($I45=3,OR($CH45=2,$CH45=11)),AND($I45=4,OR($CH45=1,$CH45=12))),2,0)),#N/A) -> 1 | CZ45: 1 | DA45: 1
B46: 34 | C46: 0.34 | G46: =G45+1 -> 34 | H46: 0 | I46: 1 | J46: 80 | K46: 12.5 | L46: 2.35 | M46: 0.359 | N46: 76 | R46: 580.2 | CH46: 6 | CI46: 0 | CJ46: 0 | CK46: 0 | CL46: 0 | CM46: 0 | CN46: 0 | CO46: 0 | CP46: 0 | CQ46: 0 | CR46: 0 | CS46: 6 | CT46: 0 | CU46: 0 | CW46: 34 | CX46: 0.34 | CY46: 1 | CZ46: 1 | DA46: 1
B47: 35 | C47: 0.34 | G47: 35 | H47: 0 | I47: 1 | J47: 100 | K47: 12.5 | L47: 2.35 | M47: 0.349 | N47: 89 | R47: 906.6 | BK47: Numbering | BM47: 0 | BN47: 1 | BO47: 2 | BP47: 3 | BQ47: 4 | BR47: 5 | BS47: 6 | BT47: 7 | BU47: 8 | BV47: 9 | BW47: 10 | BX47: 11 | BY47: 12 | BZ47: 13 | CG47: Checksum Bedding Start | CH47: 6 | CI47: 0 | CJ47: 0 | CK47: 0 | CL47: 0 | CM47: 0 | CN47: 0 | CO47: 0 | CP47: 0 | CQ47: 0 | CR47: 6 | CS47: 0 | CT47: 0 | CU47: 0 | CW47: 35 | CX47: 0.34 | CY47: 1 | CZ47: 1 | DA47: 1
B48: 36 | C48: 0.35 | G48: 36 | H48: 0 | I48: 1 | J48: 120 | K48: 12.5 | L48: 2.35 | M48: 0.352 | N48: 99 | R48: 1305.6 | BK48: % | BL48: Leerfeld | BM48: <-30% | BN48: -0.3 | BO48: -0.25 | BP48: -0.2 | BQ48: -0.15 | BR48: -0.1 | BS48: -0.05 | BT48: 0.05 | BU48: 0.1 | BV48: 0.15 | BW48: 0.2 | BX48: 0.25 | BY48: 0.3 | BZ48: >30% | CH48: 7 | CI48: 0 | CJ48: 0 | CK48: 0 | CL48: 0 | CM48: 0 | CN48: 0 | CO48: 0 | CP48: 0 | CQ48: 7 | CR48: 0 | CS48: 0 | CT48: 0 | CU48: 0 | CW48: 36 | CX48: 0.35 | CY48: 1 | CZ48: 1 | DA48: 1
B49: 37 | C49: 0.35 | F49: Wet brake applications, minimal mass | G49: 37 | H49: 1 | I49: 4 | J49: 50 | K49: 8.5 | L49: 2.35 | M49: 0.337 | N49: 31 | R49: 226.7 | BK49: km/h | CH49: 4 | CI49: 0 | CJ49: 0 | CK49: 0 | CL49: 0 | CM49: 0 | CN49: 0 | CO49: 0 | CP49: 0 | CQ49: 0 | CR49: 0 | CS49: 0 | CT49: 0 | CU49: 4 | CW49: 37 | CX49: 0.35 | CY49: 1 | CZ49: 1 | DA49: 1
B50: 38 | C50: 0.36 | G50: 38 | H50: 1 | I50: 4 | J50: 80 | K50: 8.5 | L50: 2.35 | M50: 0.363 | N50: 46 | R50: 580.2 | BK50: 400 | BM50: 0.001 | BN50: =$AP61*0.7 -> 0.147608 | BO50: =$AP61*0.75 -> 0.158151 | BP50: =$AP61*0.8 -> 0.168694 | BQ50: =$AP61*0.85 -> 0.179238 | BR50: =$AP61*0.9 -> 0.189781 | BS50: =$AP61*0.95 -> 0.200325 | BT50: =$AP61*1.05 -> 0.221411 | BU50: =$AP61*1.1 -> 0.231955 | BV50: =$AP61*1.15 -> 0.242498 | BW50: =$AP61*1.2 -> 0.253042 | BX50: =$AP61*1.25 -> 0.263585 | BY50: =$AP61*1.3 -> 0.274128 | BZ50: 1 | CH50: 6 | CI50: 0 | CJ50: 0 | CK50: 0 | CL50: 0 | CM50: 0 | CN50: 0 | CO50: 0 | CP50: 0 | CQ50: 0 | CR50: 0 | CS50: 6 | CT50: 0 | CU50: 0 | CW50: 38 | CX50: 0.36 | CY50: 1 | CZ50: 1 | DA50: 1
B51: 39 | C51: 0.34 | G51: 39 | H51: 1 | I51: 4 | J51: 100 | K51: 8.5 | L51: 2.35 | M51: 0.369 | N51: 55 | R51: 906.6 | BK51: 350 | BM51: 0.001 | BN51: 0.164415 | BO51: 0.176159 | BP51: 0.187903 | BQ51: 0.199647 | BR51: 0.211391 | BS51: 0.223135 | BT51: 0.246623 | BU51: 0.258367 | BV51: 0.270111 | BW51: 0.281855 | BX51: 0.293599 | BY51: 0.305343 | BZ51: 1 | CH51: 7 | CI51: 0 | CJ51: 0 | CK51: 0 | CL51: 0 | CM51: 0 | CN51: 0 | CO51: 0 | CP51: 0 | CQ51: 0 | CR51: 7 | CS51: 0 | CT51: 0 | CU51: 0 | CW51: 39 | CX51: 0.34 | CY51: 1 | CZ51: 1 | DA51: 1
B52: 40 | C52: 0.34 | G52: 40 | H52: 1 | I52: 4 | J52: 120 | K52: 8.5 | L52: 2.35 | M52: 0.365 | N52: 64 | R52: 1305.6 | BK52: 300 | BM52: 0.001 | BN52: 0.181223 | BO52: 0.194168 | BP52: 0.207112 | BQ52: 0.220057 | BR52: 0.233001 | BS52: 0.245946 | BT52: 0.271835 | BU52: 0.284779 | BV52: 0.297724 | BW52: 0.310668 | BX52: 0.323613 | BY52: 0.336557 | BZ52: 1 | CG52: =IF($BR$21=$BT$21,1,0) -> 1 | CH52: 8 | CI52: 0 | CJ52: 0 | CK52: 0 | CL52: 0 | CM52: 0 | CN52: 0 | CO52: 0 | CP52: 0 | CQ52: 8 | CR52: 0 | CS52: 0 | CT52: 0 | CU52: 0 | CW52: 40 | CX52: 0.34 | CY52: 1 | CZ52: 1 | DA52: 1
B53: 41 | C53: 0.34 | G53: 41 | H53: 1 | I53: 2 | J53: 50 | K53: 12.5 | L53: 2.35 | M53: 0.402 | N53: 41 | R53: 226.7 | BK53: 250 | BM53: 0.001 | BN53: 0.198031 | BO53: 0.212177 | BP53: 0.226322 | BQ53: 0.240467 | BR53: 0.254612 | BS53: 0.268757 | BT53: 0.297047 | BU53: 0.311192 | BV53: 0.325337 | BW53: 0.339482 | BX53: 0.353628 | BY53: 0.367773 | BZ53: 1 | CH53: 8 | CI53: 0 | CJ53: 0 | CK53: 0 | CL53: 0 | CM53: 0 | CN53: 0 | CO53: 0 | CP53: 0 | CQ53: 0 | CR53: 0 | CS53: 0 | CT53: 0 | CU53: 8 | CW53: 41 | CX53: 0.34 | CY53: 1 | CZ53: 1 | DA53: 1
B54: 42 | C54: 0.32 | G54: 42 | H54: 1 | I54: 2 | J54: 80 | K54: 12.5 | L54: 2.35 | M54: 0.405 | N54: 52 | R54: 580.2 | BK54: 220 | BM54: 0.001 | BN54: 0.208116 | BO54: 0.222981 | BP54: 0.237846 | BQ54: 0.252712 | BR54: 0.267577 | BS54: 0.282443 | BT54: 0.312173 | BU54: 0.327039 | BV54: 0.341904 | BW54: 0.35677 | BX54: 0.371635 | BY54: 0.3865 | BZ54: 1 | CH54: 9 | CI54: 0 | CJ54: 0 | CK54: 0 | CL54: 0 | CM54: 0 | CN54: 0 | CO54: 0 | CP54: 0 | CQ54: 0 | CR54: 0 | CS54: 9 | CT54: 0 | CU54: 0 | CW54: 42 | CX54: 0.32 | CY54: 1 | CZ54: 1 | DA54: 1
B55: 43 | C55: 0.32 | G55: 43 | H55: 1 | I55: 2 | J55: 100 | K55: 12.5 | L55: 2.35 | M55: 0.364 | N55: 58 | R55: 906.6 | AO55: Nominal line (Priority 1) | BK55: 200 | BM55: 0.001 | BN55: 0.214839 | BO55: 0.230185 | BP55: 0.24553 | BQ55: 0.260876 | BR55: 0.276222 | BS55: 0.291567 | BT55: 0.322259 | BU55: 0.337604 | BV55: 0.35295 | BW55: 0.368296 | BX55: 0.383641 | BY55: 0.398987 | BZ55: 1 | CH55: 7 | CI55: 0 | CJ55: 0 | CK55: 0 | CL55: 0 | CM55: 0 | CN55: 0 | CO55: 0 | CP55: 0 | CQ55: 0 | CR55: 7 | CS55: 0 | CT55: 0 | CU55: 0 | CW55: 43 | CX55: 0.32 | CY55: 1 | CZ55: 1 | DA55: 1
B56: 44 | C56: 0.335 | G56: 44 | H56: 1 | I56: 2 | J56: 120 | K56: 12.5 | L56: 2.35 | M56: 0.356 | N56: 69 | R56: 1305.6 | V56: Tolerance Band | W56: Priority | AA56: Bedding 30% | AB56: Bedding 15% | AC56: Continuous Braking | BK56: 160 | BM56: 0.001 | BN56: 0.228285 | BO56: 0.244592 | BP56: 0.260898 | BQ56: 0.277204 | BR56: 0.29351 | BS56: 0.309816 | BT56: 0.342428 | BU56: 0.358734 | BV56: 0.37504 | BW56: 0.391346 | BX56: 0.407653 | BY56: 0.423959 | BZ56: 1 | CH56: 7 | CI56: 0 | CJ56: 0 | CK56: 0 | CL56: 0 | CM56: 0 | CN56: 0 | CO56: 0 | CP56: 0 | CQ56: 7 | CR56: 0 | CS56: 0 | CT56: 0 | CU56: 0 | CW56: 44 | CX56: 0.335 | CY56: 1 | CZ56: 1 | DA56: 1
B57: 45 | C57: 0.33 | G57: 45 | H57: 1 | I57: 4 | J57: 50 | K57: 8.5 | L57: 2.35 | M57: 0.406 | N57: 39 | R57: 226.7 | W57: 1 | X57: 2 | Y57: 3 | Z57: 4 | AO57: Formula | AP57: =CONCATENATE($AT$62," v + ",$AT$64) -> -0,000480227057710502 v + 0,402958372753075 | BK57: 140 | BM57: 0.001 | BN57: 0.235009 | BO57: 0.251795 | BP57: 0.268582 | BQ57: 0.285368 | BR57: 0.302154 | BS57: 0.318941 | BT57: 0.352513 | BU57: 0.3693 | BV57: 0.386086 | BW57: 0.402872 | BX57: 0.419659 | BY57: 0.436445 | BZ57: 1 | CH57: 8 | CI57: 0 | CJ57: 0 | CK57: 0 | CL57: 0 | CM57: 0 | CN57: 0 | CO57: 0 | CP57: 0 | CQ57: 0 | CR57: 0 | CS57: 0 | CT57: 0 | CU57: 8 | CW57: 45 | CX57: 0.33 | CY57: 1 | CZ57: 1 | DA57: 1
B58: 46 | C58: 0.32 | G58: 46 | H58: 1 | I58: 4 | J58: 80 | K58: 8.5 | L58: 2.35 | M58: 0.407 | N58: 48 | R58: 580.2 | V58: mm > 30% | W58: =COUNTIFS($CH$13:$CH$212,13,$I$13:$I$212,W$57) -> 0 | X58: =COUNTIFS($CH$13:$CH$212,13,$I$13:$I$212,X$57) -> 0 | Y58: =COUNTIFS($CH$13:$CH$212,13,$I$13:$I$212,Y$57) -> 0 | Z58: =COUNTIFS($CH$13:$CH$212,13,$I$13:$I$212,Z$57) -> 0 | AA58: =$BR$15 -> 0 | AB58: =$BR$18 -> 0 | AC58: Enter friction values for cont. braking in M4, M5 and N4 | BK58: 120 | BM58: 0.001 | BN58: 0.241732 | BO58: 0.258998 | BP58: 0.276265 | BQ58: 0.293531 | BR58: 0.310798 | BS58: 0.328064 | BT58: 0.362598 | BU58: 0.379864 | BV58: 0.397131 | BW58: 0.414397 | BX58: 0.431664 | BY58: 0.44893 | BZ58: 1 | CH58: 9 | CI58: 0 | CJ58: 0 | CK58: 0 | CL58: 0 | CM58: 0 | CN58: 0 | CO58: 0 | CP58: 0 | CQ58: 0 | CR58: 0 | CS58: 9 | CT58: 0 | CU58: 0 | CW58: 46 | CX58: 0.32 | CY58: 1 | CZ58: 1 | DA58: 1
B59: 47 | C59: 0.34 | G59: 47 | H59: 1 | I59: 4 | J59: 100 | K59: 8.5 | L59: 2.35 | M59: 0.383 | N59: 56 | R59: 906.6 | V59: 30…25% | W59: =COUNTIFS($CH$13:$CH$212,12,$I$13:$I$212,W$57) -> 0 | X59: =COUNTIFS($CH$13:$CH$212,12,$I$13:$I$212,X$57) -> 0 | Y59: =COUNTIFS($CH$13:$CH$212,12,$I$13:$I$212,Y$57) -> 0 | Z59: =COUNTIFS($CH$13:$CH$212,12,$I$13:$I$212,Z$57) -> 2 | AA59: =$BR$16 -> 20 | AO59: Speed [km/h] | AP59: mm,NL (value of NL) | BK59: 100 | BM59: 0.001 | BN59: 0.248455 | BO59: 0.266202 | BP59: 0.283949 | BQ59: 0.301696 | BR59: 0.319442 | BS59: 0.337189 | BT59: 0.372683 | BU59: 0.39043 | BV59: 0.408176 | BW59: 0.425923 | BX59: 0.44367 | BY59: 0.461417 | BZ59: 1 | CH59: 8 | CI59: 0 | CJ59: 0 | CK59: 0 | CL59: 0 | CM59: 0 | CN59: 0 | CO59: 0 | CP59: 0 | CQ59: 0 | CR59: 8 | CS59: 0 | CT59: 0 | CU59: 0 | CW59: 47 | CX59: 0.34 | CY59: 1 | CZ59: 1 | DA59: 1
B60: 48 | C60: 0.34 | G60: 48 | H60: 1 | I60: 4 | J60: 120 | K60: 8.5 | L60: 2.35 | M60: 0.372 | N60: 64 | R60: 1305.6 | V60: 25…20% | W60: =COUNTIFS($CH$13:$CH$212,11,$I$13:$I$212,W$57) -> 0 | X60: =COUNTIFS($CH$13:$CH$212,11,$I$13:$I$212,X$57) -> 0 | Y60: =COUNTIFS($CH$13:$CH$212,11,$I$13:$I$212,Y$57) -> 0 | Z60: =COUNTIFS($CH$13:$CH$212,11,$I$13:$I$212,Z$57) -> 1 | AR60: slope in 1/(100 km/h) (a) | AT60: =$AT$62*100 -> -0.04802270577 | BK60: 80 | BM60: 0.001 | BN60: 0.255178 | BO60: 0.273405 | BP60: 0.291632 | BQ60: 0.309859 | BR60: 0.328086 | BS60: 0.346313 | BT60: 0.382767 | BU60: 0.400994 | BV60: 0.419221 | BW60: 0.437448 | BX60: 0.455675 | BY60: 0.473902 | BZ60: 1 | CH60: 8 | CI60: 0 | CJ60: 0 | CK60: 0 | CL60: 0 | CM60: 0 | CN60: 0 | CO60: 0 | CP60: 0 | CQ60: 8 | CR60: 0 | CS60: 0 | CT60: 0 | CU60: 0 | CW60: 48 | CX60: 0.34 | CY60: 1 | CZ60: 1 | DA60: 1
B61: 49 | C61: 0.34 | G61: 49 | H61: 1 | I61: 2 | J61: 50 | K61: 12.5 | L61: 2.35 | M61: 0.402 | N61: 41 | R61: 226.7 | V61: 20…15% | W61: =COUNTIFS($CH$13:$CH$212,10,$I$13:$I$212,W$57) -> 0 | X61: =COUNTIFS($CH$13:$CH$212,10,$I$13:$I$212,X$57) -> 0 | Y61: =COUNTIFS($CH$13:$CH$212,10,$I$13:$I$212,Y$57) -> 0 | Z61: =COUNTIFS($CH$13:$CH$212,10,$I$13:$I$212,Z$57) -> 5 | AO61: 400 | AP61: =$AT$62*$AO61+$AT$64 -> 0.210868 | AW61: =IF(COUNTIF($J$13:$J$147,$AO61)>0,"Ja","Nein") -> Nein | BK61: 70 | BM61: 0.001 | BN61: 0.258539 | BO61: 0.277007 | BP61: 0.295474 | BQ61: 0.313941 | BR61: 0.332408 | BS61: 0.350875 | BT61: 0.387809 | BU61: 0.406276 | BV61: 0.424743 | BW61: 0.44321 | BX61: 0.461678 | BY61: 0.480145 | BZ61: 1 | CH61: 8 | CI61: 0 | CJ61: 0 | CK61: 0 | CL61: 0 | CM61: 0 | CN61: 0 | CO61: 0 | CP61: 0 | CQ61: 0 | CR61: 0 | CS61: 0 | CT61: 0 | CU61: 8 | CW61: 49 | CX61: 0.34 | CY61: 1 | CZ61: 1 | DA61: 1
B62: 50 | C62: 0.35 | G62: 50 | H62: 1 | I62: 2 | J62: 80 | K62: 12.5 | L62: 2.35 | M62: 0.401 | N62: 51 | R62: 580.2 | V62: 15…10% | W62: =COUNTIFS($CH$13:$CH$212,9,$I$13:$I$212,W$57) -> 0 | X62: =COUNTIFS($CH$13:$CH$212,9,$I$13:$I$212,X$57) -> 2 | Y62: =COUNTIFS($CH$13:$CH$212,9,$I$13:$I$212,Y$57) -> 0 | Z62: =COUNTIFS($CH$13:$CH$212,9,$I$13:$I$212,Z$57) -> 3 | AB62: =$BR$19 -> 70 | AC62: =IF(AND($M$4<=0.5,$M$5>=0.25,$N$4<=0.05),"passed","failed") -> passed | AO62: 350 | AP62: 0.234879 | AR62: slope in 1/(km/h) | AT62: =SLOPE(IF(ISNUMBER($CM$217:$CM$428),$CM$217:$CM$428),IF(ISNUMBER($CJ$217:$CJ$428),$CJ$217:$CJ$428)) -> -0.0004802270577 | AW62: Nein | BK62: 50 | BM62: 0.001 | BN62: 0.265263 | BO62: 0.28421 | BP62: 0.303158 | BQ62: 0.322105 | BR62: 0.341052 | BS62: 0.36 | BT62: 0.397894 | BU62: 0.416842 | BV62: 0.435789 | BW62: 0.454736 | BX62: 0.473684 | BY62: 0.492631 | BZ62: 1 | CH62: 9 | CI62: 0 | CJ62: 0 | CK62: 0 | CL62: 0 | CM62: 0 | CN62: 0 | CO62: 0 | CP62: 0 | CQ62: 0 | CR62: 0 | CS62: 9 | CT62: 0 | CU62: 0 | CW62: 50 | CX62: 0.35 | CY62: 1 | CZ62: 1 | DA62: 1
B63: 51 | C63: 0.34 | G63: 51 | H63: 1 | I63: 2 | J63: 100 | K63: 12.5 | L63: 2.35 | M63: 0.377 | N63: 59 | R63: 906.6 | V63: 10…5% | W63: =COUNTIFS($CH$13:$CH$212,8,$I$13:$I$212,W$57) -> 0 | X63: =COUNTIFS($CH$13:$CH$212,8,$I$13:$I$212,X$57) -> 4 | Y63: =COUNTIFS($CH$13:$CH$212,8,$I$13:$I$212,Y$57) -> 1 | Z63: =COUNTIFS($CH$13:$CH$212,8,$I$13:$I$212,Z$57) -> 13 | AC63: Wear during cont. braking + stop in mm | AO63: 300 | AP63: 0.25889 | AW63: Nein | CH63: 8 | CI63: 0 | CJ63: 0 | CK63: 0 | CL63: 0 | CM63: 0 | CN63: 0 | CO63: 0 | CP63: 0 | CQ63: 0 | CR63: 8 | CS63: 0 | CT63: 0 | CU63: 0 | CW63: 51 | CX63: 0.34 | CY63: 1 | CZ63: 1 | DA63: 1
B64: 52 | C64: 0.34 | G64: 52 | H64: 1 | I64: 2 | J64: 120 | K64: 12.5 | L64: 2.35 | M64: 0.36 | N64: 68 | R64: 1305.6 | V64: 5...-5% | W64: =COUNTIFS($CH$13:$CH$212,7,$I$13:$I$212,W$57)+COUNTIFS($CH$13:$CH$212,6,$I$13:$I$212,W$57) -> 26 | X64: =COUNTIFS($CH$13:$CH$212,7,$I$13:$I$212,X$57)+COUNTIFS($CH$13:$CH$212,6,$I$13:$I$212,X$57) -> 9 | Y64: =COUNTIFS($CH$13:$CH$212,7,$I$13:$I$212,Y$57)+COUNTIFS($CH$13:$CH$212,6,$I$13:$I$212,Y$57) -> 1 | Z64: =COUNTIFS($CH$13:$CH$212,7,$I$13:$I$212,Z$57)+COUNTIFS($CH$13:$CH$212,6,$I$13:$I$212,Z$57) -> 61 | AO64: 250 | AP64: 0.282902 | AR64: axis intercept (b) | AT64: =INTERCEPT(IF(ISNUMBER($CM$217:$CM$428),$CM$217:$CM$428),IF(ISNUMBER($CJ$217:$CJ$428),$CJ$217:$CJ$428)) -> 0.4029583728 | AW64: Nein | CH64: 7 | CI64: 0 | CJ64: 0 | CK64: 0 | CL64: 0 | CM64: 0 | CN64: 0 | CO64: 0 | CP64: 0 | CQ64: 7 | CR64: 0 | CS64: 0 | CT64: 0 | CU64: 0 | CW64: 52 | CX64: 0.34 | CY64: 1 | CZ64: 1 | DA64: 1
B65: 53 | C65: 0.34 | G65: 53 | H65: 1 | I65: 4 | J65: 50 | K65: 8.5 | L65: 2.35 | M65: 0.398 | N65: 39 | R65: 226.7 | V65: -5…-10% | W65: =COUNTIFS($CH$13:$CH$212,5,$I$13:$I$212,W$57) -> 0 | X65: =COUNTIFS($CH$13:$CH$212,5,$I$13:$I$212,X$57) -> 0 | Y65: =COUNTIFS($CH$13:$CH$212,5,$I$13:$I$212,Y$57) -> 0 | Z65: =COUNTIFS($CH$13:$CH$212,5,$I$13:$I$212,Z$57) -> 3 | AO65: 220 | AP65: 0.297308 | AW65: Nein | CH65: 8 | CI65: 0 | CJ65: 0 | CK65: 0 | CL65: 0 | CM65: 0 | CN65: 0 | CO65: 0 | CP65: 0 | CQ65: 0 | CR65: 0 | CS65: 0 | CT65: 0 | CU65: 8 | CW65: 53 | CX65: 0.34 | CY65: 1 | CZ65: 1 | DA65: 1
B66: 54 | C66: 0.35 | G66: 54 | H66: 1 | I66: 4 | J66: 80 | K66: 8.5 | L66: 2.35 | M66: 0.392 | N66: 48 | R66: 580.2 | V66: -10…-15% | W66: =COUNTIFS($CH$13:$CH$212,4,$I$13:$I$212,W$57) -> 0 | X66: =COUNTIFS($CH$13:$CH$212,4,$I$13:$I$212,X$57) -> 0 | Y66: =COUNTIFS($CH$13:$CH$212,4,$I$13:$I$212,Y$57) -> 0 | Z66: =COUNTIFS($CH$13:$CH$212,4,$I$13:$I$212,Z$57) -> 1 | AC66: =IF(OR($F$123="",$F$125="",$B$6="",$C$6=""),"no values",IF(AND(($F$123-$F$125)>0,$B$6>0,$C$6>0),(($F$123-$F$125)/$B$6*1/(2*$C$6)*10),"invalid")) -> 0.34 | AO66: 200 | AP66: 0.306913 | AW66: Nein | CH66: 8 | CI66: 0 | CJ66: 0 | CK66: 0 | CL66: 0 | CM66: 0 | CN66: 0 | CO66: 0 | CP66: 0 | CQ66: 0 | CR66: 0 | CS66: 8 | CT66: 0 | CU66: 0 | CW66: 54 | CX66: 0.35 | CY66: 1 | CZ66: 1 | DA66: 1
B67: 55 | C67: 0.34 | G67: 55 | H67: 1 | I67: 4 | J67: 100 | K67: 8.5 | L67: 2.35 | M67: 0.377 | N67: 56 | R67: 906.6 | V67: -15…-20% | W67: =COUNTIFS($CH$13:$CH$212,3,$I$13:$I$212,W$57) -> 0 | X67: =COUNTIFS($CH$13:$CH$212,3,$I$13:$I$212,X$57) -> 0 | Y67: =COUNTIFS($CH$13:$CH$212,3,$I$13:$I$212,Y$57) -> 0 | Z67: =COUNTIFS($CH$13:$CH$212,3,$I$13:$I$212,Z$57) -> 1 | AB67: =$BR$20 -> 0 | AC67: Information | AO67: 160 | AP67: 0.326122 | AR67: Criteria for nominal line | AW67: Nein | CH67: 8 | CI67: 0 | CJ67: 0 | CK67: 0 | CL67: 0 | CM67: 0 | CN67: 0 | CO67: 0 | CP67: 0 | CQ67: 0 | CR67: 8 | CS67: 0 | CT67: 0 | CU67: 0 | CW67: 55 | CX67: 0.34 | CY67: 1 | CZ67: 1 | DA67: 1
B68: 56 | C68: 0.34 | G68: 56 | H68: 1 | I68: 4 | J68: 120 | K68: 8.5 | L68: 2.35 | M68: 0.367 | N68: 63 | R68: 1305.6 | V68: -20…-25% | W68: =COUNTIFS($CH$13:$CH$212,2,$I$13:$I$212,W$57) -> 0 | X68: =COUNTIFS($CH$13:$CH$212,2,$I$13:$I$212,X$57) -> 0 | Y68: =COUNTIFS($CH$13:$CH$212,2,$I$13:$I$212,Y$57) -> 0 | Z68: =COUNTIFS($CH$13:$CH$212,2,$I$13:$I$212,Z$57) -> 0 | AC68: Energy in MJ | AO68: 140 | AP68: 0.335727 | AW68: Nein | CH68: 8 | CI68: 0 | CJ68: 0 | CK68: 0 | CL68: 0 | CM68: 0 | CN68: 0 | CO68: 0 | CP68: 0 | CQ68: 8 | CR68: 0 | CS68: 0 | CT68: 0 | CU68: 0 | CW68: 56 | CX68: 0.34 | CY68: 1 | CZ68: 1 | DA68: 1
B69: 57 | C69: 0.34 | G69: 57 | H69: 1 | I69: 2 | J69: 50 | K69: 12.5 | L69: 2.35 | M69: 0.396 | N69: 40 | R69: 226.7 | V69: -25…-30% | W69: =COUNTIFS($CH$13:$CH$212,1,$I$13:$I$212,W$57) -> 0 | X69: =COUNTIFS($CH$13:$CH$212,1,$I$13:$I$212,X$57) -> 0 | Y69: =COUNTIFS($CH$13:$CH$212,1,$I$13:$I$212,Y$57) -> 0 | Z69: =COUNTIFS($CH$13:$CH$212,1,$I$13:$I$212,Z$57) -> 1 | AC69: =R149 -> 413.2 | AO69: 120 | AP69: 0.345331 | AR69: Limits 0,28-0,47 | AT69: =IF(AND($CO$432>=$CH$432,$CO$432<=$CI$432,$CO$433>=$CH$433,$CO$433<=$CI$433),"passed","failed") -> passed | AW69: Ja | CH69: 7 | CI69: 0 | CJ69: 0 | CK69: 0 | CL69: 0 | CM69: 0 | CN69: 0 | CO69: 0 | CP69: 0 | CQ69: 0 | CR69: 0 | CS69: 0 | CT69: 0 | CU69: 7 | CW69: 57 | CX69: 0.34 | CY69: 1 | CZ69: 1 | DA69: 1
B70: 58 | C70: 0.35 | G70: 58 | H70: 1 | I70: 2 | J70: 80 | K70: 12.5 | L70: 2.35 | M70: 0.387 | N70: 51 | R70: 580.2 | V70: mm < -30% | W70: =COUNTIFS($CH$13:$CH$212,0,$I$13:$I$212,W$57) -> 0 | X70: =COUNTIFS($CH$13:$CH$212,0,$I$13:$I$212,X$57) -> 0 | Y70: =COUNTIFS($CH$13:$CH$212,0,$I$13:$I$212,Y$57) -> 0 | Z70: =COUNTIFS($CH$13:$CH$212,0,$I$13:$I$212,Z$57) -> 0 | AA70: =$BR$17 -> 0 | AC70: Average wear in g/100 MJ | AO70: 100 | AP70: =$AT$62*$AO$70+$AT$64 -> 0.354936 | AW70: Ja | CH70: 8 | CI70: 0 | CJ70: 0 | CK70: 0 | CL70: 0 | CM70: 0 | CN70: 0 | CO70: 0 | CP70: 0 | CQ70: 0 | CR70: 0 | CS70: 8 | CT70: 0 | CU70: 0 | CW70: 58 | CX70: 0.35 | CY70: 1 | CZ70: 1 | DA70: 1
B71: 59 | C71: 0.35 | G71: 59 | H71: 1 | I71: 2 | J71: 100 | K71: 12.5 | L71: 2.35 | M71: 0.368 | N71: 59 | R71: 906.6 | V71: Sum Column | W71: =SUM(W$58:W$70) -> 26 | X71: =SUM(X$58:X$70) -> 15 | Y71: =SUM(Y$58:Y$70) -> 2 | Z71: =SUM(Z$58:Z$70) -> 91 | AA71: =SUM(AA58:AA70) -> 20 | AB71: =SUM(AB58:AB70) -> 70 | AO71: 80 | AP71: =$AT$62*$AO$71+$AT$64 -> 0.36454 | AR71: Difference <0,15 | AT71: =IF(ABS($CO$433-$CO$432)<=0.15,"passed","failed") -> passed | AW71: Ja | CH71: 7 | CI71: 0 | CJ71: 0 | CK71: 0 | CL71: 0 | CM71: 0 | CN71: 0 | CO71: 0 | CP71: 0 | CQ71: 0 | CR71: 7 | CS71: 0 | CT71: 0 | CU71: 0 | CW71: 59 | CX71: 0.35 | CY71: 1 | CZ71: 1 | DA71: 1
B72: 60 | C72: 0.35 | G72: 60 | H72: 1 | I72: 2 | J72: 120 | K72: 12.5 | L72: 2.35 | M72: 0.354 | N72: 67 | R72: 1305.6 | V72: Sum all | W72: =SUM(W71:Z71) -> 134 | AA72: =TEXT(SUM(AA71:AB71),"0")&" (+10)" -> 90 (+10) | AC72: =IF(($F$12-$F$147)>0,($F$12-$F$147)/$AC$69*100,"invalid") -> 47.2 | AO72: 70 | AP72: =$AT$62*$AO$72+$AT$64 -> 0.369342 | AW72: Ja | CH72: 7 | CI72: 0 | CJ72: 0 | CK72: 0 | CL72: 0 | CM72: 0 | CN72: 0 | CO72: 0 | CP72: 0 | CQ72: 7 | CR72: 0 | CS72: 0 | CT72: 0 | CU72: 0 | CW72: 60 | CX72: 0.35 | CY72: 1 | CZ72: 1 | DA72: 1
B73: 61 | C73: 0.35 | F73: Dry brake applications to dry the brake pad | G73: 61 | H73: 0 | I73: 4 | J73: 100 | K73: 31 | L73: 11.25 | M73: 0.36 | N73: 173 | R73: 4340.3 | AO73: 50 | AP73: =$AT$62*$AO$73+$AT$64 -> 0.378947 | AW73: Ja | CH73: 7 | CI73: 0 | CJ73: 0 | CK73: 0 | CL73: 0 | CM73: 0 | CN73: 0 | CO73: 0 | CP73: 0 | CQ73: 0 | CR73: 7 | CS73: 0 | CT73: 0 | CU73: 0 | CW73: 61 | CX73: 0.35 | CY73: 1 | CZ73: 1 | DA73: 1
B74: 62 | C74: 0.34 | G74: 62 | H74: 0 | I74: 4 | J74: 100 | K74: 31 | L74: 11.25 | M74: 0.368 | N74: 186 | R74: 4340.3 | V74: Priority | W74: 1 | X74: 2-4 | AA74: Bedding | AC74: Contin. | CH74: 7 | CI74: 0 | CJ74: 0 | CK74: 0 | CL74: 0 | CM74: 0 | CN74: 0 | CO74: 0 | CP74: 0 | CQ74: 0 | CR74: 7 | CS74: 0 | CT74: 0 | CU74: 0 | CW74: 62 | CX74: 0.34 | CY74: 1 | CZ74: 1 | DA74: 1
B75: 63 | C75: 0.34 | G75: 63 | H75: 0 | I75: 4 | J75: 100 | K75: 31 | L75: 11.25 | M75: 0.354 | N75: 186 | R75: 4340.3 | V75: Result | W75: =IF(OR(OR(SUM($W$70,$W$69,$W$68,$W$67,$W$61,$W$60,$W$59,$W$58)>0),(SUM($W$62,$W$66)>ROUND(0.12*W71,0)),(SUM($W$66)>ROUND(0.06*W71,0))),"failed","passed") -> passed | X75: =IF(OR(OR(SUM($X$58:$X$60,$Y$58,$Y$59,$Z$58,$X$68:$X$70,$Y$69,$Y$70,$Z$70)>0),(SUM($X$67,$Y$68,$Z$69,$Z$59,$Y$60,$X$61)>(ROUND(0.1*(SUM($Y$71,$Z$71,$X$71)),0))),(SUM($Z$69,$Y$68,$X$67)>(ROUND(0.05*SUM($Z$71,$Y$71,$X$71),0)))),"failed","passed") -> passed | AA75: =IF(OR(SUM($AA$58,$AB$58,$AB$67,$AA$70)>0,$BK$15="failed"),"failed","passed") -> passed | AC75: =IF(AND($M$4<=0.5,$M$5>=0.25,$N$4<=0.05),"passed","failed") -> passed | CH75: 6 | CI75: 0 | CJ75: 0 | CK75: 0 | CL75: 0 | CM75: 0 | CN75: 0 | CO75: 0 | CP75: 0 | CQ75: 0 | CR75: 6 | CS75: 0 | CT75: 0 | CU75: 0 | CW75: 63 | CX75: 0.34 | CY75: 1 | CZ75: 1 | DA75: 1
B76: 64 | C76: 0.34 | G76: 64 | H76: 0 | I76: 4 | J76: 100 | K76: 31 | L76: 11.25 | M76: 0.35 | N76: 189 | R76: 4340.3 | CH76: 6 | CI76: 0 | CJ76: 0 | CK76: 0 | CL76: 0 | CM76: 0 | CN76: 0 | CO76: 0 | CP76: 0 | CQ76: 0 | CR76: 6 | CS76: 0 | CT76: 0 | CU76: 0 | CW76: 64 | CX76: 0.34 | CY76: 1 | CZ76: 1 | DA76: 1
B77: 65 | C77: 0.34 | G77: 65 | H77: 0 | I77: 4 | J77: 100 | K77: 31 | L77: 11.25 | M77: 0.349 | N77: 187 | R77: 4340.3 | V77: UIC test | W77: =IF(AND($AA$75="passed",$W$75="passed",$X$75="passed",$AC$75="passed",$AC$77="passed",$Z$77="passed"),"passed","failed") -> passed | Y77: Nominal line | Z77: =IF(AND($AT$69="passed",$AT$71="passed"),"passed","failed") -> passed | AB77: Plausibility | AC77: =$BK$26 -> passed | AN77: Report | AQ77: Checked | AT77: Released | CH77: =IF(OR(ISERROR(SUM(CI77:CU77)),$I77<1),"-1",SUM(CI77:CU77)) -> 6 | CI77: =IF($J77=CI$12,MATCH(ROUND($M77,3),$BM$50:$BZ$50,1)-1,0)+IF(AND($J77=CI$12,ROUND($M77,3)>$AP$61),1,0) -> 0 | CJ77: =IF($J77=CJ$12,MATCH(ROUND($M77,3),$BM$51:$BZ$51,1)-1,0)+IF(AND($J77=CJ$12,ROUND($M77,3)>$AP$62),1,0) -> 0 | CK77: =IF($J77=CK$12,MATCH(ROUND($M77,3),$BM$52:$BZ$52,1)-1,0)+IF(AND($J77=CK$12,ROUND($M77,3)>$AP$63),1,0) -> 0 | CL77: =IF($J77=CL$12,MATCH(ROUND($M77,3),$BM$53:$BZ$53,1)-1,0)+IF(AND($J77=CL$12,ROUND($M77,3)>$AP$64),1,0) -> 0 | CM77: =IF($J77=CM$12,MATCH(ROUND($M77,3),$BM$54:$BZ$54,1)-1,0)+IF(AND($J77=CM$12,ROUND($M77,3)>$AP$65),1,0) -> 0 | CN77: =IF($J77=CN$12,MATCH(ROUND($M77,3),$BM$55:$BZ$55,1)-1,0)+IF(AND($J77=CN$12,ROUND($M77,3)>$AP$66),1,0) -> 0 | CO77: =IF($J77=CO$12,MATCH(ROUND($M77,3),$BM$56:$BZ$56,1)-1,0)+IF(AND($J77=CO$12,ROUND($M77,3)>$AP$67),1,0) -> 0 | CP77: =IF($J77=CP$12,MATCH(ROUND($M77,3),$BM$57:$BZ$57,1)-1,0)+IF(AND($J77=CP$12,ROUND($M77,3)>$AP$68),1,0) -> 0 | CQ77: =IF($J77=CQ$12,MATCH(ROUND($M77,3),$BM$58:$BZ$58,1)-1,0)+IF(AND($J77=CQ$12,ROUND($M77,3)>$AP$69),1,0) -> 0 | CR77: =IF($J77=CR$12,MATCH(ROUND($M77,3),$BM$59:$BZ$59,1)-1,0)+IF(AND($J77=CR$12,ROUND($M77,3)>$AP$70),1,0) -> 6 | CS77: =IF($J77=CS$12,MATCH(ROUND($M77,3),$BM$60:$BZ$60,1)-1,0)+IF(AND($J77=CS$12,ROUND($M77,3)>$AP$71),1,0) -> 0 | CT77: =IF($J77=CT$12,MATCH(ROUND($M77,3),$BM$61:$BZ$61,1)-1,0)+IF(AND($J77=CT$12,ROUND($M77,3)>$AP$72),1,0) -> 0 | CU77: =IF($J77=CU$12,MATCH(ROUND($M77,3),$BM$62:$BZ$62,1)-1,0)+IF(AND($J77=CU$12,ROUND($M77,3)>$AP$73),1,0) -> 0 | CW77: =IF($C77>0,$B77,#N/A) -> 65 | CX77: =IF($C77>0,ROUND($C77,3),#N/A) -> 0.34 | CY77: =IF(I77>0,IF(OR(AND($I77=1,$CH77>=5,$CH77<=8),AND(I77=2,$CH77>=4,$CH77<=9),AND($I77=3,$CH77>=3,$CH77<=10),AND($I77=4,$CH77>=2,$CH77<=11)),1,IF(OR(AND($I77=1,OR($CH77=4,$CH77=9)),AND($I77=2,OR($CH77=3,$CH77=10)),AND($I77=3,OR($CH77=2,$CH77=11)),AND($I77=4,OR($CH77=1,$CH77=12))),2,0)),#N/A) -> 1 | CZ77: 1 | DA77: 1
B78: 66 | C78: 0.35 | G78: =G77+1 -> 66 | H78: 0 | I78: 4 | J78: 100 | K78: 31 | L78: 11.25 | M78: 0.35 | N78: 191 | R78: =0.5*L78*(J78/3.6)^2 -> 4340.3 | CH78: 6 | CI78: 0 | CJ78: 0 | CK78: 0 | CL78: 0 | CM78: 0 | CN78: 0 | CO78: 0 | CP78: 0 | CQ78: 0 | CR78: 6 | CS78: 0 | CT78: 0 | CU78: 0 | CW78: 66 | CX78: 0.35 | CY78: 1 | CZ78: =IF($C78>0,IF(OR(AND($B78>=$BR$24,$B78<=$BR$25,OR($C78>$BS$24,$C78<$BT$24)),AND($B78>=$BR$26,$B78<=$BR$27,OR($C78>$BS$26,$C78<$BT$26))),0,1),#N/A) -> 1 | DA78: =IF($I78>0,IF(AND(ISNUMBER(M78),$M78>0),1,0),"") -> 1
B79: 67 | C79: 0.35 | G79: 67 | H79: 0 | I79: 4 | J79: 100 | K79: 31 | L79: 11.25 | M79: 0.349 | N79: 188 | R79: 4340.3 | CH79: 6 | CI79: 0 | CJ79: 0 | CK79: 0 | CL79: 0 | CM79: 0 | CN79: 0 | CO79: 0 | CP79: 0 | CQ79: 0 | CR79: 6 | CS79: 0 | CT79: 0 | CU79: 0 | CW79: 67 | CX79: 0.35 | CY79: 1 | CZ79: 1 | DA79: 1
B80: 68 | C80: 0.36 | G80: 68 | H80: 0 | I80: 4 | J80: 100 | K80: 31 | L80: 11.25 | M80: 0.353 | N80: 187 | R80: 4340.3 | CH80: 6 | CI80: 0 | CJ80: 0 | CK80: 0 | CL80: 0 | CM80: 0 | CN80: 0 | CO80: 0 | CP80: 0 | CQ80: 0 | CR80: 6 | CS80: 0 | CT80: 0 | CU80: 0 | CW80: 68 | CX80: 0.36 | CY80: 1 | CZ80: 1 | DA80: 1
B81: 69 | C81: 0.34 | G81: 69 | H81: 0 | I81: 4 | J81: 100 | K81: 31 | L81: 11.25 | M81: 0.351 | N81: 190 | R81: 4340.3 | CH81: 6 | CI81: 0 | CJ81: 0 | CK81: 0 | CL81: 0 | CM81: 0 | CN81: 0 | CO81: 0 | CP81: 0 | CQ81: 0 | CR81: 6 | CS81: 0 | CT81: 0 | CU81: 0 | CW81: 69 | CX81: 0.34 | CY81: 1 | CZ81: 1 | DA81: 1
B82: 70 | C82: 0.35 | F82: 7158.2 | G82: 70 | H82: 0 | I82: 4 | J82: 100 | K82: 31 | L82: 11.25 | M82: 0.354 | N82: 190 | R82: 4340.3 | CH82: 6 | CI82: 0 | CJ82: 0 | CK82: 0 | CL82: 0 | CM82: 0 | CN82: 0 | CO82: 0 | CP82: 0 | CQ82: 0 | CR82: 6 | CS82: 0 | CT82: 0 | CU82: 0 | CW82: 70 | CX82: 0.35 | CY82: 1 | CZ82: 1 | DA82: 1
B83: 71 | C83: 0.34 | F83: Dry brake applications, maximum mass | G83: 71 | H83: 0 | I83: 4 | J83: 50 | K83: 31 | L83: 11.25 | M83: 0.393 | N83: 83 | R83: 1085.1 | CH83: 7 | CI83: 0 | CJ83: 0 | CK83: 0 | CL83: 0 | CM83: 0 | CN83: 0 | CO83: 0 | CP83: 0 | CQ83: 0 | CR83: 0 | CS83: 0 | CT83: 0 | CU83: 7 | CW83: 71 | CX83: 0.34 | CY83: 1 | CZ83: 1 | DA83: 1
B84: 72 | C84: 0.34 | G84: 72 | H84: 0 | I84: 4 | J84: 80 | K84: 31 | L84: 11.25 | M84: 0.352 | N84: 145 | R84: 2777.8 | CH84: 6 | CI84: 0 | CJ84: 0 | CK84: 0 | CL84: 0 | CM84: 0 | CN84: 0 | CO84: 0 | CP84: 0 | CQ84: 0 | CR84: 0 | CS84: 6 | CT84: 0 | CU84: 0 | CW84: 72 | CX84: 0.34 | CY84: 1 | CZ84: 1 | DA84: 1
B85: 73 | C85: 0.33 | G85: 73 | H85: 0 | I85: 4 | J85: 100 | K85: 31 | L85: 11.25 | M85: 0.348 | N85: 186 | R85: 4340.3 | CH85: 6 | CI85: 0 | CJ85: 0 | CK85: 0 | CL85: 0 | CM85: 0 | CN85: 0 | CO85: 0 | CP85: 0 | CQ85: 0 | CR85: 6 | CS85: 0 | CT85: 0 | CU85: 0 | CW85: 73 | CX85: 0.33 | CY85: 1 | CZ85: 1 | DA85: 1
B86: 74 | C86: 0.335 | G86: 74 | H86: 0 | I86: 4 | J86: 120 | K86: 31 | L86: 11.25 | M86: 0.352 | N86: 233 | R86: 6250 | CH86: 7 | CI86: 0 | CJ86: 0 | CK86: 0 | CL86: 0 | CM86: 0 | CN86: 0 | CO86: 0 | CP86: 0 | CQ86: 7 | CR86: 0 | CS86: 0 | CT86: 0 | CU86: 0 | CW86: 74 | CX86: 0.335 | CY86: 1 | CZ86: 1 | DA86: 1
B87: 75 | C87: 0.33 | G87: 75 | H87: 0 | I87: 4 | J87: 50 | K87: 16 | L87: 11.25 | M87: 0.386 | N87: 91 | R87: 1085.1 | CH87: 7 | CI87: 0 | CJ87: 0 | CK87: 0 | CL87: 0 | CM87: 0 | CN87: 0 | CO87: 0 | CP87: 0 | CQ87: 0 | CR87: 0 | CS87: 0 | CT87: 0 | CU87: 7 | CW87: 75 | CX87: 0.33 | CY87: 1 | CZ87: 1 | DA87: 1
B88: 76 | C88: 0.32 | G88: 76 | H88: 0 | I88: 4 | J88: 80 | K88: 16 | L88: 11.25 | M88: 0.347 | N88: 129 | R88: 2777.8 | CH88: 6 | CI88: 0 | CJ88: 0 | CK88: 0 | CL88: 0 | CM88: 0 | CN88: 0 | CO88: 0 | CP88: 0 | CQ88: 0 | CR88: 0 | CS88: 6 | CT88: 0 | CU88: 0 | CW88: 76 | CX88: 0.32 | CY88: 1 | CZ88: 1 | DA88: 1
B89: 77 | C89: 0.34 | G89: 77 | H89: 0 | I89: 4 | J89: 100 | K89: 16 | L89: 11.25 | M89: 0.337 | N89: 160 | R89: 4340.3 | CH89: 5 | CI89: 0 | CJ89: 0 | CK89: 0 | CL89: 0 | CM89: 0 | CN89: 0 | CO89: 0 | CP89: 0 | CQ89: 0 | CR89: 5 | CS89: 0 | CT89: 0 | CU89: 0 | CW89: 77 | CX89: 0.34 | CY89: 1 | CZ89: 1 | DA89: 1
B90: 78 | C90: 0.34 | G90: 78 | H90: 0 | I90: 4 | J90: 120 | K90: 16 | L90: 11.25 | M90: 0.333 | N90: 193 | R90: 6250 | CH90: 6 | CI90: 0 | CJ90: 0 | CK90: 0 | CL90: 0 | CM90: 0 | CN90: 0 | CO90: 0 | CP90: 0 | CQ90: 6 | CR90: 0 | CS90: 0 | CT90: 0 | CU90: 0 | CW90: 78 | CX90: 0.34 | CY90: 1 | CZ90: 1 | DA90: 1
B91: 79 | C91: 0.34 | G91: 79 | H91: 0 | I91: 1 | J91: 50 | K91: 46 | L91: 11.25 | M91: 0.375 | N91: 103 | R91: 1085.1 | CH91: 6 | CI91: 0 | CJ91: 0 | CK91: 0 | CL91: 0 | CM91: 0 | CN91: 0 | CO91: 0 | CP91: 0 | CQ91: 0 | CR91: 0 | CS91: 0 | CT91: 0 | CU91: 6 | CW91: 79 | CX91: 0.34 | CY91: 1 | CZ91: 1 | DA91: 1
B92: 80 | C92: 0.35 | G92: 80 | H92: 0 | I92: 1 | J92: 80 | K92: 46 | L92: 11.25 | M92: 0.361 | N92: 156 | R92: 2777.8 | CH92: 6 | CI92: 0 | CJ92: 0 | CK92: 0 | CL92: 0 | CM92: 0 | CN92: 0 | CO92: 0 | CP92: 0 | CQ92: 0 | CR92: 0 | CS92: 6 | CT92: 0 | CU92: 0 | CW92: 80 | CX92: 0.35 | CY92: 1 | CZ92: 1 | DA92: 1
B93: 81 | C93: 0.34 | G93: 81 | H93: 0 | I93: 1 | J93: 100 | K93: 46 | L93: 11.25 | M93: 0.354 | N93: 203 | R93: 4340.3 | CH93: 6 | CI93: 0 | CJ93: 0 | CK93: 0 | CL93: 0 | CM93: 0 | CN93: 0 | CO93: 0 | CP93: 0 | CQ93: 0 | CR93: 6 | CS93: 0 | CT93: 0 | CU93: 0 | CW93: 81 | CX93: 0.34 | CY93: 1 | CZ93: 1 | DA93: 1
B94: 82 | C94: 0.34 | G94: 82 | H94: 0 | I94: 1 | J94: 120 | K94: 46 | L94: 11.25 | M94: 0.347 | N94: 257 | R94: 6250 | CH94: 7 | CI94: 0 | CJ94: 0 | CK94: 0 | CL94: 0 | CM94: 0 | CN94: 0 | CO94: 0 | CP94: 0 | CQ94: 7 | CR94: 0 | CS94: 0 | CT94: 0 | CU94: 0 | CW94: 82 | CX94: 0.34 | CY94: 1 | CZ94: 1 | DA94: 1
B95: 83 | C95: 0.34 | G95: 83 | H95: 0 | I95: 4 | J95: 50 | K95: 31 | L95: 11.25 | M95: 0.4 | N95: 99 | R95: 1085.1 | CH95: 8 | CI95: 0 | CJ95: 0 | CK95: 0 | CL95: 0 | CM95: 0 | CN95: 0 | CO95: 0 | CP95: 0 | CQ95: 0 | CR95: 0 | CS95: 0 | CT95: 0 | CU95: 8 | CW95: 83 | CX95: 0.34 | CY95: 1 | CZ95: 1 | DA95: 1
B96: 84 | C96: 0.35 | G96: 84 | H96: 0 | I96: 4 | J96: 80 | K96: 31 | L96: 11.25 | M96: 0.356 | N96: 145 | R96: 2777.8 | CH96: 6 | CI96: 0 | CJ96: 0 | CK96: 0 | CL96: 0 | CM96: 0 | CN96: 0 | CO96: 0 | CP96: 0 | CQ96: 0 | CR96: 0 | CS96: 6 | CT96: 0 | CU96: 0 | CW96: 84 | CX96: 0.35 | CY96: 1 | CZ96: 1 | DA96: 1
B97: 85 | C97: 0.35 | G97: 85 | H97: 0 | I97: 4 | J97: 100 | K97: 31 | L97: 11.25 | M97: 0.34 | N97: 188 | R97: 4340.3 | CH97: 6 | CI97: 0 | CJ97: 0 | CK97: 0 | CL97: 0 | CM97: 0 | CN97: 0 | CO97: 0 | CP97: 0 | CQ97: 0 | CR97: 6 | CS97: 0 | CT97: 0 | CU97: 0 | CW97: 85 | CX97: 0.35 | CY97: 1 | CZ97: 1 | DA97: 1
B98: 86 | C98: 0.355 | G98: 86 | H98: 0 | I98: 4 | J98: 120 | K98: 31 | L98: 11.25 | M98: 0.35 | N98: 237 | R98: 6250 | CH98: 7 | CI98: 0 | CJ98: 0 | CK98: 0 | CL98: 0 | CM98: 0 | CN98: 0 | CO98: 0 | CP98: 0 | CQ98: 7 | CR98: 0 | CS98: 0 | CT98: 0 | CU98: 0 | CW98: 86 | CX98: 0.355 | CY98: 1 | CZ98: 1 | DA98: 1
B99: 87 | C99: 0.34 | G99: 87 | H99: 0 | I99: 4 | J99: 50 | K99: 16 | L99: 11.25 | M99: 0.378 | N99: 91 | R99: 1085.1 | CH99: 6 | CI99: 0 | CJ99: 0 | CK99: 0 | CL99: 0 | CM99: 0 | CN99: 0 | CO99: 0 | CP99: 0 | CQ99: 0 | CR99: 0 | CS99: 0 | CT99: 0 | CU99: 6 | CW99: 87 | CX99: 0.34 | CY99: 1 | CZ99: 1 | DA99: 1
B100: 88 | C100: 0.34 | G100: 88 | H100: 0 | I100: 4 | J100: 80 | K100: 16 | L100: 11.25 | M100: 0.345 | N100: 129 | R100: 2777.8 | CH100: 5 | CI100: 0 | CJ100: 0 | CK100: 0 | CL100: 0 | CM100: 0 | CN100: 0 | CO100: 0 | CP100: 0 | CQ100: 0 | CR100: 0 | CS100: 5 | CT100: 0 | CU100: 0 | CW100: 88 | CX100: 0.34 | CY100: 1 | CZ100: 1 | DA100: 1
B101: 89 | C101: 0.34 | G101: 89 | H101: 0 | I101: 4 | J101: 100 | K101: 16 | L101: 11.25 | M101: 0.336 | N101: 160 | R101: 4340.3 | CH101: 5 | CI101: 0 | CJ101: 0 | CK101: 0 | CL101: 0 | CM101: 0 | CN101: 0 | CO101: 0 | CP101: 0 | CQ101: 0 | CR101: 5 | CS101: 0 | CT101: 0 | CU101: 0 | CW101: 89 | CX101: 0.34 | CY101: 1 | CZ101: 1 | DA101: 1
B102: 90 | C102: 0.33 | G102: 90 | H102: 0 | I102: 4 | J102: 120 | K102: 16 | L102: 11.25 | M102: 0.332 | N102: 195 | R102: 6250 | CH102: 6 | CI102: 0 | CJ102: 0 | CK102: 0 | CL102: 0 | CM102: 0 | CN102: 0 | CO102: 0 | CP102: 0 | CQ102: 6 | CR102: 0 | CS102: 0 | CT102: 0 | CU102: 0 | CW102: 90 | CX102: 0.33 | CY102: 1 | CZ102: 1 | DA102: 1
B103: 91 | C103: 0.35 | G103: 91 | H103: 0 | I103: 1 | J103: 50 | K103: 46 | L103: 11.25 | M103: 0.369 | N103: 103 | R103: 1085.1 | CH103: 6 | CI103: 0 | CJ103: 0 | CK103: 0 | CL103: 0 | CM103: 0 | CN103: 0 | CO103: 0 | CP103: 0 | CQ103: 0 | CR103: 0 | CS103: 0 | CT103: 0 | CU103: 6 | CW103: 91 | CX103: 0.35 | CY103: 1 | CZ103: 1 | DA103: 1
B104: 92 | C104: 0.335 | G104: 92 | H104: 0 | I104: 1 | J104: 80 | K104: 46 | L104: 11.25 | M104: 0.351 | N104: 155 | R104: 2777.8 | CH104: 6 | CI104: 0 | CJ104: 0 | CK104: 0 | CL104: 0 | CM104: 0 | CN104: 0 | CO104: 0 | CP104: 0 | CQ104: 0 | CR104: 0 | CS104: 6 | CT104: 0 | CU104: 0 | CW104: 92 | CX104: 0.335 | CY104: 1 | CZ104: 1 | DA104: 1
B105: 93 | C105: 0.33 | G105: 93 | H105: 0 | I105: 1 | J105: 100 | K105: 46 | L105: 11.25 | M105: 0.356 | N105: 204 | R105: 4340.3 | CH105: 7 | CI105: 0 | CJ105: 0 | CK105: 0 | CL105: 0 | CM105: 0 | CN105: 0 | CO105: 0 | CP105: 0 | CQ105: 0 | CR105: 7 | CS105: 0 | CT105: 0 | CU105: 0 | CW105: 93 | CX105: 0.33 | CY105: 1 | CZ105: 1 | DA105: 1
B106: 94 | C106: 0.34 | G106: 94 | H106: 0 | I106: 1 | J106: 120 | K106: 46 | L106: 11.25 | M106: 0.349 | N106: 256 | R106: 6250 | CH106: 7 | CI106: 0 | CJ106: 0 | CK106: 0 | CL106: 0 | CM106: 0 | CN106: 0 | CO106: 0 | CP106: 0 | CQ106: 7 | CR106: 0 | CS106: 0 | CT106: 0 | CU106: 0 | CW106: 94 | CX106: 0.34 | CY106: 1 | CZ106: 1 | DA106: 1
B107: 95 | C107: 0.34 | G107: 95 | H107: 0 | I107: 4 | J107: 50 | K107: 31 | L107: 11.25 | M107: 0.4 | N107: 99 | R107: 1085.1 | CH107: 8 | CI107: 0 | CJ107: 0 | CK107: 0 | CL107: 0 | CM107: 0 | CN107: 0 | CO107: 0 | CP107: 0 | CQ107: 0 | CR107: 0 | CS107: 0 | CT107: 0 | CU107: 8 | CW107: 95 | CX107: 0.34 | CY107: 1 | CZ107: 1 | DA107: 1
B108: 96 | C108: 0.34 | G108: 96 | H108: 0 | I108: 4 | J108: 80 | K108: 31 | L108: 11.25 | M108: 0.361 | N108: 146 | R108: 2777.8 | CH108: 6 | CI108: 0 | CJ108: 0 | CK108: 0 | CL108: 0 | CM108: 0 | CN108: 0 | CO108: 0 | CP108: 0 | CQ108: 0 | CR108: 0 | CS108: 6 | CT108: 0 | CU108: 0 | CW108: 96 | CX108: 0.34 | CY108: 1 | CZ108: 1 | DA108: 1
B109: 97 | C109: 0.34 | G109: 97 | H109: 0 | I109: 4 | J109: 100 | K109: 31 | L109: 11.25 | M109: 0.344 | N109: 191 | R109: 4340.3 | CH109: =IF(OR(ISERROR(SUM(CI109:CU109)),$I109<1),"-1",SUM(CI109:CU109)) -> 6 | CI109: =IF($J109=CI$12,MATCH(ROUND($M109,3),$BM$50:$BZ$50,1)-1,0)+IF(AND($J109=CI$12,ROUND($M109,3)>$AP$61),1,0) -> 0 | CJ109: =IF($J109=CJ$12,MATCH(ROUND($M109,3),$BM$51:$BZ$51,1)-1,0)+IF(AND($J109=CJ$12,ROUND($M109,3)>$AP$62),1,0) -> 0 | CK109: =IF($J109=CK$12,MATCH(ROUND($M109,3),$BM$52:$BZ$52,1)-1,0)+IF(AND($J109=CK$12,ROUND($M109,3)>$AP$63),1,0) -> 0 | CL109: =IF($J109=CL$12,MATCH(ROUND($M109,3),$BM$53:$BZ$53,1)-1,0)+IF(AND($J109=CL$12,ROUND($M109,3)>$AP$64),1,0) -> 0 | CM109: =IF($J109=CM$12,MATCH(ROUND($M109,3),$BM$54:$BZ$54,1)-1,0)+IF(AND($J109=CM$12,ROUND($M109,3)>$AP$65),1,0) -> 0 | CN109: =IF($J109=CN$12,MATCH(ROUND($M109,3),$BM$55:$BZ$55,1)-1,0)+IF(AND($J109=CN$12,ROUND($M109,3)>$AP$66),1,0) -> 0 | CO109: =IF($J109=CO$12,MATCH(ROUND($M109,3),$BM$56:$BZ$56,1)-1,0)+IF(AND($J109=CO$12,ROUND($M109,3)>$AP$67),1,0) -> 0 | CP109: =IF($J109=CP$12,MATCH(ROUND($M109,3),$BM$57:$BZ$57,1)-1,0)+IF(AND($J109=CP$12,ROUND($M109,3)>$AP$68),1,0) -> 0 | CQ109: =IF($J109=CQ$12,MATCH(ROUND($M109,3),$BM$58:$BZ$58,1)-1,0)+IF(AND($J109=CQ$12,ROUND($M109,3)>$AP$69),1,0) -> 0 | CR109: =IF($J109=CR$12,MATCH(ROUND($M109,3),$BM$59:$BZ$59,1)-1,0)+IF(AND($J109=CR$12,ROUND($M109,3)>$AP$70),1,0) -> 6 | CS109: =IF($J109=CS$12,MATCH(ROUND($M109,3),$BM$60:$BZ$60,1)-1,0)+IF(AND($J109=CS$12,ROUND($M109,3)>$AP$71),1,0) -> 0 | CT109: =IF($J109=CT$12,MATCH(ROUND($M109,3),$BM$61:$BZ$61,1)-1,0)+IF(AND($J109=CT$12,ROUND($M109,3)>$AP$72),1,0) -> 0 | CU109: =IF($J109=CU$12,MATCH(ROUND($M109,3),$BM$62:$BZ$62,1)-1,0)+IF(AND($J109=CU$12,ROUND($M109,3)>$AP$73),1,0) -> 0 | CW109: =IF($C109>0,$B109,#N/A) -> 97 | CX109: =IF($C109>0,ROUND($C109,3),#N/A) -> 0.34 | CY109: =IF(I109>0,IF(OR(AND($I109=1,$CH109>=5,$CH109<=8),AND(I109=2,$CH109>=4,$CH109<=9),AND($I109=3,$CH109>=3,$CH109<=10),AND($I109=4,$CH109>=2,$CH109<=11)),1,IF(OR(AND($I109=1,OR($CH109=4,$CH109=9)),AND($I109=2,OR($CH109=3,$CH109=10)),AND($I109=3,OR($CH109=2,$CH109=11)),AND($I109=4,OR($CH109=1,$CH109=12))),2,0)),#N/A) -> 1 | CZ109: 1 | DA109: 1
B110: 98 | C110: 0.35 | G110: =G109+1 -> 98 | H110: 0 | I110: 4 | J110: 120 | K110: 31 | L110: 11.25 | M110: 0.353 | N110: 240 | R110: 6250 | CH110: 7 | CI110: 0 | CJ110: 0 | CK110: 0 | CL110: 0 | CM110: 0 | CN110: 0 | CO110: 0 | CP110: 0 | CQ110: 7 | CR110: 0 | CS110: 0 | CT110: 0 | CU110: 0 | CW110: 98 | CX110: 0.35 | CY110: 1 | CZ110: 1 | DA110: 1
B111: 99 | C111: 0.35 | G111: 99 | H111: 0 | I111: 4 | J111: 50 | K111: 16 | L111: 11.25 | M111: 0.376 | N111: 91 | R111: 1085.1 | CH111: 6 | CI111: 0 | CJ111: 0 | CK111: 0 | CL111: 0 | CM111: 0 | CN111: 0 | CO111: 0 | CP111: 0 | CQ111: 0 | CR111: 0 | CS111: 0 | CT111: 0 | CU111: 6 | CW111: 99 | CX111: 0.35 | CY111: 1 | CZ111: 1 | DA111: 1
B112: 100 | C112: 0.35 | G112: 100 | H112: 0 | I112: 4 | J112: 80 | K112: 16 | L112: 11.25 | M112: 0.35 | N112: 129 | R112: 2777.8 | CH112: 6 | CI112: 0 | CJ112: 0 | CK112: 0 | CL112: 0 | CM112: 0 | CN112: 0 | CO112: 0 | CP112: 0 | CQ112: 0 | CR112: 0 | CS112: 6 | CT112: 0 | CU112: 0 | CW112: 100 | CX112: 0.35 | CY112: 1 | CZ112: 1 | DA112: 1
B113: 101 | G113: 101 | H113: 0 | I113: 4 | J113: 100 | K113: 16 | L113: 11.25 | M113: 0.34 | N113: 161 | R113: 4340.3 | CH113: 6 | CI113: 0 | CJ113: 0 | CK113: 0 | CL113: 0 | CM113: 0 | CN113: 0 | CO113: 0 | CP113: 0 | CQ113: 0 | CR113: 6 | CS113: 0 | CT113: 0 | CU113: 0 | CY113: 1 | DA113: 1
B114: 102 | G114: 102 | H114: 0 | I114: 4 | J114: 120 | K114: 16 | L114: 11.25 | M114: 0.337 | N114: 196 | R114: 6250 | CH114: 6 | CI114: 0 | CJ114: 0 | CK114: 0 | CL114: 0 | CM114: 0 | CN114: 0 | CO114: 0 | CP114: 0 | CQ114: 6 | CR114: 0 | CS114: 0 | CT114: 0 | CU114: 0 | CY114: 1 | DA114: 1
B115: 103 | G115: 103 | H115: 0 | I115: 1 | J115: 50 | K115: 46 | L115: 11.25 | M115: 0.373 | N115: 103 | R115: 1085.1 | CH115: 6 | CI115: 0 | CJ115: 0 | CK115: 0 | CL115: 0 | CM115: 0 | CN115: 0 | CO115: 0 | CP115: 0 | CQ115: 0 | CR115: 0 | CS115: 0 | CT115: 0 | CU115: 6 | CY115: 1 | DA115: 1
B116: 104 | G116: 104 | H116: 0 | I116: 1 | J116: 80 | K116: 46 | L116: 11.25 | M116: 0.354 | N116: 156 | R116: 2777.8 | CH116: 6 | CI116: 0 | CJ116: 0 | CK116: 0 | CL116: 0 | CM116: 0 | CN116: 0 | CO116: 0 | CP116: 0 | CQ116: 0 | CR116: 0 | CS116: 6 | CT116: 0 | CU116: 0 | CY116: 1 | DA116: 1
B117: 105 | G117: 105 | H117: 0 | I117: 1 | J117: 100 | K117: 46 | L117: 11.25 | M117: 0.357 | N117: 203 | R117: 4340.3 | CH117: 7 | CI117: 0 | CJ117: 0 | CK117: 0 | CL117: 0 | CM117: 0 | CN117: 0 | CO117: 0 | CP117: 0 | CQ117: 0 | CR117: 7 | CS117: 0 | CT117: 0 | CU117: 0 | CY117: 1 | DA117: 1
B118: 106 | G118: 106 | H118: 0 | I118: 1 | J118: 120 | K118: 46 | L118: 11.25 | M118: 0.351 | N118: 252 | R118: 6250 | CH118: 7 | CI118: 0 | CJ118: 0 | CK118: 0 | CL118: 0 | CM118: 0 | CN118: 0 | CO118: 0 | CP118: 0 | CQ118: 7 | CR118: 0 | CS118: 0 | CT118: 0 | CU118: 0 | CY118: 1 | DA118: 1
B119: 107 | F119: High temp. | G119: 107 | H119: 0 | I119: 2 | J119: 100 | K119: 46 | L119: 11.25 | M119: 0.34 | N119: 353 | R119: 4340.3 | CH119: 6 | CI119: 0 | CJ119: 0 | CK119: 0 | CL119: 0 | CM119: 0 | CN119: 0 | CO119: 0 | CP119: 0 | CQ119: 0 | CR119: 6 | CS119: 0 | CT119: 0 | CU119: 0 | CY119: 1 | DA119: 1
B120: 108 | G120: 108 | H120: 0 | I120: 2 | J120: 120 | K120: 46 | L120: 11.25 | M120: 0.351 | N120: 280 | R120: 6250 | CH120: 7 | CI120: 0 | CJ120: 0 | CK120: 0 | CL120: 0 | CM120: 0 | CN120: 0 | CO120: 0 | CP120: 0 | CQ120: 7 | CR120: 0 | CS120: 0 | CT120: 0 | CU120: 0 | CY120: 1 | DA120: 1
B121: 109 | G121: 109 | H121: 0 | I121: 2 | J121: 80 | K121: 46 | L121: 11.25 | M121: 0.347 | N121: 326 | R121: 2777.8 | CH121: 6 | CI121: 0 | CJ121: 0 | CK121: 0 | CL121: 0 | CM121: 0 | CN121: 0 | CO121: 0 | CP121: 0 | CQ121: 0 | CR121: 0 | CS121: 6 | CT121: 0 | CU121: 0 | CY121: 1 | DA121: 1
B122: 110 | F122: Dry brake | G122: 110 | H122: 0 | I122: 4 | J122: 80 | K122: 31 | L122: 11.25 | M122: 0.36 | N122: 299 | R122: 2777.8 | CH122: 6 | CI122: 0 | CJ122: 0 | CK122: 0 | CL122: 0 | CM122: 0 | CN122: 0 | CO122: 0 | CP122: 0 | CQ122: 0 | CR122: 0 | CS122: 6 | CT122: 0 | CU122: 0 | CY122: 1 | DA122: 1
B123: 111 | F123: 7090.8 | G123: 111 | H123: 0 | I123: 1 | J123: 80 | K123: 46 | L123: 11.25 | M123: 0.366 | N123: 146 | R123: 2777.8 | CH123: 7 | CI123: 0 | CJ123: 0 | CK123: 0 | CL123: 0 | CM123: 0 | CN123: 0 | CO123: 0 | CP123: 0 | CQ123: 0 | CR123: 0 | CS123: 7 | CT123: 0 | CU123: 0 | CY123: 1 | DA123: 1
B124: 112 | F124: Cont., 45 kW | G124: 112 | H124: 0 | I124: 0 | J124: 70 | M124: 0.368 | N124: 153 | R124: =45*34*60 -> 91800 | CH124: -1 | CI124: 0 | CJ124: 0 | CK124: 0 | CL124: 0 | CM124: 0 | CN124: 0 | CO124: 0 | CP124: 0 | CQ124: 0 | CR124: 0 | CS124: 0 | CT124: 6 | CU124: 0
B125: 113 | F125: 7022.5 | G125: 113 | H125: 0 | I125: 3 | J125: 70 | K125: 46 | L125: 11.25 | M125: 0.378 | N125: 409 | R125: 2126.7 | CH125: 7 | CI125: 0 | CJ125: 0 | CK125: 0 | CL125: 0 | CM125: 0 | CN125: 0 | CO125: 0 | CP125: 0 | CQ125: 0 | CR125: 0 | CS125: 0 | CT125: 7 | CU125: 0 | CY125: 1 | DA125: 1
B126: 114 | F126: Dry brake app. to reg. the disc | G126: 114 | H126: 0 | I126: 4 | J126: 80 | K126: 31 | L126: 11.25 | M126: 0.379 | N126: 260 | R126: 2777.8 | CH126: 7 | CI126: 0 | CJ126: 0 | CK126: 0 | CL126: 0 | CM126: 0 | CN126: 0 | CO126: 0 | CP126: 0 | CQ126: 0 | CR126: 0 | CS126: 7 | CT126: 0 | CU126: 0 | CY126: 1 | DA126: 1
B127: 115 | G127: 115 | H127: 0 | I127: 3 | J127: 100 | K127: 46 | L127: 11.25 | M127: 0.38 | N127: 108 | R127: 4340.3 | CH127: 8 | CI127: 0 | CJ127: 0 | CK127: 0 | CL127: 0 | CM127: 0 | CN127: 0 | CO127: 0 | CP127: 0 | CQ127: 0 | CR127: 8 | CS127: 0 | CT127: 0 | CU127: 0 | CY127: 1 | DA127: 1
B128: 116 | G128: 116 | H128: 0 | I128: 4 | J128: 120 | K128: 31 | L128: 11.25 | M128: 0.365 | N128: 201 | R128: 6250 | CH128: 8 | CI128: 0 | CJ128: 0 | CK128: 0 | CL128: 0 | CM128: 0 | CN128: 0 | CO128: 0 | CP128: 0 | CQ128: 8 | CR128: 0 | CS128: 0 | CT128: 0 | CU128: 0 | CY128: 1 | DA128: 1
B129: 117 | F129: Wet brake applications | G129: 117 | H129: 1 | I129: 4 | J129: 50 | K129: 31 | L129: 11.25 | M129: 0.362 | N129: 50 | R129: 1085.1 | CH129: 6 | CI129: 0 | CJ129: 0 | CK129: 0 | CL129: 0 | CM129: 0 | CN129: 0 | CO129: 0 | CP129: 0 | CQ129: 0 | CR129: 0 | CS129: 0 | CT129: 0 | CU129: 6 | CY129: 1 | DA129: 1
B130: 118 | G130: 118 | H130: 1 | I130: 4 | J130: 100 | K130: 31 | L130: 11.25 | M130: 0.418 | N130: 64 | R130: 4340.3 | CH130: 10 | CI130: 0 | CJ130: 0 | CK130: 0 | CL130: 0 | CM130: 0 | CN130: 0 | CO130: 0 | CP130: 0 | CQ130: 0 | CR130: 10 | CS130: 0 | CT130: 0 | CU130: 0 | CY130: 1 | DA130: 1
B131: 119 | G131: 119 | H131: 1 | I131: 4 | J131: 80 | K131: 31 | L131: 11.25 | M131: 0.378 | N131: 147 | R131: 2777.8 | CH131: 7 | CI131: 0 | CJ131: 0 | CK131: 0 | CL131: 0 | CM131: 0 | CN131: 0 | CO131: 0 | CP131: 0 | CQ131: 0 | CR131: 0 | CS131: 7 | CT131: 0 | CU131: 0 | CY131: 1 | DA131: 1
B132: 120 | F132: Dry brake applications to dry the brake pad | G132: 120 | H132: 0 | I132: 4 | J132: 100 | K132: 31 | L132: 11.25 | M132: 0.405 | N132: 111 | R132: 4340.3 | CH132: 9 | CI132: 0 | CJ132: 0 | CK132: 0 | CL132: 0 | CM132: 0 | CN132: 0 | CO132: 0 | CP132: 0 | CQ132: 0 | CR132: 9 | CS132: 0 | CT132: 0 | CU132: 0 | CY132: 1 | DA132: 1
B133: 121 | G133: 121 | H133: 0 | I133: 4 | J133: 100 | K133: 31 | L133: 11.25 | M133: 0.376 | N133: 145 | R133: 4340.3 | CH133: 8 | CI133: 0 | CJ133: 0 | CK133: 0 | CL133: 0 | CM133: 0 | CN133: 0 | CO133: 0 | CP133: 0 | CQ133: 0 | CR133: 8 | CS133: 0 | CT133: 0 | CU133: 0 | CY133: 1 | DA133: 1
B134: 122 | G134: 122 | H134: 0 | I134: 4 | J134: 100 | K134: 31 | L134: 11.25 | M134: 0.366 | N134: 203 | R134: 4340.3 | CH134: 7 | CI134: 0 | CJ134: 0 | CK134: 0 | CL134: 0 | CM134: 0 | CN134: 0 | CO134: 0 | CP134: 0 | CQ134: 0 | CR134: 7 | CS134: 0 | CT134: 0 | CU134: 0 | CY134: 1 | DA134: 1
B135: 123 | G135: 123 | H135: 0 | I135: 4 | J135: 100 | K135: 31 | L135: 11.25 | M135: 0.35 | N135: 236 | R135: 4340.3 | CH135: 6 | CI135: 0 | CJ135: 0 | CK135: 0 | CL135: 0 | CM135: 0 | CN135: 0 | CO135: 0 | CP135: 0 | CQ135: 0 | CR135: 6 | CS135: 0 | CT135: 0 | CU135: 0 | CY135: 1 | DA135: 1
B136: 124 | G136: 124 | H136: 0 | I136: 4 | J136: 100 | K136: 31 | L136: 11.25 | M136: 0.448 | N136: 48 | R136: 4340.3 | CH136: 12 | CI136: 0 | CJ136: 0 | CK136: 0 | CL136: 0 | CM136: 0 | CN136: 0 | CO136: 0 | CP136: 0 | CQ136: 0 | CR136: 12 | CS136: 0 | CT136: 0 | CU136: 0 | CY136: 2 | DA136: 1
B137: 125 | G137: 125 | H137: 0 | I137: 4 | J137: 100 | K137: 31 | L137: 11.25 | M137: 0.453 | N137: 48 | R137: 4340.3 | CH137: 12 | CI137: 0 | CJ137: 0 | CK137: 0 | CL137: 0 | CM137: 0 | CN137: 0 | CO137: 0 | CP137: 0 | CQ137: 0 | CR137: 12 | CS137: 0 | CT137: 0 | CU137: 0 | CY137: 2 | DA137: 1
B138: 126 | G138: 126 | H138: 0 | I138: 4 | J138: 100 | K138: 31 | L138: 11.25 | M138: 0.437 | N138: 47 | R138: 4340.3 | CH138: 11 | CI138: 0 | CJ138: 0 | CK138: 0 | CL138: 0 | CM138: 0 | CN138: 0 | CO138: 0 | CP138: 0 | CQ138: 0 | CR138: 11 | CS138: 0 | CT138: 0 | CU138: 0 | CY138: 1 | DA138: 1
B139: 127 | G139: 127 | H139: 0 | I139: 4 | J139: 100 | K139: 31 | L139: 11.25 | M139: 0.418 | N139: 60 | R139: 4340.3 | CH139: 10 | CI139: 0 | CJ139: 0 | CK139: 0 | CL139: 0 | CM139: 0 | CN139: 0 | CO139: 0 | CP139: 0 | CQ139: 0 | CR139: 10 | CS139: 0 | CT139: 0 | CU139: 0 | CY139: 1 | DA139: 1
B140: 128 | G140: 128 | H140: 0 | I140: 4 | J140: 100 | K140: 31 | L140: 11.25 | M140: 0.378 | N140: 80 | R140: 4340.3 | CH140: 8 | CI140: 0 | CJ140: 0 | CK140: 0 | CL140: 0 | CM140: 0 | CN140: 0 | CO140: 0 | CP140: 0 | CQ140: 0 | CR140: 8 | CS140: 0 | CT140: 0 | CU140: 0 | CY140: 1 | DA140: 1
B141: 129 | F141: 6993.7 | G141: 129 | H141: 0 | I141: 4 | J141: 100 | K141: 31 | L141: 11.25 | M141: 0.405 | N141: 80 | R141: 4340.3 | CH141: =IF(OR(ISERROR(SUM(CI141:CU141)),$I141<1),"-1",SUM(CI141:CU141)) -> 9 | CI141: =IF($J141=CI$12,MATCH(ROUND($M141,3),$BM$50:$BZ$50,1)-1,0)+IF(AND($J141=CI$12,ROUND($M141,3)>$AP$61),1,0) -> 0 | CJ141: =IF($J141=CJ$12,MATCH(ROUND($M141,3),$BM$51:$BZ$51,1)-1,0)+IF(AND($J141=CJ$12,ROUND($M141,3)>$AP$62),1,0) -> 0 | CK141: =IF($J141=CK$12,MATCH(ROUND($M141,3),$BM$52:$BZ$52,1)-1,0)+IF(AND($J141=CK$12,ROUND($M141,3)>$AP$63),1,0) -> 0 | CL141: =IF($J141=CL$12,MATCH(ROUND($M141,3),$BM$53:$BZ$53,1)-1,0)+IF(AND($J141=CL$12,ROUND($M141,3)>$AP$64),1,0) -> 0 | CM141: =IF($J141=CM$12,MATCH(ROUND($M141,3),$BM$54:$BZ$54,1)-1,0)+IF(AND($J141=CM$12,ROUND($M141,3)>$AP$65),1,0) -> 0 | CN141: =IF($J141=CN$12,MATCH(ROUND($M141,3),$BM$55:$BZ$55,1)-1,0)+IF(AND($J141=CN$12,ROUND($M141,3)>$AP$66),1,0) -> 0 | CO141: =IF($J141=CO$12,MATCH(ROUND($M141,3),$BM$56:$BZ$56,1)-1,0)+IF(AND($J141=CO$12,ROUND($M141,3)>$AP$67),1,0) -> 0 | CP141: =IF($J141=CP$12,MATCH(ROUND($M141,3),$BM$57:$BZ$57,1)-1,0)+IF(AND($J141=CP$12,ROUND($M141,3)>$AP$68),1,0) -> 0 | CQ141: =IF($J141=CQ$12,MATCH(ROUND($M141,3),$BM$58:$BZ$58,1)-1,0)+IF(AND($J141=CQ$12,ROUND($M141,3)>$AP$69),1,0) -> 0 | CR141: =IF($J141=CR$12,MATCH(ROUND($M141,3),$BM$59:$BZ$59,1)-1,0)+IF(AND($J141=CR$12,ROUND($M141,3)>$AP$70),1,0) -> 9 | CS141: =IF($J141=CS$12,MATCH(ROUND($M141,3),$BM$60:$BZ$60,1)-1,0)+IF(AND($J141=CS$12,ROUND($M141,3)>$AP$71),1,0) -> 0 | CT141: =IF($J141=CT$12,MATCH(ROUND($M141,3),$BM$61:$BZ$61,1)-1,0)+IF(AND($J141=CT$12,ROUND($M141,3)>$AP$72),1,0) -> 0 | CU141: =IF($J141=CU$12,MATCH(ROUND($M141,3),$BM$62:$BZ$62,1)-1,0)+IF(AND($J141=CU$12,ROUND($M141,3)>$AP$73),1,0) -> 0 | CW141: =IF($C141>0,$B141,#N/A) ->  | CX141: =IF($C141>0,ROUND($C141,3),#N/A) ->  | CY141: =IF(I141>0,IF(OR(AND($I141=1,$CH141>=5,$CH141<=8),AND(I141=2,$CH141>=4,$CH141<=9),AND($I141=3,$CH141>=3,$CH141<=10),AND($I141=4,$CH141>=2,$CH141<=11)),1,IF(OR(AND($I141=1,OR($CH141=4,$CH141=9)),AND($I141=2,OR($CH141=3,$CH141=10)),AND($I141=3,OR($CH141=2,$CH141=11)),AND($I141=4,OR($CH141=1,$CH141=12))),2,0)),#N/A) -> 1 | DA141: 1
B142: 130 | F142: Dry brake applications | G142: =G141+1 -> 130 | H142: 0 | I142: 4 | J142: 80 | K142: 31 | L142: 11.25 | M142: 0.376 | N142: 90 | R142: =0.5*L142*(J142/3.6)^2 -> 2777.8 | CH142: 7 | CI142: 0 | CJ142: 0 | CK142: 0 | CL142: 0 | CM142: 0 | CN142: 0 | CO142: 0 | CP142: 0 | CQ142: 0 | CR142: 0 | CS142: 7 | CT142: 0 | CU142: 0 | CY142: 1 | CZ142: =IF($C142>0,IF(OR(AND($B142>=$BR$24,$B142<=$BR$25,OR($C142>$BS$24,$C142<$BT$24)),AND($B142>=$BR$26,$B142<=$BR$27,OR($C142>$BS$26,$C142<$BT$26))),0,1),#N/A) ->  | DA142: =IF($I142>0,IF(AND(ISNUMBER(M142),$M142>0),1,0),"") -> 1
B143: 131 | G143: 131 | H143: 0 | I143: 1 | J143: 100 | K143: 46 | L143: 11.25 | M143: 0.366 | N143: 200 | R143: 4340.3 | CH143: 7 | CI143: 0 | CJ143: 0 | CK143: 0 | CL143: 0 | CM143: 0 | CN143: 0 | CO143: 0 | CP143: 0 | CQ143: 0 | CR143: 7 | CS143: 0 | CT143: 0 | CU143: 0 | CY143: 1 | DA143: 1
B144: 132 | G144: 132 | H144: 0 | I144: 4 | J144: 120 | K144: 31 | L144: 11.25 | M144: 0.35 | N144: 180 | R144: 6250 | CH144: 7 | CI144: 0 | CJ144: 0 | CK144: 0 | CL144: 0 | CM144: 0 | CN144: 0 | CO144: 0 | CP144: 0 | CQ144: 7 | CR144: 0 | CS144: 0 | CT144: 0 | CU144: 0 | CY144: 1 | DA144: 1
B145: 133 | G145: 133 | H145: 0 | I145: 4 | J145: 50 | K145: 31 | L145: 11.25 | M145: 0.448 | N145: 60 | R145: 1085.1 | CH145: 10 | CI145: 0 | CJ145: 0 | CK145: 0 | CL145: 0 | CM145: 0 | CN145: 0 | CO145: 0 | CP145: 0 | CQ145: 0 | CR145: 0 | CS145: 0 | CT145: 0 | CU145: 10 | CY145: 1 | DA145: 1
B146: 134 | G146: 134 | H146: 0 | I146: 4 | J146: 50 | K146: 31 | L146: 11.25 | M146: 0.453 | N146: 50 | R146: 1085.1 | CH146: 10 | CI146: 0 | CJ146: 0 | CK146: 0 | CL146: 0 | CM146: 0 | CN146: 0 | CO146: 0 | CP146: 0 | CQ146: 0 | CR146: 0 | CS146: 0 | CT146: 0 | CU146: 10 | CY146: 1 | DA146: 1
B147: 135 | F147: 6985.5 | G147: 135 | H147: 0 | I147: 4 | J147: 50 | K147: 31 | L147: 11.25 | M147: 0.437 | N147: 80 | R147: 1085.1 | CH147: 10 | CI147: 0 | CJ147: 0 | CK147: 0 | CL147: 0 | CM147: 0 | CN147: 0 | CO147: 0 | CP147: 0 | CQ147: 0 | CR147: 0 | CS147: 0 | CT147: 0 | CU147: 10 | CY147: 1 | DA147: 1
B148: 136 | R148: =SUM(R13:R147) -> 413216.4 | S148: kJ | CH148: -1 | CI148: 0 | CJ148: 0 | CK148: 0 | CL148: 0 | CM148: 0 | CN148: 0 | CO148: 0 | CP148: 0 | CQ148: 0 | CR148: 0 | CS148: 0 | CT148: 0 | CU148: 0
B149: 137 | R149: =R148/1000 -> 413.2 | S149: MJ | CH149: -1 | CI149: 0 | CJ149: 0 | CK149: 0 | CL149: 0 | CM149: 0 | CN149: 0 | CO149: 0 | CP149: 0 | CQ149: 0 | CR149: 0 | CS149: 0 | CT149: 0 | CU149: 0
B150: 138 | CH150: -1 | CI150: 0 | CJ150: 0 | CK150: 0 | CL150: 0 | CM150: 0 | CN150: 0 | CO150: 0 | CP150: 0 | CQ150: 0 | CR150: 0 | CS150: 0 | CT150: 0 | CU150: 0
B151: 139 | CH151: -1 | CI151: 0 | CJ151: 0 | CK151: 0 | CL151: 0 | CM151: 0 | CN151: 0 | CO151: 0 | CP151: 0 | CQ151: 0 | CR151: 0 | CS151: 0 | CT151: 0 | CU151: 0
B152: 140 | CH152: -1 | CI152: 0 | CJ152: 0 | CK152: 0 | CL152: 0 | CM152: 0 | CN152: 0 | CO152: 0 | CP152: 0 | CQ152: 0 | CR152: 0 | CS152: 0 | CT152: 0 | CU152: 0
B153: 141 | CH153: -1 | CI153: 0 | CJ153: 0 | CK153: 0 | CL153: 0 | CM153: 0 | CN153: 0 | CO153: 0 | CP153: 0 | CQ153: 0 | CR153: 0 | CS153: 0 | CT153: 0 | CU153: 0
B154: 142 | CH154: -1 | CI154: 0 | CJ154: 0 | CK154: 0 | CL154: 0 | CM154: 0 | CN154: 0 | CO154: 0 | CP154: 0 | CQ154: 0 | CR154: 0 | CS154: 0 | CT154: 0 | CU154: 0
B155: 143 | CH155: -1 | CI155: 0 | CJ155: 0 | CK155: 0 | CL155: 0 | CM155: 0 | CN155: 0 | CO155: 0 | CP155: 0 | CQ155: 0 | CR155: 0 | CS155: 0 | CT155: 0 | CU155: 0
B156: 144 | CH156: -1 | CI156: 0 | CJ156: 0 | CK156: 0 | CL156: 0 | CM156: 0 | CN156: 0 | CO156: 0 | CP156: 0 | CQ156: 0 | CR156: 0 | CS156: 0 | CT156: 0 | CU156: 0
B157: 145 | CH157: -1 | CI157: 0 | CJ157: 0 | CK157: 0 | CL157: 0 | CM157: 0 | CN157: 0 | CO157: 0 | CP157: 0 | CQ157: 0 | CR157: 0 | CS157: 0 | CT157: 0 | CU157: 0
B158: 146 | CH158: -1 | CI158: 0 | CJ158: 0 | CK158: 0 | CL158: 0 | CM158: 0 | CN158: 0 | CO158: 0 | CP158: 0 | CQ158: 0 | CR158: 0 | CS158: 0 | CT158: 0 | CU158: 0
B159: 147 | CH159: -1 | CI159: 0 | CJ159: 0 | CK159: 0 | CL159: 0 | CM159: 0 | CN159: 0 | CO159: 0 | CP159: 0 | CQ159: 0 | CR159: 0 | CS159: 0 | CT159: 0 | CU159: 0
B160: 148 | CH160: -1 | CI160: 0 | CJ160: 0 | CK160: 0 | CL160: 0 | CM160: 0 | CN160: 0 | CO160: 0 | CP160: 0 | CQ160: 0 | CR160: 0 | CS160: 0 | CT160: 0 | CU160: 0
B161: 149 | CH161: -1 | CI161: 0 | CJ161: 0 | CK161: 0 | CL161: 0 | CM161: 0 | CN161: 0 | CO161: 0 | CP161: 0 | CQ161: 0 | CR161: 0 | CS161: 0 | CT161: 0 | CU161: 0
B162: 150 | CH162: -1 | CI162: 0 | CJ162: 0 | CK162: 0 | CL162: 0 | CM162: 0 | CN162: 0 | CO162: 0 | CP162: 0 | CQ162: 0 | CR162: 0 | CS162: 0 | CT162: 0 | CU162: 0
B163: 151 | CH163: -1 | CI163: 0 | CJ163: 0 | CK163: 0 | CL163: 0 | CM163: 0 | CN163: 0 | CO163: 0 | CP163: 0 | CQ163: 0 | CR163: 0 | CS163: 0 | CT163: 0 | CU163: 0
B164: 152 | CH164: -1 | CI164: 0 | CJ164: 0 | CK164: 0 | CL164: 0 | CM164: 0 | CN164: 0 | CO164: 0 | CP164: 0 | CQ164: 0 | CR164: 0 | CS164: 0 | CT164: 0 | CU164: 0
B165: 153 | CH165: -1 | CI165: 0 | CJ165: 0 | CK165: 0 | CL165: 0 | CM165: 0 | CN165: 0 | CO165: 0 | CP165: 0 | CQ165: 0 | CR165: 0 | CS165: 0 | CT165: 0 | CU165: 0
B166: 154 | CH166: -1 | CI166: 0 | CJ166: 0 | CK166: 0 | CL166: 0 | CM166: 0 | CN166: 0 | CO166: 0 | CP166: 0 | CQ166: 0 | CR166: 0 | CS166: 0 | CT166: 0 | CU166: 0
B167: 155 | CH167: -1 | CI167: 0 | CJ167: 0 | CK167: 0 | CL167: 0 | CM167: 0 | CN167: 0 | CO167: 0 | CP167: 0 | CQ167: 0 | CR167: 0 | CS167: 0 | CT167: 0 | CU167: 0
B168: 156 | CH168: -1 | CI168: 0 | CJ168: 0 | CK168: 0 | CL168: 0 | CM168: 0 | CN168: 0 | CO168: 0 | CP168: 0 | CQ168: 0 | CR168: 0 | CS168: 0 | CT168: 0 | CU168: 0
B169: 157 | CH169: -1 | CI169: 0 | CJ169: 0 | CK169: 0 | CL169: 0 | CM169: 0 | CN169: 0 | CO169: 0 | CP169: 0 | CQ169: 0 | CR169: 0 | CS169: 0 | CT169: 0 | CU169: 0
B170: 158 | CH170: -1 | CI170: 0 | CJ170: 0 | CK170: 0 | CL170: 0 | CM170: 0 | CN170: 0 | CO170: 0 | CP170: 0 | CQ170: 0 | CR170: 0 | CS170: 0 | CT170: 0 | CU170: 0
B171: 159 | CH171: -1 | CI171: 0 | CJ171: 0 | CK171: 0 | CL171: 0 | CM171: 0 | CN171: 0 | CO171: 0 | CP171: 0 | CQ171: 0 | CR171: 0 | CS171: 0 | CT171: 0 | CU171: 0
B172: 160 | CH172: -1 | CI172: 0 | CJ172: 0 | CK172: 0 | CL172: 0 | CM172: 0 | CN172: 0 | CO172: 0 | CP172: 0 | CQ172: 0 | CR172: 0 | CS172: 0 | CT172: 0 | CU172: 0
B173: 161 | CH173: =IF(OR(ISERROR(SUM(CI173:CU173)),$I173<1),"-1",SUM(CI173:CU173)) -> -1 | CI173: =IF($J173=CI$12,MATCH(ROUND($M173,3),$BM$50:$BZ$50,1)-1,0)+IF(AND($J173=CI$12,ROUND($M173,3)>$AP$61),1,0) -> 0 | CJ173: =IF($J173=CJ$12,MATCH(ROUND($M173,3),$BM$51:$BZ$51,1)-1,0)+IF(AND($J173=CJ$12,ROUND($M173,3)>$AP$62),1,0) -> 0 | CK173: =IF($J173=CK$12,MATCH(ROUND($M173,3),$BM$52:$BZ$52,1)-1,0)+IF(AND($J173=CK$12,ROUND($M173,3)>$AP$63),1,0) -> 0 | CL173: =IF($J173=CL$12,MATCH(ROUND($M173,3),$BM$53:$BZ$53,1)-1,0)+IF(AND($J173=CL$12,ROUND($M173,3)>$AP$64),1,0) -> 0 | CM173: =IF($J173=CM$12,MATCH(ROUND($M173,3),$BM$54:$BZ$54,1)-1,0)+IF(AND($J173=CM$12,ROUND($M173,3)>$AP$65),1,0) -> 0 | CN173: =IF($J173=CN$12,MATCH(ROUND($M173,3),$BM$55:$BZ$55,1)-1,0)+IF(AND($J173=CN$12,ROUND($M173,3)>$AP$66),1,0) -> 0 | CO173: =IF($J173=CO$12,MATCH(ROUND($M173,3),$BM$56:$BZ$56,1)-1,0)+IF(AND($J173=CO$12,ROUND($M173,3)>$AP$67),1,0) -> 0 | CP173: =IF($J173=CP$12,MATCH(ROUND($M173,3),$BM$57:$BZ$57,1)-1,0)+IF(AND($J173=CP$12,ROUND($M173,3)>$AP$68),1,0) -> 0 | CQ173: =IF($J173=CQ$12,MATCH(ROUND($M173,3),$BM$58:$BZ$58,1)-1,0)+IF(AND($J173=CQ$12,ROUND($M173,3)>$AP$69),1,0) -> 0 | CR173: =IF($J173=CR$12,MATCH(ROUND($M173,3),$BM$59:$BZ$59,1)-1,0)+IF(AND($J173=CR$12,ROUND($M173,3)>$AP$70),1,0) -> 0 | CS173: =IF($J173=CS$12,MATCH(ROUND($M173,3),$BM$60:$BZ$60,1)-1,0)+IF(AND($J173=CS$12,ROUND($M173,3)>$AP$71),1,0) -> 0 | CT173: =IF($J173=CT$12,MATCH(ROUND($M173,3),$BM$61:$BZ$61,1)-1,0)+IF(AND($J173=CT$12,ROUND($M173,3)>$AP$72),1,0) -> 0 | CU173: =IF($J173=CU$12,MATCH(ROUND($M173,3),$BM$62:$BZ$62,1)-1,0)+IF(AND($J173=CU$12,ROUND($M173,3)>$AP$73),1,0) -> 0 | CW173: =IF($C173>0,$B173,#N/A) ->  | CX173: =IF($C173>0,ROUND($C173,3),#N/A) ->  | CY173: =IF(I173>0,IF(OR(AND($I173=1,$CH173>=5,$CH173<=8),AND(I173=2,$CH173>=4,$CH173<=9),AND($I173=3,$CH173>=3,$CH173<=10),AND($I173=4,$CH173>=2,$CH173<=11)),1,IF(OR(AND($I173=1,OR($CH173=4,$CH173=9)),AND($I173=2,OR($CH173=3,$CH173=10)),AND($I173=3,OR($CH173=2,$CH173=11)),AND($I173=4,OR($CH173=1,$CH173=12))),2,0)),#N/A) -> 
B174: 162 | CH174: -1 | CI174: 0 | CJ174: 0 | CK174: 0 | CL174: 0 | CM174: 0 | CN174: 0 | CO174: 0 | CP174: 0 | CQ174: 0 | CR174: 0 | CS174: 0 | CT174: 0 | CU174: 0
B175: 163 | CH175: -1 | CI175: 0 | CJ175: 0 | CK175: 0 | CL175: 0 | CM175: 0 | CN175: 0 | CO175: 0 | CP175: 0 | CQ175: 0 | CR175: 0 | CS175: 0 | CT175: 0 | CU175: 0
B176: 164 | CH176: -1 | CI176: 0 | CJ176: 0 | CK176: 0 | CL176: 0 | CM176: 0 | CN176: 0 | CO176: 0 | CP176: 0 | CQ176: 0 | CR176: 0 | CS176: 0 | CT176: 0 | CU176: 0
B177: 165 | CH177: -1 | CI177: 0 | CJ177: 0 | CK177: 0 | CL177: 0 | CM177: 0 | CN177: 0 | CO177: 0 | CP177: 0 | CQ177: 0 | CR177: 0 | CS177: 0 | CT177: 0 | CU177: 0
B178: 166 | CH178: -1 | CI178: 0 | CJ178: 0 | CK178: 0 | CL178: 0 | CM178: 0 | CN178: 0 | CO178: 0 | CP178: 0 | CQ178: 0 | CR178: 0 | CS178: 0 | CT178: 0 | CU178: 0
B179: 167 | CH179: -1 | CI179: 0 | CJ179: 0 | CK179: 0 | CL179: 0 | CM179: 0 | CN179: 0 | CO179: 0 | CP179: 0 | CQ179: 0 | CR179: 0 | CS179: 0 | CT179: 0 | CU179: 0
B180: 168 | CH180: -1 | CI180: 0 | CJ180: 0 | CK180: 0 | CL180: 0 | CM180: 0 | CN180: 0 | CO180: 0 | CP180: 0 | CQ180: 0 | CR180: 0 | CS180: 0 | CT180: 0 | CU180: 0
B181: 169 | CH181: -1 | CI181: 0 | CJ181: 0 | CK181: 0 | CL181: 0 | CM181: 0 | CN181: 0 | CO181: 0 | CP181: 0 | CQ181: 0 | CR181: 0 | CS181: 0 | CT181: 0 | CU181: 0
B182: 170 | CH182: -1 | CI182: 0 | CJ182: 0 | CK182: 0 | CL182: 0 | CM182: 0 | CN182: 0 | CO182: 0 | CP182: 0 | CQ182: 0 | CR182: 0 | CS182: 0 | CT182: 0 | CU182: 0
B183: 171 | CH183: -1 | CI183: 0 | CJ183: 0 | CK183: 0 | CL183: 0 | CM183: 0 | CN183: 0 | CO183: 0 | CP183: 0 | CQ183: 0 | CR183: 0 | CS183: 0 | CT183: 0 | CU183: 0
B184: 172 | CH184: -1 | CI184: 0 | CJ184: 0 | CK184: 0 | CL184: 0 | CM184: 0 | CN184: 0 | CO184: 0 | CP184: 0 | CQ184: 0 | CR184: 0 | CS184: 0 | CT184: 0 | CU184: 0
B185: 173 | CH185: -1 | CI185: 0 | CJ185: 0 | CK185: 0 | CL185: 0 | CM185: 0 | CN185: 0 | CO185: 0 | CP185: 0 | CQ185: 0 | CR185: 0 | CS185: 0 | CT185: 0 | CU185: 0
B186: 174 | CH186: -1 | CI186: 0 | CJ186: 0 | CK186: 0 | CL186: 0 | CM186: 0 | CN186: 0 | CO186: 0 | CP186: 0 | CQ186: 0 | CR186: 0 | CS186: 0 | CT186: 0 | CU186: 0
B187: 175 | CH187: -1 | CI187: 0 | CJ187: 0 | CK187: 0 | CL187: 0 | CM187: 0 | CN187: 0 | CO187: 0 | CP187: 0 | CQ187: 0 | CR187: 0 | CS187: 0 | CT187: 0 | CU187: 0
B188: 176 | CH188: -1 | CI188: 0 | CJ188: 0 | CK188: 0 | CL188: 0 | CM188: 0 | CN188: 0 | CO188: 0 | CP188: 0 | CQ188: 0 | CR188: 0 | CS188: 0 | CT188: 0 | CU188: 0
B189: 177 | CH189: -1 | CI189: 0 | CJ189: 0 | CK189: 0 | CL189: 0 | CM189: 0 | CN189: 0 | CO189: 0 | CP189: 0 | CQ189: 0 | CR189: 0 | CS189: 0 | CT189: 0 | CU189: 0
B190: 178 | CH190: -1 | CI190: 0 | CJ190: 0 | CK190: 0 | CL190: 0 | CM190: 0 | CN190: 0 | CO190: 0 | CP190: 0 | CQ190: 0 | CR190: 0 | CS190: 0 | CT190: 0 | CU190: 0
B191: 179 | CH191: -1 | CI191: 0 | CJ191: 0 | CK191: 0 | CL191: 0 | CM191: 0 | CN191: 0 | CO191: 0 | CP191: 0 | CQ191: 0 | CR191: 0 | CS191: 0 | CT191: 0 | CU191: 0
B192: 180 | CH192: -1 | CI192: 0 | CJ192: 0 | CK192: 0 | CL192: 0 | CM192: 0 | CN192: 0 | CO192: 0 | CP192: 0 | CQ192: 0 | CR192: 0 | CS192: 0 | CT192: 0 | CU192: 0
B193: 181 | CH193: -1 | CI193: 0 | CJ193: 0 | CK193: 0 | CL193: 0 | CM193: 0 | CN193: 0 | CO193: 0 | CP193: 0 | CQ193: 0 | CR193: 0 | CS193: 0 | CT193: 0 | CU193: 0
B194: 182 | CH194: -1 | CI194: 0 | CJ194: 0 | CK194: 0 | CL194: 0 | CM194: 0 | CN194: 0 | CO194: 0 | CP194: 0 | CQ194: 0 | CR194: 0 | CS194: 0 | CT194: 0 | CU194: 0
B195: 183 | CH195: -1 | CI195: 0 | CJ195: 0 | CK195: 0 | CL195: 0 | CM195: 0 | CN195: 0 | CO195: 0 | CP195: 0 | CQ195: 0 | CR195: 0 | CS195: 0 | CT195: 0 | CU195: 0
B196: 184 | CH196: -1 | CI196: 0 | CJ196: 0 | CK196: 0 | CL196: 0 | CM196: 0 | CN196: 0 | CO196: 0 | CP196: 0 | CQ196: 0 | CR196: 0 | CS196: 0 | CT196: 0 | CU196: 0
B197: 185 | CH197: -1 | CI197: 0 | CJ197: 0 | CK197: 0 | CL197: 0 | CM197: 0 | CN197: 0 | CO197: 0 | CP197: 0 | CQ197: 0 | CR197: 0 | CS197: 0 | CT197: 0 | CU197: 0
B198: 186 | CH198: -1 | CI198: 0 | CJ198: 0 | CK198: 0 | CL198: 0 | CM198: 0 | CN198: 0 | CO198: 0 | CP198: 0 | CQ198: 0 | CR198: 0 | CS198: 0 | CT198: 0 | CU198: 0
B199: 187 | CH199: -1 | CI199: 0 | CJ199: 0 | CK199: 0 | CL199: 0 | CM199: 0 | CN199: 0 | CO199: 0 | CP199: 0 | CQ199: 0 | CR199: 0 | CS199: 0 | CT199: 0 | CU199: 0
B200: 188 | CH200: -1 | CI200: 0 | CJ200: 0 | CK200: 0 | CL200: 0 | CM200: 0 | CN200: 0 | CO200: 0 | CP200: 0 | CQ200: 0 | CR200: 0 | CS200: 0 | CT200: 0 | CU200: 0
B201: 189 | CH201: -1 | CI201: 0 | CJ201: 0 | CK201: 0 | CL201: 0 | CM201: 0 | CN201: 0 | CO201: 0 | CP201: 0 | CQ201: 0 | CR201: 0 | CS201: 0 | CT201: 0 | CU201: 0
B202: 190 | CH202: -1 | CI202: 0 | CJ202: 0 | CK202: 0 | CL202: 0 | CM202: 0 | CN202: 0 | CO202: 0 | CP202: 0 | CQ202: 0 | CR202: 0 | CS202: 0 | CT202: 0 | CU202: 0
... 228 more rows

Sheet Class A1 (hidden)
A1: A1
B4: Test No./Bench No. | I4: Date of test: | K4: Continuous braking | L4: mmax: | V4: =B4 -> Test No./Bench No. | X4: =IF($F$4<>0,$F$4,"---") -> --- | AB4: =IF($J$4<>0,$J$4,"---") -> ---
B5: Brake Pad | L5: mmin: | N5: max. Dm/min
I6: Disc: | J6: Ø / Width: | K6: Material: | L6: Manufacturer: | N6: =IF($CG$20=0,"Head complete","Missing entry(s)") -> Missing entry(s) | V6: Brake pad: | X6: =IF($F$5<>0,(F5&" "&"("&F6&" - "&G6&")"),"---") -> --- | AB6: =B8 -> UIC 541-3 Class A1
B7: Densitiy | C7: Net area | F7: Type | G7: Batch | BK7: Checks and intermediate results (not included in print-out) | BQ7: Bedding | CI7: Calculation of deviation class
B8: UIC 541-3 Class A1 | V8: Brake disc: | X8: =IF($J$7<>0,$J$7,"---") -> --- | Z8: =IF($K$7<>0,$K$7,"---") -> --- | AB8: =IF($L$7<>0,$L$7,"---") -> --- | BQ8: Start row | BR8: 13
BQ9: Events | BR9: =COUNTIF($C$13:$C$212,">0") -> 40
B10: Bedding | F10: Weighing results in g | G10: Brake appl. no. | H10: wet=1 | I10: Brake Priority | J10: Speed v [km/h] | K10: FB [kN] | L10: Braked mass per disc [t] | M10: mm | N10: Max. disc temp. [°C] | O10: Anmerk. | X10: Diameter / width | Z10: Material | AB10: Manufacturer | BQ10: to 100% | BR10: =ADDRESS(($BR$8+$BR$9)-1,3) -> $C$52 | BS10: =($BR$8+$BR$9)-1 -> 52 | CI10: km/h | CW10: Cell Formatting
B11: (min. 15 entries) | BQ11: to 30% | BR11: =IF(BT16=1,ADDRESS(BS11,3),"") -> $C$24 | BS11: =IF(BT16=1,BR25+12,"") -> 24 | BT11: =($BR$8+ROUNDUP($BR$9*0.3,0))-1 -> 24 | CH11: Summe | CW11: Bedding | CY11: Stop in TB (0=out) | CZ11: Bedding in TB? | DA11: Valid entry ym?
B12: No. | C12: mm | R12: Energy in kJ | BK12: Data plausibility check | BQ12: from 30% | BR12: =ADDRESS(BS12,3) -> $C$25 | BS12: =BR26+12 -> 25 | BT12: =($BR$8+ROUNDUP($BR$9*0.3,0)) -> 25 | CG12: Head | CH12: Deviation | CI12: 400 | CJ12: 350 | CK12: 300 | CL12: 250 | CM12: 220 | CN12: 200 | CO12: 160 | CP12: 140 | CQ12: 120 | CR12: 100 | CS12: 80 | CT12: 70 | CU12: 50
B13: 1 | C13: 0.35 | F13: Dry brake applications, minimal mass | G13: 1 | H13: 0 | I13: 4 | J13: 50 | K13: 8.5 | L13: 2.35 | M13: 0.35 | N13: 20 | R13: =0.5*L13*(J13/3.6)^2 -> 226.7 | BQ13: Nominal | BR13: =IF($BR$9>=5,AVERAGEIFS($C$13:$C$212,$B$13:$B$212,"<="&$BR$9,$B$13:$B$212,">"&$BR$9-5),"n<5") -> 0.35 | CH13: =IF(OR(ISERROR(SUM(CI13:CU13)),$I13<1),"-1",SUM(CI13:CU13)) -> 6 | CI13: =IF($J13=CI$12,MATCH(ROUND($M13,3),$BM$50:$BZ$50,1)-1,0)+IF(AND($J13=CI$12,ROUND($M13,3)>$AP$61),1,0) -> 0 | CJ13: =IF($J13=CJ$12,MATCH(ROUND($M13,3),$BM$51:$BZ$51,1)-1,0)+IF(AND($J13=CJ$12,ROUND($M13,3)>$AP$62),1,0) -> 0 | CK13: =IF($J13=CK$12,MATCH(ROUND($M13,3),$BM$52:$BZ$52,1)-1,0)+IF(AND($J13=CK$12,ROUND($M13,3)>$AP$63),1,0) -> 0 | CL13: =IF($J13=CL$12,MATCH(ROUND($M13,3),$BM$53:$BZ$53,1)-1,0)+IF(AND($J13=CL$12,ROUND($M13,3)>$AP$64),1,0) -> 0 | CM13: =IF($J13=CM$12,MATCH(ROUND($M13,3),$BM$54:$BZ$54,1)-1,0)+IF(AND($J13=CM$12,ROUND($M13,3)>$AP$65),1,0) -> 0 | CN13: =IF($J13=CN$12,MATCH(ROUND($M13,3),$BM$55:$BZ$55,1)-1,0)+IF(AND($J13=CN$12,ROUND($M13,3)>$AP$66),1,0) -> 0 | CO13: =IF($J13=CO$12,MATCH(ROUND($M13,3),$BM$56:$BZ$56,1)-1,0)+IF(AND($J13=CO$12,ROUND($M13,3)>$AP$67),1,0) -> 0 | CP13: =IF($J13=CP$12,MATCH(ROUND($M13,3),$BM$57:$BZ$57,1)-1,0)+IF(AND($J13=CP$12,ROUND($M13,3)>$AP$68),1,0) -> 0 | CQ13: =IF($J13=CQ$12,MATCH(ROUND($M13,3),$BM$58:$BZ$58,1)-1,0)+IF(AND($J13=CQ$12,ROUND($M13,3)>$AP$69),1,0) -> 0 | CR13: =IF($J13=CR$12,MATCH(ROUND($M13,3),$BM$59:$BZ$59,1)-1,0)+IF(AND($J13=CR$12,ROUND($M13,3)>$AP$70),1,0) -> 0 | CS13: =IF($J13=CS$12,MATCH(ROUND($M13,3),$BM$60:$BZ$60,1)-1,0)+IF(AND($J13=CS$12,ROUND($M13,3)>$AP$71),1,0) -> 0 | CT13: =IF($J13=CT$12,MATCH(ROUND($M13,3),$BM$61:$BZ$61,1)-1,0)+IF(AND($J13=CT$12,ROUND($M13,3)>$AP$72),1,0) -> 0 | CU13: =IF($J13=CU$12,MATCH(ROUND($M13,3),$BM$62:$BZ$62,1)-1,0)+IF(AND($J13=CU$12,ROUND($M13,3)>$AP$73),1,0) -> 6 | CW13: =IF($C13>0,$B13,#N/A) -> 1 | CX13: =IF($C13>0,ROUND($C13,3),#N/A) -> 0.35 | CY13: =IF(I13>0,IF(OR(AND($I13=1,$CH13>=5,$CH13<=8),AND(I13=2,$CH13>=4,$CH13<=9),AND($I13=3,$CH13>=3,$CH13<=10),AND($I13=4,$CH13>=2,$CH13<=11)),1,IF(OR(AND($I13=1,OR($CH13=4,$CH13=9)),AND($I13=2,OR($CH13=3,$CH13=10)),AND($I13=3,OR($CH13=2,$CH13=11)),AND($I13=4,OR($CH13=1,$CH13=12))),2,0)),#N/A) -> 1 | CZ13: =IF($C13>0,IF(OR(AND($B13>=$BR$24,$B13<=$BR$25,OR($C13>$BS$24,$C13<$BT$24)),AND($B13>=$BR$26,$B13<=$BR$27,OR($C13>$BS$26,$C13<$BT$26))),0,1),#N/A) -> 1 | DA13: =IF($I13>0,IF(AND(ISNUMBER(M13),$M13>0),1,0),"") -> 1
B14: 2 | C14: 0.35 | G14: =G13+1 -> 2 | H14: 0 | I14: 4 | J14: 80 | K14: 8.5 | L14: 2.35 | M14: 0.35 | N14: 20 | R14: =0.5*L14*(J14/3.6)^2 -> 580.2 | CH14: 6 | CI14: 0 | CJ14: 0 | CK14: 0 | CL14: 0 | CM14: 0 | CN14: 0 | CO14: 0 | CP14: 0 | CQ14: 0 | CR14: 0 | CS14: 6 | CT14: 0 | CU14: 0 | CW14: 2 | CX14: 0.35 | CY14: 1 | CZ14: =IF($C14>0,IF(OR(AND($B14>=$BR$24,$B14<=$BR$25,OR($C14>$BS$24,$C14<$BT$24)),AND($B14>=$BR$26,$B14<=$BR$27,OR($C14>$BS$26,$C14<$BT$26))),0,1),#N/A) -> 1 | DA14: =IF($I14>0,IF(AND(ISNUMBER(M14),$M14>0),1,0),"") -> 1
B15: 3 | C15: 0.35 | G15: =G14+1 -> 3 | H15: 0 | I15: 4 | J15: 100 | K15: 8.5 | L15: 2.35 | M15: 0.35 | N15: 20 | R15: 906.6 | BK15: =IF(BL15<>0,"failed","passed") -> passed | BL15: =IF(OR($BT$21<14,BT21-BR21<>0),">1",0) -> 0 | BM15: Missing or invalid bedding data | BQ15: >30% | BR15: =IF(BT16=1,COUNTIFS($C$23:INDIRECT($BR$11),">"&($BR$13+$BR$13*0.3)),0) -> 0 | BT15: 30% existing | CG15: =IF(COUNTA($F$4:$H$6)=4,0,1) -> 1 | CH15: 6 | CI15: 0 | CJ15: 0 | CK15: 0 | CL15: 0 | CM15: 0 | CN15: 0 | CO15: 0 | CP15: 0 | CQ15: 0 | CR15: 6 | CS15: 0 | CT15: 0 | CU15: 0 | CW15: 3 | CX15: 0.35 | CY15: 1 | CZ15: 1 | DA15: 1
B16: 4 | C16: 0.35 | G16: 4 | H16: 0 | I16: 4 | J16: 120 | K16: 8.5 | L16: 2.35 | M16: 0.35 | N16: 20 | R16: 1305.6 | BQ16: +/- 30% | BR16: =IF(BT16=1,COUNTIFS($C$23:INDIRECT($BR$11),">"&($BR$13-$BR$13*0.3),$C$23:INDIRECT($BR$11),"<"&($BR$13+$BR$13*0.3)),0) -> 2 | BS16: =ROUND(BR9*0.3,0) -> 12 | BT16: =IF(BS16<=10,0,1) -> 1 | CG16: =IF(COUNTA($J$4)=1,0,1) -> 1 | CH16: 6 | CI16: 0 | CJ16: 0 | CK16: 0 | CL16: 0 | CM16: 0 | CN16: 0 | CO16: 0 | CP16: 0 | CQ16: 6 | CR16: 0 | CS16: 0 | CT16: 0 | CU16: 0 | CW16: 4 | CX16: 0.35 | CY16: 1 | CZ16: 1 | DA16: 1
B17: 5 | C17: 0.35 | G17: 5 | H17: 0 | I17: 4 | J17: 50 | K17: 4.5 | L17: 2.35 | M17: 0.35 | N17: 20 | R17: 226.7 | BK17: =IF(BL17<>0,"failed","passed") -> passed | BL17: =COUNTIFS($I$13:$I$212,">0",$M$13:$M$212,"") -> 0 | BM17: Missing or invalid entries (except Prio 0 brake applications) | BQ17: <-30% | BR17: =IF(BT16=1,COUNTIFS($C$23:INDIRECT($BR$11),"<"&($BR$13-$BR$13*0.3)),0) -> 0 | CG17: =IF(COUNTA($J$7:$K$7)=2,0,1) -> 1 | CH17: 6 | CI17: 0 | CJ17: 0 | CK17: 0 | CL17: 0 | CM17: 0 | CN17: 0 | CO17: 0 | CP17: 0 | CQ17: 0 | CR17: 0 | CS17: 0 | CT17: 0 | CU17: 6 | CW17: 5 | CX17: 0.35 | CY17: 1 | CZ17: 1 | DA17: 1
B18: 6 | C18: 0.35 | G18: 6 | H18: 0 | I18: 4 | J18: 80 | K18: 4.5 | L18: 2.35 | M18: 0.35 | N18: 20 | R18: 580.2 | BQ18: >15% | BR18: =IF(BT19=1,COUNTIFS(INDIRECT($BR$12):INDIRECT($BR$10),">"&($BR$13+$BR$13*0.15)),0) -> 0 | BT18: 15% existing | CG18: =IF(COUNTA($L$7)=1,0,1) -> 1 | CH18: 6 | CI18: 0 | CJ18: 0 | CK18: 0 | CL18: 0 | CM18: 0 | CN18: 0 | CO18: 0 | CP18: 0 | CQ18: 0 | CR18: 0 | CS18: 6 | CT18: 0 | CU18: 0 | CW18: 6 | CX18: 0.35 | CY18: 1 | CZ18: 1 | DA18: 1
B19: 7 | C19: 0.35 | G19: 7 | H19: 0 | I19: 4 | J19: 100 | K19: 4.5 | L19: 2.35 | M19: 0.35 | N19: 20 | R19: 906.6 | BK19: =IF(BL19<>0,"failed","passed") -> passed | BL19: =COUNTIFS($I$13:$I$212,">0",$M$13:$M$212,"<0,1") -> 0 | BM19: single mm value lower 0,1 | BQ19: +/- 15% | BR19: =IF(BT19=1,COUNTIFS(INDIRECT($BR$12):INDIRECT($BR$10),">"&($BR$13-$BR$13*0.15),INDIRECT($BR$12):INDIRECT($BR$10),"<"&($BR$13+$BR$13*0.15)),0) -> 28 | BS19: =ROUND(BR9*0.7,0) -> 28 | BT19: =IF(BS19<=10,0,1) -> 1 | CG19: =IF(COUNTA($M$4:$N$5)=4,0,1) -> 1 | CH19: 6 | CI19: 0 | CJ19: 0 | CK19: 0 | CL19: 0 | CM19: 0 | CN19: 0 | CO19: 0 | CP19: 0 | CQ19: 0 | CR19: 6 | CS19: 0 | CT19: 0 | CU19: 0 | CW19: 7 | CX19: 0.35 | CY19: 1 | CZ19: 1 | DA19: 1
B20: 8 | C20: 0.35 | G20: 8 | H20: 0 | I20: 4 | J20: 120 | K20: 4.5 | L20: 2.35 | M20: 0.35 | N20: 20 | R20: 1305.6 | BQ20: <-15% | BR20: =IF(BT19=1,COUNTIFS(INDIRECT($BR$12):INDIRECT($BR$10),"<"&($BR$13-$BR$13*0.15)),0) -> 0 | CG20: =SUM($CG$15:$CG$19) -> 5 | CH20: 6 | CI20: 0 | CJ20: 0 | CK20: 0 | CL20: 0 | CM20: 0 | CN20: 0 | CO20: 0 | CP20: 0 | CQ20: 6 | CR20: 0 | CS20: 0 | CT20: 0 | CU20: 0 | CW20: 8 | CX20: 0.35 | CY20: 1 | CZ20: 1 | DA20: 1
B21: 9 | C21: 0.35 | G21: 9 | H21: 0 | I21: 1 | J21: 50 | K21: 12.5 | L21: 2.35 | M21: 0.35 | N21: 20 | R21: 226.7 | BK21: =IF(BL21<>0,"failed","passed") -> passed | BL21: =COUNTIFS($I$13:$I$212,">0",$M$13:$M$212,">0,6") -> 0 | BM21: single mm value higher 0,6 | BQ21: Check | BR21: =SUM($BR$15:$BR$20)+10 -> 40 | BS21: Amount of Entries: | BT21: =COUNTIFS(($C$13:$C$212),">0") -> 40 | CG21: =IF($CG$20>0,"Kopf un - vollständig","Kopf vollständig") -> Kopf un - vollständig | CH21: 6 | CI21: 0 | CJ21: 0 | CK21: 0 | CL21: 0 | CM21: 0 | CN21: 0 | CO21: 0 | CP21: 0 | CQ21: 0 | CR21: 0 | CS21: 0 | CT21: 0 | CU21: 6 | CW21: 9 | CX21: 0.35 | CY21: 1 | CZ21: 1 | DA21: 1
B22: 10 | C22: 0.35 | G22: 10 | H22: 0 | I22: 1 | J22: 80 | K22: 12.5 | L22: 2.35 | M22: 0.35 | N22: 20 | R22: 580.2 | BQ22: Result | BR22: =IF($BR$21<>$BR$9,"error",IF($BR$9<=14,"not evaluable",IF($BR$15+$BR$17+$BR$18+$BR$20=0,"passed","failed"))) -> passed | CH22: 6 | CI22: 0 | CJ22: 0 | CK22: 0 | CL22: 0 | CM22: 0 | CN22: 0 | CO22: 0 | CP22: 0 | CQ22: 0 | CR22: 0 | CS22: 6 | CT22: 0 | CU22: 0 | CW22: 10 | CX22: 0.35 | CY22: 1 | CZ22: 1 | DA22: 1
B23: 11 | C23: 0.35 | G23: 11 | H23: 0 | I23: 1 | J23: 100 | K23: 12.5 | L23: 2.35 | M23: 0.35 | N23: 20 | R23: 906.6 | BK23: =IF($BL$23=Info!I11,"passed","failed") -> passed | BL23: =$W$72 -> 134 | BM23: ="Sum all entries ="&TEXT(Info!I11,0) -> Sum all entries =134 | CH23: 6 | CI23: 0 | CJ23: 0 | CK23: 0 | CL23: 0 | CM23: 0 | CN23: 0 | CO23: 0 | CP23: 0 | CQ23: 0 | CR23: 6 | CS23: 0 | CT23: 0 | CU23: 0 | CW23: 11 | CX23: 0.35 | CY23: 1 | CZ23: 1 | DA23: 1
B24: 12 | C24: 0.35 | G24: 12 | H24: 0 | I24: 1 | J24: 120 | K24: 12.5 | L24: 2.35 | M24: 0.35 | N24: 20 | R24: 1305.6 | BQ24: 30% lines | BR24: =IF(BT16=1,11,-1) -> 11 | BS24: =IF(BR24>0,$BR$13+$BR$13*0.3,"") -> 0.455 | BT24: =IF(BR24>0,$BR$13-$BR$13*0.3,"") -> 0.245 | CH24: 6 | CI24: 0 | CJ24: 0 | CK24: 0 | CL24: 0 | CM24: 0 | CN24: 0 | CO24: 0 | CP24: 0 | CQ24: 6 | CR24: 0 | CS24: 0 | CT24: 0 | CU24: 0 | CW24: 12 | CX24: 0.35 | CY24: 1 | CZ24: 1 | DA24: 1
B25: 13 | C25: 0.35 | G25: 13 | H25: 0 | I25: 4 | J25: 50 | K25: 8.5 | L25: 2.35 | M25: 0.35 | N25: 20 | R25: 226.7 | BR25: =IF(BT16=1,BS16,-1) -> 12 | BS25: =IF(BR25>0,$BR$13+$BR$13*0.3,"") -> 0.455 | BT25: =IF(BR24>0,$BR$13-$BR$13*0.3,"") -> 0.245 | CH25: 6 | CI25: 0 | CJ25: 0 | CK25: 0 | CL25: 0 | CM25: 0 | CN25: 0 | CO25: 0 | CP25: 0 | CQ25: 0 | CR25: 0 | CS25: 0 | CT25: 0 | CU25: 6 | CW25: 13 | CX25: 0.35 | CY25: 1 | CZ25: 1 | DA25: 1
B26: 14 | C26: 0.35 | G26: 14 | H26: 0 | I26: 4 | J26: 80 | K26: 8.5 | L26: 2.35 | M26: 0.35 | N26: 20 | R26: 580.2 | BK26: =IF(OR($BK$15="failed",$BK$17="failed",$BK$19="failed",$BK$21="failed",$BK$23="failed"),"failed","passed") -> passed | BQ26: 15% lines | BR26: =IF(AND(BT16=1,BT19=1),$BR$25+1,IF(AND(BT16=0,BT19=1),11,-1)) -> 13 | BS26: =IF(BR26>0,$BR$13+$BR$13*0.15,"") -> 0.4025 | BT26: =IF(BR26>0,$BR$13-$BR$13*0.15,"") -> 0.2975 | CG26: Transfor - mation | CH26: 6 | CI26: 0 | CJ26: 0 | CK26: 0 | CL26: 0 | CM26: 0 | CN26: 0 | CO26: 0 | CP26: 0 | CQ26: 0 | CR26: 0 | CS26: 6 | CT26: 0 | CU26: 0 | CW26: 14 | CX26: 0.35 | CY26: 1 | CZ26: 1 | DA26: 1
B27: 15 | C27: 0.35 | G27: 15 | H27: 0 | I27: 4 | J27: 100 | K27: 8.5 | L27: 2.35 | M27: 0.35 | N27: 20 | R27: 906.6 | BR27: =IF($BR$26>10,$BR$9,-1) -> 40 | BS27: =IF(BR26>0,$BR$13+$BR$13*0.15,"") -> 0.4025 | BT27: =IF(BR26>0,$BR$13-$BR$13*0.15,"") -> 0.2975 | CH27: 6 | CI27: 0 | CJ27: 0 | CK27: 0 | CL27: 0 | CM27: 0 | CN27: 0 | CO27: 0 | CP27: 0 | CQ27: 0 | CR27: 6 | CS27: 0 | CT27: 0 | CU27: 0 | CW27: 15 | CX27: 0.35 | CY27: 1 | CZ27: 1 | DA27: 1
B28: 16 | C28: 0.35 | G28: 16 | H28: 0 | I28: 4 | J28: 120 | K28: 8.5 | L28: 2.35 | M28: 0.35 | N28: 20 | R28: 1305.6 | CH28: 6 | CI28: 0 | CJ28: 0 | CK28: 0 | CL28: 0 | CM28: 0 | CN28: 0 | CO28: 0 | CP28: 0 | CQ28: 6 | CR28: 0 | CS28: 0 | CT28: 0 | CU28: 0 | CW28: 16 | CX28: 0.35 | CY28: 1 | CZ28: 1 | DA28: 1
B29: 17 | C29: 0.35 | G29: 17 | H29: 0 | I29: 4 | J29: 50 | K29: 4.5 | L29: 2.35 | M29: 0.35 | N29: 20 | R29: 226.7 | BP29: Average coefficient of friction per Prio and speed | CH29: 6 | CI29: 0 | CJ29: 0 | CK29: 0 | CL29: 0 | CM29: 0 | CN29: 0 | CO29: 0 | CP29: 0 | CQ29: 0 | CR29: 0 | CS29: 0 | CT29: 0 | CU29: 6 | CW29: 17 | CX29: 0.35 | CY29: 1 | CZ29: 1 | DA29: 1
B30: 18 | C30: 0.35 | G30: 18 | H30: 0 | I30: 4 | J30: 80 | K30: 4.5 | L30: 2.35 | M30: 0.35 | N30: 20 | R30: 580.2 | BP30: Speed | BQ30: Prio 1 | BR30: Prio 2 | BS30: Prio 3 | BT30: Prio 4 | CG30: ym | CH30: 6 | CI30: 0 | CJ30: 0 | CK30: 0 | CL30: 0 | CM30: 0 | CN30: 0 | CO30: 0 | CP30: 0 | CQ30: 0 | CR30: 0 | CS30: 6 | CT30: 0 | CU30: 0 | CW30: 18 | CX30: 0.35 | CY30: 1 | CZ30: 1 | DA30: 1
B31: 19 | C31: 0.35 | G31: 19 | H31: 0 | I31: 4 | J31: 100 | K31: 4.5 | L31: 2.35 | M31: 0.35 | N31: 20 | R31: 906.6 | BK31: Average cefficient of friction | BM31: 400 | BN31: >0 | BO31: >0 | BP31: 400 | BQ31: =IF(ISERROR(AVERAGEIFS($M$13:$M$212,$H$13:$H$212,"<>1",$I$13:$I$212,"=1",$J$13:$J$212,$BM31,$K$13:$K$212,$BN31,$L$13:$L$212,$BO31)),"---",AVERAGEIFS($M$13:$M$212,$H$13:$H$212,"<>1",$I$13:$I$212,"=1",$J$13:$J$212,$BM31,$K$13:$K$212,$BN31,$L$13:$L$212,$BO31)) -> --- | BR31: =IF(ISERROR(AVERAGEIFS($M$13:$M$212,$H$13:$H$212,"<>1",$I$13:$I$212,"=2",$J$13:$J$212,$BM31,$K$13:$K$212,$BN31,$L$13:$L$212,$BO31)),"---",AVERAGEIFS($M$13:$M$212,$H$13:$H$212,"<>1",$I$13:$I$212,"=2",$J$13:$J$212,$BM31,$K$13:$K$212,$BN31,$L$13:$L$212,$BO31)) -> --- | BS31: =IF(ISERROR(AVERAGEIFS($M$13:$M$212,$H$13:$H$212,"<>1",$I$13:$I$212,"=3",$J$13:$J$212,$BM31,$K$13:$K$212,$BN31,$L$13:$L$212,$BO31)),"---",AVERAGEIFS($M$13:$M$212,$H$13:$H$212,"<>1",$I$13:$I$212,"=3",$J$13:$J$212,$BM31,$K$13:$K$212,$BN31,$L$13:$L$212,$BO31)) -> --- | BT31: =IF(ISERROR(AVERAGEIFS($M$13:$M$212,$H$13:$H$212,"<>1",$I$13:$I$212,"=4",$J$13:$J$212,$BM31,$K$13:$K$212,$BN31,$L$13:$L$212,$BO31)),"---",AVERAGEIFS($M$13:$M$212,$H$13:$H$212,"<>1",$I$13:$I$212,"=4",$J$13:$J$212,$BM31,$K$13:$K$212,$BN31,$L$13:$L$212,$BO31)) -> --- | CG31: mm | CH31: 6 | CI31: 0 | CJ31: 0 | CK31: 0 | CL31: 0 | CM31: 0 | CN31: 0 | CO31: 0 | CP31: 0 | CQ31: 0 | CR31: 6 | CS31: 0 | CT31: 0 | CU31: 0 | CW31: 19 | CX31: 0.35 | CY31: 1 | CZ31: 1 | DA31: 1
B32: 20 | C32: 0.35 | G32: 20 | H32: 0 | I32: 4 | J32: 120 | K32: 4.5 | L32: 2.35 | M32: 0.35 | N32: 20 | R32: 1305.6 | BM32: 350 | BN32: >0 | BO32: >0 | BP32: 350 | BQ32: --- | BR32: --- | BS32: --- | BT32: --- | CH32: 6 | CI32: 0 | CJ32: 0 | CK32: 0 | CL32: 0 | CM32: 0 | CN32: 0 | CO32: 0 | CP32: 0 | CQ32: 6 | CR32: 0 | CS32: 0 | CT32: 0 | CU32: 0 | CW32: 20 | CX32: 0.35 | CY32: 1 | CZ32: 1 | DA32: 1
B33: 21 | C33: 0.35 | G33: 21 | H33: 0 | I33: 1 | J33: 50 | K33: 12.5 | L33: 2.35 | M33: 0.35 | N33: 20 | R33: 226.7 | BM33: 300 | BN33: >0 | BO33: >0 | BP33: 300 | BQ33: --- | BR33: --- | BS33: --- | BT33: --- | CH33: 6 | CI33: 0 | CJ33: 0 | CK33: 0 | CL33: 0 | CM33: 0 | CN33: 0 | CO33: 0 | CP33: 0 | CQ33: 0 | CR33: 0 | CS33: 0 | CT33: 0 | CU33: 6 | CW33: 21 | CX33: 0.35 | CY33: 1 | CZ33: 1 | DA33: 1
B34: 22 | C34: 0.35 | G34: 22 | H34: 0 | I34: 1 | J34: 80 | K34: 12.5 | L34: 2.35 | M34: 0.35 | N34: 20 | R34: 580.2 | BM34: 250 | BN34: >0 | BO34: >0 | BP34: 250 | BQ34: --- | BR34: --- | BS34: --- | BT34: --- | CH34: 6 | CI34: 0 | CJ34: 0 | CK34: 0 | CL34: 0 | CM34: 0 | CN34: 0 | CO34: 0 | CP34: 0 | CQ34: 0 | CR34: 0 | CS34: 6 | CT34: 0 | CU34: 0 | CW34: 22 | CX34: 0.35 | CY34: 1 | CZ34: 1 | DA34: 1
B35: 23 | C35: 0.35 | G35: 23 | H35: 0 | I35: 1 | J35: 100 | K35: 12.5 | L35: 2.35 | M35: 0.35 | N35: 20 | R35: 906.6 | BM35: 220 | BN35: >0 | BO35: >0 | BP35: 220 | BQ35: --- | BR35: --- | BS35: --- | BT35: --- | CG35: Criteria for contious brake application fullfilled? | CH35: 6 | CI35: 0 | CJ35: 0 | CK35: 0 | CL35: 0 | CM35: 0 | CN35: 0 | CO35: 0 | CP35: 0 | CQ35: 0 | CR35: 6 | CS35: 0 | CT35: 0 | CU35: 0 | CW35: 23 | CX35: 0.35 | CY35: 1 | CZ35: 1 | DA35: 1
B36: 24 | C36: 0.35 | G36: 24 | H36: 0 | I36: 1 | J36: 120 | K36: 12.5 | L36: 2.35 | M36: 0.35 | N36: 20 | R36: 1305.6 | BM36: 200 | BN36: >0 | BO36: >0 | BP36: 200 | BQ36: --- | BR36: --- | BS36: --- | BT36: --- | CH36: 6 | CI36: 0 | CJ36: 0 | CK36: 0 | CL36: 0 | CM36: 0 | CN36: 0 | CO36: 0 | CP36: 0 | CQ36: 6 | CR36: 0 | CS36: 0 | CT36: 0 | CU36: 0 | CW36: 24 | CX36: 0.35 | CY36: 1 | CZ36: 1 | DA36: 1
B37: 25 | C37: 0.35 | G37: 25 | H37: 0 | I37: 4 | J37: 50 | K37: 8.5 | L37: 2.35 | M37: 0.35 | N37: 20 | R37: 226.7 | BM37: 160 | BN37: >0 | BO37: >0 | BP37: 160 | BQ37: --- | BR37: --- | BS37: --- | BT37: --- | CH37: 6 | CI37: 0 | CJ37: 0 | CK37: 0 | CL37: 0 | CM37: 0 | CN37: 0 | CO37: 0 | CP37: 0 | CQ37: 0 | CR37: 0 | CS37: 0 | CT37: 0 | CU37: 6 | CW37: 25 | CX37: 0.35 | CY37: 1 | CZ37: 1 | DA37: 1
B38: 26 | C38: 0.35 | G38: 26 | H38: 0 | I38: 4 | J38: 80 | K38: 8.5 | L38: 2.35 | M38: 0.35 | N38: 20 | R38: 580.2 | BM38: 140 | BN38: >0 | BO38: >0 | BP38: 140 | BQ38: --- | BR38: --- | BS38: --- | BT38: --- | CH38: 6 | CI38: 0 | CJ38: 0 | CK38: 0 | CL38: 0 | CM38: 0 | CN38: 0 | CO38: 0 | CP38: 0 | CQ38: 0 | CR38: 0 | CS38: 6 | CT38: 0 | CU38: 0 | CW38: 26 | CX38: 0.35 | CY38: 1 | CZ38: 1 | DA38: 1
B39: 27 | C39: 0.35 | G39: 27 | H39: 0 | I39: 4 | J39: 100 | K39: 8.5 | L39: 2.35 | M39: 0.35 | N39: 20 | R39: 906.6 | BM39: 120 | BN39: >0 | BO39: >0 | BP39: 120 | BQ39: 0.35 | BR39: 0.35 | BS39: --- | BT39: 0.35 | CH39: 6 | CI39: 0 | CJ39: 0 | CK39: 0 | CL39: 0 | CM39: 0 | CN39: 0 | CO39: 0 | CP39: 0 | CQ39: 0 | CR39: 6 | CS39: 0 | CT39: 0 | CU39: 0 | CW39: 27 | CX39: 0.35 | CY39: 1 | CZ39: 1 | DA39: 1
B40: 28 | C40: 0.35 | G40: 28 | H40: 0 | I40: 4 | J40: 120 | K40: 8.5 | L40: 2.35 | M40: 0.35 | N40: 20 | R40: 1305.6 | BM40: 100 | BN40: >0 | BO40: >0 | BP40: 100 | BQ40: 0.35 | BR40: 0.35 | BS40: 0.35 | BT40: 0.35 | CH40: 6 | CI40: 0 | CJ40: 0 | CK40: 0 | CL40: 0 | CM40: 0 | CN40: 0 | CO40: 0 | CP40: 0 | CQ40: 6 | CR40: 0 | CS40: 0 | CT40: 0 | CU40: 0 | CW40: 28 | CX40: 0.35 | CY40: 1 | CZ40: 1 | DA40: 1
B41: 29 | C41: 0.35 | G41: 29 | H41: 0 | I41: 4 | J41: 50 | K41: 4.5 | L41: 2.35 | M41: 0.35 | N41: 20 | R41: 226.7 | BM41: 80 | BN41: >0 | BO41: >0 | BP41: 80 | BQ41: 0.35 | BR41: 0.35 | BS41: --- | BT41: 0.35 | CH41: 6 | CI41: 0 | CJ41: 0 | CK41: 0 | CL41: 0 | CM41: 0 | CN41: 0 | CO41: 0 | CP41: 0 | CQ41: 0 | CR41: 0 | CS41: 0 | CT41: 0 | CU41: 6 | CW41: 29 | CX41: 0.35 | CY41: 1 | CZ41: 1 | DA41: 1
B42: 30 | C42: 0.35 | G42: 30 | H42: 0 | I42: 4 | J42: 80 | K42: 4.5 | L42: 2.35 | M42: 0.35 | N42: 20 | R42: 580.2 | BM42: 70 | BN42: >0 | BO42: >0 | BP42: 70 | BQ42: --- | BR42: --- | BS42: 0.35 | BT42: --- | CG42: TRUE | CH42: 6 | CI42: 0 | CJ42: 0 | CK42: 0 | CL42: 0 | CM42: 0 | CN42: 0 | CO42: 0 | CP42: 0 | CQ42: 0 | CR42: 0 | CS42: 6 | CT42: 0 | CU42: 0 | CW42: 30 | CX42: 0.35 | CY42: 1 | CZ42: 1 | DA42: 1
B43: 31 | C43: 0.35 | G43: 31 | H43: 0 | I43: 4 | J43: 100 | K43: 4.5 | L43: 2.35 | M43: 0.35 | N43: 20 | R43: 906.6 | BM43: 50 | BN43: >0 | BO43: >0 | BP43: 50 | BQ43: 0.35 | BR43: --- | BS43: --- | BT43: 0.35 | CH43: 6 | CI43: 0 | CJ43: 0 | CK43: 0 | CL43: 0 | CM43: 0 | CN43: 0 | CO43: 0 | CP43: 0 | CQ43: 0 | CR43: 6 | CS43: 0 | CT43: 0 | CU43: 0 | CW43: 31 | CX43: 0.35 | CY43: 1 | CZ43: 1 | DA43: 1
B44: 32 | C44: 0.35 | G44: 32 | H44: 0 | I44: 4 | J44: 120 | K44: 4.5 | L44: 2.35 | M44: 0.35 | N44: 20 | R44: 1305.6 | BK44: Average: | BM44: >=50 | BN44: >0 | BO44: >0 | BP44: >=50 | BQ44: 0.35 | BR44: 0.35 | BS44: 0.35 | BT44: 0.35 | CG44: =IF(ISERROR(SEARCH("WAHR",$CG$42)),"0",SEARCH("WAHR",$CG$42)) -> 1 | CH44: 6 | CI44: 0 | CJ44: 0 | CK44: 0 | CL44: 0 | CM44: 0 | CN44: 0 | CO44: 0 | CP44: 0 | CQ44: 6 | CR44: 0 | CS44: 0 | CT44: 0 | CU44: 0 | CW44: 32 | CX44: 0.35 | CY44: 1 | CZ44: 1 | DA44: 1
B45: 33 | C45: 0.35 | G45: 33 | H45: 0 | I45: 1 | J45: 50 | K45: 12.5 | L45: 2.35 | M45: 0.35 | N45: 20 | R45: 226.7 | CH45: =IF(OR(ISERROR(SUM(CI45:CU45)),$I45<1),"-1",SUM(CI45:CU45)) -> 6 | CI45: 0 | CJ45: 0 | CK45: 0 | CL45: 0 | CM45: 0 | CN45: 0 | CO45: 0 | CP45: 0 | CQ45: 0 | CR45: 0 | CS45: 0 | CT45: 0 | CU45: 6 | CW45: 33 | CX45: 0.35 | CY45: 1 | CZ45: 1 | DA45: 1
B46: 34 | C46: 0.35 | G46: 34 | H46: 0 | I46: 1 | J46: 80 | K46: 12.5 | L46: 2.35 | M46: 0.35 | N46: 20 | R46: 580.2 | CH46: 6 | CI46: 0 | CJ46: 0 | CK46: 0 | CL46: 0 | CM46: 0 | CN46: 0 | CO46: 0 | CP46: 0 | CQ46: 0 | CR46: 0 | CS46: 6 | CT46: 0 | CU46: 0 | CW46: 34 | CX46: 0.35 | CY46: 1 | CZ46: 1 | DA46: 1
B47: 35 | C47: 0.35 | G47: 35 | H47: 0 | I47: 1 | J47: 100 | K47: 12.5 | L47: 2.35 | M47: 0.35 | N47: 20 | R47: 906.6 | BK47: Numbering | BM47: 0 | BN47: 1 | BO47: 2 | BP47: 3 | BQ47: 4 | BR47: 5 | BS47: 6 | BT47: 7 | BU47: 8 | BV47: 9 | BW47: 10 | BX47: 11 | BY47: 12 | BZ47: 13 | CG47: Checksum Bedding Start | CH47: 6 | CI47: 0 | CJ47: 0 | CK47: 0 | CL47: 0 | CM47: 0 | CN47: 0 | CO47: 0 | CP47: 0 | CQ47: 0 | CR47: 6 | CS47: 0 | CT47: 0 | CU47: 0 | CW47: 35 | CX47: 0.35 | CY47: 1 | CZ47: 1 | DA47: 1
B48: 36 | C48: 0.35 | G48: 36 | H48: 0 | I48: 1 | J48: 120 | K48: 12.5 | L48: 2.35 | M48: 0.35 | N48: 20 | R48: 1305.6 | BK48: % | BL48: Leerfeld | BM48: <-30% | BN48: -0.3 | BO48: -0.25 | BP48: -0.2 | BQ48: -0.15 | BR48: -0.1 | BS48: -0.05 | BT48: 0.05 | BU48: 0.1 | BV48: 0.15 | BW48: 0.2 | BX48: 0.25 | BY48: 0.3 | BZ48: >30% | CH48: 6 | CI48: 0 | CJ48: 0 | CK48: 0 | CL48: 0 | CM48: 0 | CN48: 0 | CO48: 0 | CP48: 0 | CQ48: 6 | CR48: 0 | CS48: 0 | CT48: 0 | CU48: 0 | CW48: 36 | CX48: 0.35 | CY48: 1 | CZ48: 1 | DA48: 1
B49: 37 | C49: 0.35 | F49: Wet brake applications, minimal mass | G49: 37 | H49: 1 | I49: 4 | J49: 50 | K49: 8.5 | L49: 2.35 | M49: 0.35 | N49: 20 | R49: 226.7 | BK49: km/h | CH49: 6 | CI49: 0 | CJ49: 0 | CK49: 0 | CL49: 0 | CM49: 0 | CN49: 0 | CO49: 0 | CP49: 0 | CQ49: 0 | CR49: 0 | CS49: 0 | CT49: 0 | CU49: 6 | CW49: 37 | CX49: 0.35 | CY49: 1 | CZ49: 1 | DA49: 1
B50: 38 | C50: 0.35 | G50: 38 | H50: 1 | I50: 4 | J50: 80 | K50: 8.5 | L50: 2.35 | M50: 0.35 | N50: 20 | R50: 580.2 | BK50: 400 | BM50: 0.001 | BN50: =$AP61*0.7 -> 0.245 | BO50: =$AP61*0.75 -> 0.2625 | BP50: =$AP61*0.8 -> 0.28 | BQ50: =$AP61*0.85 -> 0.2975 | BR50: =$AP61*0.9 -> 0.315 | BS50: =$AP61*0.95 -> 0.3325 | BT50: =$AP61*1.05 -> 0.3675 | BU50: =$AP61*1.1 -> 0.385 | BV50: =$AP61*1.15 -> 0.4025 | BW50: =$AP61*1.2 -> 0.42 | BX50: =$AP61*1.25 -> 0.4375 | BY50: =$AP61*1.3 -> 0.455 | BZ50: 1 | CH50: 6 | CI50: 0 | CJ50: 0 | CK50: 0 | CL50: 0 | CM50: 0 | CN50: 0 | CO50: 0 | CP50: 0 | CQ50: 0 | CR50: 0 | CS50: 6 | CT50: 0 | CU50: 0 | CW50: 38 | CX50: 0.35 | CY50: 1 | CZ50: 1 | DA50: 1
B51: 39 | C51: 0.35 | G51: 39 | H51: 1 | I51: 4 | J51: 100 | K51: 8.5 | L51: 2.35 | M51: 0.35 | N51: 20 | R51: 906.6 | BK51: 350 | BM51: 0.001 | BN51: 0.245 | BO51: 0.2625 | BP51: 0.28 | BQ51: 0.2975 | BR51: 0.315 | BS51: 0.3325 | BT51: 0.3675 | BU51: 0.385 | BV51: 0.4025 | BW51: 0.42 | BX51: 0.4375 | BY51: 0.455 | BZ51: 1 | CH51: 6 | CI51: 0 | CJ51: 0 | CK51: 0 | CL51: 0 | CM51: 0 | CN51: 0 | CO51: 0 | CP51: 0 | CQ51: 0 | CR51: 6 | CS51: 0 | CT51: 0 | CU51: 0 | CW51: 39 | CX51: 0.35 | CY51: 1 | CZ51: 1 | DA51: 1
B52: 40 | C52: 0.35 | G52: 40 | H52: 1 | I52: 4 | J52: 120 | K52: 8.5 | L52: 2.35 | M52: 0.35 | N52: 20 | R52: 1305.6 | BK52: 300 | BM52: 0.001 | BN52: 0.245 | BO52: 0.2625 | BP52: 0.28 | BQ52: 0.2975 | BR52: 0.315 | BS52: 0.3325 | BT52: 0.3675 | BU52: 0.385 | BV52: 0.4025 | BW52: 0.42 | BX52: 0.4375 | BY52: 0.455 | BZ52: 1 | CG52: =IF($BR$21=$BT$21,1,0) -> 1 | CH52: 6 | CI52: 0 | CJ52: 0 | CK52: 0 | CL52: 0 | CM52: 0 | CN52: 0 | CO52: 0 | CP52: 0 | CQ52: 6 | CR52: 0 | CS52: 0 | CT52: 0 | CU52: 0 | CW52: 40 | CX52: 0.35 | CY52: 1 | CZ52: 1 | DA52: 1
B53: 41 | G53: 41 | H53: 1 | I53: 2 | J53: 50 | K53: 12.5 | L53: 2.35 | M53: 0.35 | N53: 20 | R53: 226.7 | BK53: 250 | BM53: 0.001 | BN53: 0.245 | BO53: 0.2625 | BP53: 0.28 | BQ53: 0.2975 | BR53: 0.315 | BS53: 0.3325 | BT53: 0.3675 | BU53: 0.385 | BV53: 0.4025 | BW53: 0.42 | BX53: 0.4375 | BY53: 0.455 | BZ53: 1 | CH53: 6 | CI53: 0 | CJ53: 0 | CK53: 0 | CL53: 0 | CM53: 0 | CN53: 0 | CO53: 0 | CP53: 0 | CQ53: 0 | CR53: 0 | CS53: 0 | CT53: 0 | CU53: 6 | CY53: 1 | DA53: 1
B54: 42 | G54: 42 | H54: 1 | I54: 2 | J54: 80 | K54: 12.5 | L54: 2.35 | M54: 0.35 | N54: 20 | R54: 580.2 | BK54: 220 | BM54: 0.001 | BN54: 0.245 | BO54: 0.2625 | BP54: 0.28 | BQ54: 0.2975 | BR54: 0.315 | BS54: 0.3325 | BT54: 0.3675 | BU54: 0.385 | BV54: 0.4025 | BW54: 0.42 | BX54: 0.4375 | BY54: 0.455 | BZ54: 1 | CH54: 6 | CI54: 0 | CJ54: 0 | CK54: 0 | CL54: 0 | CM54: 0 | CN54: 0 | CO54: 0 | CP54: 0 | CQ54: 0 | CR54: 0 | CS54: 6 | CT54: 0 | CU54: 0 | CY54: 1 | DA54: 1
B55: 43 | G55: 43 | H55: 1 | I55: 2 | J55: 100 | K55: 12.5 | L55: 2.35 | M55: 0.35 | N55: 20 | R55: 906.6 | AO55: Nominal line (Priority 1) | BK55: 200 | BM55: 0.001 | BN55: 0.245 | BO55: 0.2625 | BP55: 0.28 | BQ55: 0.2975 | BR55: 0.315 | BS55: 0.3325 | BT55: 0.3675 | BU55: 0.385 | BV55: 0.4025 | BW55: 0.42 | BX55: 0.4375 | BY55: 0.455 | BZ55: 1 | CH55: 6 | CI55: 0 | CJ55: 0 | CK55: 0 | CL55: 0 | CM55: 0 | CN55: 0 | CO55: 0 | CP55: 0 | CQ55: 0 | CR55: 6 | CS55: 0 | CT55: 0 | CU55: 0 | CY55: 1 | DA55: 1
B56: 44 | G56: 44 | H56: 1 | I56: 2 | J56: 120 | K56: 12.5 | L56: 2.35 | M56: 0.35 | N56: 20 | R56: 1305.6 | V56: Tolerance Band | W56: Priority | AA56: Bedding 30% | AB56: Bedding 15% | AC56: Continuous Braking | BK56: 160 | BM56: 0.001 | BN56: 0.245 | BO56: 0.2625 | BP56: 0.28 | BQ56: 0.2975 | BR56: 0.315 | BS56: 0.3325 | BT56: 0.3675 | BU56: 0.385 | BV56: 0.4025 | BW56: 0.42 | BX56: 0.4375 | BY56: 0.455 | BZ56: 1 | CH56: 6 | CI56: 0 | CJ56: 0 | CK56: 0 | CL56: 0 | CM56: 0 | CN56: 0 | CO56: 0 | CP56: 0 | CQ56: 6 | CR56: 0 | CS56: 0 | CT56: 0 | CU56: 0 | CY56: 1 | DA56: 1
B57: 45 | G57: 45 | H57: 1 | I57: 4 | J57: 50 | K57: 8.5 | L57: 2.35 | M57: 0.35 | N57: 20 | R57: 226.7 | W57: 1 | X57: 2 | Y57: 3 | Z57: 4 | AO57: Formula | AP57: =CONCATENATE($AT$62," v + ",$AT$64) -> -1,94043363630523E-34 v + 0,35 | BK57: 140 | BM57: 0.001 | BN57: 0.245 | BO57: 0.2625 | BP57: 0.28 | BQ57: 0.2975 | BR57: 0.315 | BS57: 0.3325 | BT57: 0.3675 | BU57: 0.385 | BV57: 0.4025 | BW57: 0.42 | BX57: 0.4375 | BY57: 0.455 | BZ57: 1 | CH57: 6 | CI57: 0 | CJ57: 0 | CK57: 0 | CL57: 0 | CM57: 0 | CN57: 0 | CO57: 0 | CP57: 0 | CQ57: 0 | CR57: 0 | CS57: 0 | CT57: 0 | CU57: 6 | CY57: 1 | DA57: 1
B58: 46 | G58: 46 | H58: 1 | I58: 4 | J58: 80 | K58: 8.5 | L58: 2.35 | M58: 0.35 | N58: 20 | R58: 580.2 | V58: mm > 30% | W58: =COUNTIFS($CH$13:$CH$212,13,$I$13:$I$212,W$57) -> 0 | X58: =COUNTIFS($CH$13:$CH$212,13,$I$13:$I$212,X$57) -> 0 | Y58: =COUNTIFS($CH$13:$CH$212,13,$I$13:$I$212,Y$57) -> 0 | Z58: =COUNTIFS($CH$13:$CH$212,13,$I$13:$I$212,Z$57) -> 0 | AA58: =$BR$15 -> 0 | AB58: =$BR$18 -> 0 | AC58: Enter friction values for cont. braking in M4, M5 and N4 | BK58: 120 | BM58: 0.001 | BN58: 0.245 | BO58: 0.2625 | BP58: 0.28 | BQ58: 0.2975 | BR58: 0.315 | BS58: 0.3325 | BT58: 0.3675 | BU58: 0.385 | BV58: 0.4025 | BW58: 0.42 | BX58: 0.4375 | BY58: 0.455 | BZ58: 1 | CH58: 6 | CI58: 0 | CJ58: 0 | CK58: 0 | CL58: 0 | CM58: 0 | CN58: 0 | CO58: 0 | CP58: 0 | CQ58: 0 | CR58: 0 | CS58: 6 | CT58: 0 | CU58: 0 | CY58: 1 | DA58: 1
B59: 47 | G59: 47 | H59: 1 | I59: 4 | J59: 100 | K59: 8.5 | L59: 2.35 | M59: 0.35 | N59: 20 | R59: 906.6 | V59: 30…25% | W59: =COUNTIFS($CH$13:$CH$212,12,$I$13:$I$212,W$57) -> 0 | X59: =COUNTIFS($CH$13:$CH$212,12,$I$13:$I$212,X$57) -> 0 | Y59: =COUNTIFS($CH$13:$CH$212,12,$I$13:$I$212,Y$57) -> 0 | Z59: =COUNTIFS($CH$13:$CH$212,12,$I$13:$I$212,Z$57) -> 0 | AA59: =$BR$16 -> 2 | AO59: Speed [km/h] | AP59: mm,NL (value of NL) | BK59: 100 | BM59: 0.001 | BN59: 0.245 | BO59: 0.2625 | BP59: 0.28 | BQ59: 0.2975 | BR59: 0.315 | BS59: 0.3325 | BT59: 0.3675 | BU59: 0.385 | BV59: 0.4025 | BW59: 0.42 | BX59: 0.4375 | BY59: 0.455 | BZ59: 1 | CH59: 6 | CI59: 0 | CJ59: 0 | CK59: 0 | CL59: 0 | CM59: 0 | CN59: 0 | CO59: 0 | CP59: 0 | CQ59: 0 | CR59: 6 | CS59: 0 | CT59: 0 | CU59: 0 | CY59: 1 | DA59: 1
B60: 48 | G60: 48 | H60: 1 | I60: 4 | J60: 120 | K60: 8.5 | L60: 2.35 | M60: 0.35 | N60: 20 | R60: 1305.6 | V60: 25…20% | W60: =COUNTIFS($CH$13:$CH$212,11,$I$13:$I$212,W$57) -> 0 | X60: =COUNTIFS($CH$13:$CH$212,11,$I$13:$I$212,X$57) -> 0 | Y60: =COUNTIFS($CH$13:$CH$212,11,$I$13:$I$212,Y$57) -> 0 | Z60: =COUNTIFS($CH$13:$CH$212,11,$I$13:$I$212,Z$57) -> 0 | AR60: slope in 1/(100 km/h) (a) | AT60: =$AT$62*100 -> -1.940433636e-32 | BK60: 80 | BM60: 0.001 | BN60: 0.245 | BO60: 0.2625 | BP60: 0.28 | BQ60: 0.2975 | BR60: 0.315 | BS60: 0.3325 | BT60: 0.3675 | BU60: 0.385 | BV60: 0.4025 | BW60: 0.42 | BX60: 0.4375 | BY60: 0.455 | BZ60: 1 | CH60: 6 | CI60: 0 | CJ60: 0 | CK60: 0 | CL60: 0 | CM60: 0 | CN60: 0 | CO60: 0 | CP60: 0 | CQ60: 6 | CR60: 0 | CS60: 0 | CT60: 0 | CU60: 0 | CY60: 1 | DA60: 1
B61: 49 | G61: 49 | H61: 1 | I61: 2 | J61: 50 | K61: 12.5 | L61: 2.35 | M61: 0.35 | N61: 20 | R61: 226.7 | V61: 20…15% | W61: =COUNTIFS($CH$13:$CH$212,10,$I$13:$I$212,W$57) -> 0 | X61: =COUNTIFS($CH$13:$CH$212,10,$I$13:$I$212,X$57) -> 0 | Y61: =COUNTIFS($CH$13:$CH$212,10,$I$13:$I$212,Y$57) -> 0 | Z61: =COUNTIFS($CH$13:$CH$212,10,$I$13:$I$212,Z$57) -> 0 | AO61: 400 | AP61: =$AT$62*$AO61+$AT$64 -> 0.35 | AW61: =IF(COUNTIF($J$13:$J$147,$AO61)>0,"Ja","Nein") -> Nein | BK61: 70 | BM61: 0.001 | BN61: 0.245 | BO61: 0.2625 | BP61: 0.28 | BQ61: 0.2975 | BR61: 0.315 | BS61: 0.3325 | BT61: 0.3675 | BU61: 0.385 | BV61: 0.4025 | BW61: 0.42 | BX61: 0.4375 | BY61: 0.455 | BZ61: 1 | CH61: 6 | CI61: 0 | CJ61: 0 | CK61: 0 | CL61: 0 | CM61: 0 | CN61: 0 | CO61: 0 | CP61: 0 | CQ61: 0 | CR61: 0 | CS61: 0 | CT61: 0 | CU61: 6 | CY61: 1 | DA61: 1
B62: 50 | G62: 50 | H62: 1 | I62: 2 | J62: 80 | K62: 12.5 | L62: 2.35 | M62: 0.35 | N62: 20 | R62: 580.2 | V62: 15…10% | W62: =COUNTIFS($CH$13:$CH$212,9,$I$13:$I$212,W$57) -> 0 | X62: =COUNTIFS($CH$13:$CH$212,9,$I$13:$I$212,X$57) -> 0 | Y62: =COUNTIFS($CH$13:$CH$212,9,$I$13:$I$212,Y$57) -> 0 | Z62: =COUNTIFS($CH$13:$CH$212,9,$I$13:$I$212,Z$57) -> 0 | AB62: =$BR$19 -> 28 | AC62: =IF(AND($M$4<=0.5,$M$5>=0.25,$N$4<=0.05),"passed",IF(OR($M$4="",$M$5="",$N$4=""),"no values","failed")) -> no values | AO62: 350 | AP62: 0.35 | AR62: slope in 1/(km/h) | AT62: =SLOPE(IF(ISNUMBER($CM$217:$CM$428),$CM$217:$CM$428),IF(ISNUMBER($CJ$217:$CJ$428),$CJ$217:$CJ$428)) -> -1.940433636e-34 | AW62: Nein | BK62: 50 | BM62: 0.001 | BN62: 0.245 | BO62: 0.2625 | BP62: 0.28 | BQ62: 0.2975 | BR62: 0.315 | BS62: 0.3325 | BT62: 0.3675 | BU62: 0.385 | BV62: 0.4025 | BW62: 0.42 | BX62: 0.4375 | BY62: 0.455 | BZ62: 1 | CH62: 6 | CI62: 0 | CJ62: 0 | CK62: 0 | CL62: 0 | CM62: 0 | CN62: 0 | CO62: 0 | CP62: 0 | CQ62: 0 | CR62: 0 | CS62: 6 | CT62: 0 | CU62: 0 | CY62: 1 | DA62: 1
B63: 51 | G63: 51 | H63: 1 | I63: 2 | J63: 100 | K63: 12.5 | L63: 2.35 | M63: 0.35 | N63: 20 | R63: 906.6 | V63: 10…5% | W63: =COUNTIFS($CH$13:$CH$212,8,$I$13:$I$212,W$57) -> 0 | X63: =COUNTIFS($CH$13:$CH$212,8,$I$13:$I$212,X$57) -> 0 | Y63: =COUNTIFS($CH$13:$CH$212,8,$I$13:$I$212,Y$57) -> 0 | Z63: =COUNTIFS($CH$13:$CH$212,8,$I$13:$I$212,Z$57) -> 0 | AC63: Wear during cont. braking + stop in mm | AO63: 300 | AP63: 0.35 | AW63: Nein | CH63: 6 | CI63: 0 | CJ63: 0 | CK63: 0 | CL63: 0 | CM63: 0 | CN63: 0 | CO63: 0 | CP63: 0 | CQ63: 0 | CR63: 6 | CS63: 0 | CT63: 0 | CU63: 0 | CY63: 1 | DA63: 1
B64: 52 | G64: 52 | H64: 1 | I64: 2 | J64: 120 | K64: 12.5 | L64: 2.35 | M64: 0.35 | N64: 20 | R64: 1305.6 | V64: 5...-5% | W64: =COUNTIFS($CH$13:$CH$212,7,$I$13:$I$212,W$57)+COUNTIFS($CH$13:$CH$212,6,$I$13:$I$212,W$57) -> 26 | X64: =COUNTIFS($CH$13:$CH$212,7,$I$13:$I$212,X$57)+COUNTIFS($CH$13:$CH$212,6,$I$13:$I$212,X$57) -> 15 | Y64: =COUNTIFS($CH$13:$CH$212,7,$I$13:$I$212,Y$57)+COUNTIFS($CH$13:$CH$212,6,$I$13:$I$212,Y$57) -> 2 | Z64: =COUNTIFS($CH$13:$CH$212,7,$I$13:$I$212,Z$57)+COUNTIFS($CH$13:$CH$212,6,$I$13:$I$212,Z$57) -> 91 | AO64: 250 | AP64: 0.35 | AR64: axis intercept (b) | AT64: =INTERCEPT(IF(ISNUMBER($CM$217:$CM$428),$CM$217:$CM$428),IF(ISNUMBER($CJ$217:$CJ$428),$CJ$217:$CJ$428)) -> 0.35 | AW64: Nein | CH64: 6 | CI64: 0 | CJ64: 0 | CK64: 0 | CL64: 0 | CM64: 0 | CN64: 0 | CO64: 0 | CP64: 0 | CQ64: 6 | CR64: 0 | CS64: 0 | CT64: 0 | CU64: 0 | CY64: 1 | DA64: 1
B65: 53 | G65: 53 | H65: 1 | I65: 4 | J65: 50 | K65: 8.5 | L65: 2.35 | M65: 0.35 | N65: 20 | R65: 226.7 | V65: -5…-10% | W65: =COUNTIFS($CH$13:$CH$212,5,$I$13:$I$212,W$57) -> 0 | X65: =COUNTIFS($CH$13:$CH$212,5,$I$13:$I$212,X$57) -> 0 | Y65: =COUNTIFS($CH$13:$CH$212,5,$I$13:$I$212,Y$57) -> 0 | Z65: =COUNTIFS($CH$13:$CH$212,5,$I$13:$I$212,Z$57) -> 0 | AO65: 220 | AP65: 0.35 | AW65: Nein | CH65: 6 | CI65: 0 | CJ65: 0 | CK65: 0 | CL65: 0 | CM65: 0 | CN65: 0 | CO65: 0 | CP65: 0 | CQ65: 0 | CR65: 0 | CS65: 0 | CT65: 0 | CU65: 6 | CY65: 1 | DA65: 1
B66: 54 | G66: 54 | H66: 1 | I66: 4 | J66: 80 | K66: 8.5 | L66: 2.35 | M66: 0.35 | N66: 20 | R66: 580.2 | V66: -10…-15% | W66: =COUNTIFS($CH$13:$CH$212,4,$I$13:$I$212,W$57) -> 0 | X66: =COUNTIFS($CH$13:$CH$212,4,$I$13:$I$212,X$57) -> 0 | Y66: =COUNTIFS($CH$13:$CH$212,4,$I$13:$I$212,Y$57) -> 0 | Z66: =COUNTIFS($CH$13:$CH$212,4,$I$13:$I$212,Z$57) -> 0 | AC66: =IF(OR($F$123="",$F$125="",$B$6="",$C$6=""),"no values",IF(AND(($F$123-$F$125)>0,$B$6>0,$C$6>0),(($F$123-$F$125)/$B$6*1/(2*$C$6)*10),"invalid")) -> no values | AO66: 200 | AP66: 0.35 | AW66: Nein | CH66: 6 | CI66: 0 | CJ66: 0 | CK66: 0 | CL66: 0 | CM66: 0 | CN66: 0 | CO66: 0 | CP66: 0 | CQ66: 0 | CR66: 0 | CS66: 6 | CT66: 0 | CU66: 0 | CY66: 1 | DA66: 1
B67: 55 | G67: 55 | H67: 1 | I67: 4 | J67: 100 | K67: 8.5 | L67: 2.35 | M67: 0.35 | N67: 20 | R67: 906.6 | V67: -15…-20% | W67: =COUNTIFS($CH$13:$CH$212,3,$I$13:$I$212,W$57) -> 0 | X67: =COUNTIFS($CH$13:$CH$212,3,$I$13:$I$212,X$57) -> 0 | Y67: =COUNTIFS($CH$13:$CH$212,3,$I$13:$I$212,Y$57) -> 0 | Z67: =COUNTIFS($CH$13:$CH$212,3,$I$13:$I$212,Z$57) -> 0 | AB67: =$BR$20 -> 0 | AC67: Information | AO67: 160 | AP67: 0.35 | AR67: Criteria for nominal line | AW67: Nein | CH67: 6 | CI67: 0 | CJ67: 0 | CK67: 0 | CL67: 0 | CM67: 0 | CN67: 0 | CO67: 0 | CP67: 0 | CQ67: 0 | CR67: 6 | CS67: 0 | CT67: 0 | CU67: 0 | CY67: 1 | DA67: 1
B68: 56 | G68: 56 | H68: 1 | I68: 4 | J68: 120 | K68: 8.5 | L68: 2.35 | M68: 0.35 | N68: 20 | R68: 1305.6 | V68: -20…-25% | W68: =COUNTIFS($CH$13:$CH$212,2,$I$13:$I$212,W$57) -> 0 | X68: =COUNTIFS($CH$13:$CH$212,2,$I$13:$I$212,X$57) -> 0 | Y68: =COUNTIFS($CH$13:$CH$212,2,$I$13:$I$212,Y$57) -> 0 | Z68: =COUNTIFS($CH$13:$CH$212,2,$I$13:$I$212,Z$57) -> 0 | AC68: Energy in MJ | AO68: 140 | AP68: 0.35 | AW68: Nein | CH68: 6 | CI68: 0 | CJ68: 0 | CK68: 0 | CL68: 0 | CM68: 0 | CN68: 0 | CO68: 0 | CP68: 0 | CQ68: 6 | CR68: 0 | CS68: 0 | CT68: 0 | CU68: 0 | CY68: 1 | DA68: 1
B69: 57 | G69: 57 | H69: 1 | I69: 2 | J69: 50 | K69: 12.5 | L69: 2.35 | M69: 0.35 | N69: 20 | R69: 226.7 | V69: -25…-30% | W69: =COUNTIFS($CH$13:$CH$212,1,$I$13:$I$212,W$57) -> 0 | X69: =COUNTIFS($CH$13:$CH$212,1,$I$13:$I$212,X$57) -> 0 | Y69: =COUNTIFS($CH$13:$CH$212,1,$I$13:$I$212,Y$57) -> 0 | Z69: =COUNTIFS($CH$13:$CH$212,1,$I$13:$I$212,Z$57) -> 0 | AC69: =R149 -> 413.2 | AO69: 120 | AP69: 0.35 | AR69: Limits 0,28-0,47 | AT69: =IF(AND($CO$432>=$CH$432,$CO$432<=$CI$432,$CO$433>=$CH$433,$CO$433<=$CI$433),"passed","failed") -> passed | AW69: Ja | CH69: 6 | CI69: 0 | CJ69: 0 | CK69: 0 | CL69: 0 | CM69: 0 | CN69: 0 | CO69: 0 | CP69: 0 | CQ69: 0 | CR69: 0 | CS69: 0 | CT69: 0 | CU69: 6 | CY69: 1 | DA69: 1
B70: 58 | G70: 58 | H70: 1 | I70: 2 | J70: 80 | K70: 12.5 | L70: 2.35 | M70: 0.35 | N70: 20 | R70: 580.2 | V70: mm < -30% | W70: =COUNTIFS($CH$13:$CH$212,0,$I$13:$I$212,W$57) -> 0 | X70: =COUNTIFS($CH$13:$CH$212,0,$I$13:$I$212,X$57) -> 0 | Y70: =COUNTIFS($CH$13:$CH$212,0,$I$13:$I$212,Y$57) -> 0 | Z70: =COUNTIFS($CH$13:$CH$212,0,$I$13:$I$212,Z$57) -> 0 | AA70: =$BR$17 -> 0 | AC70: Average wear in g/100 MJ | AO70: 100 | AP70: =$AT$62*$AO$70+$AT$64 -> 0.35 | AW70: Ja | CH70: 6 | CI70: 0 | CJ70: 0 | CK70: 0 | CL70: 0 | CM70: 0 | CN70: 0 | CO70: 0 | CP70: 0 | CQ70: 0 | CR70: 0 | CS70: 6 | CT70: 0 | CU70: 0 | CY70: 1 | DA70: 1
B71: 59 | G71: 59 | H71: 1 | I71: 2 | J71: 100 | K71: 12.5 | L71: 2.35 | M71: 0.35 | N71: 20 | R71: 906.6 | V71: Sum Column | W71: =SUM(W$58:W$70) -> 26 | X71: =SUM(X$58:X$70) -> 15 | Y71: =SUM(Y$58:Y$70) -> 2 | Z71: =SUM(Z$58:Z$70) -> 91 | AA71: =SUM(AA58:AA70) -> 2 | AB71: =SUM(AB58:AB70) -> 28 | AO71: 80 | AP71: =$AT$62*$AO$71+$AT$64 -> 0.35 | AR71: Difference <0,15 | AT71: =IF(ABS($CO$433-$CO$432)<=0.15,"passed","failed") -> passed | AW71: Ja | CH71: 6 | CI71: 0 | CJ71: 0 | CK71: 0 | CL71: 0 | CM71: 0 | CN71: 0 | CO71: 0 | CP71: 0 | CQ71: 0 | CR71: 6 | CS71: 0 | CT71: 0 | CU71: 0 | CY71: 1 | DA71: 1
B72: 60 | G72: 60 | H72: 1 | I72: 2 | J72: 120 | K72: 12.5 | L72: 2.35 | M72: 0.35 | N72: 20 | R72: 1305.6 | V72: Sum all | W72: =SUM(W71:Z71) -> 134 | AA72: =TEXT(SUM(AA71:AB71),"0")&" (+10)" -> 30 (+10) | AC72: =IF(($F$12-$F$147)>0,($F$12-$F$147)/$AC$69*100,IF(OR($F$12="",$F$147=""),"no values","invalid")) -> no values | AO72: 70 | AP72: =$AT$62*$AO$72+$AT$64 -> 0.35 | AW72: Ja | CH72: 6 | CI72: 0 | CJ72: 0 | CK72: 0 | CL72: 0 | CM72: 0 | CN72: 0 | CO72: 0 | CP72: 0 | CQ72: 6 | CR72: 0 | CS72: 0 | CT72: 0 | CU72: 0 | CY72: 1 | DA72: 1
B73: 61 | F73: Dry brake applications to dry the brake pad | G73: 61 | H73: 0 | I73: 4 | J73: 100 | K73: 31 | L73: 11.25 | M73: 0.35 | N73: 20 | R73: 4340.3 | AO73: 50 | AP73: =$AT$62*$AO$73+$AT$64 -> 0.35 | AW73: Ja | CH73: 6 | CI73: 0 | CJ73: 0 | CK73: 0 | CL73: 0 | CM73: 0 | CN73: 0 | CO73: 0 | CP73: 0 | CQ73: 0 | CR73: 6 | CS73: 0 | CT73: 0 | CU73: 0 | CY73: 1 | DA73: 1
B74: 62 | G74: 62 | H74: 0 | I74: 4 | J74: 100 | K74: 31 | L74: 11.25 | M74: 0.35 | N74: 20 | R74: 4340.3 | V74: Priority | W74: 1 | X74: 2-4 | AA74: Bedding | AC74: Contin. | CH74: 6 | CI74: 0 | CJ74: 0 | CK74: 0 | CL74: 0 | CM74: 0 | CN74: 0 | CO74: 0 | CP74: 0 | CQ74: 0 | CR74: 6 | CS74: 0 | CT74: 0 | CU74: 0 | CY74: 1 | DA74: 1
B75: 63 | G75: 63 | H75: 0 | I75: 4 | J75: 100 | K75: 31 | L75: 11.25 | M75: 0.35 | N75: 20 | R75: 4340.3 | V75: Result | W75: =IF(OR(OR(SUM($W$70,$W$69,$W$68,$W$67,$W$61,$W$60,$W$59,$W$58)>0),(SUM($W$62,$W$66)>ROUND(0.12*W71,0)),(SUM($W$66)>ROUND(0.06*W71,0))),"failed","passed") -> passed | X75: =IF(OR(OR(SUM($X$58:$X$60,$Y$58,$Y$59,$Z$58,$X$68:$X$70,$Y$69,$Y$70,$Z$70)>0),(SUM($X$67,$Y$68,$Z$69,$Z$59,$Y$60,$X$61)>(ROUND(0.1*(SUM($Y$71,$Z$71,$X$71)),0))),(SUM($Z$69,$Y$68,$X$67)>(ROUND(0.05*SUM($Z$71,$Y$71,$X$71),0)))),"failed","passed") -> passed | AA75: =IF(OR(SUM($AA$58,$AB$58,$AB$67,$AA$70)>0,$BK$15="failed"),"failed","passed") -> passed | AC75: =IF(AND($M$4<=0.5,$M$5>=0.25,$N$4<=0.05),"passed","failed") -> failed | CH75: 6 | CI75: 0 | CJ75: 0 | CK75: 0 | CL75: 0 | CM75: 0 | CN75: 0 | CO75: 0 | CP75: 0 | CQ75: 0 | CR75: 6 | CS75: 0 | CT75: 0 | CU75: 0 | CY75: 1 | DA75: 1
B76: 64 | G76: 64 | H76: 0 | I76: 4 | J76: 100 | K76: 31 | L76: 11.25 | M76: 0.35 | N76: 20 | R76: 4340.3 | CH76: 6 | CI76: 0 | CJ76: 0 | CK76: 0 | CL76: 0 | CM76: 0 | CN76: 0 | CO76: 0 | CP76: 0 | CQ76: 0 | CR76: 6 | CS76: 0 | CT76: 0 | CU76: 0 | CY76: 1 | DA76: 1
B77: 65 | G77: 65 | H77: 0 | I77: 4 | J77: 100 | K77: 31 | L77: 11.25 | M77: 0.35 | N77: 20 | R77: 4340.3 | V77: UIC test | W77: =IF(AND($AA$75="passed",$W$75="passed",$X$75="passed",$AC$75="passed",$AC$77="passed",$Z$77="passed"),"passed","failed") -> failed | Y77: Nominal line | Z77: =IF(AND($AT$69="passed",$AT$71="passed"),"passed","failed") -> passed | AB77: Plausibility | AC77: =$BK$26 -> passed | AN77: Report | AQ77: Checked | AT77: Released | CH77: =IF(OR(ISERROR(SUM(CI77:CU77)),$I77<1),"-1",SUM(CI77:CU77)) -> 6 | CI77: =IF($J77=CI$12,MATCH(ROUND($M77,3),$BM$50:$BZ$50,1)-1,0)+IF(AND($J77=CI$12,ROUND($M77,3)>$AP$61),1,0) -> 0 | CJ77: =IF($J77=CJ$12,MATCH(ROUND($M77,3),$BM$51:$BZ$51,1)-1,0)+IF(AND($J77=CJ$12,ROUND($M77,3)>$AP$62),1,0) -> 0 | CK77: =IF($J77=CK$12,MATCH(ROUND($M77,3),$BM$52:$BZ$52,1)-1,0)+IF(AND($J77=CK$12,ROUND($M77,3)>$AP$63),1,0) -> 0 | CL77: =IF($J77=CL$12,MATCH(ROUND($M77,3),$BM$53:$BZ$53,1)-1,0)+IF(AND($J77=CL$12,ROUND($M77,3)>$AP$64),1,0) -> 0 | CM77: =IF($J77=CM$12,MATCH(ROUND($M77,3),$BM$54:$BZ$54,1)-1,0)+IF(AND($J77=CM$12,ROUND($M77,3)>$AP$65),1,0) -> 0 | CN77: =IF($J77=CN$12,MATCH(ROUND($M77,3),$BM$55:$BZ$55,1)-1,0)+IF(AND($J77=CN$12,ROUND($M77,3)>$AP$66),1,0) -> 0 | CO77: =IF($J77=CO$12,MATCH(ROUND($M77,3),$BM$56:$BZ$56,1)-1,0)+IF(AND($J77=CO$12,ROUND($M77,3)>$AP$67),1,0) -> 0 | CP77: =IF($J77=CP$12,MATCH(ROUND($M77,3),$BM$57:$BZ$57,1)-1,0)+IF(AND($J77=CP$12,ROUND($M77,3)>$AP$68),1,0) -> 0 | CQ77: =IF($J77=CQ$12,MATCH(ROUND($M77,3),$BM$58:$BZ$58,1)-1,0)+IF(AND($J77=CQ$12,ROUND($M77,3)>$AP$69),1,0) -> 0 | CR77: =IF($J77=CR$12,MATCH(ROUND($M77,3),$BM$59:$BZ$59,1)-1,0)+IF(AND($J77=CR$12,ROUND($M77,3)>$AP$70),1,0) -> 6 | CS77: =IF($J77=CS$12,MATCH(ROUND($M77,3),$BM$60:$BZ$60,1)-1,0)+IF(AND($J77=CS$12,ROUND($M77,3)>$AP$71),1,0) -> 0 | CT77: =IF($J77=CT$12,MATCH(ROUND($M77,3),$BM$61:$BZ$61,1)-1,0)+IF(AND($J77=CT$12,ROUND($M77,3)>$AP$72),1,0) -> 0 | CU77: =IF($J77=CU$12,MATCH(ROUND($M77,3),$BM$62:$BZ$62,1)-1,0)+IF(AND($J77=CU$12,ROUND($M77,3)>$AP$73),1,0) -> 0 | CW77: =IF($C77>0,$B77,#N/A) ->  | CX77: =IF($C77>0,ROUND($C77,3),#N/A) ->  | CY77: =IF(I77>0,IF(OR(AND($I77=1,$CH77>=5,$CH77<=8),AND(I77=2,$CH77>=4,$CH77<=9),AND($I77=3,$CH77>=3,$CH77<=10),AND($I77=4,$CH77>=2,$CH77<=11)),1,IF(OR(AND($I77=1,OR($CH77=4,$CH77=9)),AND($I77=2,OR($CH77=3,$CH77=10)),AND($I77=3,OR($CH77=2,$CH77=11)),AND($I77=4,OR($CH77=1,$CH77=12))),2,0)),#N/A) -> 1 | DA77: 1
B78: 66 | G78: 66 | H78: 0 | I78: 4 | J78: 100 | K78: 31 | L78: 11.25 | M78: 0.35 | N78: 20 | R78: =0.5*L78*(J78/3.6)^2 -> 4340.3 | CH78: 6 | CI78: 0 | CJ78: 0 | CK78: 0 | CL78: 0 | CM78: 0 | CN78: 0 | CO78: 0 | CP78: 0 | CQ78: 0 | CR78: 6 | CS78: 0 | CT78: 0 | CU78: 0 | CY78: 1 | CZ78: =IF($C78>0,IF(OR(AND($B78>=$BR$24,$B78<=$BR$25,OR($C78>$BS$24,$C78<$BT$24)),AND($B78>=$BR$26,$B78<=$BR$27,OR($C78>$BS$26,$C78<$BT$26))),0,1),#N/A) ->  | DA78: =IF($I78>0,IF(AND(ISNUMBER(M78),$M78>0),1,0),"") -> 1
B79: 67 | G79: =G78+1 -> 67 | H79: 0 | I79: 4 | J79: 100 | K79: 31 | L79: 11.25 | M79: 0.35 | N79: 20 | R79: 4340.3 | CH79: 6 | CI79: 0 | CJ79: 0 | CK79: 0 | CL79: 0 | CM79: 0 | CN79: 0 | CO79: 0 | CP79: 0 | CQ79: 0 | CR79: 6 | CS79: 0 | CT79: 0 | CU79: 0 | CY79: 1 | DA79: 1
B80: 68 | G80: 68 | H80: 0 | I80: 4 | J80: 100 | K80: 31 | L80: 11.25 | M80: 0.35 | N80: 20 | R80: 4340.3 | CH80: 6 | CI80: 0 | CJ80: 0 | CK80: 0 | CL80: 0 | CM80: 0 | CN80: 0 | CO80: 0 | CP80: 0 | CQ80: 0 | CR80: 6 | CS80: 0 | CT80: 0 | CU80: 0 | CY80: 1 | DA80: 1
B81: 69 | G81: 69 | H81: 0 | I81: 4 | J81: 100 | K81: 31 | L81: 11.25 | M81: 0.35 | N81: 20 | R81: 4340.3 | CH81: 6 | CI81: 0 | CJ81: 0 | CK81: 0 | CL81: 0 | CM81: 0 | CN81: 0 | CO81: 0 | CP81: 0 | CQ81: 0 | CR81: 6 | CS81: 0 | CT81: 0 | CU81: 0 | CY81: 1 | DA81: 1
B82: 70 | G82: 70 | H82: 0 | I82: 4 | J82: 100 | K82: 31 | L82: 11.25 | M82: 0.35 | N82: 20 | R82: 4340.3 | CH82: 6 | CI82: 0 | CJ82: 0 | CK82: 0 | CL82: 0 | CM82: 0 | CN82: 0 | CO82: 0 | CP82: 0 | CQ82: 0 | CR82: 6 | CS82: 0 | CT82: 0 | CU82: 0 | CY82: 1 | DA82: 1
B83: 71 | F83: Dry brake applications, maximum mass | G83: 71 | H83: 0 | I83: 4 | J83: 50 | K83: 31 | L83: 11.25 | M83: 0.35 | N83: 20 | R83: 1085.1 | CH83: 6 | CI83: 0 | CJ83: 0 | CK83: 0 | CL83: 0 | CM83: 0 | CN83: 0 | CO83: 0 | CP83: 0 | CQ83: 0 | CR83: 0 | CS83: 0 | CT83: 0 | CU83: 6 | CY83: 1 | DA83: 1
B84: 72 | G84: 72 | H84: 0 | I84: 4 | J84: 80 | K84: 31 | L84: 11.25 | M84: 0.35 | N84: 20 | R84: 2777.8 | CH84: 6 | CI84: 0 | CJ84: 0 | CK84: 0 | CL84: 0 | CM84: 0 | CN84: 0 | CO84: 0 | CP84: 0 | CQ84: 0 | CR84: 0 | CS84: 6 | CT84: 0 | CU84: 0 | CY84: 1 | DA84: 1
B85: 73 | G85: 73 | H85: 0 | I85: 4 | J85: 100 | K85: 31 | L85: 11.25 | M85: 0.35 | N85: 20 | R85: 4340.3 | CH85: 6 | CI85: 0 | CJ85: 0 | CK85: 0 | CL85: 0 | CM85: 0 | CN85: 0 | CO85: 0 | CP85: 0 | CQ85: 0 | CR85: 6 | CS85: 0 | CT85: 0 | CU85: 0 | CY85: 1 | DA85: 1
B86: 74 | G86: 74 | H86: 0 | I86: 4 | J86: 120 | K86: 31 | L86: 11.25 | M86: 0.35 | N86: 20 | R86: 6250 | CH86: 6 | CI86: 0 | CJ86: 0 | CK86: 0 | CL86: 0 | CM86: 0 | CN86: 0 | CO86: 0 | CP86: 0 | CQ86: 6 | CR86: 0 | CS86: 0 | CT86: 0 | CU86: 0 | CY86: 1 | DA86: 1
B87: 75 | G87: 75 | H87: 0 | I87: 4 | J87: 50 | K87: 16 | L87: 11.25 | M87: 0.35 | N87: 20 | R87: 1085.1 | CH87: 6 | CI87: 0 | CJ87: 0 | CK87: 0 | CL87: 0 | CM87: 0 | CN87: 0 | CO87: 0 | CP87: 0 | CQ87: 0 | CR87: 0 | CS87: 0 | CT87: 0 | CU87: 6 | CY87: 1 | DA87: 1
B88: 76 | G88: 76 | H88: 0 | I88: 4 | J88: 80 | K88: 16 | L88: 11.25 | M88: 0.35 | N88: 20 | R88: 2777.8 | CH88: 6 | CI88: 0 | CJ88: 0 | CK88: 0 | CL88: 0 | CM88: 0 | CN88: 0 | CO88: 0 | CP88: 0 | CQ88: 0 | CR88: 0 | CS88: 6 | CT88: 0 | CU88: 0 | CY88: 1 | DA88: 1
B89: 77 | G89: 77 | H89: 0 | I89: 4 | J89: 100 | K89: 16 | L89: 11.25 | M89: 0.35 | N89: 20 | R89: 4340.3 | CH89: 6 | CI89: 0 | CJ89: 0 | CK89: 0 | CL89: 0 | CM89: 0 | CN89: 0 | CO89: 0 | CP89: 0 | CQ89: 0 | CR89: 6 | CS89: 0 | CT89: 0 | CU89: 0 | CY89: 1 | DA89: 1
B90: 78 | G90: 78 | H90: 0 | I90: 4 | J90: 120 | K90: 16 | L90: 11.25 | M90: 0.35 | N90: 20 | R90: 6250 | CH90: 6 | CI90: 0 | CJ90: 0 | CK90: 0 | CL90: 0 | CM90: 0 | CN90: 0 | CO90: 0 | CP90: 0 | CQ90: 6 | CR90: 0 | CS90: 0 | CT90: 0 | CU90: 0 | CY90: 1 | DA90: 1
B91: 79 | G91: 79 | H91: 0 | I91: 1 | J91: 50 | K91: 46 | L91: 11.25 | M91: 0.35 | N91: 20 | R91: 1085.1 | CH91: 6 | CI91: 0 | CJ91: 0 | CK91: 0 | CL91: 0 | CM91: 0 | CN91: 0 | CO91: 0 | CP91: 0 | CQ91: 0 | CR91: 0 | CS91: 0 | CT91: 0 | CU91: 6 | CY91: 1 | DA91: 1
B92: 80 | G92: 80 | H92: 0 | I92: 1 | J92: 80 | K92: 46 | L92: 11.25 | M92: 0.35 | N92: 20 | R92: 2777.8 | CH92: 6 | CI92: 0 | CJ92: 0 | CK92: 0 | CL92: 0 | CM92: 0 | CN92: 0 | CO92: 0 | CP92: 0 | CQ92: 0 | CR92: 0 | CS92: 6 | CT92: 0 | CU92: 0 | CY92: 1 | DA92: 1
B93: 81 | G93: 81 | H93: 0 | I93: 1 | J93: 100 | K93: 46 | L93: 11.25 | M93: 0.35 | N93: 20 | R93: 4340.3 | CH93: 6 | CI93: 0 | CJ93: 0 | CK93: 0 | CL93: 0 | CM93: 0 | CN93: 0 | CO93: 0 | CP93: 0 | CQ93: 0 | CR93: 6 | CS93: 0 | CT93: 0 | CU93: 0 | CY93: 1 | DA93: 1
B94: 82 | G94: 82 | H94: 0 | I94: 1 | J94: 120 | K94: 46 | L94: 11.25 | M94: 0.35 | N94: 20 | R94: 6250 | CH94: 6 | CI94: 0 | CJ94: 0 | CK94: 0 | CL94: 0 | CM94: 0 | CN94: 0 | CO94: 0 | CP94: 0 | CQ94: 6 | CR94: 0 | CS94: 0 | CT94: 0 | CU94: 0 | CY94: 1 | DA94: 1
B95: 83 | G95: 83 | H95: 0 | I95: 4 | J95: 50 | K95: 31 | L95: 11.25 | M95: 0.35 | N95: 20 | R95: 1085.1 | CH95: 6 | CI95: 0 | CJ95: 0 | CK95: 0 | CL95: 0 | CM95: 0 | CN95: 0 | CO95: 0 | CP95: 0 | CQ95: 0 | CR95: 0 | CS95: 0 | CT95: 0 | CU95: 6 | CY95: 1 | DA95: 1
B96: 84 | G96: 84 | H96: 0 | I96: 4 | J96: 80 | K96: 31 | L96: 11.25 | M96: 0.35 | N96: 20 | R96: 2777.8 | CH96: 6 | CI96: 0 | CJ96: 0 | CK96: 0 | CL96: 0 | CM96: 0 | CN96: 0 | CO96: 0 | CP96: 0 | CQ96: 0 | CR96: 0 | CS96: 6 | CT96: 0 | CU96: 0 | CY96: 1 | DA96: 1
B97: 85 | G97: 85 | H97: 0 | I97: 4 | J97: 100 | K97: 31 | L97: 11.25 | M97: 0.35 | N97: 20 | R97: 4340.3 | CH97: 6 | CI97: 0 | CJ97: 0 | CK97: 0 | CL97: 0 | CM97: 0 | CN97: 0 | CO97: 0 | CP97: 0 | CQ97: 0 | CR97: 6 | CS97: 0 | CT97: 0 | CU97: 0 | CY97: 1 | DA97: 1
B98: 86 | G98: 86 | H98: 0 | I98: 4 | J98: 120 | K98: 31 | L98: 11.25 | M98: 0.35 | N98: 20 | R98: 6250 | CH98: 6 | CI98: 0 | CJ98: 0 | CK98: 0 | CL98: 0 | CM98: 0 | CN98: 0 | CO98: 0 | CP98: 0 | CQ98: 6 | CR98: 0 | CS98: 0 | CT98: 0 | CU98: 0 | CY98: 1 | DA98: 1
B99: 87 | G99: 87 | H99: 0 | I99: 4 | J99: 50 | K99: 16 | L99: 11.25 | M99: 0.35 | N99: 20 | R99: 1085.1 | CH99: 6 | CI99: 0 | CJ99: 0 | CK99: 0 | CL99: 0 | CM99: 0 | CN99: 0 | CO99: 0 | CP99: 0 | CQ99: 0 | CR99: 0 | CS99: 0 | CT99: 0 | CU99: 6 | CY99: 1 | DA99: 1
B100: 88 | G100: 88 | H100: 0 | I100: 4 | J100: 80 | K100: 16 | L100: 11.25 | M100: 0.35 | N100: 20 | R100: 2777.8 | CH100: 6 | CI100: 0 | CJ100: 0 | CK100: 0 | CL100: 0 | CM100: 0 | CN100: 0 | CO100: 0 | CP100: 0 | CQ100: 0 | CR100: 0 | CS100: 6 | CT100: 0 | CU100: 0 | CY100: 1 | DA100: 1
B101: 89 | G101: 89 | H101: 0 | I101: 4 | J101: 100 | K101: 16 | L101: 11.25 | M101: 0.35 | N101: 20 | R101: 4340.3 | CH101: 6 | CI101: 0 | CJ101: 0 | CK101: 0 | CL101: 0 | CM101: 0 | CN101: 0 | CO101: 0 | CP101: 0 | CQ101: 0 | CR101: 6 | CS101: 0 | CT101: 0 | CU101: 0 | CY101: 1 | DA101: 1
B102: 90 | G102: 90 | H102: 0 | I102: 4 | J102: 120 | K102: 16 | L102: 11.25 | M102: 0.35 | N102: 20 | R102: 6250 | CH102: 6 | CI102: 0 | CJ102: 0 | CK102: 0 | CL102: 0 | CM102: 0 | CN102: 0 | CO102: 0 | CP102: 0 | CQ102: 6 | CR102: 0 | CS102: 0 | CT102: 0 | CU102: 0 | CY102: 1 | DA102: 1
B103: 91 | G103: 91 | H103: 0 | I103: 1 | J103: 50 | K103: 46 | L103: 11.25 | M103: 0.35 | N103: 20 | R103: 1085.1 | CH103: 6 | CI103: 0 | CJ103: 0 | CK103: 0 | CL103: 0 | CM103: 0 | CN103: 0 | CO103: 0 | CP103: 0 | CQ103: 0 | CR103: 0 | CS103: 0 | CT103: 0 | CU103: 6 | CY103: 1 | DA103: 1
B104: 92 | G104: 92 | H104: 0 | I104: 1 | J104: 80 | K104: 46 | L104: 11.25 | M104: 0.35 | N104: 20 | R104: 2777.8 | CH104: 6 | CI104: 0 | CJ104: 0 | CK104: 0 | CL104: 0 | CM104: 0 | CN104: 0 | CO104: 0 | CP104: 0 | CQ104: 0 | CR104: 0 | CS104: 6 | CT104: 0 | CU104: 0 | CY104: 1 | DA104: 1
B105: 93 | G105: 93 | H105: 0 | I105: 1 | J105: 100 | K105: 46 | L105: 11.25 | M105: 0.35 | N105: 20 | R105: 4340.3 | CH105: 6 | CI105: 0 | CJ105: 0 | CK105: 0 | CL105: 0 | CM105: 0 | CN105: 0 | CO105: 0 | CP105: 0 | CQ105: 0 | CR105: 6 | CS105: 0 | CT105: 0 | CU105: 0 | CY105: 1 | DA105: 1
B106: 94 | G106: 94 | H106: 0 | I106: 1 | J106: 120 | K106: 46 | L106: 11.25 | M106: 0.35 | N106: 20 | R106: 6250 | CH106: 6 | CI106: 0 | CJ106: 0 | CK106: 0 | CL106: 0 | CM106: 0 | CN106: 0 | CO106: 0 | CP106: 0 | CQ106: 6 | CR106: 0 | CS106: 0 | CT106: 0 | CU106: 0 | CY106: 1 | DA106: 1
B107: 95 | G107: 95 | H107: 0 | I107: 4 | J107: 50 | K107: 31 | L107: 11.25 | M107: 0.35 | N107: 20 | R107: 1085.1 | CH107: 6 | CI107: 0 | CJ107: 0 | CK107: 0 | CL107: 0 | CM107: 0 | CN107: 0 | CO107: 0 | CP107: 0 | CQ107: 0 | CR107: 0 | CS107: 0 | CT107: 0 | CU107: 6 | CY107: 1 | DA107: 1
B108: 96 | G108: 96 | H108: 0 | I108: 4 | J108: 80 | K108: 31 | L108: 11.25 | M108: 0.35 | N108: 20 | R108: 2777.8 | CH108: 6 | CI108: 0 | CJ108: 0 | CK108: 0 | CL108: 0 | CM108: 0 | CN108: 0 | CO108: 0 | CP108: 0 | CQ108: 0 | CR108: 0 | CS108: 6 | CT108: 0 | CU108: 0 | CY108: 1 | DA108: 1
B109: 97 | G109: 97 | H109: 0 | I109: 4 | J109: 100 | K109: 31 | L109: 11.25 | M109: 0.35 | N109: 20 | R109: 4340.3 | CH109: =IF(OR(ISERROR(SUM(CI109:CU109)),$I109<1),"-1",SUM(CI109:CU109)) -> 6 | CI109: 0 | CJ109: 0 | CK109: 0 | CL109: 0 | CM109: 0 | CN109: 0 | CO109: 0 | CP109: 0 | CQ109: 0 | CR109: 6 | CS109: 0 | CT109: 0 | CU109: 0 | CY109: 1 | DA109: 1
B110: 98 | G110: 98 | H110: 0 | I110: 4 | J110: 120 | K110: 31 | L110: 11.25 | M110: 0.35 | N110: 20 | R110: 6250 | CH110: 6 | CI110: 0 | CJ110: 0 | CK110: 0 | CL110: 0 | CM110: 0 | CN110: 0 | CO110: 0 | CP110: 0 | CQ110: 6 | CR110: 0 | CS110: 0 | CT110: 0 | CU110: 0 | CY110: 1 | DA110: 1
B111: 99 | G111: 99 | H111: 0 | I111: 4 | J111: 50 | K111: 16 | L111: 11.25 | M111: 0.35 | N111: 20 | R111: 1085.1 | CH111: 6 | CI111: 0 | CJ111: 0 | CK111: 0 | CL111: 0 | CM111: 0 | CN111: 0 | CO111: 0 | CP111: 0 | CQ111: 0 | CR111: 0 | CS111: 0 | CT111: 0 | CU111: 6 | CY111: 1 | DA111: 1
B112: 100 | G112: 100 | H112: 0 | I112: 4 | J112: 80 | K112: 16 | L112: 11.25 | M112: 0.35 | N112: 20 | R112: 2777.8 | CH112: 6 | CI112: 0 | CJ112: 0 | CK112: 0 | CL112: 0 | CM112: 0 | CN112: 0 | CO112: 0 | CP112: 0 | CQ112: 0 | CR112: 0 | CS112: 6 | CT112: 0 | CU112: 0 | CY112: 1 | DA112: 1
B113: 101 | G113: 101 | H113: 0 | I113: 4 | J113: 100 | K113: 16 | L113: 11.25 | M113: 0.35 | N113: 20 | R113: 4340.3 | CH113: 6 | CI113: 0 | CJ113: 0 | CK113: 0 | CL113: 0 | CM113: 0 | CN113: 0 | CO113: 0 | CP113: 0 | CQ113: 0 | CR113: 6 | CS113: 0 | CT113: 0 | CU113: 0 | CY113: 1 | DA113: 1
B114: 102 | G114: 102 | H114: 0 | I114: 4 | J114: 120 | K114: 16 | L114: 11.25 | M114: 0.35 | N114: 20 | R114: 6250 | CH114: 6 | CI114: 0 | CJ114: 0 | CK114: 0 | CL114: 0 | CM114: 0 | CN114: 0 | CO114: 0 | CP114: 0 | CQ114: 6 | CR114: 0 | CS114: 0 | CT114: 0 | CU114: 0 | CY114: 1 | DA114: 1
B115: 103 | G115: 103 | H115: 0 | I115: 1 | J115: 50 | K115: 46 | L115: 11.25 | M115: 0.35 | N115: 20 | R115: 1085.1 | CH115: 6 | CI115: 0 | CJ115: 0 | CK115: 0 | CL115: 0 | CM115: 0 | CN115: 0 | CO115: 0 | CP115: 0 | CQ115: 0 | CR115: 0 | CS115: 0 | CT115: 0 | CU115: 6 | CY115: 1 | DA115: 1
B116: 104 | G116: 104 | H116: 0 | I116: 1 | J116: 80 | K116: 46 | L116: 11.25 | M116: 0.35 | N116: 20 | R116: 2777.8 | CH116: 6 | CI116: 0 | CJ116: 0 | CK116: 0 | CL116: 0 | CM116: 0 | CN116: 0 | CO116: 0 | CP116: 0 | CQ116: 0 | CR116: 0 | CS116: 6 | CT116: 0 | CU116: 0 | CY116: 1 | DA116: 1
B117: 105 | G117: 105 | H117: 0 | I117: 1 | J117: 100 | K117: 46 | L117: 11.25 | M117: 0.35 | N117: 20 | R117: 4340.3 | CH117: 6 | CI117: 0 | CJ117: 0 | CK117: 0 | CL117: 0 | CM117: 0 | CN117: 0 | CO117: 0 | CP117: 0 | CQ117: 0 | CR117: 6 | CS117: 0 | CT117: 0 | CU117: 0 | CY117: 1 | DA117: 1
B118: 106 | G118: 106 | H118: 0 | I118: 1 | J118: 120 | K118: 46 | L118: 11.25 | M118: 0.35 | N118: 20 | R118: 6250 | CH118: 6 | CI118: 0 | CJ118: 0 | CK118: 0 | CL118: 0 | CM118: 0 | CN118: 0 | CO118: 0 | CP118: 0 | CQ118: 6 | CR118: 0 | CS118: 0 | CT118: 0 | CU118: 0 | CY118: 1 | DA118: 1
B119: 107 | F119: High temp. | G119: 107 | H119: 0 | I119: 2 | J119: 100 | K119: 46 | L119: 11.25 | M119: 0.35 | N119: 20 | R119: 4340.3 | CH119: 6 | CI119: 0 | CJ119: 0 | CK119: 0 | CL119: 0 | CM119: 0 | CN119: 0 | CO119: 0 | CP119: 0 | CQ119: 0 | CR119: 6 | CS119: 0 | CT119: 0 | CU119: 0 | CY119: 1 | DA119: 1
B120: 108 | G120: 108 | H120: 0 | I120: 2 | J120: 120 | K120: 46 | L120: 11.25 | M120: 0.35 | N120: 20 | R120: 6250 | CH120: 6 | CI120: 0 | CJ120: 0 | CK120: 0 | CL120: 0 | CM120: 0 | CN120: 0 | CO120: 0 | CP120: 0 | CQ120: 6 | CR120: 0 | CS120: 0 | CT120: 0 | CU120: 0 | CY120: 1 | DA120: 1
B121: 109 | G121: 109 | H121: 0 | I121: 2 | J121: 80 | K121: 46 | L121: 11.25 | M121: 0.35 | N121: 20 | R121: 2777.8 | CH121: 6 | CI121: 0 | CJ121: 0 | CK121: 0 | CL121: 0 | CM121: 0 | CN121: 0 | CO121: 0 | CP121: 0 | CQ121: 0 | CR121: 0 | CS121: 6 | CT121: 0 | CU121: 0 | CY121: 1 | DA121: 1
B122: 110 | F122: Dry brake | G122: 110 | H122: 0 | I122: 4 | J122: 80 | K122: 31 | L122: 11.25 | M122: 0.35 | N122: 20 | R122: 2777.8 | CH122: 6 | CI122: 0 | CJ122: 0 | CK122: 0 | CL122: 0 | CM122: 0 | CN122: 0 | CO122: 0 | CP122: 0 | CQ122: 0 | CR122: 0 | CS122: 6 | CT122: 0 | CU122: 0 | CY122: 1 | DA122: 1
B123: 111 | G123: =G122+1 -> 111 | H123: 0 | I123: 1 | J123: 80 | K123: 46 | L123: 11.25 | M123: 0.35 | N123: 20 | R123: 2777.8 | CH123: 6 | CI123: 0 | CJ123: 0 | CK123: 0 | CL123: 0 | CM123: 0 | CN123: 0 | CO123: 0 | CP123: 0 | CQ123: 0 | CR123: 0 | CS123: 6 | CT123: 0 | CU123: 0 | CY123: 1 | DA123: 1
B124: 112 | F124: Cont., 45 kW | G124: 112 | H124: 0 | I124: 0 | J124: 70 | M124: 0.35 | N124: 20 | R124: =45*34*60 -> 91800 | CH124: -1 | CI124: 0 | CJ124: 0 | CK124: 0 | CL124: 0 | CM124: 0 | CN124: 0 | CO124: 0 | CP124: 0 | CQ124: 0 | CR124: 0 | CS124: 0 | CT124: 6 | CU124: 0
B125: 113 | G125: 113 | H125: 0 | I125: 3 | J125: 70 | K125: 46 | L125: 11.25 | M125: 0.35 | N125: 20 | R125: 2126.7 | CH125: 6 | CI125: 0 | CJ125: 0 | CK125: 0 | CL125: 0 | CM125: 0 | CN125: 0 | CO125: 0 | CP125: 0 | CQ125: 0 | CR125: 0 | CS125: 0 | CT125: 6 | CU125: 0 | CY125: 1 | DA125: 1
B126: 114 | F126: Dry brake app. to reg. the disc | G126: 114 | H126: 0 | I126: 4 | J126: 80 | K126: 31 | L126: 11.25 | M126: 0.35 | N126: 20 | R126: 2777.8 | CH126: 6 | CI126: 0 | CJ126: 0 | CK126: 0 | CL126: 0 | CM126: 0 | CN126: 0 | CO126: 0 | CP126: 0 | CQ126: 0 | CR126: 0 | CS126: 6 | CT126: 0 | CU126: 0 | CY126: 1 | DA126: 1
B127: 115 | G127: 115 | H127: 0 | I127: 3 | J127: 100 | K127: 46 | L127: 11.25 | M127: 0.35 | N127: 20 | R127: 4340.3 | CH127: 6 | CI127: 0 | CJ127: 0 | CK127: 0 | CL127: 0 | CM127: 0 | CN127: 0 | CO127: 0 | CP127: 0 | CQ127: 0 | CR127: 6 | CS127: 0 | CT127: 0 | CU127: 0 | CY127: 1 | DA127: 1
B128: 116 | G128: 116 | H128: 0 | I128: 4 | J128: 120 | K128: 31 | L128: 11.25 | M128: 0.35 | N128: 20 | R128: 6250 | CH128: 6 | CI128: 0 | CJ128: 0 | CK128: 0 | CL128: 0 | CM128: 0 | CN128: 0 | CO128: 0 | CP128: 0 | CQ128: 6 | CR128: 0 | CS128: 0 | CT128: 0 | CU128: 0 | CY128: 1 | DA128: 1
B129: 117 | F129: Wet brake applications | G129: 117 | H129: 1 | I129: 4 | J129: 50 | K129: 31 | L129: 11.25 | M129: 0.35 | N129: 20 | R129: 1085.1 | CH129: 6 | CI129: 0 | CJ129: 0 | CK129: 0 | CL129: 0 | CM129: 0 | CN129: 0 | CO129: 0 | CP129: 0 | CQ129: 0 | CR129: 0 | CS129: 0 | CT129: 0 | CU129: 6 | CY129: 1 | DA129: 1
B130: 118 | G130: 118 | H130: 1 | I130: 4 | J130: 100 | K130: 31 | L130: 11.25 | M130: 0.35 | N130: 20 | R130: 4340.3 | CH130: 6 | CI130: 0 | CJ130: 0 | CK130: 0 | CL130: 0 | CM130: 0 | CN130: 0 | CO130: 0 | CP130: 0 | CQ130: 0 | CR130: 6 | CS130: 0 | CT130: 0 | CU130: 0 | CY130: 1 | DA130: 1
B131: 119 | G131: 119 | H131: 1 | I131: 4 | J131: 80 | K131: 31 | L131: 11.25 | M131: 0.35 | N131: 20 | R131: 2777.8 | CH131: 6 | CI131: 0 | CJ131: 0 | CK131: 0 | CL131: 0 | CM131: 0 | CN131: 0 | CO131: 0 | CP131: 0 | CQ131: 0 | CR131: 0 | CS131: 6 | CT131: 0 | CU131: 0 | CY131: 1 | DA131: 1
B132: 120 | F132: Dry brake applications to dry the brake pad | G132: 120 | H132: 0 | I132: 4 | J132: 100 | K132: 31 | L132: 11.25 | M132: 0.35 | N132: 20 | R132: 4340.3 | CH132: 6 | CI132: 0 | CJ132: 0 | CK132: 0 | CL132: 0 | CM132: 0 | CN132: 0 | CO132: 0 | CP132: 0 | CQ132: 0 | CR132: 6 | CS132: 0 | CT132: 0 | CU132: 0 | CY132: 1 | DA132: 1
B133: 121 | G133: 121 | H133: 0 | I133: 4 | J133: 100 | K133: 31 | L133: 11.25 | M133: 0.35 | N133: 20 | R133: 4340.3 | CH133: 6 | CI133: 0 | CJ133: 0 | CK133: 0 | CL133: 0 | CM133: 0 | CN133: 0 | CO133: 0 | CP133: 0 | CQ133: 0 | CR133: 6 | CS133: 0 | CT133: 0 | CU133: 0 | CY133: 1 | DA133: 1
B134: 122 | G134: 122 | H134: 0 | I134: 4 | J134: 100 | K134: 31 | L134: 11.25 | M134: 0.35 | N134: 20 | R134: 4340.3 | CH134: 6 | CI134: 0 | CJ134: 0 | CK134: 0 | CL134: 0 | CM134: 0 | CN134: 0 | CO134: 0 | CP134: 0 | CQ134: 0 | CR134: 6 | CS134: 0 | CT134: 0 | CU134: 0 | CY134: 1 | DA134: 1
B135: 123 | G135: 123 | H135: 0 | I135: 4 | J135: 100 | K135: 31 | L135: 11.25 | M135: 0.35 | N135: 20 | R135: 4340.3 | CH135: 6 | CI135: 0 | CJ135: 0 | CK135: 0 | CL135: 0 | CM135: 0 | CN135: 0 | CO135: 0 | CP135: 0 | CQ135: 0 | CR135: 6 | CS135: 0 | CT135: 0 | CU135: 0 | CY135: 1 | DA135: 1
B136: 124 | G136: 124 | H136: 0 | I136: 4 | J136: 100 | K136: 31 | L136: 11.25 | M136: 0.35 | N136: 20 | R136: 4340.3 | CH136: 6 | CI136: 0 | CJ136: 0 | CK136: 0 | CL136: 0 | CM136: 0 | CN136: 0 | CO136: 0 | CP136: 0 | CQ136: 0 | CR136: 6 | CS136: 0 | CT136: 0 | CU136: 0 | CY136: 1 | DA136: 1
B137: 125 | G137: 125 | H137: 0 | I137: 4 | J137: 100 | K137: 31 | L137: 11.25 | M137: 0.35 | N137: 20 | R137: 4340.3 | CH137: 6 | CI137: 0 | CJ137: 0 | CK137: 0 | CL137: 0 | CM137: 0 | CN137: 0 | CO137: 0 | CP137: 0 | CQ137: 0 | CR137: 6 | CS137: 0 | CT137: 0 | CU137: 0 | CY137: 1 | DA137: 1
B138: 126 | G138: =G137+1 -> 126 | H138: 0 | I138: 4 | J138: 100 | K138: 31 | L138: 11.25 | M138: 0.35 | N138: 20 | R138: 4340.3 | CH138: 6 | CI138: 0 | CJ138: 0 | CK138: 0 | CL138: 0 | CM138: 0 | CN138: 0 | CO138: 0 | CP138: 0 | CQ138: 0 | CR138: 6 | CS138: 0 | CT138: 0 | CU138: 0 | CY138: 1 | DA138: 1
B139: 127 | G139: =G138+1 -> 127 | H139: 0 | I139: 4 | J139: 100 | K139: 31 | L139: 11.25 | M139: 0.35 | N139: 20 | R139: 4340.3 | CH139: 6 | CI139: 0 | CJ139: 0 | CK139: 0 | CL139: 0 | CM139: 0 | CN139: 0 | CO139: 0 | CP139: 0 | CQ139: 0 | CR139: 6 | CS139: 0 | CT139: 0 | CU139: 0 | CY139: 1 | DA139: 1
B140: 128 | G140: 128 | H140: 0 | I140: 4 | J140: 100 | K140: 31 | L140: 11.25 | M140: 0.35 | N140: 20 | R140: 4340.3 | CH140: 6 | CI140: 0 | CJ140: 0 | CK140: 0 | CL140: 0 | CM140: 0 | CN140: 0 | CO140: 0 | CP140: 0 | CQ140: 0 | CR140: 6 | CS140: 0 | CT140: 0 | CU140: 0 | CY140: 1 | DA140: 1
B141: 129 | G141: 129 | H141: 0 | I141: 4 | J141: 100 | K141: 31 | L141: 11.25 | M141: 0.35 | N141: 20 | R141: 4340.3 | CH141: =IF(OR(ISERROR(SUM(CI141:CU141)),$I141<1),"-1",SUM(CI141:CU141)) -> 6 | CI141: =IF($J141=CI$12,MATCH(ROUND($M141,3),$BM$50:$BZ$50,1)-1,0)+IF(AND($J141=CI$12,ROUND($M141,3)>$AP$61),1,0) -> 0 | CJ141: =IF($J141=CJ$12,MATCH(ROUND($M141,3),$BM$51:$BZ$51,1)-1,0)+IF(AND($J141=CJ$12,ROUND($M141,3)>$AP$62),1,0) -> 0 | CK141: =IF($J141=CK$12,MATCH(ROUND($M141,3),$BM$52:$BZ$52,1)-1,0)+IF(AND($J141=CK$12,ROUND($M141,3)>$AP$63),1,0) -> 0 | CL141: =IF($J141=CL$12,MATCH(ROUND($M141,3),$BM$53:$BZ$53,1)-1,0)+IF(AND($J141=CL$12,ROUND($M141,3)>$AP$64),1,0) -> 0 | CM141: =IF($J141=CM$12,MATCH(ROUND($M141,3),$BM$54:$BZ$54,1)-1,0)+IF(AND($J141=CM$12,ROUND($M141,3)>$AP$65),1,0) -> 0 | CN141: =IF($J141=CN$12,MATCH(ROUND($M141,3),$BM$55:$BZ$55,1)-1,0)+IF(AND($J141=CN$12,ROUND($M141,3)>$AP$66),1,0) -> 0 | CO141: =IF($J141=CO$12,MATCH(ROUND($M141,3),$BM$56:$BZ$56,1)-1,0)+IF(AND($J141=CO$12,ROUND($M141,3)>$AP$67),1,0) -> 0 | CP141: =IF($J141=CP$12,MATCH(ROUND($M141,3),$BM$57:$BZ$57,1)-1,0)+IF(AND($J141=CP$12,ROUND($M141,3)>$AP$68),1,0) -> 0 | CQ141: =IF($J141=CQ$12,MATCH(ROUND($M141,3),$BM$58:$BZ$58,1)-1,0)+IF(AND($J141=CQ$12,ROUND($M141,3)>$AP$69),1,0) -> 0 | CR141: =IF($J141=CR$12,MATCH(ROUND($M141,3),$BM$59:$BZ$59,1)-1,0)+IF(AND($J141=CR$12,ROUND($M141,3)>$AP$70),1,0) -> 6 | CS141: =IF($J141=CS$12,MATCH(ROUND($M141,3),$BM$60:$BZ$60,1)-1,0)+IF(AND($J141=CS$12,ROUND($M141,3)>$AP$71),1,0) -> 0 | CT141: =IF($J141=CT$12,MATCH(ROUND($M141,3),$BM$61:$BZ$61,1)-1,0)+IF(AND($J141=CT$12,ROUND($M141,3)>$AP$72),1,0) -> 0 | CU141: =IF($J141=CU$12,MATCH(ROUND($M141,3),$BM$62:$BZ$62,1)-1,0)+IF(AND($J141=CU$12,ROUND($M141,3)>$AP$73),1,0) -> 0 | CW141: =IF($C141>0,$B141,#N/A) ->  | CX141: =IF($C141>0,ROUND($C141,3),#N/A) ->  | CY141: =IF(I141>0,IF(OR(AND($I141=1,$CH141>=5,$CH141<=8),AND(I141=2,$CH141>=4,$CH141<=9),AND($I141=3,$CH141>=3,$CH141<=10),AND($I141=4,$CH141>=2,$CH141<=11)),1,IF(OR(AND($I141=1,OR($CH141=4,$CH141=9)),AND($I141=2,OR($CH141=3,$CH141=10)),AND($I141=3,OR($CH141=2,$CH141=11)),AND($I141=4,OR($CH141=1,$CH141=12))),2,0)),#N/A) -> 1 | DA141: 1
B142: 130 | F142: Dry brake applications | G142: 130 | H142: 0 | I142: 4 | J142: 80 | K142: 31 | L142: 11.25 | M142: 0.35 | N142: 20 | R142: =0.5*L142*(J142/3.6)^2 -> 2777.8 | CH142: 6 | CI142: 0 | CJ142: 0 | CK142: 0 | CL142: 0 | CM142: 0 | CN142: 0 | CO142: 0 | CP142: 0 | CQ142: 0 | CR142: 0 | CS142: 6 | CT142: 0 | CU142: 0 | CY142: 1 | CZ142: =IF($C142>0,IF(OR(AND($B142>=$BR$24,$B142<=$BR$25,OR($C142>$BS$24,$C142<$BT$24)),AND($B142>=$BR$26,$B142<=$BR$27,OR($C142>$BS$26,$C142<$BT$26))),0,1),#N/A) ->  | DA142: =IF($I142>0,IF(AND(ISNUMBER(M142),$M142>0),1,0),"") -> 1
B143: 131 | G143: 131 | H143: 0 | I143: 1 | J143: 100 | K143: 46 | L143: 11.25 | M143: 0.35 | N143: 20 | R143: 4340.3 | CH143: 6 | CI143: 0 | CJ143: 0 | CK143: 0 | CL143: 0 | CM143: 0 | CN143: 0 | CO143: 0 | CP143: 0 | CQ143: 0 | CR143: 6 | CS143: 0 | CT143: 0 | CU143: 0 | CY143: 1 | DA143: 1
B144: 132 | G144: =G143+1 -> 132 | H144: 0 | I144: 4 | J144: 120 | K144: 31 | L144: 11.25 | M144: 0.35 | N144: 20 | R144: 6250 | CH144: 6 | CI144: 0 | CJ144: 0 | CK144: 0 | CL144: 0 | CM144: 0 | CN144: 0 | CO144: 0 | CP144: 0 | CQ144: 6 | CR144: 0 | CS144: 0 | CT144: 0 | CU144: 0 | CY144: 1 | DA144: 1
B145: 133 | G145: 133 | H145: 0 | I145: 4 | J145: 50 | K145: 31 | L145: 11.25 | M145: 0.35 | N145: 20 | R145: 1085.1 | CH145: 6 | CI145: 0 | CJ145: 0 | CK145: 0 | CL145: 0 | CM145: 0 | CN145: 0 | CO145: 0 | CP145: 0 | CQ145: 0 | CR145: 0 | CS145: 0 | CT145: 0 | CU145: 6 | CY145: 1 | DA145: 1
B146: 134 | G146: 134 | H146: 0 | I146: 4 | J146: 50 | K146: 31 | L146: 11.25 | M146: 0.35 | N146: 20 | R146: 1085.1 | CH146: 6 | CI146: 0 | CJ146: 0 | CK146: 0 | CL146: 0 | CM146: 0 | CN146: 0 | CO146: 0 | CP146: 0 | CQ146: 0 | CR146: 0 | CS146: 0 | CT146: 0 | CU146: 6 | CY146: 1 | DA146: 1
B147: 135 | G147: 135 | H147: 0 | I147: 4 | J147: 50 | K147: 31 | L147: 11.25 | M147: 0.35 | N147: 20 | R147: 1085.1 | CH147: 6 | CI147: 0 | CJ147: 0 | CK147: 0 | CL147: 0 | CM147: 0 | CN147: 0 | CO147: 0 | CP147: 0 | CQ147: 0 | CR147: 0 | CS147: 0 | CT147: 0 | CU147: 6 | CY147: 1 | DA147: 1
B148: 136 | R148: =SUM(R13:R147) -> 413216.4 | S148: kJ | CH148: -1 | CI148: 0 | CJ148: 0 | CK148: 0 | CL148: 0 | CM148: 0 | CN148: 0 | CO148: 0 | CP148: 0 | CQ148: 0 | CR148: 0 | CS148: 0 | CT148: 0 | CU148: 0
B149: 137 | R149: =R148/1000 -> 413.2 | S149: MJ | CH149: -1 | CI149: 0 | CJ149: 0 | CK149: 0 | CL149: 0 | CM149: 0 | CN149: 0 | CO149: 0 | CP149: 0 | CQ149: 0 | CR149: 0 | CS149: 0 | CT149: 0 | CU149: 0
B150: 138 | CH150: -1 | CI150: 0 | CJ150: 0 | CK150: 0 | CL150: 0 | CM150: 0 | CN150: 0 | CO150: 0 | CP150: 0 | CQ150: 0 | CR150: 0 | CS150: 0 | CT150: 0 | CU150: 0
B151: 139 | CH151: -1 | CI151: 0 | CJ151: 0 | CK151: 0 | CL151: 0 | CM151: 0 | CN151: 0 | CO151: 0 | CP151: 0 | CQ151: 0 | CR151: 0 | CS151: 0 | CT151: 0 | CU151: 0
B152: 140 | CH152: -1 | CI152: 0 | CJ152: 0 | CK152: 0 | CL152: 0 | CM152: 0 | CN152: 0 | CO152: 0 | CP152: 0 | CQ152: 0 | CR152: 0 | CS152: 0 | CT152: 0 | CU152: 0
B153: 141 | CH153: -1 | CI153: 0 | CJ153: 0 | CK153: 0 | CL153: 0 | CM153: 0 | CN153: 0 | CO153: 0 | CP153: 0 | CQ153: 0 | CR153: 0 | CS153: 0 | CT153: 0 | CU153: 0
B154: 142 | CH154: -1 | CI154: 0 | CJ154: 0 | CK154: 0 | CL154: 0 | CM154: 0 | CN154: 0 | CO154: 0 | CP154: 0 | CQ154: 0 | CR154: 0 | CS154: 0 | CT154: 0 | CU154: 0
B155: 143 | CH155: -1 | CI155: 0 | CJ155: 0 | CK155: 0 | CL155: 0 | CM155: 0 | CN155: 0 | CO155: 0 | CP155: 0 | CQ155: 0 | CR155: 0 | CS155: 0 | CT155: 0 | CU155: 0
B156: 144 | CH156: -1 | CI156: 0 | CJ156: 0 | CK156: 0 | CL156: 0 | CM156: 0 | CN156: 0 | CO156: 0 | CP156: 0 | CQ156: 0 | CR156: 0 | CS156: 0 | CT156: 0 | CU156: 0
B157: 145 | CH157: -1 | CI157: 0 | CJ157: 0 | CK157: 0 | CL157: 0 | CM157: 0 | CN157: 0 | CO157: 0 | CP157: 0 | CQ157: 0 | CR157: 0 | CS157: 0 | CT157: 0 | CU157: 0
B158: 146 | CH158: -1 | CI158: 0 | CJ158: 0 | CK158: 0 | CL158: 0 | CM158: 0 | CN158: 0 | CO158: 0 | CP158: 0 | CQ158: 0 | CR158: 0 | CS158: 0 | CT158: 0 | CU158: 0
B159: 147 | CH159: -1 | CI159: 0 | CJ159: 0 | CK159: 0 | CL159: 0 | CM159: 0 | CN159: 0 | CO159: 0 | CP159: 0 | CQ159: 0 | CR159: 0 | CS159: 0 | CT159: 0 | CU159: 0
B160: 148 | CH160: -1 | CI160: 0 | CJ160: 0 | CK160: 0 | CL160: 0 | CM160: 0 | CN160: 0 | CO160: 0 | CP160: 0 | CQ160: 0 | CR160: 0 | CS160: 0 | CT160: 0 | CU160: 0
B161: 149 | CH161: -1 | CI161: 0 | CJ161: 0 | CK161: 0 | CL161: 0 | CM161: 0 | CN161: 0 | CO161: 0 | CP161: 0 | CQ161: 0 | CR161: 0 | CS161: 0 | CT161: 0 | CU161: 0
B162: 150 | CH162: -1 | CI162: 0 | CJ162: 0 | CK162: 0 | CL162: 0 | CM162: 0 | CN162: 0 | CO162: 0 | CP162: 0 | CQ162: 0 | CR162: 0 | CS162: 0 | CT162: 0 | CU162: 0
B163: 151 | CH163: -1 | CI163: 0 | CJ163: 0 | CK163: 0 | CL163: 0 | CM163: 0 | CN163: 0 | CO163: 0 | CP163: 0 | CQ163: 0 | CR163: 0 | CS163: 0 | CT163: 0 | CU163: 0
B164: 152 | CH164: -1 | CI164: 0 | CJ164: 0 | CK164: 0 | CL164: 0 | CM164: 0 | CN164: 0 | CO164: 0 | CP164: 0 | CQ164: 0 | CR164: 0 | CS164: 0 | CT164: 0 | CU164: 0
B165: 153 | CH165: -1 | CI165: 0 | CJ165: 0 | CK165: 0 | CL165: 0 | CM165: 0 | CN165: 0 | CO165: 0 | CP165: 0 | CQ165: 0 | CR165: 0 | CS165: 0 | CT165: 0 | CU165: 0
B166: 154 | CH166: -1 | CI166: 0 | CJ166: 0 | CK166: 0 | CL166: 0 | CM166: 0 | CN166: 0 | CO166: 0 | CP166: 0 | CQ166: 0 | CR166: 0 | CS166: 0 | CT166: 0 | CU166: 0
B167: 155 | CH167: -1 | CI167: 0 | CJ167: 0 | CK167: 0 | CL167: 0 | CM167: 0 | CN167: 0 | CO167: 0 | CP167: 0 | CQ167: 0 | CR167: 0 | CS167: 0 | CT167: 0 | CU167: 0
B168: 156 | CH168: -1 | CI168: 0 | CJ168: 0 | CK168: 0 | CL168: 0 | CM168: 0 | CN168: 0 | CO168: 0 | CP168: 0 | CQ168: 0 | CR168: 0 | CS168: 0 | CT168: 0 | CU168: 0
B169: 157 | CH169: -1 | CI169: 0 | CJ169: 0 | CK169: 0 | CL169: 0 | CM169: 0 | CN169: 0 | CO169: 0 | CP169: 0 | CQ169: 0 | CR169: 0 | CS169: 0 | CT169: 0 | CU169: 0
B170: 158 | CH170: -1 | CI170: 0 | CJ170: 0 | CK170: 0 | CL170: 0 | CM170: 0 | CN170: 0 | CO170: 0 | CP170: 0 | CQ170: 0 | CR170: 0 | CS170: 0 | CT170: 0 | CU170: 0
B171: 159 | CH171: -1 | CI171: 0 | CJ171: 0 | CK171: 0 | CL171: 0 | CM171: 0 | CN171: 0 | CO171: 0 | CP171: 0 | CQ171: 0 | CR171: 0 | CS171: 0 | CT171: 0 | CU171: 0
B172: 160 | CH172: -1 | CI172: 0 | CJ172: 0 | CK172: 0 | CL172: 0 | CM172: 0 | CN172: 0 | CO172: 0 | CP172: 0 | CQ172: 0 | CR172: 0 | CS172: 0 | CT172: 0 | CU172: 0
B173: 161 | CH173: =IF(OR(ISERROR(SUM(CI173:CU173)),$I173<1),"-1",SUM(CI173:CU173)) -> -1 | CI173: 0 | CJ173: 0 | CK173: 0 | CL173: 0 | CM173: 0 | CN173: 0 | CO173: 0 | CP173: 0 | CQ173: 0 | CR173: 0 | CS173: 0 | CT173: 0 | CU173: 0
B174: 162 | CH174: -1 | CI174: 0 | CJ174: 0 | CK174: 0 | CL174: 0 | CM174: 0 | CN174: 0 | CO174: 0 | CP174: 0 | CQ174: 0 | CR174: 0 | CS174: 0 | CT174: 0 | CU174: 0
B175: 163 | CH175: -1 | CI175: 0 | CJ175: 0 | CK175: 0 | CL175: 0 | CM175: 0 | CN175: 0 | CO175: 0 | CP175: 0 | CQ175: 0 | CR175: 0 | CS175: 0 | CT175: 0 | CU175: 0
B176: 164 | CH176: -1 | CI176: 0 | CJ176: 0 | CK176: 0 | CL176: 0 | CM176: 0 | CN176: 0 | CO176: 0 | CP176: 0 | CQ176: 0 | CR176: 0 | CS176: 0 | CT176: 0 | CU176: 0
B177: 165 | CH177: -1 | CI177: 0 | CJ177: 0 | CK177: 0 | CL177: 0 | CM177: 0 | CN177: 0 | CO177: 0 | CP177: 0 | CQ177: 0 | CR177: 0 | CS177: 0 | CT177: 0 | CU177: 0
B178: 166 | CH178: -1 | CI178: 0 | CJ178: 0 | CK178: 0 | CL178: 0 | CM178: 0 | CN178: 0 | CO178: 0 | CP178: 0 | CQ178: 0 | CR178: 0 | CS178: 0 | CT178: 0 | CU178: 0
B179: 167 | CH179: -1 | CI179: 0 | CJ179: 0 | CK179: 0 | CL179: 0 | CM179: 0 | CN179: 0 | CO179: 0 | CP179: 0 | CQ179: 0 | CR179: 0 | CS179: 0 | CT179: 0 | CU179: 0
B180: 168 | CH180: -1 | CI180: 0 | CJ180: 0 | CK180: 0 | CL180: 0 | CM180: 0 | CN180: 0 | CO180: 0 | CP180: 0 | CQ180: 0 | CR180: 0 | CS180: 0 | CT180: 0 | CU180: 0
B181: 169 | CH181: -1 | CI181: 0 | CJ181: 0 | CK181: 0 | CL181: 0 | CM181: 0 | CN181: 0 | CO181: 0 | CP181: 0 | CQ181: 0 | CR181: 0 | CS181: 0 | CT181: 0 | CU181: 0
B182: 170 | CH182: -1 | CI182: 0 | CJ182: 0 | CK182: 0 | CL182: 0 | CM182: 0 | CN182: 0 | CO182: 0 | CP182: 0 | CQ182: 0 | CR182: 0 | CS182: 0 | CT182: 0 | CU182: 0
B183: 171 | CH183: -1 | CI183: 0 | CJ183: 0 | CK183: 0 | CL183: 0 | CM183: 0 | CN183: 0 | CO183: 0 | CP183: 0 | CQ183: 0 | CR183: 0 | CS183: 0 | CT183: 0 | CU183: 0
B184: 172 | CH184: -1 | CI184: 0 | CJ184: 0 | CK184: 0 | CL184: 0 | CM184: 0 | CN184: 0 | CO184: 0 | CP184: 0 | CQ184: 0 | CR184: 0 | CS184: 0 | CT184: 0 | CU184: 0
B185: 173 | CH185: -1 | CI185: 0 | CJ185: 0 | CK185: 0 | CL185: 0 | CM185: 0 | CN185: 0 | CO185: 0 | CP185: 0 | CQ185: 0 | CR185: 0 | CS185: 0 | CT185: 0 | CU185: 0
B186: 174 | CH186: -1 | CI186: 0 | CJ186: 0 | CK186: 0 | CL186: 0 | CM186: 0 | CN186: 0 | CO186: 0 | CP186: 0 | CQ186: 0 | CR186: 0 | CS186: 0 | CT186: 0 | CU186: 0
B187: 175 | CH187: -1 | CI187: 0 | CJ187: 0 | CK187: 0 | CL187: 0 | CM187: 0 | CN187: 0 | CO187: 0 | CP187: 0 | CQ187: 0 | CR187: 0 | CS187: 0 | CT187: 0 | CU187: 0
B188: 176 | CH188: -1 | CI188: 0 | CJ188: 0 | CK188: 0 | CL188: 0 | CM188: 0 | CN188: 0 | CO188: 0 | CP188: 0 | CQ188: 0 | CR188: 0 | CS188: 0 | CT188: 0 | CU188: 0
B189: 177 | CH189: -1 | CI189: 0 | CJ189: 0 | CK189: 0 | CL189: 0 | CM189: 0 | CN189: 0 | CO189: 0 | CP189: 0 | CQ189: 0 | CR189: 0 | CS189: 0 | CT189: 0 | CU189: 0
B190: 178 | CH190: -1 | CI190: 0 | CJ190: 0 | CK190: 0 | CL190: 0 | CM190: 0 | CN190: 0 | CO190: 0 | CP190: 0 | CQ190: 0 | CR190: 0 | CS190: 0 | CT190: 0 | CU190: 0
B191: 179 | CH191: -1 | CI191: 0 | CJ191: 0 | CK191: 0 | CL191: 0 | CM191: 0 | CN191: 0 | CO191: 0 | CP191: 0 | CQ191: 0 | CR191: 0 | CS191: 0 | CT191: 0 | CU191: 0
B192: 180 | CH192: -1 | CI192: 0 | CJ192: 0 | CK192: 0 | CL192: 0 | CM192: 0 | CN192: 0 | CO192: 0 | CP192: 0 | CQ192: 0 | CR192: 0 | CS192: 0 | CT192: 0 | CU192: 0
B193: 181 | CH193: -1 | CI193: 0 | CJ193: 0 | CK193: 0 | CL193: 0 | CM193: 0 | CN193: 0 | CO193: 0 | CP193: 0 | CQ193: 0 | CR193: 0 | CS193: 0 | CT193: 0 | CU193: 0
B194: 182 | CH194: -1 | CI194: 0 | CJ194: 0 | CK194: 0 | CL194: 0 | CM194: 0 | CN194: 0 | CO194: 0 | CP194: 0 | CQ194: 0 | CR194: 0 | CS194: 0 | CT194: 0 | CU194: 0
B195: 183 | CH195: -1 | CI195: 0 | CJ195: 0 | CK195: 0 | CL195: 0 | CM195: 0 | CN195: 0 | CO195: 0 | CP195: 0 | CQ195: 0 | CR195: 0 | CS195: 0 | CT195: 0 | CU195: 0
B196: 184 | CH196: -1 | CI196: 0 | CJ196: 0 | CK196: 0 | CL196: 0 | CM196: 0 | CN196: 0 | CO196: 0 | CP196: 0 | CQ196: 0 | CR196: 0 | CS196: 0 | CT196: 0 | CU196: 0
B197: 185 | CH197: -1 | CI197: 0 | CJ197: 0 | CK197: 0 | CL197: 0 | CM197: 0 | CN197: 0 | CO197: 0 | CP197: 0 | CQ197: 0 | CR197: 0 | CS197: 0 | CT197: 0 | CU197: 0
B198: 186 | CH198: -1 | CI198: 0 | CJ198: 0 | CK198: 0 | CL198: 0 | CM198: 0 | CN198: 0 | CO198: 0 | CP198: 0 | CQ198: 0 | CR198: 0 | CS198: 0 | CT198: 0 | CU198: 0
B199: 187 | CH199: -1 | CI199: 0 | CJ199: 0 | CK199: 0 | CL199: 0 | CM199: 0 | CN199: 0 | CO199: 0 | CP199: 0 | CQ199: 0 | CR199: 0 | CS199: 0 | CT199: 0 | CU199: 0
B200: 188 | CH200: -1 | CI200: 0 | CJ200: 0 | CK200: 0 | CL200: 0 | CM200: 0 | CN200: 0 | CO200: 0 | CP200: 0 | CQ200: 0 | CR200: 0 | CS200: 0 | CT200: 0 | CU200: 0
B201: 189 | CH201: -1 | CI201: 0 | CJ201: 0 | CK201: 0 | CL201: 0 | CM201: 0 | CN201: 0 | CO201: 0 | CP201: 0 | CQ201: 0 | CR201: 0 | CS201: 0 | CT201: 0 | CU201: 0
B202: 190 | CH202: -1 | CI202: 0 | CJ202: 0 | CK202: 0 | CL202: 0 | CM202: 0 | CN202: 0 | CO202: 0 | CP202: 0 | CQ202: 0 | CR202: 0 | CS202: 0 | CT202: 0 | CU202: 0
... 228 more rows

Sheet Class B1 (hidden)
A1: B1
B4: Test No./Bench No. | I4: Date of test: | K4: Continuous braking | L4: mmax: | V4: =B4 -> Test No./Bench No. | X4: =IF($F$4<>0,$F$4,"---") -> --- | AB4: =IF($J$4<>0,$J$4,"---") -> ---
B5: Brake Pad | L5: mmin: | N5: max. Dm/min
I6: Disc: | J6: Ø / Width: | K6: Material: | L6: Manufacturer: | N6: =IF($CG$20=0,"Head complete","Missing entry(s)") -> Missing entry(s) | V6: Brake pad: | X6: =IF($F$5<>0,(F5&" "&"("&F6&" - "&G6&")"),"---") -> --- | AB6: =B8 -> UIC 541-3 Class B1
B7: Densitiy | C7: Net area | F7: Type | G7: Batch | BK7: Checks and intermediate results (not included in print-out) | BQ7: Bedding | CI7: Calculation of deviation class
B8: UIC 541-3 Class B1 | V8: Brake disc: | X8: =IF($J$7<>0,$J$7,"---") -> --- | Z8: =IF($K$7<>0,$K$7,"---") -> --- | AB8: =IF($L$7<>0,$L$7,"---") -> --- | BQ8: Start row | BR8: 13
BQ9: Events | BR9: =COUNTIF($C$13:$C$212,">0") -> 40
B10: Bedding | F10: Weighing results in g | G10: Brake appl. no. | H10: wet=1 | I10: Brake Priority | J10: Speed v [km/h] | K10: FB [kN] | L10: Braked mass per disc [t] | M10: mm | N10: Max. disc temp. [°C] | O10: Anmerk. | X10: Diameter / width | Z10: Material | AB10: Manufacturer | BQ10: to 100% | BR10: =ADDRESS(($BR$8+$BR$9)-1,3) -> $C$52 | BS10: =($BR$8+$BR$9)-1 -> 52 | CI10: km/h | CW10: Cell Formatting
B11: (min. 15 entries) | BQ11: to 30% | BR11: =IF(BT16=1,ADDRESS(BS11,3),"") -> $C$24 | BS11: =IF(BT16=1,BR25+12,"") -> 24 | BT11: =($BR$8+ROUNDUP($BR$9*0.3,0))-1 -> 24 | CH11: Summe | CW11: Bedding | CY11: Stop in TB (0=out) | CZ11: Bedding in TB? | DA11: Valid entry ym?
B12: No. | C12: mm | R12: Energy in kJ | BK12: Data plausibility check | BQ12: from 30% | BR12: =ADDRESS(BS12,3) -> $C$25 | BS12: =BR26+12 -> 25 | BT12: =($BR$8+ROUNDUP($BR$9*0.3,0)) -> 25 | CG12: Head | CH12: Deviation | CI12: 400 | CJ12: 350 | CK12: 300 | CL12: 250 | CM12: 220 | CN12: 200 | CO12: 160 | CP12: 140 | CQ12: 120 | CR12: 100 | CS12: 80 | CT12: 70 | CU12: 50
B13: 1 | C13: 0.35 | F13: Share of friction brake during ED, 160 to 100 km/h | G13: 1 | H13: 0 | I13: 4 | J13: 160 | K13: 7.5 | L13: 2.5 | M13: 0.35 | N13: 20 | R13: =0.5*L13*(J13/3.6)^2-0.5*L13*(100/3.6)^2 -> 1504.6 | BQ13: Nominal | BR13: =IF($BR$9>=5,AVERAGEIFS($C$13:$C$212,$B$13:$B$212,"<="&$BR$9,$B$13:$B$212,">"&$BR$9-5),"n<5") -> 0.35 | CH13: =IF(OR(ISERROR(SUM(CI13:CU13)),$I13<1),"-1",SUM(CI13:CU13)) -> 6 | CI13: =IF($J13=CI$12,MATCH(ROUND($M13,3),$BM$50:$BZ$50,1)-1,0)+IF(AND($J13=CI$12,ROUND($M13,3)>$AP$61),1,0) -> 0 | CJ13: =IF($J13=CJ$12,MATCH(ROUND($M13,3),$BM$51:$BZ$51,1)-1,0)+IF(AND($J13=CJ$12,ROUND($M13,3)>$AP$62),1,0) -> 0 | CK13: =IF($J13=CK$12,MATCH(ROUND($M13,3),$BM$52:$BZ$52,1)-1,0)+IF(AND($J13=CK$12,ROUND($M13,3)>$AP$63),1,0) -> 0 | CL13: =IF($J13=CL$12,MATCH(ROUND($M13,3),$BM$53:$BZ$53,1)-1,0)+IF(AND($J13=CL$12,ROUND($M13,3)>$AP$64),1,0) -> 0 | CM13: =IF($J13=CM$12,MATCH(ROUND($M13,3),$BM$54:$BZ$54,1)-1,0)+IF(AND($J13=CM$12,ROUND($M13,3)>$AP$65),1,0) -> 0 | CN13: =IF($J13=CN$12,MATCH(ROUND($M13,3),$BM$55:$BZ$55,1)-1,0)+IF(AND($J13=CN$12,ROUND($M13,3)>$AP$66),1,0) -> 0 | CO13: =IF($J13=CO$12,MATCH(ROUND($M13,3),$BM$56:$BZ$56,1)-1,0)+IF(AND($J13=CO$12,ROUND($M13,3)>$AP$67),1,0) -> 6 | CP13: =IF($J13=CP$12,MATCH(ROUND($M13,3),$BM$57:$BZ$57,1)-1,0)+IF(AND($J13=CP$12,ROUND($M13,3)>$AP$68),1,0) -> 0 | CQ13: =IF($J13=CQ$12,MATCH(ROUND($M13,3),$BM$58:$BZ$58,1)-1,0)+IF(AND($J13=CQ$12,ROUND($M13,3)>$AP$69),1,0) -> 0 | CR13: =IF($J13=CR$12,MATCH(ROUND($M13,3),$BM$59:$BZ$59,1)-1,0)+IF(AND($J13=CR$12,ROUND($M13,3)>$AP$70),1,0) -> 0 | CS13: =IF($J13=CS$12,MATCH(ROUND($M13,3),$BM$60:$BZ$60,1)-1,0)+IF(AND($J13=CS$12,ROUND($M13,3)>$AP$71),1,0) -> 0 | CT13: =IF($J13=CT$12,MATCH(ROUND($M13,3),$BM$61:$BZ$61,1)-1,0)+IF(AND($J13=CT$12,ROUND($M13,3)>$AP$72),1,0) -> 0 | CU13: =IF($J13=CU$12,MATCH(ROUND($M13,3),$BM$62:$BZ$62,1)-1,0)+IF(AND($J13=CU$12,ROUND($M13,3)>$AP$73),1,0) -> 0 | CW13: =IF($C13>0,$B13,#N/A) -> 1 | CX13: =IF($C13>0,ROUND($C13,3),#N/A) -> 0.35 | CY13: =IF(I13>0,IF(OR(AND($I13=1,$CH13>=5,$CH13<=8),AND(I13=2,$CH13>=4,$CH13<=9),AND($I13=3,$CH13>=3,$CH13<=10),AND($I13=4,$CH13>=2,$CH13<=11)),1,IF(OR(AND($I13=1,OR($CH13=4,$CH13=9)),AND($I13=2,OR($CH13=3,$CH13=10)),AND($I13=3,OR($CH13=2,$CH13=11)),AND($I13=4,OR($CH13=1,$CH13=12))),2,0)),#N/A) -> 1 | CZ13: =IF($C13>0,IF(OR(AND($B13>=$BR$24,$B13<=$BR$25,OR($C13>$BS$24,$C13<$BT$24)),AND($B13>=$BR$26,$B13<=$BR$27,OR($C13>$BS$26,$C13<$BT$26))),0,1),#N/A) -> 1 | DA13: =IF($I13>0,IF(AND(ISNUMBER(M13),$M13>0),1,0),"") -> 1
B14: 2 | C14: 0.35 | G14: 2 | H14: 0 | I14: 4 | J14: 160 | K14: 12 | L14: 2.5 | M14: 0.35 | N14: 20 | R14: =0.5*L14*(J14/3.6)^2-0.5*L14*(100/3.6)^2 -> 1504.6 | CH14: 6 | CI14: 0 | CJ14: 0 | CK14: 0 | CL14: 0 | CM14: 0 | CN14: 0 | CO14: 6 | CP14: 0 | CQ14: 0 | CR14: 0 | CS14: 0 | CT14: 0 | CU14: 0 | CW14: 2 | CX14: 0.35 | CY14: 1 | CZ14: =IF($C14>0,IF(OR(AND($B14>=$BR$24,$B14<=$BR$25,OR($C14>$BS$24,$C14<$BT$24)),AND($B14>=$BR$26,$B14<=$BR$27,OR($C14>$BS$26,$C14<$BT$26))),0,1),#N/A) -> 1 | DA14: =IF($I14>0,IF(AND(ISNUMBER(M14),$M14>0),1,0),"") -> 1
B15: 3 | C15: 0.35 | G15: 3 | H15: 0 | I15: 4 | J15: 160 | K15: 7.5 | L15: 2.5 | M15: 0.35 | N15: 20 | R15: 1504.6 | BK15: =IF(BL15<>0,"failed","passed") -> passed | BL15: =IF(OR($BT$21<14,BT21-BR21<>0),">1",0) -> 0 | BM15: Missing or invalid bedding data | BQ15: >30% | BR15: =IF(BT16=1,COUNTIFS($C$23:INDIRECT($BR$11),">"&($BR$13+$BR$13*0.3)),0) -> 0 | BT15: 30% existing | CG15: =IF(COUNTA($F$4:$H$6)=4,0,1) -> 1 | CH15: 6 | CI15: 0 | CJ15: 0 | CK15: 0 | CL15: 0 | CM15: 0 | CN15: 0 | CO15: 6 | CP15: 0 | CQ15: 0 | CR15: 0 | CS15: 0 | CT15: 0 | CU15: 0 | CW15: 3 | CX15: 0.35 | CY15: 1 | CZ15: 1 | DA15: 1
B16: 4 | C16: 0.35 | G16: 4 | H16: 0 | I16: 4 | J16: 160 | K16: 12 | L16: 2.5 | M16: 0.35 | N16: 20 | R16: 1504.6 | BQ16: +/- 30% | BR16: =IF(BT16=1,COUNTIFS($C$23:INDIRECT($BR$11),">"&($BR$13-$BR$13*0.3),$C$23:INDIRECT($BR$11),"<"&($BR$13+$BR$13*0.3)),0) -> 2 | BS16: =ROUND(BR9*0.3,0) -> 12 | BT16: =IF(BS16<=10,0,1) -> 1 | CG16: =IF(COUNTA($J$4)=1,0,1) -> 1 | CH16: 6 | CI16: 0 | CJ16: 0 | CK16: 0 | CL16: 0 | CM16: 0 | CN16: 0 | CO16: 6 | CP16: 0 | CQ16: 0 | CR16: 0 | CS16: 0 | CT16: 0 | CU16: 0 | CW16: 4 | CX16: 0.35 | CY16: 1 | CZ16: 1 | DA16: 1
B17: 5 | C17: 0.35 | G17: 5 | H17: 0 | I17: 4 | J17: 160 | K17: 7.5 | L17: 2.5 | M17: 0.35 | N17: 20 | R17: 1504.6 | BK17: =IF(BL17<>0,"failed","passed") -> passed | BL17: =COUNTIFS($I$13:$I$212,">0",$M$13:$M$212,"") -> 0 | BM17: Missing or invalid entries (except Prio 0 brake applications) | BQ17: <-30% | BR17: =IF(BT16=1,COUNTIFS($C$23:INDIRECT($BR$11),"<"&($BR$13-$BR$13*0.3)),0) -> 0 | CG17: =IF(COUNTA($J$7:$K$7)=2,0,1) -> 1 | CH17: 6 | CI17: 0 | CJ17: 0 | CK17: 0 | CL17: 0 | CM17: 0 | CN17: 0 | CO17: 6 | CP17: 0 | CQ17: 0 | CR17: 0 | CS17: 0 | CT17: 0 | CU17: 0 | CW17: 5 | CX17: 0.35 | CY17: 1 | CZ17: 1 | DA17: 1
B18: 6 | C18: 0.35 | G18: 6 | H18: 0 | I18: 4 | J18: 160 | K18: 12 | L18: 2.5 | M18: 0.35 | N18: 20 | R18: 1504.6 | BQ18: >15% | BR18: =IF(BT19=1,COUNTIFS(INDIRECT($BR$12):INDIRECT($BR$10),">"&($BR$13+$BR$13*0.15)),0) -> 0 | BT18: 15% existing | CG18: =IF(COUNTA($L$7)=1,0,1) -> 1 | CH18: 6 | CI18: 0 | CJ18: 0 | CK18: 0 | CL18: 0 | CM18: 0 | CN18: 0 | CO18: 6 | CP18: 0 | CQ18: 0 | CR18: 0 | CS18: 0 | CT18: 0 | CU18: 0 | CW18: 6 | CX18: 0.35 | CY18: 1 | CZ18: 1 | DA18: 1
B19: 7 | C19: 0.35 | F19: Dry brake applications, minimal mass | G19: 7 | H19: 0 | I19: 1 | J19: 50 | K19: 25 | L19: 4.5 | M19: 0.35 | N19: 20 | R19: =0.5*L19*(J19/3.6)^2 -> 434 | BK19: =IF(BL19<>0,"failed","passed") -> passed | BL19: =COUNTIFS($I$13:$I$212,">0",$M$13:$M$212,"<0,1") -> 0 | BM19: single mm value lower 0,1 | BQ19: +/- 15% | BR19: =IF(BT19=1,COUNTIFS(INDIRECT($BR$12):INDIRECT($BR$10),">"&($BR$13-$BR$13*0.15),INDIRECT($BR$12):INDIRECT($BR$10),"<"&($BR$13+$BR$13*0.15)),0) -> 28 | BS19: =ROUND(BR9*0.7,0) -> 28 | BT19: =IF(BS19<=10,0,1) -> 1 | CG19: =IF(COUNTA($M$4:$N$5)=4,0,1) -> 1 | CH19: 6 | CI19: 0 | CJ19: 0 | CK19: 0 | CL19: 0 | CM19: 0 | CN19: 0 | CO19: 0 | CP19: 0 | CQ19: 0 | CR19: 0 | CS19: 0 | CT19: 0 | CU19: 6 | CW19: 7 | CX19: 0.35 | CY19: 1 | CZ19: 1 | DA19: 1
B20: 8 | C20: 0.35 | G20: 8 | H20: 0 | I20: 1 | J20: 80 | K20: 25 | L20: 4.5 | M20: 0.35 | N20: 20 | R20: 1111.1 | BQ20: <-15% | BR20: =IF(BT19=1,COUNTIFS(INDIRECT($BR$12):INDIRECT($BR$10),"<"&($BR$13-$BR$13*0.15)),0) -> 0 | CG20: =SUM($CG$15:$CG$19) -> 5 | CH20: 6 | CI20: 0 | CJ20: 0 | CK20: 0 | CL20: 0 | CM20: 0 | CN20: 0 | CO20: 0 | CP20: 0 | CQ20: 0 | CR20: 0 | CS20: 6 | CT20: 0 | CU20: 0 | CW20: 8 | CX20: 0.35 | CY20: 1 | CZ20: 1 | DA20: 1
B21: 9 | C21: 0.35 | G21: 9 | H21: 0 | I21: 1 | J21: 120 | K21: 25 | L21: 4.5 | M21: 0.35 | N21: 20 | R21: 2500 | BK21: =IF(BL21<>0,"failed","passed") -> passed | BL21: =COUNTIFS($I$13:$I$212,">0",$M$13:$M$212,">0,6") -> 0 | BM21: single mm value higher 0,6 | BQ21: Check | BR21: =SUM($BR$15:$BR$20)+10 -> 40 | BS21: Amount of Entries: | BT21: =COUNTIFS(($C$13:$C$212),">0") -> 40 | CG21: =IF($CG$20>0,"Kopf un - vollständig","Kopf vollständig") -> Kopf un - vollständig | CH21: 6 | CI21: 0 | CJ21: 0 | CK21: 0 | CL21: 0 | CM21: 0 | CN21: 0 | CO21: 0 | CP21: 0 | CQ21: 6 | CR21: 0 | CS21: 0 | CT21: 0 | CU21: 0 | CW21: 9 | CX21: 0.35 | CY21: 1 | CZ21: 1 | DA21: 1
B22: 10 | C22: 0.35 | G22: 10 | H22: 0 | I22: 1 | J22: 140 | K22: 25 | L22: 4.5 | M22: 0.35 | N22: 20 | R22: 3402.8 | BQ22: Result | BR22: =IF($BR$21<>$BR$9,"error",IF($BR$9<=14,"not evaluable",IF($BR$15+$BR$17+$BR$18+$BR$20=0,"passed","failed"))) -> passed | CH22: 6 | CI22: 0 | CJ22: 0 | CK22: 0 | CL22: 0 | CM22: 0 | CN22: 0 | CO22: 0 | CP22: 6 | CQ22: 0 | CR22: 0 | CS22: 0 | CT22: 0 | CU22: 0 | CW22: 10 | CX22: 0.35 | CY22: 1 | CZ22: 1 | DA22: 1
B23: 11 | C23: 0.35 | G23: 11 | H23: 0 | I23: 1 | J23: 160 | K23: 25 | L23: 4.5 | M23: 0.35 | N23: 20 | R23: 4444.4 | BK23: =IF($BL$23=Info!I12,"passed","failed") -> passed | BL23: =$W$72 -> 146 | BM23: ="Sum all entries ="&TEXT(Info!I12,0) -> Sum all entries =146 | CH23: 6 | CI23: 0 | CJ23: 0 | CK23: 0 | CL23: 0 | CM23: 0 | CN23: 0 | CO23: 6 | CP23: 0 | CQ23: 0 | CR23: 0 | CS23: 0 | CT23: 0 | CU23: 0 | CW23: 11 | CX23: 0.35 | CY23: 1 | CZ23: 1 | DA23: 1
B24: 12 | C24: 0.35 | G24: 13 | H24: 0 | I24: 4 | J24: 50 | K24: 16 | L24: 4.5 | M24: 0.35 | N24: 20 | R24: 434 | BQ24: 30% lines | BR24: =IF(BT16=1,11,-1) -> 11 | BS24: =IF(BR24>0,$BR$13+$BR$13*0.3,"") -> 0.455 | BT24: =IF(BR24>0,$BR$13-$BR$13*0.3,"") -> 0.245 | CH24: 6 | CI24: 0 | CJ24: 0 | CK24: 0 | CL24: 0 | CM24: 0 | CN24: 0 | CO24: 0 | CP24: 0 | CQ24: 0 | CR24: 0 | CS24: 0 | CT24: 0 | CU24: 6 | CW24: 12 | CX24: 0.35 | CY24: 1 | CZ24: 1 | DA24: 1
B25: 13 | C25: 0.35 | G25: 14 | H25: 0 | I25: 4 | J25: 80 | K25: 16 | L25: 4.5 | M25: 0.35 | N25: 20 | R25: 1111.1 | BR25: =IF(BT16=1,BS16,-1) -> 12 | BS25: =IF(BR25>0,$BR$13+$BR$13*0.3,"") -> 0.455 | BT25: =IF(BR24>0,$BR$13-$BR$13*0.3,"") -> 0.245 | CH25: 6 | CI25: 0 | CJ25: 0 | CK25: 0 | CL25: 0 | CM25: 0 | CN25: 0 | CO25: 0 | CP25: 0 | CQ25: 0 | CR25: 0 | CS25: 6 | CT25: 0 | CU25: 0 | CW25: 13 | CX25: 0.35 | CY25: 1 | CZ25: 1 | DA25: 1
B26: 14 | C26: 0.35 | G26: 15 | H26: 0 | I26: 4 | J26: 120 | K26: 16 | L26: 4.5 | M26: 0.35 | N26: 20 | R26: 2500 | BK26: =IF(OR($BK$15="failed",$BK$17="failed",$BK$19="failed",$BK$21="failed",$BK$23="failed"),"failed","passed") -> passed | BQ26: 15% lines | BR26: =IF(AND(BT16=1,BT19=1),$BR$25+1,IF(AND(BT16=0,BT19=1),11,-1)) -> 13 | BS26: =IF(BR26>0,$BR$13+$BR$13*0.15,"") -> 0.4025 | BT26: =IF(BR26>0,$BR$13-$BR$13*0.15,"") -> 0.2975 | CG26: Transfor - mation | CH26: 6 | CI26: 0 | CJ26: 0 | CK26: 0 | CL26: 0 | CM26: 0 | CN26: 0 | CO26: 0 | CP26: 0 | CQ26: 6 | CR26: 0 | CS26: 0 | CT26: 0 | CU26: 0 | CW26: 14 | CX26: 0.35 | CY26: 1 | CZ26: 1 | DA26: 1
B27: 15 | C27: 0.35 | G27: 16 | H27: 0 | I27: 4 | J27: 140 | K27: 16 | L27: 4.5 | M27: 0.35 | N27: 20 | R27: 3402.8 | BR27: =IF($BR$26>10,$BR$9,-1) -> 40 | BS27: =IF(BR26>0,$BR$13+$BR$13*0.15,"") -> 0.4025 | BT27: =IF(BR26>0,$BR$13-$BR$13*0.15,"") -> 0.2975 | CH27: 6 | CI27: 0 | CJ27: 0 | CK27: 0 | CL27: 0 | CM27: 0 | CN27: 0 | CO27: 0 | CP27: 6 | CQ27: 0 | CR27: 0 | CS27: 0 | CT27: 0 | CU27: 0 | CW27: 15 | CX27: 0.35 | CY27: 1 | CZ27: 1 | DA27: 1
B28: 16 | C28: 0.35 | G28: 17 | H28: 0 | I28: 4 | J28: 160 | K28: 16 | L28: 4.5 | M28: 0.35 | N28: 20 | R28: 4444.4 | CH28: 6 | CI28: 0 | CJ28: 0 | CK28: 0 | CL28: 0 | CM28: 0 | CN28: 0 | CO28: 6 | CP28: 0 | CQ28: 0 | CR28: 0 | CS28: 0 | CT28: 0 | CU28: 0 | CW28: 16 | CX28: 0.35 | CY28: 1 | CZ28: 1 | DA28: 1
B29: 17 | C29: 0.35 | G29: 19 | H29: 0 | I29: 4 | J29: 50 | K29: 8 | L29: 4.5 | M29: 0.35 | N29: 20 | R29: 434 | BP29: Average coefficient of friction per Prio and speed | CH29: 6 | CI29: 0 | CJ29: 0 | CK29: 0 | CL29: 0 | CM29: 0 | CN29: 0 | CO29: 0 | CP29: 0 | CQ29: 0 | CR29: 0 | CS29: 0 | CT29: 0 | CU29: 6 | CW29: 17 | CX29: 0.35 | CY29: 1 | CZ29: 1 | DA29: 1
B30: 18 | C30: 0.35 | G30: 20 | H30: 0 | I30: 4 | J30: 80 | K30: 8 | L30: 4.5 | M30: 0.35 | N30: 20 | R30: 1111.1 | BP30: Speed | BQ30: Prio 1 | BR30: Prio 2 | BS30: Prio 3 | BT30: Prio 4 | CG30: ym | CH30: 6 | CI30: 0 | CJ30: 0 | CK30: 0 | CL30: 0 | CM30: 0 | CN30: 0 | CO30: 0 | CP30: 0 | CQ30: 0 | CR30: 0 | CS30: 6 | CT30: 0 | CU30: 0 | CW30: 18 | CX30: 0.35 | CY30: 1 | CZ30: 1 | DA30: 1
B31: 19 | C31: 0.35 | G31: 21 | H31: 0 | I31: 4 | J31: 120 | K31: 8 | L31: 4.5 | M31: 0.35 | N31: 20 | R31: 2500 | BK31: Average cefficient of friction | BM31: 400 | BN31: >0 | BO31: >0 | BP31: 400 | BQ31: =IF(ISERROR(AVERAGEIFS($M$13:$M$212,$H$13:$H$212,"<>1",$I$13:$I$212,"=1",$J$13:$J$212,$BM31,$K$13:$K$212,$BN31,$L$13:$L$212,$BO31)),"---",AVERAGEIFS($M$13:$M$212,$H$13:$H$212,"<>1",$I$13:$I$212,"=1",$J$13:$J$212,$BM31,$K$13:$K$212,$BN31,$L$13:$L$212,$BO31)) -> --- | BR31: =IF(ISERROR(AVERAGEIFS($M$13:$M$212,$H$13:$H$212,"<>1",$I$13:$I$212,"=2",$J$13:$J$212,$BM31,$K$13:$K$212,$BN31,$L$13:$L$212,$BO31)),"---",AVERAGEIFS($M$13:$M$212,$H$13:$H$212,"<>1",$I$13:$I$212,"=2",$J$13:$J$212,$BM31,$K$13:$K$212,$BN31,$L$13:$L$212,$BO31)) -> --- | BS31: =IF(ISERROR(AVERAGEIFS($M$13:$M$212,$H$13:$H$212,"<>1",$I$13:$I$212,"=3",$J$13:$J$212,$BM31,$K$13:$K$212,$BN31,$L$13:$L$212,$BO31)),"---",AVERAGEIFS($M$13:$M$212,$H$13:$H$212,"<>1",$I$13:$I$212,"=3",$J$13:$J$212,$BM31,$K$13:$K$212,$BN31,$L$13:$L$212,$BO31)) -> --- | BT31: =IF(ISERROR(AVERAGEIFS($M$13:$M$212,$H$13:$H$212,"<>1",$I$13:$I$212,"=4",$J$13:$J$212,$BM31,$K$13:$K$212,$BN31,$L$13:$L$212,$BO31)),"---",AVERAGEIFS($M$13:$M$212,$H$13:$H$212,"<>1",$I$13:$I$212,"=4",$J$13:$J$212,$BM31,$K$13:$K$212,$BN31,$L$13:$L$212,$BO31)) -> --- | CG31: mm | CH31: 6 | CI31: 0 | CJ31: 0 | CK31: 0 | CL31: 0 | CM31: 0 | CN31: 0 | CO31: 0 | CP31: 0 | CQ31: 6 | CR31: 0 | CS31: 0 | CT31: 0 | CU31: 0 | CW31: 19 | CX31: 0.35 | CY31: 1 | CZ31: 1 | DA31: 1
B32: 20 | C32: 0.35 | G32: 22 | H32: 0 | I32: 4 | J32: 140 | K32: 8 | L32: 4.5 | M32: 0.35 | N32: 20 | R32: 3402.8 | BM32: 350 | BN32: >0 | BO32: >0 | BP32: 350 | BQ32: --- | BR32: --- | BS32: --- | BT32: --- | CH32: 6 | CI32: 0 | CJ32: 0 | CK32: 0 | CL32: 0 | CM32: 0 | CN32: 0 | CO32: 0 | CP32: 6 | CQ32: 0 | CR32: 0 | CS32: 0 | CT32: 0 | CU32: 0 | CW32: 20 | CX32: 0.35 | CY32: 1 | CZ32: 1 | DA32: 1
B33: 21 | C33: 0.35 | G33: 23 | H33: 0 | I33: 4 | J33: 160 | K33: 8 | L33: 4.5 | M33: 0.35 | N33: 20 | R33: 4444.4 | BM33: 300 | BN33: >0 | BO33: >0 | BP33: 300 | BQ33: --- | BR33: --- | BS33: --- | BT33: --- | CH33: 6 | CI33: 0 | CJ33: 0 | CK33: 0 | CL33: 0 | CM33: 0 | CN33: 0 | CO33: 6 | CP33: 0 | CQ33: 0 | CR33: 0 | CS33: 0 | CT33: 0 | CU33: 0 | CW33: 21 | CX33: 0.35 | CY33: 1 | CZ33: 1 | DA33: 1
B34: 22 | C34: 0.35 | F34: Wet brake applications, min. mass | G34: 27 | H34: 1 | I34: 2 | J34: 50 | K34: 25 | L34: 4.5 | M34: 0.35 | N34: 20 | R34: 434 | BM34: 250 | BN34: >0 | BO34: >0 | BP34: 250 | BQ34: --- | BR34: --- | BS34: --- | BT34: --- | CH34: 6 | CI34: 0 | CJ34: 0 | CK34: 0 | CL34: 0 | CM34: 0 | CN34: 0 | CO34: 0 | CP34: 0 | CQ34: 0 | CR34: 0 | CS34: 0 | CT34: 0 | CU34: 6 | CW34: 22 | CX34: 0.35 | CY34: 1 | CZ34: 1 | DA34: 1
B35: 23 | C35: 0.35 | G35: 28 | H35: 1 | I35: 2 | J35: 80 | K35: 25 | L35: 4.5 | M35: 0.35 | N35: 20 | R35: 1111.1 | BM35: 220 | BN35: >0 | BO35: >0 | BP35: 220 | BQ35: --- | BR35: --- | BS35: --- | BT35: --- | CG35: Criteria for contious brake application fullfilled? | CH35: 6 | CI35: 0 | CJ35: 0 | CK35: 0 | CL35: 0 | CM35: 0 | CN35: 0 | CO35: 0 | CP35: 0 | CQ35: 0 | CR35: 0 | CS35: 6 | CT35: 0 | CU35: 0 | CW35: 23 | CX35: 0.35 | CY35: 1 | CZ35: 1 | DA35: 1
B36: 24 | C36: 0.35 | G36: 29 | H36: 1 | I36: 2 | J36: 120 | K36: 25 | L36: 4.5 | M36: 0.35 | N36: 20 | R36: 2500 | BM36: 200 | BN36: >0 | BO36: >0 | BP36: 200 | BQ36: --- | BR36: --- | BS36: --- | BT36: --- | CH36: 6 | CI36: 0 | CJ36: 0 | CK36: 0 | CL36: 0 | CM36: 0 | CN36: 0 | CO36: 0 | CP36: 0 | CQ36: 6 | CR36: 0 | CS36: 0 | CT36: 0 | CU36: 0 | CW36: 24 | CX36: 0.35 | CY36: 1 | CZ36: 1 | DA36: 1
B37: 25 | C37: 0.35 | G37: 30 | H37: 1 | I37: 2 | J37: 140 | K37: 25 | L37: 4.5 | M37: 0.35 | N37: 20 | R37: 3402.8 | BM37: 160 | BN37: >0 | BO37: >0 | BP37: 160 | BQ37: 0.35 | BR37: 0.35 | BS37: 0.35 | BT37: 0.35 | CH37: 6 | CI37: 0 | CJ37: 0 | CK37: 0 | CL37: 0 | CM37: 0 | CN37: 0 | CO37: 0 | CP37: 6 | CQ37: 0 | CR37: 0 | CS37: 0 | CT37: 0 | CU37: 0 | CW37: 25 | CX37: 0.35 | CY37: 1 | CZ37: 1 | DA37: 1
B38: 26 | C38: 0.35 | G38: 31 | H38: 1 | I38: 4 | J38: 50 | K38: 16 | L38: 4.5 | M38: 0.35 | N38: 20 | R38: 434 | BM38: 140 | BN38: >0 | BO38: >0 | BP38: 140 | BQ38: 0.35 | BR38: 0.35 | BS38: --- | BT38: 0.35 | CH38: 6 | CI38: 0 | CJ38: 0 | CK38: 0 | CL38: 0 | CM38: 0 | CN38: 0 | CO38: 0 | CP38: 0 | CQ38: 0 | CR38: 0 | CS38: 0 | CT38: 0 | CU38: 6 | CW38: 26 | CX38: 0.35 | CY38: 1 | CZ38: 1 | DA38: 1
B39: 27 | C39: 0.35 | G39: 32 | H39: 1 | I39: 4 | J39: 80 | K39: 16 | L39: 4.5 | M39: 0.35 | N39: 20 | R39: 1111.1 | BM39: 120 | BN39: >0 | BO39: >0 | BP39: 120 | BQ39: 0.35 | BR39: 0.35 | BS39: 0.35 | BT39: 0.35 | CH39: 6 | CI39: 0 | CJ39: 0 | CK39: 0 | CL39: 0 | CM39: 0 | CN39: 0 | CO39: 0 | CP39: 0 | CQ39: 0 | CR39: 0 | CS39: 6 | CT39: 0 | CU39: 0 | CW39: 27 | CX39: 0.35 | CY39: 1 | CZ39: 1 | DA39: 1
B40: 28 | C40: 0.35 | G40: 33 | H40: 1 | I40: 4 | J40: 120 | K40: 16 | L40: 4.5 | M40: 0.35 | N40: 20 | R40: 2500 | BM40: 100 | BN40: >0 | BO40: >0 | BP40: 100 | BQ40: --- | BR40: --- | BS40: --- | BT40: --- | CH40: 6 | CI40: 0 | CJ40: 0 | CK40: 0 | CL40: 0 | CM40: 0 | CN40: 0 | CO40: 0 | CP40: 0 | CQ40: 6 | CR40: 0 | CS40: 0 | CT40: 0 | CU40: 0 | CW40: 28 | CX40: 0.35 | CY40: 1 | CZ40: 1 | DA40: 1
B41: 29 | C41: 0.35 | G41: 34 | H41: 1 | I41: 4 | J41: 140 | K41: 16 | L41: 4.5 | M41: 0.35 | N41: 20 | R41: 3402.8 | BM41: 80 | BN41: >0 | BO41: >0 | BP41: 80 | BQ41: 0.35 | BR41: 0.35 | BS41: --- | BT41: 0.35 | CH41: 6 | CI41: 0 | CJ41: 0 | CK41: 0 | CL41: 0 | CM41: 0 | CN41: 0 | CO41: 0 | CP41: 6 | CQ41: 0 | CR41: 0 | CS41: 0 | CT41: 0 | CU41: 0 | CW41: 29 | CX41: 0.35 | CY41: 1 | CZ41: 1 | DA41: 1
B42: 30 | C42: 0.35 | F42: Dry brake applications to dry the brake pad | G42: 35 | H42: 0 | I42: 4 | J42: 120 | K42: 24 | L42: 6.5 | M42: 0.35 | N42: 20 | R42: 3611.1 | BM42: 70 | BN42: >0 | BO42: >0 | BP42: 70 | BQ42: --- | BR42: --- | BS42: 0.35 | BT42: --- | CG42: TRUE | CH42: 6 | CI42: 0 | CJ42: 0 | CK42: 0 | CL42: 0 | CM42: 0 | CN42: 0 | CO42: 0 | CP42: 0 | CQ42: 6 | CR42: 0 | CS42: 0 | CT42: 0 | CU42: 0 | CW42: 30 | CX42: 0.35 | CY42: 1 | CZ42: 1 | DA42: 1
B43: 31 | C43: 0.35 | G43: 36 | H43: 0 | I43: 4 | J43: 120 | K43: 24 | L43: 6.5 | M43: 0.35 | N43: 20 | R43: 3611.1 | BM43: 50 | BN43: >0 | BO43: >0 | BP43: 50 | BQ43: 0.35 | BR43: 0.35 | BS43: --- | BT43: 0.35 | CH43: 6 | CI43: 0 | CJ43: 0 | CK43: 0 | CL43: 0 | CM43: 0 | CN43: 0 | CO43: 0 | CP43: 0 | CQ43: 6 | CR43: 0 | CS43: 0 | CT43: 0 | CU43: 0 | CW43: 31 | CX43: 0.35 | CY43: 1 | CZ43: 1 | DA43: 1
B44: 32 | C44: 0.35 | G44: 37 | H44: 0 | I44: 4 | J44: 120 | K44: 24 | L44: 6.5 | M44: 0.35 | N44: 20 | R44: 3611.1 | BK44: Average: | BM44: >=50 | BN44: >0 | BO44: >0 | BP44: >=50 | BQ44: 0.35 | BR44: 0.35 | BS44: 0.35 | BT44: 0.35 | CG44: =IF(ISERROR(SEARCH("WAHR",$CG$42)),"0",SEARCH("WAHR",$CG$42)) -> 1 | CH44: 6 | CI44: 0 | CJ44: 0 | CK44: 0 | CL44: 0 | CM44: 0 | CN44: 0 | CO44: 0 | CP44: 0 | CQ44: 6 | CR44: 0 | CS44: 0 | CT44: 0 | CU44: 0 | CW44: 32 | CX44: 0.35 | CY44: 1 | CZ44: 1 | DA44: 1
B45: 33 | C45: 0.35 | G45: 38 | H45: 0 | I45: 4 | J45: 120 | K45: 24 | L45: 6.5 | M45: 0.35 | N45: 20 | R45: 3611.1 | CH45: =IF(OR(ISERROR(SUM(CI45:CU45)),$I45<1),"-1",SUM(CI45:CU45)) -> 6 | CI45: 0 | CJ45: 0 | CK45: 0 | CL45: 0 | CM45: 0 | CN45: 0 | CO45: 0 | CP45: 0 | CQ45: 6 | CR45: 0 | CS45: 0 | CT45: 0 | CU45: 0 | CW45: 33 | CX45: 0.35 | CY45: 1 | CZ45: 1 | DA45: 1
B46: 34 | C46: 0.35 | G46: 39 | H46: 0 | I46: 4 | J46: 120 | K46: 24 | L46: 6.5 | M46: 0.35 | N46: 20 | R46: 3611.1 | CH46: 6 | CI46: 0 | CJ46: 0 | CK46: 0 | CL46: 0 | CM46: 0 | CN46: 0 | CO46: 0 | CP46: 0 | CQ46: 6 | CR46: 0 | CS46: 0 | CT46: 0 | CU46: 0 | CW46: 34 | CX46: 0.35 | CY46: 1 | CZ46: 1 | DA46: 1
B47: 35 | C47: 0.35 | G47: 40 | H47: 0 | I47: 4 | J47: 120 | K47: 24 | L47: 6.5 | M47: 0.35 | N47: 20 | R47: 3611.1 | BK47: Numbering | BM47: 0 | BN47: 1 | BO47: 2 | BP47: 3 | BQ47: 4 | BR47: 5 | BS47: 6 | BT47: 7 | BU47: 8 | BV47: 9 | BW47: 10 | BX47: 11 | BY47: 12 | BZ47: 13 | CG47: Checksum Bedding Start | CH47: 6 | CI47: 0 | CJ47: 0 | CK47: 0 | CL47: 0 | CM47: 0 | CN47: 0 | CO47: 0 | CP47: 0 | CQ47: 6 | CR47: 0 | CS47: 0 | CT47: 0 | CU47: 0 | CW47: 35 | CX47: 0.35 | CY47: 1 | CZ47: 1 | DA47: 1
B48: 36 | C48: 0.35 | G48: 41 | H48: 0 | I48: 4 | J48: 120 | K48: 24 | L48: 6.5 | M48: 0.35 | N48: 20 | R48: 3611.1 | BK48: % | BL48: Leerfeld | BM48: <-30% | BN48: -0.3 | BO48: -0.25 | BP48: -0.2 | BQ48: -0.15 | BR48: -0.1 | BS48: -0.05 | BT48: 0.05 | BU48: 0.1 | BV48: 0.15 | BW48: 0.2 | BX48: 0.25 | BY48: 0.3 | BZ48: >30% | CH48: 6 | CI48: 0 | CJ48: 0 | CK48: 0 | CL48: 0 | CM48: 0 | CN48: 0 | CO48: 0 | CP48: 0 | CQ48: 6 | CR48: 0 | CS48: 0 | CT48: 0 | CU48: 0 | CW48: 36 | CX48: 0.35 | CY48: 1 | CZ48: 1 | DA48: 1
B49: 37 | C49: 0.35 | G49: 42 | H49: 0 | I49: 4 | J49: 120 | K49: 24 | L49: 6.5 | M49: 0.35 | N49: 20 | R49: 3611.1 | BK49: km/h | CH49: 6 | CI49: 0 | CJ49: 0 | CK49: 0 | CL49: 0 | CM49: 0 | CN49: 0 | CO49: 0 | CP49: 0 | CQ49: 6 | CR49: 0 | CS49: 0 | CT49: 0 | CU49: 0 | CW49: 37 | CX49: 0.35 | CY49: 1 | CZ49: 1 | DA49: 1
B50: 38 | C50: 0.35 | G50: 43 | H50: 0 | I50: 4 | J50: 120 | K50: 24 | L50: 6.5 | M50: 0.35 | N50: 20 | R50: 3611.1 | BK50: 400 | BM50: 0.001 | BN50: =$AP61*0.7 -> 0.245 | BO50: =$AP61*0.75 -> 0.2625 | BP50: =$AP61*0.8 -> 0.28 | BQ50: =$AP61*0.85 -> 0.2975 | BR50: =$AP61*0.9 -> 0.315 | BS50: =$AP61*0.95 -> 0.3325 | BT50: =$AP61*1.05 -> 0.3675 | BU50: =$AP61*1.1 -> 0.385 | BV50: =$AP61*1.15 -> 0.4025 | BW50: =$AP61*1.2 -> 0.42 | BX50: =$AP61*1.25 -> 0.4375 | BY50: =$AP61*1.3 -> 0.455 | BZ50: 1 | CH50: 6 | CI50: 0 | CJ50: 0 | CK50: 0 | CL50: 0 | CM50: 0 | CN50: 0 | CO50: 0 | CP50: 0 | CQ50: 6 | CR50: 0 | CS50: 0 | CT50: 0 | CU50: 0 | CW50: 38 | CX50: 0.35 | CY50: 1 | CZ50: 1 | DA50: 1
B51: 39 | C51: 0.35 | G51: 44 | H51: 0 | I51: 4 | J51: 120 | K51: 24 | L51: 6.5 | M51: 0.35 | N51: 20 | R51: 3611.1 | BK51: 350 | BM51: 0.001 | BN51: 0.245 | BO51: 0.2625 | BP51: 0.28 | BQ51: 0.2975 | BR51: 0.315 | BS51: 0.3325 | BT51: 0.3675 | BU51: 0.385 | BV51: 0.4025 | BW51: 0.42 | BX51: 0.4375 | BY51: 0.455 | BZ51: 1 | CH51: 6 | CI51: 0 | CJ51: 0 | CK51: 0 | CL51: 0 | CM51: 0 | CN51: 0 | CO51: 0 | CP51: 0 | CQ51: 6 | CR51: 0 | CS51: 0 | CT51: 0 | CU51: 0 | CW51: 39 | CX51: 0.35 | CY51: 1 | CZ51: 1 | DA51: 1
B52: 40 | C52: 0.35 | F52: Dry brake applications, medium mass | G52: 45 | H52: 0 | I52: 1 | J52: 50 | K52: 36 | L52: 6.5 | M52: 0.35 | N52: 20 | R52: 626.9 | BK52: 300 | BM52: 0.001 | BN52: 0.245 | BO52: 0.2625 | BP52: 0.28 | BQ52: 0.2975 | BR52: 0.315 | BS52: 0.3325 | BT52: 0.3675 | BU52: 0.385 | BV52: 0.4025 | BW52: 0.42 | BX52: 0.4375 | BY52: 0.455 | BZ52: 1 | CG52: =IF($BR$21=$BT$21,1,0) -> 1 | CH52: 6 | CI52: 0 | CJ52: 0 | CK52: 0 | CL52: 0 | CM52: 0 | CN52: 0 | CO52: 0 | CP52: 0 | CQ52: 0 | CR52: 0 | CS52: 0 | CT52: 0 | CU52: 6 | CW52: 40 | CX52: 0.35 | CY52: 1 | CZ52: 1 | DA52: 1
B53: 41 | G53: 46 | H53: 0 | I53: 1 | J53: 80 | K53: 36 | L53: 6.5 | M53: 0.35 | N53: 20 | R53: 1604.9 | BK53: 250 | BM53: 0.001 | BN53: 0.245 | BO53: 0.2625 | BP53: 0.28 | BQ53: 0.2975 | BR53: 0.315 | BS53: 0.3325 | BT53: 0.3675 | BU53: 0.385 | BV53: 0.4025 | BW53: 0.42 | BX53: 0.4375 | BY53: 0.455 | BZ53: 1 | CH53: 6 | CI53: 0 | CJ53: 0 | CK53: 0 | CL53: 0 | CM53: 0 | CN53: 0 | CO53: 0 | CP53: 0 | CQ53: 0 | CR53: 0 | CS53: 6 | CT53: 0 | CU53: 0 | CY53: 1 | DA53: 1
B54: 42 | G54: 47 | H54: 0 | I54: 1 | J54: 120 | K54: 36 | L54: 6.5 | M54: 0.35 | N54: 20 | R54: 3611.1 | BK54: 220 | BM54: 0.001 | BN54: 0.245 | BO54: 0.2625 | BP54: 0.28 | BQ54: 0.2975 | BR54: 0.315 | BS54: 0.3325 | BT54: 0.3675 | BU54: 0.385 | BV54: 0.4025 | BW54: 0.42 | BX54: 0.4375 | BY54: 0.455 | BZ54: 1 | CH54: 6 | CI54: 0 | CJ54: 0 | CK54: 0 | CL54: 0 | CM54: 0 | CN54: 0 | CO54: 0 | CP54: 0 | CQ54: 6 | CR54: 0 | CS54: 0 | CT54: 0 | CU54: 0 | CY54: 1 | DA54: 1
B55: 43 | G55: 48 | H55: 0 | I55: 1 | J55: 140 | K55: 36 | L55: 6.5 | M55: 0.35 | N55: 20 | R55: 4915.1 | AO55: Nominal line (Priority 1) | BK55: 200 | BM55: 0.001 | BN55: 0.245 | BO55: 0.2625 | BP55: 0.28 | BQ55: 0.2975 | BR55: 0.315 | BS55: 0.3325 | BT55: 0.3675 | BU55: 0.385 | BV55: 0.4025 | BW55: 0.42 | BX55: 0.4375 | BY55: 0.455 | BZ55: 1 | CH55: 6 | CI55: 0 | CJ55: 0 | CK55: 0 | CL55: 0 | CM55: 0 | CN55: 0 | CO55: 0 | CP55: 6 | CQ55: 0 | CR55: 0 | CS55: 0 | CT55: 0 | CU55: 0 | CY55: 1 | DA55: 1
B56: 44 | G56: 49 | H56: 0 | I56: 1 | J56: 160 | K56: 36 | L56: 6.5 | M56: 0.35 | N56: 20 | R56: 6419.8 | V56: Tolerance Band | W56: Priority | AA56: Bedding 30% | AB56: Bedding 15% | AC56: Continuous Braking | BK56: 160 | BM56: 0.001 | BN56: 0.245 | BO56: 0.2625 | BP56: 0.28 | BQ56: 0.2975 | BR56: 0.315 | BS56: 0.3325 | BT56: 0.3675 | BU56: 0.385 | BV56: 0.4025 | BW56: 0.42 | BX56: 0.4375 | BY56: 0.455 | BZ56: 1 | CH56: 6 | CI56: 0 | CJ56: 0 | CK56: 0 | CL56: 0 | CM56: 0 | CN56: 0 | CO56: 6 | CP56: 0 | CQ56: 0 | CR56: 0 | CS56: 0 | CT56: 0 | CU56: 0 | CY56: 1 | DA56: 1
B57: 45 | G57: 51 | H57: 0 | I57: 1 | J57: 50 | K57: 36 | L57: 6.5 | M57: 0.35 | N57: 20 | R57: 626.9 | W57: 1 | X57: 2 | Y57: 3 | Z57: 4 | AO57: Formula | AP57: =CONCATENATE($AT$62," v + ",$AT$64) -> 2,23242269776831E-34 v + 0,35 | BK57: 140 | BM57: 0.001 | BN57: 0.245 | BO57: 0.2625 | BP57: 0.28 | BQ57: 0.2975 | BR57: 0.315 | BS57: 0.3325 | BT57: 0.3675 | BU57: 0.385 | BV57: 0.4025 | BW57: 0.42 | BX57: 0.4375 | BY57: 0.455 | BZ57: 1 | CH57: 6 | CI57: 0 | CJ57: 0 | CK57: 0 | CL57: 0 | CM57: 0 | CN57: 0 | CO57: 0 | CP57: 0 | CQ57: 0 | CR57: 0 | CS57: 0 | CT57: 0 | CU57: 6 | CY57: 1 | DA57: 1
B58: 46 | G58: 52 | H58: 0 | I58: 1 | J58: 80 | K58: 36 | L58: 6.5 | M58: 0.35 | N58: 20 | R58: 1604.9 | V58: mm > 30% | W58: =COUNTIFS($CH$13:$CH$212,13,$I$13:$I$212,W$57) -> 0 | X58: =COUNTIFS($CH$13:$CH$212,13,$I$13:$I$212,X$57) -> 0 | Y58: =COUNTIFS($CH$13:$CH$212,13,$I$13:$I$212,Y$57) -> 0 | Z58: =COUNTIFS($CH$13:$CH$212,13,$I$13:$I$212,Z$57) -> 0 | AA58: =$BR$15 -> 0 | AB58: =$BR$18 -> 0 | AC58: Enter friction values for cont. braking in M4, M5 and N4 | BK58: 120 | BM58: 0.001 | BN58: 0.245 | BO58: 0.2625 | BP58: 0.28 | BQ58: 0.2975 | BR58: 0.315 | BS58: 0.3325 | BT58: 0.3675 | BU58: 0.385 | BV58: 0.4025 | BW58: 0.42 | BX58: 0.4375 | BY58: 0.455 | BZ58: 1 | CH58: 6 | CI58: 0 | CJ58: 0 | CK58: 0 | CL58: 0 | CM58: 0 | CN58: 0 | CO58: 0 | CP58: 0 | CQ58: 0 | CR58: 0 | CS58: 6 | CT58: 0 | CU58: 0 | CY58: 1 | DA58: 1
B59: 47 | G59: 53 | H59: 0 | I59: 1 | J59: 120 | K59: 36 | L59: 6.5 | M59: 0.35 | N59: 20 | R59: 3611.1 | V59: 30…25% | W59: =COUNTIFS($CH$13:$CH$212,12,$I$13:$I$212,W$57) -> 0 | X59: =COUNTIFS($CH$13:$CH$212,12,$I$13:$I$212,X$57) -> 0 | Y59: =COUNTIFS($CH$13:$CH$212,12,$I$13:$I$212,Y$57) -> 0 | Z59: =COUNTIFS($CH$13:$CH$212,12,$I$13:$I$212,Z$57) -> 0 | AA59: =$BR$16 -> 2 | AO59: Speed [km/h] | AP59: mm,NL (value of NL) | BK59: 100 | BM59: 0.001 | BN59: 0.245 | BO59: 0.2625 | BP59: 0.28 | BQ59: 0.2975 | BR59: 0.315 | BS59: 0.3325 | BT59: 0.3675 | BU59: 0.385 | BV59: 0.4025 | BW59: 0.42 | BX59: 0.4375 | BY59: 0.455 | BZ59: 1 | CH59: 6 | CI59: 0 | CJ59: 0 | CK59: 0 | CL59: 0 | CM59: 0 | CN59: 0 | CO59: 0 | CP59: 0 | CQ59: 6 | CR59: 0 | CS59: 0 | CT59: 0 | CU59: 0 | CY59: 1 | DA59: 1
B60: 48 | G60: 54 | H60: 0 | I60: 1 | J60: 140 | K60: 36 | L60: 6.5 | M60: 0.35 | N60: 20 | R60: 4915.1 | V60: 25…20% | W60: =COUNTIFS($CH$13:$CH$212,11,$I$13:$I$212,W$57) -> 0 | X60: =COUNTIFS($CH$13:$CH$212,11,$I$13:$I$212,X$57) -> 0 | Y60: =COUNTIFS($CH$13:$CH$212,11,$I$13:$I$212,Y$57) -> 0 | Z60: =COUNTIFS($CH$13:$CH$212,11,$I$13:$I$212,Z$57) -> 0 | AR60: slope in 1/(100 km/h) (a) | AT60: =$AT$62*100 -> 2.232422698e-32 | BK60: 80 | BM60: 0.001 | BN60: 0.245 | BO60: 0.2625 | BP60: 0.28 | BQ60: 0.2975 | BR60: 0.315 | BS60: 0.3325 | BT60: 0.3675 | BU60: 0.385 | BV60: 0.4025 | BW60: 0.42 | BX60: 0.4375 | BY60: 0.455 | BZ60: 1 | CH60: 6 | CI60: 0 | CJ60: 0 | CK60: 0 | CL60: 0 | CM60: 0 | CN60: 0 | CO60: 0 | CP60: 6 | CQ60: 0 | CR60: 0 | CS60: 0 | CT60: 0 | CU60: 0 | CY60: 1 | DA60: 1
B61: 49 | G61: 55 | H61: 0 | I61: 1 | J61: 160 | K61: 36 | L61: 6.5 | M61: 0.35 | N61: 20 | R61: 6419.8 | V61: 20…15% | W61: =COUNTIFS($CH$13:$CH$212,10,$I$13:$I$212,W$57) -> 0 | X61: =COUNTIFS($CH$13:$CH$212,10,$I$13:$I$212,X$57) -> 0 | Y61: =COUNTIFS($CH$13:$CH$212,10,$I$13:$I$212,Y$57) -> 0 | Z61: =COUNTIFS($CH$13:$CH$212,10,$I$13:$I$212,Z$57) -> 0 | AO61: 400 | AP61: =$AT$62*$AO61+$AT$64 -> 0.35 | AW61: =IF(COUNTIF($J$13:$J$147,$AO61)>0,"Ja","Nein") -> Nein | BK61: 70 | BM61: 0.001 | BN61: 0.245 | BO61: 0.2625 | BP61: 0.28 | BQ61: 0.2975 | BR61: 0.315 | BS61: 0.3325 | BT61: 0.3675 | BU61: 0.385 | BV61: 0.4025 | BW61: 0.42 | BX61: 0.4375 | BY61: 0.455 | BZ61: 1 | CH61: 6 | CI61: 0 | CJ61: 0 | CK61: 0 | CL61: 0 | CM61: 0 | CN61: 0 | CO61: 6 | CP61: 0 | CQ61: 0 | CR61: 0 | CS61: 0 | CT61: 0 | CU61: 0 | CY61: 1 | DA61: 1
B62: 50 | G62: 57 | H62: 0 | I62: 1 | J62: 50 | K62: 36 | L62: 6.5 | M62: 0.35 | N62: 20 | R62: 626.9 | V62: 15…10% | W62: =COUNTIFS($CH$13:$CH$212,9,$I$13:$I$212,W$57) -> 0 | X62: =COUNTIFS($CH$13:$CH$212,9,$I$13:$I$212,X$57) -> 0 | Y62: =COUNTIFS($CH$13:$CH$212,9,$I$13:$I$212,Y$57) -> 0 | Z62: =COUNTIFS($CH$13:$CH$212,9,$I$13:$I$212,Z$57) -> 0 | AB62: =$BR$19 -> 28 | AC62: =IF(AND($M$4<=0.5,$M$5>=0.25,$N$4<=0.05),"passed",IF(OR($M$4="",$M$5="",$N$4=""),"no values","failed")) -> no values | AO62: 350 | AP62: 0.35 | AR62: slope in 1/(km/h) | AT62: =SLOPE(IF(ISNUMBER($CM$217:$CM$428),$CM$217:$CM$428),IF(ISNUMBER($CJ$217:$CJ$428),$CJ$217:$CJ$428)) -> 2.232422698e-34 | AW62: Nein | AX62: =IF($J$4<>0,$J$4,"---") -> --- | BK62: 50 | BM62: 0.001 | BN62: 0.245 | BO62: 0.2625 | BP62: 0.28 | BQ62: 0.2975 | BR62: 0.315 | BS62: 0.3325 | BT62: 0.3675 | BU62: 0.385 | BV62: 0.4025 | BW62: 0.42 | BX62: 0.4375 | BY62: 0.455 | BZ62: 1 | CH62: 6 | CI62: 0 | CJ62: 0 | CK62: 0 | CL62: 0 | CM62: 0 | CN62: 0 | CO62: 0 | CP62: 0 | CQ62: 0 | CR62: 0 | CS62: 0 | CT62: 0 | CU62: 6 | CY62: 1 | DA62: 1
B63: 51 | G63: 58 | H63: 0 | I63: 1 | J63: 80 | K63: 36 | L63: 6.5 | M63: 0.35 | N63: 20 | R63: 1604.9 | V63: 10…5% | W63: =COUNTIFS($CH$13:$CH$212,8,$I$13:$I$212,W$57) -> 0 | X63: =COUNTIFS($CH$13:$CH$212,8,$I$13:$I$212,X$57) -> 0 | Y63: =COUNTIFS($CH$13:$CH$212,8,$I$13:$I$212,Y$57) -> 0 | Z63: =COUNTIFS($CH$13:$CH$212,8,$I$13:$I$212,Z$57) -> 0 | AC63: Wear during cont. braking + stop in mm | AO63: 300 | AP63: 0.35 | AW63: Nein | CH63: 6 | CI63: 0 | CJ63: 0 | CK63: 0 | CL63: 0 | CM63: 0 | CN63: 0 | CO63: 0 | CP63: 0 | CQ63: 0 | CR63: 0 | CS63: 6 | CT63: 0 | CU63: 0 | CY63: 1 | DA63: 1
B64: 52 | G64: 59 | H64: 0 | I64: 1 | J64: 120 | K64: 36 | L64: 6.5 | M64: 0.35 | N64: 20 | R64: 3611.1 | V64: 5...-5% | W64: =COUNTIFS($CH$13:$CH$212,7,$I$13:$I$212,W$57)+COUNTIFS($CH$13:$CH$212,6,$I$13:$I$212,W$57) -> 26 | X64: =COUNTIFS($CH$13:$CH$212,7,$I$13:$I$212,X$57)+COUNTIFS($CH$13:$CH$212,6,$I$13:$I$212,X$57) -> 30 | Y64: =COUNTIFS($CH$13:$CH$212,7,$I$13:$I$212,Y$57)+COUNTIFS($CH$13:$CH$212,6,$I$13:$I$212,Y$57) -> 12 | Z64: =COUNTIFS($CH$13:$CH$212,7,$I$13:$I$212,Z$57)+COUNTIFS($CH$13:$CH$212,6,$I$13:$I$212,Z$57) -> 78 | AO64: 250 | AP64: 0.35 | AR64: axis intercept (b) | AT64: =INTERCEPT(IF(ISNUMBER($CM$217:$CM$428),$CM$217:$CM$428),IF(ISNUMBER($CJ$217:$CJ$428),$CJ$217:$CJ$428)) -> 0.35 | AW64: Nein | AX64: =X66 -> 0 | CH64: 6 | CI64: 0 | CJ64: 0 | CK64: 0 | CL64: 0 | CM64: 0 | CN64: 0 | CO64: 0 | CP64: 0 | CQ64: 6 | CR64: 0 | CS64: 0 | CT64: 0 | CU64: 0 | CY64: 1 | DA64: 1
B65: 53 | G65: 60 | H65: 0 | I65: 1 | J65: 140 | K65: 36 | L65: 6.5 | M65: 0.35 | N65: 20 | R65: 4915.1 | V65: -5…-10% | W65: =COUNTIFS($CH$13:$CH$212,5,$I$13:$I$212,W$57) -> 0 | X65: =COUNTIFS($CH$13:$CH$212,5,$I$13:$I$212,X$57) -> 0 | Y65: =COUNTIFS($CH$13:$CH$212,5,$I$13:$I$212,Y$57) -> 0 | Z65: =COUNTIFS($CH$13:$CH$212,5,$I$13:$I$212,Z$57) -> 0 | AO65: 220 | AP65: 0.35 | AW65: Nein | CH65: 6 | CI65: 0 | CJ65: 0 | CK65: 0 | CL65: 0 | CM65: 0 | CN65: 0 | CO65: 0 | CP65: 6 | CQ65: 0 | CR65: 0 | CS65: 0 | CT65: 0 | CU65: 0 | CY65: 1 | DA65: 1
B66: 54 | G66: 61 | H66: 0 | I66: 1 | J66: 160 | K66: 36 | L66: 6.5 | M66: 0.35 | N66: 20 | R66: 6419.8 | V66: -10…-15% | W66: =COUNTIFS($CH$13:$CH$212,4,$I$13:$I$212,W$57) -> 0 | X66: =COUNTIFS($CH$13:$CH$212,4,$I$13:$I$212,X$57) -> 0 | Y66: =COUNTIFS($CH$13:$CH$212,4,$I$13:$I$212,Y$57) -> 0 | Z66: =COUNTIFS($CH$13:$CH$212,4,$I$13:$I$212,Z$57) -> 0 | AC66: =IF(OR($F$135="",$F$137="",$B$6="",$C$6=""),"no values",IF(AND(($F$135-$F$137)>0,$B$6>0,$C$6>0),(($F$135-$F$137)/$B$6*1/(2*$C$6)*10),"invalid")) -> no values | AO66: 200 | AP66: 0.35 | AW66: Nein | AX66: =IF($L$7<>0,$L$7,"---") -> --- | CH66: 6 | CI66: 0 | CJ66: 0 | CK66: 0 | CL66: 0 | CM66: 0 | CN66: 0 | CO66: 6 | CP66: 0 | CQ66: 0 | CR66: 0 | CS66: 0 | CT66: 0 | CU66: 0 | CY66: 1 | DA66: 1
B67: 55 | G67: 63 | H67: 0 | I67: 4 | J67: 50 | K67: 24 | L67: 6.5 | M67: 0.35 | N67: 20 | R67: 626.9 | V67: -15…-20% | W67: =COUNTIFS($CH$13:$CH$212,3,$I$13:$I$212,W$57) -> 0 | X67: =COUNTIFS($CH$13:$CH$212,3,$I$13:$I$212,X$57) -> 0 | Y67: =COUNTIFS($CH$13:$CH$212,3,$I$13:$I$212,Y$57) -> 0 | Z67: =COUNTIFS($CH$13:$CH$212,3,$I$13:$I$212,Z$57) -> 0 | AB67: =$BR$20 -> 0 | AC67: Information | AO67: 160 | AP67: 0.35 | AR67: Criteria for nominal line | AW67: Ja | CH67: 6 | CI67: 0 | CJ67: 0 | CK67: 0 | CL67: 0 | CM67: 0 | CN67: 0 | CO67: 0 | CP67: 0 | CQ67: 0 | CR67: 0 | CS67: 0 | CT67: 0 | CU67: 6 | CY67: 1 | DA67: 1
B68: 56 | G68: 64 | H68: 0 | I68: 4 | J68: 80 | K68: 24 | L68: 6.5 | M68: 0.35 | N68: 20 | R68: 1604.9 | V68: -20…-25% | W68: =COUNTIFS($CH$13:$CH$212,2,$I$13:$I$212,W$57) -> 0 | X68: =COUNTIFS($CH$13:$CH$212,2,$I$13:$I$212,X$57) -> 0 | Y68: =COUNTIFS($CH$13:$CH$212,2,$I$13:$I$212,Y$57) -> 0 | Z68: =COUNTIFS($CH$13:$CH$212,2,$I$13:$I$212,Z$57) -> 0 | AC68: Energy in MJ | AO68: 140 | AP68: 0.35 | AW68: Ja | AX68: Manufacturer | CH68: 6 | CI68: 0 | CJ68: 0 | CK68: 0 | CL68: 0 | CM68: 0 | CN68: 0 | CO68: 0 | CP68: 0 | CQ68: 0 | CR68: 0 | CS68: 6 | CT68: 0 | CU68: 0 | CY68: 1 | DA68: 1
B69: 57 | G69: 65 | H69: 0 | I69: 4 | J69: 120 | K69: 24 | L69: 6.5 | M69: 0.35 | N69: 20 | R69: 3611.1 | V69: -25…-30% | W69: =COUNTIFS($CH$13:$CH$212,1,$I$13:$I$212,W$57) -> 0 | X69: =COUNTIFS($CH$13:$CH$212,1,$I$13:$I$212,X$57) -> 0 | Y69: =COUNTIFS($CH$13:$CH$212,1,$I$13:$I$212,Y$57) -> 0 | Z69: =COUNTIFS($CH$13:$CH$212,1,$I$13:$I$212,Z$57) -> 0 | AC69: =R172 -> 540.2 | AO69: 120 | AP69: 0.35 | AR69: Limits 0,28-0,47 | AT69: =IF(AND($CO$432>=$CH$432,$CO$432<=$CI$432,$CO$433>=$CH$433,$CO$433<=$CI$433),"passed","failed") -> passed | AW69: Ja | CH69: 6 | CI69: 0 | CJ69: 0 | CK69: 0 | CL69: 0 | CM69: 0 | CN69: 0 | CO69: 0 | CP69: 0 | CQ69: 6 | CR69: 0 | CS69: 0 | CT69: 0 | CU69: 0 | CY69: 1 | DA69: 1
B70: 58 | G70: 66 | H70: 0 | I70: 4 | J70: 140 | K70: 24 | L70: 6.5 | M70: 0.35 | N70: 20 | R70: 4915.1 | V70: mm < -30% | W70: =COUNTIFS($CH$13:$CH$212,0,$I$13:$I$212,W$57) -> 0 | X70: =COUNTIFS($CH$13:$CH$212,0,$I$13:$I$212,X$57) -> 0 | Y70: =COUNTIFS($CH$13:$CH$212,0,$I$13:$I$212,Y$57) -> 0 | Z70: =COUNTIFS($CH$13:$CH$212,0,$I$13:$I$212,Z$57) -> 0 | AA70: =$BR$17 -> 0 | AC70: Average wear in g/100 MJ | AO70: 100 | AP70: =$AT$62*$AO$70+$AT$64 -> 0.35 | AW70: Nein | CH70: 6 | CI70: 0 | CJ70: 0 | CK70: 0 | CL70: 0 | CM70: 0 | CN70: 0 | CO70: 0 | CP70: 6 | CQ70: 0 | CR70: 0 | CS70: 0 | CT70: 0 | CU70: 0 | CY70: 1 | DA70: 1
B71: 59 | G71: 67 | H71: 0 | I71: 4 | J71: 160 | K71: 24 | L71: 6.5 | M71: 0.35 | N71: 20 | R71: 6419.8 | V71: Sum Column | W71: =SUM(W$58:W$70) -> 26 | X71: =SUM(X$58:X$70) -> 30 | Y71: =SUM(Y$58:Y$70) -> 12 | Z71: =SUM(Z$58:Z$70) -> 78 | AA71: =SUM(AA58:AA70) -> 2 | AB71: =SUM(AB58:AB70) -> 28 | AO71: 80 | AP71: =$AT$62*$AO$71+$AT$64 -> 0.35 | AR71: Difference <0,15 | AT71: =IF(ABS($CO$433-$CO$432)<=0.15,"passed","failed") -> passed | AW71: Ja | CH71: 6 | CI71: 0 | CJ71: 0 | CK71: 0 | CL71: 0 | CM71: 0 | CN71: 0 | CO71: 6 | CP71: 0 | CQ71: 0 | CR71: 0 | CS71: 0 | CT71: 0 | CU71: 0 | CY71: 1 | DA71: 1
B72: 60 | G72: 69 | H72: 0 | I72: 4 | J72: 50 | K72: 12 | L72: 6.5 | M72: 0.35 | N72: 20 | R72: 626.9 | V72: Sum all | W72: =SUM(W71:Z71) -> 146 | AA72: =TEXT(SUM(AA71:AB71),"0")&" (+10)" -> 30 (+10) | AC72: =IF(($F$12-$F$159)>0,($F$12-$F$159)/$AC$69*100,IF(OR($F$12="",$F$159=""),"no values","invalid")) -> no values | AO72: 70 | AP72: =$AT$62*$AO$72+$AT$64 -> 0.35 | AW72: Ja | CH72: 6 | CI72: 0 | CJ72: 0 | CK72: 0 | CL72: 0 | CM72: 0 | CN72: 0 | CO72: 0 | CP72: 0 | CQ72: 0 | CR72: 0 | CS72: 0 | CT72: 0 | CU72: 6 | CY72: 1 | DA72: 1
B73: 61 | G73: 70 | H73: 0 | I73: 4 | J73: 80 | K73: 12 | L73: 6.5 | M73: 0.35 | N73: 20 | R73: 1604.9 | AO73: 50 | AP73: =$AT$62*$AO$73+$AT$64 -> 0.35 | AW73: Ja | CH73: 6 | CI73: 0 | CJ73: 0 | CK73: 0 | CL73: 0 | CM73: 0 | CN73: 0 | CO73: 0 | CP73: 0 | CQ73: 0 | CR73: 0 | CS73: 6 | CT73: 0 | CU73: 0 | CY73: 1 | DA73: 1
B74: 62 | G74: 71 | H74: 0 | I74: 4 | J74: 120 | K74: 12 | L74: 6.5 | M74: 0.35 | N74: 20 | R74: 3611.1 | V74: Priority | W74: 1 | X74: 2-4 | AA74: Bedding | AC74: Contin. | CH74: 6 | CI74: 0 | CJ74: 0 | CK74: 0 | CL74: 0 | CM74: 0 | CN74: 0 | CO74: 0 | CP74: 0 | CQ74: 6 | CR74: 0 | CS74: 0 | CT74: 0 | CU74: 0 | CY74: 1 | DA74: 1
B75: 63 | G75: 72 | H75: 0 | I75: 4 | J75: 140 | K75: 12 | L75: 6.5 | M75: 0.35 | N75: 20 | R75: 4915.1 | V75: Result | W75: =IF(OR(OR(SUM($W$70,$W$69,$W$68,$W$67,$W$61,$W$60,$W$59,$W$58)>0),(SUM($W$62,$W$66)>ROUND(0.12*W71,0)),(SUM($W$66)>ROUND(0.06*W71,0))),"failed","passed") -> passed | X75: =IF(OR(OR(SUM($X$58:$X$60,$Y$58,$Y$59,$Z$58,$X$68:$X$70,$Y$69,$Y$70,$Z$70)>0),(SUM($X$67,$Y$68,$Z$69,$Z$59,$Y$60,$X$61)>(ROUND(0.1*(SUM($Y$71,$Z$71,$X$71)),0))),(SUM($Z$69,$Y$68,$X$67)>(ROUND(0.05*SUM($Z$71,$Y$71,$X$71),0)))),"failed","passed") -> passed | AA75: =IF(OR(SUM($AA$58,$AB$58,$AB$67,$AA$70)>0,$BK$15="failed"),"failed","passed") -> passed | AC75: =IF(AND($M$4<=0.5,$M$5>=0.25,$N$4<=0.05),"passed","failed") -> failed | CH75: 6 | CI75: 0 | CJ75: 0 | CK75: 0 | CL75: 0 | CM75: 0 | CN75: 0 | CO75: 0 | CP75: 6 | CQ75: 0 | CR75: 0 | CS75: 0 | CT75: 0 | CU75: 0 | CY75: 1 | DA75: 1
B76: 64 | G76: 73 | H76: 0 | I76: 4 | J76: 160 | K76: 12 | L76: 6.5 | M76: 0.35 | N76: 20 | R76: 6419.8 | CH76: 6 | CI76: 0 | CJ76: 0 | CK76: 0 | CL76: 0 | CM76: 0 | CN76: 0 | CO76: 6 | CP76: 0 | CQ76: 0 | CR76: 0 | CS76: 0 | CT76: 0 | CU76: 0 | CY76: 1 | DA76: 1
B77: 65 | F77: Wet brake applications, medium mass | G77: 75 | H77: 1 | I77: 2 | J77: 50 | K77: 36 | L77: 6.5 | M77: 0.35 | N77: 20 | R77: 626.9 | V77: UIC test | W77: =IF(AND($AA$75="passed",$W$75="passed",$X$75="passed",$AC$75="passed",$AC$77="passed",$Z$77="passed"),"passed","failed") -> failed | Y77: Nominal line | Z77: =IF(AND($AT$69="passed",$AT$71="passed"),"passed","failed") -> passed | AB77: Plausibility | AC77: =$BK$26 -> passed | AN77: Report | AQ77: Checked | AT77: Released | CH77: =IF(OR(ISERROR(SUM(CI77:CU77)),$I77<1),"-1",SUM(CI77:CU77)) -> 6 | CI77: =IF($J77=CI$12,MATCH(ROUND($M77,3),$BM$50:$BZ$50,1)-1,0)+IF(AND($J77=CI$12,ROUND($M77,3)>$AP$61),1,0) -> 0 | CJ77: =IF($J77=CJ$12,MATCH(ROUND($M77,3),$BM$51:$BZ$51,1)-1,0)+IF(AND($J77=CJ$12,ROUND($M77,3)>$AP$62),1,0) -> 0 | CK77: =IF($J77=CK$12,MATCH(ROUND($M77,3),$BM$52:$BZ$52,1)-1,0)+IF(AND($J77=CK$12,ROUND($M77,3)>$AP$63),1,0) -> 0 | CL77: =IF($J77=CL$12,MATCH(ROUND($M77,3),$BM$53:$BZ$53,1)-1,0)+IF(AND($J77=CL$12,ROUND($M77,3)>$AP$64),1,0) -> 0 | CM77: =IF($J77=CM$12,MATCH(ROUND($M77,3),$BM$54:$BZ$54,1)-1,0)+IF(AND($J77=CM$12,ROUND($M77,3)>$AP$65),1,0) -> 0 | CN77: =IF($J77=CN$12,MATCH(ROUND($M77,3),$BM$55:$BZ$55,1)-1,0)+IF(AND($J77=CN$12,ROUND($M77,3)>$AP$66),1,0) -> 0 | CO77: =IF($J77=CO$12,MATCH(ROUND($M77,3),$BM$56:$BZ$56,1)-1,0)+IF(AND($J77=CO$12,ROUND($M77,3)>$AP$67),1,0) -> 0 | CP77: =IF($J77=CP$12,MATCH(ROUND($M77,3),$BM$57:$BZ$57,1)-1,0)+IF(AND($J77=CP$12,ROUND($M77,3)>$AP$68),1,0) -> 0 | CQ77: =IF($J77=CQ$12,MATCH(ROUND($M77,3),$BM$58:$BZ$58,1)-1,0)+IF(AND($J77=CQ$12,ROUND($M77,3)>$AP$69),1,0) -> 0 | CR77: =IF($J77=CR$12,MATCH(ROUND($M77,3),$BM$59:$BZ$59,1)-1,0)+IF(AND($J77=CR$12,ROUND($M77,3)>$AP$70),1,0) -> 0 | CS77: =IF($J77=CS$12,MATCH(ROUND($M77,3),$BM$60:$BZ$60,1)-1,0)+IF(AND($J77=CS$12,ROUND($M77,3)>$AP$71),1,0) -> 0 | CT77: =IF($J77=CT$12,MATCH(ROUND($M77,3),$BM$61:$BZ$61,1)-1,0)+IF(AND($J77=CT$12,ROUND($M77,3)>$AP$72),1,0) -> 0 | CU77: =IF($J77=CU$12,MATCH(ROUND($M77,3),$BM$62:$BZ$62,1)-1,0)+IF(AND($J77=CU$12,ROUND($M77,3)>$AP$73),1,0) -> 6 | CW77: =IF($C77>0,$B77,#N/A) ->  | CX77: =IF($C77>0,ROUND($C77,3),#N/A) ->  | CY77: =IF(I77>0,IF(OR(AND($I77=1,$CH77>=5,$CH77<=8),AND(I77=2,$CH77>=4,$CH77<=9),AND($I77=3,$CH77>=3,$CH77<=10),AND($I77=4,$CH77>=2,$CH77<=11)),1,IF(OR(AND($I77=1,OR($CH77=4,$CH77=9)),AND($I77=2,OR($CH77=3,$CH77=10)),AND($I77=3,OR($CH77=2,$CH77=11)),AND($I77=4,OR($CH77=1,$CH77=12))),2,0)),#N/A) -> 1 | DA77: 1
B78: 66 | G78: 76 | H78: 1 | I78: 2 | J78: 80 | K78: 36 | L78: 6.5 | M78: 0.35 | N78: 20 | R78: =0.5*L78*(J78/3.6)^2 -> 1604.9 | CH78: 6 | CI78: 0 | CJ78: 0 | CK78: 0 | CL78: 0 | CM78: 0 | CN78: 0 | CO78: 0 | CP78: 0 | CQ78: 0 | CR78: 0 | CS78: 6 | CT78: 0 | CU78: 0 | CY78: 1 | CZ78: =IF($C78>0,IF(OR(AND($B78>=$BR$24,$B78<=$BR$25,OR($C78>$BS$24,$C78<$BT$24)),AND($B78>=$BR$26,$B78<=$BR$27,OR($C78>$BS$26,$C78<$BT$26))),0,1),#N/A) ->  | DA78: =IF($I78>0,IF(AND(ISNUMBER(M78),$M78>0),1,0),"") -> 1
B79: 67 | G79: 77 | H79: 1 | I79: 2 | J79: 120 | K79: 36 | L79: 6.5 | M79: 0.35 | N79: 20 | R79: 3611.1 | CH79: 6 | CI79: 0 | CJ79: 0 | CK79: 0 | CL79: 0 | CM79: 0 | CN79: 0 | CO79: 0 | CP79: 0 | CQ79: 6 | CR79: 0 | CS79: 0 | CT79: 0 | CU79: 0 | CY79: 1 | DA79: 1
B80: 68 | G80: 78 | H80: 1 | I80: 2 | J80: 140 | K80: 36 | L80: 6.5 | M80: 0.35 | N80: 20 | R80: 4915.1 | CH80: 6 | CI80: 0 | CJ80: 0 | CK80: 0 | CL80: 0 | CM80: 0 | CN80: 0 | CO80: 0 | CP80: 6 | CQ80: 0 | CR80: 0 | CS80: 0 | CT80: 0 | CU80: 0 | CY80: 1 | DA80: 1
B81: 69 | G81: 79 | H81: 1 | I81: 4 | J81: 50 | K81: 24 | L81: 6.5 | M81: 0.35 | N81: 20 | R81: 626.9 | BB81: =IF($J$4<>0,$J$4,"---") -> --- | CH81: 6 | CI81: 0 | CJ81: 0 | CK81: 0 | CL81: 0 | CM81: 0 | CN81: 0 | CO81: 0 | CP81: 0 | CQ81: 0 | CR81: 0 | CS81: 0 | CT81: 0 | CU81: 6 | CY81: 1 | DA81: 1
B82: 70 | G82: 80 | H82: 1 | I82: 4 | J82: 80 | K82: 24 | L82: 6.5 | M82: 0.35 | N82: 20 | R82: 1604.9 | CH82: 6 | CI82: 0 | CJ82: 0 | CK82: 0 | CL82: 0 | CM82: 0 | CN82: 0 | CO82: 0 | CP82: 0 | CQ82: 0 | CR82: 0 | CS82: 6 | CT82: 0 | CU82: 0 | CY82: 1 | DA82: 1
B83: 71 | G83: 81 | H83: 1 | I83: 4 | J83: 120 | K83: 24 | L83: 6.5 | M83: 0.35 | N83: 20 | R83: 3611.1 | BB83: =AB85 -> 0 | CH83: 6 | CI83: 0 | CJ83: 0 | CK83: 0 | CL83: 0 | CM83: 0 | CN83: 0 | CO83: 0 | CP83: 0 | CQ83: 6 | CR83: 0 | CS83: 0 | CT83: 0 | CU83: 0 | CY83: 1 | DA83: 1
B84: 72 | G84: 82 | H84: 1 | I84: 4 | J84: 140 | K84: 24 | L84: 6.5 | M84: 0.35 | N84: 20 | R84: 4915.1 | CH84: 6 | CI84: 0 | CJ84: 0 | CK84: 0 | CL84: 0 | CM84: 0 | CN84: 0 | CO84: 0 | CP84: 6 | CQ84: 0 | CR84: 0 | CS84: 0 | CT84: 0 | CU84: 0 | CY84: 1 | DA84: 1
B85: 73 | G85: 83 | H85: 1 | I85: 2 | J85: 50 | K85: 36 | L85: 6.5 | M85: 0.35 | N85: 20 | R85: 626.9 | BB85: =IF($L$7<>0,$L$7,"---") -> --- | CH85: 6 | CI85: 0 | CJ85: 0 | CK85: 0 | CL85: 0 | CM85: 0 | CN85: 0 | CO85: 0 | CP85: 0 | CQ85: 0 | CR85: 0 | CS85: 0 | CT85: 0 | CU85: 6 | CY85: 1 | DA85: 1
B86: 74 | G86: 84 | H86: 1 | I86: 2 | J86: 80 | K86: 36 | L86: 6.5 | M86: 0.35 | N86: 20 | R86: 1604.9 | CH86: 6 | CI86: 0 | CJ86: 0 | CK86: 0 | CL86: 0 | CM86: 0 | CN86: 0 | CO86: 0 | CP86: 0 | CQ86: 0 | CR86: 0 | CS86: 6 | CT86: 0 | CU86: 0 | CY86: 1 | DA86: 1
B87: 75 | G87: 85 | H87: 1 | I87: 2 | J87: 120 | K87: 36 | L87: 6.5 | M87: 0.35 | N87: 20 | R87: 3611.1 | BB87: Manufacturer | CH87: 6 | CI87: 0 | CJ87: 0 | CK87: 0 | CL87: 0 | CM87: 0 | CN87: 0 | CO87: 0 | CP87: 0 | CQ87: 6 | CR87: 0 | CS87: 0 | CT87: 0 | CU87: 0 | CY87: 1 | DA87: 1
B88: 76 | G88: 86 | H88: 1 | I88: 2 | J88: 140 | K88: 36 | L88: 6.5 | M88: 0.35 | N88: 20 | R88: 4915.1 | CH88: 6 | CI88: 0 | CJ88: 0 | CK88: 0 | CL88: 0 | CM88: 0 | CN88: 0 | CO88: 0 | CP88: 6 | CQ88: 0 | CR88: 0 | CS88: 0 | CT88: 0 | CU88: 0 | CY88: 1 | DA88: 1
B89: 77 | G89: 87 | H89: 1 | I89: 2 | J89: 50 | K89: 36 | L89: 6.5 | M89: 0.35 | N89: 20 | R89: 626.9 | CH89: 6 | CI89: 0 | CJ89: 0 | CK89: 0 | CL89: 0 | CM89: 0 | CN89: 0 | CO89: 0 | CP89: 0 | CQ89: 0 | CR89: 0 | CS89: 0 | CT89: 0 | CU89: 6 | CY89: 1 | DA89: 1
B90: 78 | G90: 88 | H90: 1 | I90: 2 | J90: 80 | K90: 36 | L90: 6.5 | M90: 0.35 | N90: 20 | R90: 1604.9 | CH90: 6 | CI90: 0 | CJ90: 0 | CK90: 0 | CL90: 0 | CM90: 0 | CN90: 0 | CO90: 0 | CP90: 0 | CQ90: 0 | CR90: 0 | CS90: 6 | CT90: 0 | CU90: 0 | CY90: 1 | DA90: 1
B91: 79 | G91: 89 | H91: 1 | I91: 2 | J91: 120 | K91: 36 | L91: 6.5 | M91: 0.35 | N91: 20 | R91: 3611.1 | CH91: 6 | CI91: 0 | CJ91: 0 | CK91: 0 | CL91: 0 | CM91: 0 | CN91: 0 | CO91: 0 | CP91: 0 | CQ91: 6 | CR91: 0 | CS91: 0 | CT91: 0 | CU91: 0 | CY91: 1 | DA91: 1
B92: 80 | G92: 90 | H92: 1 | I92: 2 | J92: 140 | K92: 36 | L92: 6.5 | M92: 0.35 | N92: 20 | R92: 4915.1 | CH92: 6 | CI92: 0 | CJ92: 0 | CK92: 0 | CL92: 0 | CM92: 0 | CN92: 0 | CO92: 0 | CP92: 6 | CQ92: 0 | CR92: 0 | CS92: 0 | CT92: 0 | CU92: 0 | CY92: 1 | DA92: 1
B93: 81 | F93: Dry brake applications to dry the brake pad | G93: 91 | H93: 0 | I93: 4 | J93: 120 | K93: 24 | L93: 6.5 | M93: 0.35 | N93: 20 | R93: 3611.1 | CH93: 6 | CI93: 0 | CJ93: 0 | CK93: 0 | CL93: 0 | CM93: 0 | CN93: 0 | CO93: 0 | CP93: 0 | CQ93: 6 | CR93: 0 | CS93: 0 | CT93: 0 | CU93: 0 | CY93: 1 | DA93: 1
B94: 82 | G94: 92 | H94: 0 | I94: 4 | J94: 120 | K94: 24 | L94: 6.5 | M94: 0.35 | N94: 20 | R94: 3611.1 | CH94: 6 | CI94: 0 | CJ94: 0 | CK94: 0 | CL94: 0 | CM94: 0 | CN94: 0 | CO94: 0 | CP94: 0 | CQ94: 6 | CR94: 0 | CS94: 0 | CT94: 0 | CU94: 0 | CY94: 1 | DA94: 1
B95: 83 | G95: 93 | H95: 0 | I95: 4 | J95: 120 | K95: 24 | L95: 6.5 | M95: 0.35 | N95: 20 | R95: 3611.1 | CH95: 6 | CI95: 0 | CJ95: 0 | CK95: 0 | CL95: 0 | CM95: 0 | CN95: 0 | CO95: 0 | CP95: 0 | CQ95: 6 | CR95: 0 | CS95: 0 | CT95: 0 | CU95: 0 | CY95: 1 | DA95: 1
B96: 84 | G96: 94 | H96: 0 | I96: 4 | J96: 120 | K96: 24 | L96: 6.5 | M96: 0.35 | N96: 20 | R96: 3611.1 | CH96: 6 | CI96: 0 | CJ96: 0 | CK96: 0 | CL96: 0 | CM96: 0 | CN96: 0 | CO96: 0 | CP96: 0 | CQ96: 6 | CR96: 0 | CS96: 0 | CT96: 0 | CU96: 0 | CY96: 1 | DA96: 1
B97: 85 | G97: 95 | H97: 0 | I97: 4 | J97: 120 | K97: 24 | L97: 6.5 | M97: 0.35 | N97: 20 | R97: 3611.1 | CH97: 6 | CI97: 0 | CJ97: 0 | CK97: 0 | CL97: 0 | CM97: 0 | CN97: 0 | CO97: 0 | CP97: 0 | CQ97: 6 | CR97: 0 | CS97: 0 | CT97: 0 | CU97: 0 | CY97: 1 | DA97: 1
B98: 86 | G98: 96 | H98: 0 | I98: 4 | J98: 120 | K98: 24 | L98: 6.5 | M98: 0.35 | N98: 20 | R98: 3611.1 | CH98: 6 | CI98: 0 | CJ98: 0 | CK98: 0 | CL98: 0 | CM98: 0 | CN98: 0 | CO98: 0 | CP98: 0 | CQ98: 6 | CR98: 0 | CS98: 0 | CT98: 0 | CU98: 0 | CY98: 1 | DA98: 1
B99: 87 | G99: 97 | H99: 0 | I99: 4 | J99: 120 | K99: 24 | L99: 6.5 | M99: 0.35 | N99: 20 | R99: 3611.1 | CH99: 6 | CI99: 0 | CJ99: 0 | CK99: 0 | CL99: 0 | CM99: 0 | CN99: 0 | CO99: 0 | CP99: 0 | CQ99: 6 | CR99: 0 | CS99: 0 | CT99: 0 | CU99: 0 | CY99: 1 | DA99: 1
B100: 88 | G100: 98 | H100: 0 | I100: 4 | J100: 120 | K100: 24 | L100: 6.5 | M100: 0.35 | N100: 20 | R100: 3611.1 | CH100: 6 | CI100: 0 | CJ100: 0 | CK100: 0 | CL100: 0 | CM100: 0 | CN100: 0 | CO100: 0 | CP100: 0 | CQ100: 6 | CR100: 0 | CS100: 0 | CT100: 0 | CU100: 0 | CY100: 1 | DA100: 1
B101: 89 | G101: 99 | H101: 0 | I101: 4 | J101: 120 | K101: 24 | L101: 6.5 | M101: 0.35 | N101: 20 | R101: 3611.1 | CH101: 6 | CI101: 0 | CJ101: 0 | CK101: 0 | CL101: 0 | CM101: 0 | CN101: 0 | CO101: 0 | CP101: 0 | CQ101: 6 | CR101: 0 | CS101: 0 | CT101: 0 | CU101: 0 | CY101: 1 | DA101: 1
B102: 90 | G102: 100 | H102: 0 | I102: 4 | J102: 120 | K102: 24 | L102: 6.5 | M102: 0.35 | N102: 20 | R102: 3611.1 | CH102: 6 | CI102: 0 | CJ102: 0 | CK102: 0 | CL102: 0 | CM102: 0 | CN102: 0 | CO102: 0 | CP102: 0 | CQ102: 6 | CR102: 0 | CS102: 0 | CT102: 0 | CU102: 0 | CY102: 1 | DA102: 1
B103: 91 | F103: Dry brake applications, maximum mass | G103: 101 | H103: 0 | I103: 1 | J103: 50 | K103: 44 | L103: 8 | M103: 0.35 | N103: 20 | R103: 771.6 | CH103: 6 | CI103: 0 | CJ103: 0 | CK103: 0 | CL103: 0 | CM103: 0 | CN103: 0 | CO103: 0 | CP103: 0 | CQ103: 0 | CR103: 0 | CS103: 0 | CT103: 0 | CU103: 6 | CY103: 1 | DA103: 1
B104: 92 | G104: 102 | H104: 0 | I104: 1 | J104: 80 | K104: 44 | L104: 8 | M104: 0.35 | N104: 20 | R104: 1975.3 | CH104: 6 | CI104: 0 | CJ104: 0 | CK104: 0 | CL104: 0 | CM104: 0 | CN104: 0 | CO104: 0 | CP104: 0 | CQ104: 0 | CR104: 0 | CS104: 6 | CT104: 0 | CU104: 0 | CY104: 1 | DA104: 1
B105: 93 | G105: 103 | H105: 0 | I105: 1 | J105: 120 | K105: 44 | L105: 8 | M105: 0.35 | N105: 20 | R105: 4444.4 | CH105: 6 | CI105: 0 | CJ105: 0 | CK105: 0 | CL105: 0 | CM105: 0 | CN105: 0 | CO105: 0 | CP105: 0 | CQ105: 6 | CR105: 0 | CS105: 0 | CT105: 0 | CU105: 0 | CY105: 1 | DA105: 1
B106: 94 | G106: 104 | H106: 0 | I106: 1 | J106: 140 | K106: 44 | L106: 8 | M106: 0.35 | N106: 20 | R106: 6049.4 | CH106: 6 | CI106: 0 | CJ106: 0 | CK106: 0 | CL106: 0 | CM106: 0 | CN106: 0 | CO106: 0 | CP106: 6 | CQ106: 0 | CR106: 0 | CS106: 0 | CT106: 0 | CU106: 0 | CY106: 1 | DA106: 1
B107: 95 | G107: 105 | H107: 0 | I107: 1 | J107: 160 | K107: 44 | L107: 8 | M107: 0.35 | N107: 20 | R107: 7901.2 | CH107: 6 | CI107: 0 | CJ107: 0 | CK107: 0 | CL107: 0 | CM107: 0 | CN107: 0 | CO107: 6 | CP107: 0 | CQ107: 0 | CR107: 0 | CS107: 0 | CT107: 0 | CU107: 0 | CY107: 1 | DA107: 1
B108: 96 | G108: 107 | H108: 0 | I108: 4 | J108: 50 | K108: 30 | L108: 8 | M108: 0.35 | N108: 20 | R108: 771.6 | CH108: 6 | CI108: 0 | CJ108: 0 | CK108: 0 | CL108: 0 | CM108: 0 | CN108: 0 | CO108: 0 | CP108: 0 | CQ108: 0 | CR108: 0 | CS108: 0 | CT108: 0 | CU108: 6 | CY108: 1 | DA108: 1
B109: 97 | G109: 108 | H109: 0 | I109: 4 | J109: 80 | K109: 30 | L109: 8 | M109: 0.35 | N109: 20 | R109: 1975.3 | CH109: =IF(OR(ISERROR(SUM(CI109:CU109)),$I109<1),"-1",SUM(CI109:CU109)) -> 6 | CI109: 0 | CJ109: 0 | CK109: 0 | CL109: 0 | CM109: 0 | CN109: 0 | CO109: 0 | CP109: 0 | CQ109: 0 | CR109: 0 | CS109: 6 | CT109: 0 | CU109: 0 | CY109: 1 | DA109: 1
B110: 98 | G110: 109 | H110: 0 | I110: 4 | J110: 120 | K110: 30 | L110: 8 | M110: 0.35 | N110: 20 | R110: 4444.4 | CH110: 6 | CI110: 0 | CJ110: 0 | CK110: 0 | CL110: 0 | CM110: 0 | CN110: 0 | CO110: 0 | CP110: 0 | CQ110: 6 | CR110: 0 | CS110: 0 | CT110: 0 | CU110: 0 | CY110: 1 | DA110: 1
B111: 99 | G111: 110 | H111: 0 | I111: 4 | J111: 140 | K111: 30 | L111: 8 | M111: 0.35 | N111: 20 | R111: 6049.4 | CH111: 6 | CI111: 0 | CJ111: 0 | CK111: 0 | CL111: 0 | CM111: 0 | CN111: 0 | CO111: 0 | CP111: 6 | CQ111: 0 | CR111: 0 | CS111: 0 | CT111: 0 | CU111: 0 | CY111: 1 | DA111: 1
B112: 100 | G112: 111 | H112: 0 | I112: 4 | J112: 160 | K112: 30 | L112: 8 | M112: 0.35 | N112: 20 | R112: 7901.2 | CH112: 6 | CI112: 0 | CJ112: 0 | CK112: 0 | CL112: 0 | CM112: 0 | CN112: 0 | CO112: 6 | CP112: 0 | CQ112: 0 | CR112: 0 | CS112: 0 | CT112: 0 | CU112: 0 | CY112: 1 | DA112: 1
B113: 101 | G113: 113 | H113: 0 | I113: 4 | J113: 50 | K113: 14 | L113: 8 | M113: 0.35 | N113: 20 | R113: 771.6 | CH113: 6 | CI113: 0 | CJ113: 0 | CK113: 0 | CL113: 0 | CM113: 0 | CN113: 0 | CO113: 0 | CP113: 0 | CQ113: 0 | CR113: 0 | CS113: 0 | CT113: 0 | CU113: 6 | CY113: 1 | DA113: 1
B114: 102 | G114: 114 | H114: 0 | I114: 4 | J114: 80 | K114: 14 | L114: 8 | M114: 0.35 | N114: 20 | R114: 1975.3 | CH114: 6 | CI114: 0 | CJ114: 0 | CK114: 0 | CL114: 0 | CM114: 0 | CN114: 0 | CO114: 0 | CP114: 0 | CQ114: 0 | CR114: 0 | CS114: 6 | CT114: 0 | CU114: 0 | CY114: 1 | DA114: 1
B115: 103 | G115: 115 | H115: 0 | I115: 4 | J115: 120 | K115: 14 | L115: 8 | M115: 0.35 | N115: 20 | R115: 4444.4 | CH115: 6 | CI115: 0 | CJ115: 0 | CK115: 0 | CL115: 0 | CM115: 0 | CN115: 0 | CO115: 0 | CP115: 0 | CQ115: 6 | CR115: 0 | CS115: 0 | CT115: 0 | CU115: 0 | CY115: 1 | DA115: 1
B116: 104 | G116: 116 | H116: 0 | I116: 4 | J116: 140 | K116: 14 | L116: 8 | M116: 0.35 | N116: 20 | R116: 6049.4 | CH116: 6 | CI116: 0 | CJ116: 0 | CK116: 0 | CL116: 0 | CM116: 0 | CN116: 0 | CO116: 0 | CP116: 6 | CQ116: 0 | CR116: 0 | CS116: 0 | CT116: 0 | CU116: 0 | CY116: 1 | DA116: 1
B117: 105 | G117: 117 | H117: 0 | I117: 4 | J117: 160 | K117: 14 | L117: 8 | M117: 0.35 | N117: 20 | R117: 7901.2 | CH117: 6 | CI117: 0 | CJ117: 0 | CK117: 0 | CL117: 0 | CM117: 0 | CN117: 0 | CO117: 6 | CP117: 0 | CQ117: 0 | CR117: 0 | CS117: 0 | CT117: 0 | CU117: 0 | CY117: 1 | DA117: 1
B118: 106 | F118: Wet brake applications, maximum mass | G118: 119 | H118: 1 | I118: 2 | J118: 50 | K118: 44 | L118: 8 | M118: 0.35 | N118: 20 | R118: 771.6 | CH118: 6 | CI118: 0 | CJ118: 0 | CK118: 0 | CL118: 0 | CM118: 0 | CN118: 0 | CO118: 0 | CP118: 0 | CQ118: 0 | CR118: 0 | CS118: 0 | CT118: 0 | CU118: 6 | CY118: 1 | DA118: 1
B119: 107 | G119: 120 | H119: 1 | I119: 2 | J119: 80 | K119: 44 | L119: 8 | M119: 0.35 | N119: 20 | R119: 1975.3 | CH119: 6 | CI119: 0 | CJ119: 0 | CK119: 0 | CL119: 0 | CM119: 0 | CN119: 0 | CO119: 0 | CP119: 0 | CQ119: 0 | CR119: 0 | CS119: 6 | CT119: 0 | CU119: 0 | CY119: 1 | DA119: 1
B120: 108 | G120: 121 | H120: 1 | I120: 2 | J120: 120 | K120: 44 | L120: 8 | M120: 0.35 | N120: 20 | R120: 4444.4 | CH120: 6 | CI120: 0 | CJ120: 0 | CK120: 0 | CL120: 0 | CM120: 0 | CN120: 0 | CO120: 0 | CP120: 0 | CQ120: 6 | CR120: 0 | CS120: 0 | CT120: 0 | CU120: 0 | CY120: 1 | DA120: 1
B121: 109 | G121: 122 | H121: 1 | I121: 2 | J121: 140 | K121: 44 | L121: 8 | M121: 0.35 | N121: 20 | R121: 6049.4 | CH121: 6 | CI121: 0 | CJ121: 0 | CK121: 0 | CL121: 0 | CM121: 0 | CN121: 0 | CO121: 0 | CP121: 6 | CQ121: 0 | CR121: 0 | CS121: 0 | CT121: 0 | CU121: 0 | CY121: 1 | DA121: 1
B122: 110 | G122: 123 | H122: 1 | I122: 4 | J122: 50 | K122: 30 | L122: 8 | M122: 0.35 | N122: 20 | R122: 771.6 | CH122: 6 | CI122: 0 | CJ122: 0 | CK122: 0 | CL122: 0 | CM122: 0 | CN122: 0 | CO122: 0 | CP122: 0 | CQ122: 0 | CR122: 0 | CS122: 0 | CT122: 0 | CU122: 6 | CY122: 1 | DA122: 1
B123: 111 | G123: 124 | H123: 1 | I123: 4 | J123: 80 | K123: 30 | L123: 8 | M123: 0.35 | N123: 20 | R123: 1975.3 | CH123: 6 | CI123: 0 | CJ123: 0 | CK123: 0 | CL123: 0 | CM123: 0 | CN123: 0 | CO123: 0 | CP123: 0 | CQ123: 0 | CR123: 0 | CS123: 6 | CT123: 0 | CU123: 0 | CY123: 1 | DA123: 1
B124: 112 | G124: 125 | H124: 1 | I124: 4 | J124: 120 | K124: 30 | L124: 8 | M124: 0.35 | N124: 20 | R124: 4444.4 | CH124: 6 | CI124: 0 | CJ124: 0 | CK124: 0 | CL124: 0 | CM124: 0 | CN124: 0 | CO124: 0 | CP124: 0 | CQ124: 6 | CR124: 0 | CS124: 0 | CT124: 0 | CU124: 0 | CY124: 1 | DA124: 1
B125: 113 | G125: 126 | H125: 1 | I125: 4 | J125: 140 | K125: 30 | L125: 8 | M125: 0.35 | N125: 20 | R125: 6049.4 | CH125: 6 | CI125: 0 | CJ125: 0 | CK125: 0 | CL125: 0 | CM125: 0 | CN125: 0 | CO125: 0 | CP125: 6 | CQ125: 0 | CR125: 0 | CS125: 0 | CT125: 0 | CU125: 0 | CY125: 1 | DA125: 1
B126: 114 | F126: Dry brake applications to dry the brake pad | G126: 127 | H126: 0 | I126: 3 | J126: 120 | K126: 44 | L126: 8 | M126: 0.35 | N126: 20 | R126: 4444.4 | CH126: 6 | CI126: 0 | CJ126: 0 | CK126: 0 | CL126: 0 | CM126: 0 | CN126: 0 | CO126: 0 | CP126: 0 | CQ126: 6 | CR126: 0 | CS126: 0 | CT126: 0 | CU126: 0 | CY126: 1 | DA126: 1
B127: 115 | G127: 128 | H127: 0 | I127: 3 | J127: 120 | K127: 44 | L127: 8 | M127: 0.35 | N127: 20 | R127: 4444.4 | CH127: 6 | CI127: 0 | CJ127: 0 | CK127: 0 | CL127: 0 | CM127: 0 | CN127: 0 | CO127: 0 | CP127: 0 | CQ127: 6 | CR127: 0 | CS127: 0 | CT127: 0 | CU127: 0 | CY127: 1 | DA127: 1
B128: 116 | G128: 129 | H128: 0 | I128: 3 | J128: 120 | K128: 44 | L128: 8 | M128: 0.35 | N128: 20 | R128: 4444.4 | CH128: 6 | CI128: 0 | CJ128: 0 | CK128: 0 | CL128: 0 | CM128: 0 | CN128: 0 | CO128: 0 | CP128: 0 | CQ128: 6 | CR128: 0 | CS128: 0 | CT128: 0 | CU128: 0 | CY128: 1 | DA128: 1
B129: 117 | G129: 130 | H129: 0 | I129: 3 | J129: 120 | K129: 44 | L129: 8 | M129: 0.35 | N129: 20 | R129: 4444.4 | CH129: 6 | CI129: 0 | CJ129: 0 | CK129: 0 | CL129: 0 | CM129: 0 | CN129: 0 | CO129: 0 | CP129: 0 | CQ129: 6 | CR129: 0 | CS129: 0 | CT129: 0 | CU129: 0 | CY129: 1 | DA129: 1
B130: 118 | G130: 131 | H130: 0 | I130: 3 | J130: 120 | K130: 44 | L130: 8 | M130: 0.35 | N130: 20 | R130: 4444.4 | CH130: 6 | CI130: 0 | CJ130: 0 | CK130: 0 | CL130: 0 | CM130: 0 | CN130: 0 | CO130: 0 | CP130: 0 | CQ130: 6 | CR130: 0 | CS130: 0 | CT130: 0 | CU130: 0 | CY130: 1 | DA130: 1
B131: 119 | G131: 132 | H131: 0 | I131: 3 | J131: 120 | K131: 44 | L131: 8 | M131: 0.35 | N131: 20 | R131: 4444.4 | CH131: 6 | CI131: 0 | CJ131: 0 | CK131: 0 | CL131: 0 | CM131: 0 | CN131: 0 | CO131: 0 | CP131: 0 | CQ131: 6 | CR131: 0 | CS131: 0 | CT131: 0 | CU131: 0 | CY131: 1 | DA131: 1
B132: 120 | G132: 133 | H132: 0 | I132: 3 | J132: 120 | K132: 44 | L132: 8 | M132: 0.35 | N132: 20 | R132: 4444.4 | CH132: 6 | CI132: 0 | CJ132: 0 | CK132: 0 | CL132: 0 | CM132: 0 | CN132: 0 | CO132: 0 | CP132: 0 | CQ132: 6 | CR132: 0 | CS132: 0 | CT132: 0 | CU132: 0 | CY132: 1 | DA132: 1
B133: 121 | G133: 134 | H133: 0 | I133: 3 | J133: 120 | K133: 44 | L133: 8 | M133: 0.35 | N133: 20 | R133: 4444.4 | CH133: 6 | CI133: 0 | CJ133: 0 | CK133: 0 | CL133: 0 | CM133: 0 | CN133: 0 | CO133: 0 | CP133: 0 | CQ133: 6 | CR133: 0 | CS133: 0 | CT133: 0 | CU133: 0 | CY133: 1 | DA133: 1
B134: 122 | G134: 135 | H134: 0 | I134: 3 | J134: 120 | K134: 44 | L134: 8 | M134: 0.35 | N134: 20 | R134: 4444.4 | CH134: 6 | CI134: 0 | CJ134: 0 | CK134: 0 | CL134: 0 | CM134: 0 | CN134: 0 | CO134: 0 | CP134: 0 | CQ134: 6 | CR134: 0 | CS134: 0 | CT134: 0 | CU134: 0 | CY134: 1 | DA134: 1
B135: 123 | G135: 136 | H135: 0 | I135: 3 | J135: 120 | K135: 44 | L135: 8 | M135: 0.35 | N135: 20 | R135: 4444.4 | CH135: 6 | CI135: 0 | CJ135: 0 | CK135: 0 | CL135: 0 | CM135: 0 | CN135: 0 | CO135: 0 | CP135: 0 | CQ135: 6 | CR135: 0 | CS135: 0 | CT135: 0 | CU135: 0 | CY135: 1 | DA135: 1
B136: 124 | F136: Cont. 57 kW | G136: 137 | H136: 0 | I136: 0 | J136: 70 | M136: 0.35 | N136: 20 | R136: =57*12*60 -> 41040 | CH136: -1 | CI136: 0 | CJ136: 0 | CK136: 0 | CL136: 0 | CM136: 0 | CN136: 0 | CO136: 0 | CP136: 0 | CQ136: 0 | CR136: 0 | CS136: 0 | CT136: 6 | CU136: 0
B137: 125 | G137: 138 | H137: 0 | I137: 3 | J137: 70 | K137: 44 | L137: 8 | M137: 0.35 | N137: 20 | R137: 1512.3 | CH137: 6 | CI137: 0 | CJ137: 0 | CK137: 0 | CL137: 0 | CM137: 0 | CN137: 0 | CO137: 0 | CP137: 0 | CQ137: 0 | CR137: 0 | CS137: 0 | CT137: 6 | CU137: 0 | CY137: 1 | DA137: 1
B138: 126 | F138: Dry brake applications to regenerate brake pads | G138: 139 | H138: 0 | I138: 4 | J138: 120 | K138: 30 | L138: 8 | M138: 0.35 | N138: 20 | R138: 4444.4 | CH138: 6 | CI138: 0 | CJ138: 0 | CK138: 0 | CL138: 0 | CM138: 0 | CN138: 0 | CO138: 0 | CP138: 0 | CQ138: 6 | CR138: 0 | CS138: 0 | CT138: 0 | CU138: 0 | CY138: 1 | DA138: 1
B139: 127 | G139: 140 | H139: 0 | I139: 4 | J139: 120 | K139: 30 | L139: 8 | M139: 0.35 | N139: 20 | R139: 4444.4 | CH139: 6 | CI139: 0 | CJ139: 0 | CK139: 0 | CL139: 0 | CM139: 0 | CN139: 0 | CO139: 0 | CP139: 0 | CQ139: 6 | CR139: 0 | CS139: 0 | CT139: 0 | CU139: 0 | CY139: 1 | DA139: 1
B140: 128 | G140: 141 | H140: 0 | I140: 4 | J140: 120 | K140: 30 | L140: 8 | M140: 0.35 | N140: 20 | R140: 4444.4 | CH140: 6 | CI140: 0 | CJ140: 0 | CK140: 0 | CL140: 0 | CM140: 0 | CN140: 0 | CO140: 0 | CP140: 0 | CQ140: 6 | CR140: 0 | CS140: 0 | CT140: 0 | CU140: 0 | CY140: 1 | DA140: 1
B141: 129 | G141: 142 | H141: 0 | I141: 4 | J141: 120 | K141: 30 | L141: 8 | M141: 0.35 | N141: 20 | R141: 4444.4 | CH141: =IF(OR(ISERROR(SUM(CI141:CU141)),$I141<1),"-1",SUM(CI141:CU141)) -> 6 | CI141: =IF($J141=CI$12,MATCH(ROUND($M141,3),$BM$50:$BZ$50,1)-1,0)+IF(AND($J141=CI$12,ROUND($M141,3)>$AP$61),1,0) -> 0 | CJ141: =IF($J141=CJ$12,MATCH(ROUND($M141,3),$BM$51:$BZ$51,1)-1,0)+IF(AND($J141=CJ$12,ROUND($M141,3)>$AP$62),1,0) -> 0 | CK141: =IF($J141=CK$12,MATCH(ROUND($M141,3),$BM$52:$BZ$52,1)-1,0)+IF(AND($J141=CK$12,ROUND($M141,3)>$AP$63),1,0) -> 0 | CL141: =IF($J141=CL$12,MATCH(ROUND($M141,3),$BM$53:$BZ$53,1)-1,0)+IF(AND($J141=CL$12,ROUND($M141,3)>$AP$64),1,0) -> 0 | CM141: =IF($J141=CM$12,MATCH(ROUND($M141,3),$BM$54:$BZ$54,1)-1,0)+IF(AND($J141=CM$12,ROUND($M141,3)>$AP$65),1,0) -> 0 | CN141: =IF($J141=CN$12,MATCH(ROUND($M141,3),$BM$55:$BZ$55,1)-1,0)+IF(AND($J141=CN$12,ROUND($M141,3)>$AP$66),1,0) -> 0 | CO141: =IF($J141=CO$12,MATCH(ROUND($M141,3),$BM$56:$BZ$56,1)-1,0)+IF(AND($J141=CO$12,ROUND($M141,3)>$AP$67),1,0) -> 0 | CP141: =IF($J141=CP$12,MATCH(ROUND($M141,3),$BM$57:$BZ$57,1)-1,0)+IF(AND($J141=CP$12,ROUND($M141,3)>$AP$68),1,0) -> 0 | CQ141: =IF($J141=CQ$12,MATCH(ROUND($M141,3),$BM$58:$BZ$58,1)-1,0)+IF(AND($J141=CQ$12,ROUND($M141,3)>$AP$69),1,0) -> 6 | CR141: =IF($J141=CR$12,MATCH(ROUND($M141,3),$BM$59:$BZ$59,1)-1,0)+IF(AND($J141=CR$12,ROUND($M141,3)>$AP$70),1,0) -> 0 | CS141: =IF($J141=CS$12,MATCH(ROUND($M141,3),$BM$60:$BZ$60,1)-1,0)+IF(AND($J141=CS$12,ROUND($M141,3)>$AP$71),1,0) -> 0 | CT141: =IF($J141=CT$12,MATCH(ROUND($M141,3),$BM$61:$BZ$61,1)-1,0)+IF(AND($J141=CT$12,ROUND($M141,3)>$AP$72),1,0) -> 0 | CU141: =IF($J141=CU$12,MATCH(ROUND($M141,3),$BM$62:$BZ$62,1)-1,0)+IF(AND($J141=CU$12,ROUND($M141,3)>$AP$73),1,0) -> 0 | CW141: =IF($C141>0,$B141,#N/A) ->  | CX141: =IF($C141>0,ROUND($C141,3),#N/A) ->  | CY141: =IF(I141>0,IF(OR(AND($I141=1,$CH141>=5,$CH141<=8),AND(I141=2,$CH141>=4,$CH141<=9),AND($I141=3,$CH141>=3,$CH141<=10),AND($I141=4,$CH141>=2,$CH141<=11)),1,IF(OR(AND($I141=1,OR($CH141=4,$CH141=9)),AND($I141=2,OR($CH141=3,$CH141=10)),AND($I141=3,OR($CH141=2,$CH141=11)),AND($I141=4,OR($CH141=1,$CH141=12))),2,0)),#N/A) -> 1 | DA141: 1
B142: 130 | G142: 143 | H142: 0 | I142: 4 | J142: 120 | K142: 30 | L142: 8 | M142: 0.35 | N142: 20 | R142: =0.5*L142*(J142/3.6)^2 -> 4444.4 | CH142: 6 | CI142: 0 | CJ142: 0 | CK142: 0 | CL142: 0 | CM142: 0 | CN142: 0 | CO142: 0 | CP142: 0 | CQ142: 6 | CR142: 0 | CS142: 0 | CT142: 0 | CU142: 0 | CY142: 1 | CZ142: =IF($C142>0,IF(OR(AND($B142>=$BR$24,$B142<=$BR$25,OR($C142>$BS$24,$C142<$BT$24)),AND($B142>=$BR$26,$B142<=$BR$27,OR($C142>$BS$26,$C142<$BT$26))),0,1),#N/A) ->  | DA142: =IF($I142>0,IF(AND(ISNUMBER(M142),$M142>0),1,0),"") -> 1
B143: 131 | G143: 144 | H143: 0 | I143: 4 | J143: 120 | K143: 30 | L143: 8 | M143: 0.35 | N143: 20 | R143: 4444.4 | CH143: 6 | CI143: 0 | CJ143: 0 | CK143: 0 | CL143: 0 | CM143: 0 | CN143: 0 | CO143: 0 | CP143: 0 | CQ143: 6 | CR143: 0 | CS143: 0 | CT143: 0 | CU143: 0 | CY143: 1 | DA143: 1
B144: 132 | G144: 145 | H144: 0 | I144: 4 | J144: 120 | K144: 30 | L144: 8 | M144: 0.35 | N144: 20 | R144: 4444.4 | CH144: 6 | CI144: 0 | CJ144: 0 | CK144: 0 | CL144: 0 | CM144: 0 | CN144: 0 | CO144: 0 | CP144: 0 | CQ144: 6 | CR144: 0 | CS144: 0 | CT144: 0 | CU144: 0 | CY144: 1 | DA144: 1
B145: 133 | G145: 146 | H145: 0 | I145: 4 | J145: 120 | K145: 30 | L145: 8 | M145: 0.35 | N145: 20 | R145: 4444.4 | CH145: 6 | CI145: 0 | CJ145: 0 | CK145: 0 | CL145: 0 | CM145: 0 | CN145: 0 | CO145: 0 | CP145: 0 | CQ145: 6 | CR145: 0 | CS145: 0 | CT145: 0 | CU145: 0 | CY145: 1 | DA145: 1
B146: 134 | G146: 147 | H146: 0 | I146: 4 | J146: 120 | K146: 30 | L146: 8 | M146: 0.35 | N146: 20 | R146: 4444.4 | CH146: 6 | CI146: 0 | CJ146: 0 | CK146: 0 | CL146: 0 | CM146: 0 | CN146: 0 | CO146: 0 | CP146: 0 | CQ146: 6 | CR146: 0 | CS146: 0 | CT146: 0 | CU146: 0 | CY146: 1 | DA146: 1
B147: 135 | G147: 148 | H147: 0 | I147: 4 | J147: 120 | K147: 30 | L147: 8 | M147: 0.35 | N147: 20 | R147: 4444.4 | CH147: 6 | CI147: 0 | CJ147: 0 | CK147: 0 | CL147: 0 | CM147: 0 | CN147: 0 | CO147: 0 | CP147: 0 | CQ147: 6 | CR147: 0 | CS147: 0 | CT147: 0 | CU147: 0 | CY147: 1 | DA147: 1
B148: 136 | F148: Dry appl. | G148: 149 | H148: 0 | I148: 1 | J148: 160 | K148: 44 | L148: 8 | M148: 0.35 | N148: 20 | R148: 7901.2 | CH148: 6 | CI148: 0 | CJ148: 0 | CK148: 0 | CL148: 0 | CM148: 0 | CN148: 0 | CO148: 6 | CP148: 0 | CQ148: 0 | CR148: 0 | CS148: 0 | CT148: 0 | CU148: 0 | CY148: 1 | DA148: 1
B149: 137 | F149: Cons. appl. | G149: 150 | H149: 0 | I149: 2 | J149: 160 | K149: 44 | L149: 8 | M149: 0.35 | N149: 20 | R149: 7901.2 | CH149: 6 | CI149: 0 | CJ149: 0 | CK149: 0 | CL149: 0 | CM149: 0 | CN149: 0 | CO149: 6 | CP149: 0 | CQ149: 0 | CR149: 0 | CS149: 0 | CT149: 0 | CU149: 0 | CY149: 1 | DA149: 1
B150: 138 | F150: Consec. brake applications | G150: 152 | H150: 0 | I150: 2 | J150: 140 | K150: 44 | L150: 8 | M150: 0.35 | N150: 20 | R150: 6049.4 | CH150: 6 | CI150: 0 | CJ150: 0 | CK150: 0 | CL150: 0 | CM150: 0 | CN150: 0 | CO150: 0 | CP150: 6 | CQ150: 0 | CR150: 0 | CS150: 0 | CT150: 0 | CU150: 0 | CY150: 1 | DA150: 1
B151: 139 | G151: 153 | H151: 0 | I151: 2 | J151: 120 | K151: 44 | L151: 8 | M151: 0.35 | N151: 20 | R151: 4444.4 | CH151: 6 | CI151: 0 | CJ151: 0 | CK151: 0 | CL151: 0 | CM151: 0 | CN151: 0 | CO151: 0 | CP151: 0 | CQ151: 6 | CR151: 0 | CS151: 0 | CT151: 0 | CU151: 0 | CY151: 1 | DA151: 1
B152: 140 | G152: 154 | H152: 0 | I152: 2 | J152: 80 | K152: 44 | L152: 8 | M152: 0.35 | N152: 20 | R152: 1975.3 | CH152: 6 | CI152: 0 | CJ152: 0 | CK152: 0 | CL152: 0 | CM152: 0 | CN152: 0 | CO152: 0 | CP152: 0 | CQ152: 0 | CR152: 0 | CS152: 6 | CT152: 0 | CU152: 0 | CY152: 1 | DA152: 1
B153: 141 | G153: 155 | H153: 0 | I153: 2 | J153: 50 | K153: 44 | L153: 8 | M153: 0.35 | N153: 20 | R153: 771.6 | CH153: 6 | CI153: 0 | CJ153: 0 | CK153: 0 | CL153: 0 | CM153: 0 | CN153: 0 | CO153: 0 | CP153: 0 | CQ153: 0 | CR153: 0 | CS153: 0 | CT153: 0 | CU153: 6 | CY153: 1 | DA153: 1
B154: 142 | F154: Dry appl. | G154: 156 | H154: 0 | I154: 3 | J154: 160 | K154: 44 | L154: 8 | M154: 0.35 | N154: 20 | R154: 7901.2 | CH154: 6 | CI154: 0 | CJ154: 0 | CK154: 0 | CL154: 0 | CM154: 0 | CN154: 0 | CO154: 6 | CP154: 0 | CQ154: 0 | CR154: 0 | CS154: 0 | CT154: 0 | CU154: 0 | CY154: 1 | DA154: 1
B155: 143 | F155: Brake appl. with high initial temp. | G155: 158 | H155: 0 | I155: 2 | J155: 160 | K155: 44 | L155: 8 | M155: 0.35 | N155: 20 | R155: 7901.2 | CH155: 6 | CI155: 0 | CJ155: 0 | CK155: 0 | CL155: 0 | CM155: 0 | CN155: 0 | CO155: 6 | CP155: 0 | CQ155: 0 | CR155: 0 | CS155: 0 | CT155: 0 | CU155: 0 | CY155: 1 | DA155: 1
B156: 144 | G156: 159 | H156: 0 | I156: 2 | J156: 140 | K156: 44 | L156: 8 | M156: 0.35 | N156: 20 | R156: 6049.4 | CH156: 6 | CI156: 0 | CJ156: 0 | CK156: 0 | CL156: 0 | CM156: 0 | CN156: 0 | CO156: 0 | CP156: 6 | CQ156: 0 | CR156: 0 | CS156: 0 | CT156: 0 | CU156: 0 | CY156: 1 | DA156: 1
B157: 145 | G157: 160 | H157: 0 | I157: 2 | J157: 120 | K157: 44 | L157: 8 | M157: 0.35 | N157: 20 | R157: 4444.4 | CH157: 6 | CI157: 0 | CJ157: 0 | CK157: 0 | CL157: 0 | CM157: 0 | CN157: 0 | CO157: 0 | CP157: 0 | CQ157: 6 | CR157: 0 | CS157: 0 | CT157: 0 | CU157: 0 | CY157: 1 | DA157: 1
B158: 146 | G158: 161 | H158: 0 | I158: 2 | J158: 80 | K158: 44 | L158: 8 | M158: 0.35 | N158: 20 | R158: 1975.3 | CH158: 6 | CI158: 0 | CJ158: 0 | CK158: 0 | CL158: 0 | CM158: 0 | CN158: 0 | CO158: 0 | CP158: 0 | CQ158: 0 | CR158: 0 | CS158: 6 | CT158: 0 | CU158: 0 | CY158: 1 | DA158: 1
B159: 147 | G159: 162 | H159: 0 | I159: 2 | J159: 50 | K159: 44 | L159: 8 | M159: 0.35 | N159: 20 | R159: 771.6 | CH159: 6 | CI159: 0 | CJ159: 0 | CK159: 0 | CL159: 0 | CM159: 0 | CN159: 0 | CO159: 0 | CP159: 0 | CQ159: 0 | CR159: 0 | CS159: 0 | CT159: 0 | CU159: 6 | CY159: 1 | DA159: 1
B160: 148 | F160: Drag 20 kW | G160: 163 | H160: 0 | I160: 0 | J160: 70 | M160: 0.35 | N160: 20 | R160: 0 | CH160: -1 | CI160: 0 | CJ160: 0 | CK160: 0 | CL160: 0 | CM160: 0 | CN160: 0 | CO160: 0 | CP160: 0 | CQ160: 0 | CR160: 0 | CS160: 0 | CT160: 6 | CU160: 0
B161: 149 | F161: Parking brake | G161: 164 | H161: 0 | I161: 0 | J161: 0 | K161: 57 | M161: 0.35 | N161: 20 | R161: 0 | CH161: -1 | CI161: 0 | CJ161: 0 | CK161: 0 | CL161: 0 | CM161: 0 | CN161: 0 | CO161: 0 | CP161: 0 | CQ161: 0 | CR161: 0 | CS161: 0 | CT161: 0 | CU161: 0
B162: 150 | G162: 165 | H162: 0 | I162: 0 | J162: 0 | K162: 57 | M162: 0.35 | N162: 20 | R162: 0 | CH162: -1 | CI162: 0 | CJ162: 0 | CK162: 0 | CL162: 0 | CM162: 0 | CN162: 0 | CO162: 0 | CP162: 0 | CQ162: 0 | CR162: 0 | CS162: 0 | CT162: 0 | CU162: 0
B163: 151 | G163: 166 | H163: 0 | I163: 0 | J163: 0 | K163: 57 | M163: 0.35 | N163: 20 | R163: 0 | CH163: -1 | CI163: 0 | CJ163: 0 | CK163: 0 | CL163: 0 | CM163: 0 | CN163: 0 | CO163: 0 | CP163: 0 | CQ163: 0 | CR163: 0 | CS163: 0 | CT163: 0 | CU163: 0
B164: 152 | G164: 167 | H164: 0 | I164: 0 | J164: 0 | K164: 57 | M164: 0.35 | N164: 20 | R164: 0 | CH164: -1 | CI164: 0 | CJ164: 0 | CK164: 0 | CL164: 0 | CM164: 0 | CN164: 0 | CO164: 0 | CP164: 0 | CQ164: 0 | CR164: 0 | CS164: 0 | CT164: 0 | CU164: 0
B165: 153 | G165: 168 | H165: 0 | I165: 0 | J165: 0 | K165: 57 | M165: 0.35 | N165: 20 | R165: 0 | CH165: -1 | CI165: 0 | CJ165: 0 | CK165: 0 | CL165: 0 | CM165: 0 | CN165: 0 | CO165: 0 | CP165: 0 | CQ165: 0 | CR165: 0 | CS165: 0 | CT165: 0 | CU165: 0
B166: 154 | G166: 169 | H166: 0 | I166: 0 | J166: 0 | K166: 57 | M166: 0.35 | N166: 20 | R166: 0 | CH166: -1 | CI166: 0 | CJ166: 0 | CK166: 0 | CL166: 0 | CM166: 0 | CN166: 0 | CO166: 0 | CP166: 0 | CQ166: 0 | CR166: 0 | CS166: 0 | CT166: 0 | CU166: 0
B167: 155 | G167: 170 | H167: 0 | I167: 0 | J167: 0 | K167: 57 | M167: 0.35 | N167: 20 | R167: 0 | CH167: -1 | CI167: 0 | CJ167: 0 | CK167: 0 | CL167: 0 | CM167: 0 | CN167: 0 | CO167: 0 | CP167: 0 | CQ167: 0 | CR167: 0 | CS167: 0 | CT167: 0 | CU167: 0
B168: 156 | G168: 171 | H168: 0 | I168: 0 | J168: 0 | K168: 57 | M168: 0.35 | N168: 20 | R168: 0 | CH168: -1 | CI168: 0 | CJ168: 0 | CK168: 0 | CL168: 0 | CM168: 0 | CN168: 0 | CO168: 0 | CP168: 0 | CQ168: 0 | CR168: 0 | CS168: 0 | CT168: 0 | CU168: 0
B169: 157 | G169: 172 | H169: 0 | I169: 0 | J169: 0 | K169: 57 | M169: 0.35 | N169: 20 | R169: 0 | CH169: -1 | CI169: 0 | CJ169: 0 | CK169: 0 | CL169: 0 | CM169: 0 | CN169: 0 | CO169: 0 | CP169: 0 | CQ169: 0 | CR169: 0 | CS169: 0 | CT169: 0 | CU169: 0
B170: 158 | G170: 173 | H170: 0 | I170: 0 | J170: 0 | K170: 57 | M170: 0.35 | N170: 20 | R170: 0 | CH170: -1 | CI170: 0 | CJ170: 0 | CK170: 0 | CL170: 0 | CM170: 0 | CN170: 0 | CO170: 0 | CP170: 0 | CQ170: 0 | CR170: 0 | CS170: 0 | CT170: 0 | CU170: 0
B171: 159 | R171: =SUM(R13:R170) -> 540176.9 | S171: kJ | CH171: -1 | CI171: 0 | CJ171: 0 | CK171: 0 | CL171: 0 | CM171: 0 | CN171: 0 | CO171: 0 | CP171: 0 | CQ171: 0 | CR171: 0 | CS171: 0 | CT171: 0 | CU171: 0
B172: 160 | R172: =R171/1000 -> 540.2 | S172: MJ | CH172: -1 | CI172: 0 | CJ172: 0 | CK172: 0 | CL172: 0 | CM172: 0 | CN172: 0 | CO172: 0 | CP172: 0 | CQ172: 0 | CR172: 0 | CS172: 0 | CT172: 0 | CU172: 0
B173: 161 | CH173: =IF(OR(ISERROR(SUM(CI173:CU173)),$I173<1),"-1",SUM(CI173:CU173)) -> -1 | CI173: 0 | CJ173: 0 | CK173: 0 | CL173: 0 | CM173: 0 | CN173: 0 | CO173: 0 | CP173: 0 | CQ173: 0 | CR173: 0 | CS173: 0 | CT173: 0 | CU173: 0
B174: 162 | CH174: -1 | CI174: 0 | CJ174: 0 | CK174: 0 | CL174: 0 | CM174: 0 | CN174: 0 | CO174: 0 | CP174: 0 | CQ174: 0 | CR174: 0 | CS174: 0 | CT174: 0 | CU174: 0
B175: 163 | CH175: -1 | CI175: 0 | CJ175: 0 | CK175: 0 | CL175: 0 | CM175: 0 | CN175: 0 | CO175: 0 | CP175: 0 | CQ175: 0 | CR175: 0 | CS175: 0 | CT175: 0 | CU175: 0
B176: 164 | CH176: -1 | CI176: 0 | CJ176: 0 | CK176: 0 | CL176: 0 | CM176: 0 | CN176: 0 | CO176: 0 | CP176: 0 | CQ176: 0 | CR176: 0 | CS176: 0 | CT176: 0 | CU176: 0
B177: 165 | CH177: -1 | CI177: 0 | CJ177: 0 | CK177: 0 | CL177: 0 | CM177: 0 | CN177: 0 | CO177: 0 | CP177: 0 | CQ177: 0 | CR177: 0 | CS177: 0 | CT177: 0 | CU177: 0
B178: 166 | CH178: -1 | CI178: 0 | CJ178: 0 | CK178: 0 | CL178: 0 | CM178: 0 | CN178: 0 | CO178: 0 | CP178: 0 | CQ178: 0 | CR178: 0 | CS178: 0 | CT178: 0 | CU178: 0
B179: 167 | CH179: -1 | CI179: 0 | CJ179: 0 | CK179: 0 | CL179: 0 | CM179: 0 | CN179: 0 | CO179: 0 | CP179: 0 | CQ179: 0 | CR179: 0 | CS179: 0 | CT179: 0 | CU179: 0
B180: 168 | CH180: -1 | CI180: 0 | CJ180: 0 | CK180: 0 | CL180: 0 | CM180: 0 | CN180: 0 | CO180: 0 | CP180: 0 | CQ180: 0 | CR180: 0 | CS180: 0 | CT180: 0 | CU180: 0
B181: 169 | CH181: -1 | CI181: 0 | CJ181: 0 | CK181: 0 | CL181: 0 | CM181: 0 | CN181: 0 | CO181: 0 | CP181: 0 | CQ181: 0 | CR181: 0 | CS181: 0 | CT181: 0 | CU181: 0
B182: 170 | CH182: -1 | CI182: 0 | CJ182: 0 | CK182: 0 | CL182: 0 | CM182: 0 | CN182: 0 | CO182: 0 | CP182: 0 | CQ182: 0 | CR182: 0 | CS182: 0 | CT182: 0 | CU182: 0
B183: 171 | CH183: -1 | CI183: 0 | CJ183: 0 | CK183: 0 | CL183: 0 | CM183: 0 | CN183: 0 | CO183: 0 | CP183: 0 | CQ183: 0 | CR183: 0 | CS183: 0 | CT183: 0 | CU183: 0
B184: 172 | CH184: -1 | CI184: 0 | CJ184: 0 | CK184: 0 | CL184: 0 | CM184: 0 | CN184: 0 | CO184: 0 | CP184: 0 | CQ184: 0 | CR184: 0 | CS184: 0 | CT184: 0 | CU184: 0
B185: 173 | CH185: -1 | CI185: 0 | CJ185: 0 | CK185: 0 | CL185: 0 | CM185: 0 | CN185: 0 | CO185: 0 | CP185: 0 | CQ185: 0 | CR185: 0 | CS185: 0 | CT185: 0 | CU185: 0
B186: 174 | CH186: -1 | CI186: 0 | CJ186: 0 | CK186: 0 | CL186: 0 | CM186: 0 | CN186: 0 | CO186: 0 | CP186: 0 | CQ186: 0 | CR186: 0 | CS186: 0 | CT186: 0 | CU186: 0
B187: 175 | CH187: -1 | CI187: 0 | CJ187: 0 | CK187: 0 | CL187: 0 | CM187: 0 | CN187: 0 | CO187: 0 | CP187: 0 | CQ187: 0 | CR187: 0 | CS187: 0 | CT187: 0 | CU187: 0
B188: 176 | CH188: -1 | CI188: 0 | CJ188: 0 | CK188: 0 | CL188: 0 | CM188: 0 | CN188: 0 | CO188: 0 | CP188: 0 | CQ188: 0 | CR188: 0 | CS188: 0 | CT188: 0 | CU188: 0
B189: 177 | CH189: -1 | CI189: 0 | CJ189: 0 | CK189: 0 | CL189: 0 | CM189: 0 | CN189: 0 | CO189: 0 | CP189: 0 | CQ189: 0 | CR189: 0 | CS189: 0 | CT189: 0 | CU189: 0
B190: 178 | CH190: -1 | CI190: 0 | CJ190: 0 | CK190: 0 | CL190: 0 | CM190: 0 | CN190: 0 | CO190: 0 | CP190: 0 | CQ190: 0 | CR190: 0 | CS190: 0 | CT190: 0 | CU190: 0
B191: 179 | CH191: -1 | CI191: 0 | CJ191: 0 | CK191: 0 | CL191: 0 | CM191: 0 | CN191: 0 | CO191: 0 | CP191: 0 | CQ191: 0 | CR191: 0 | CS191: 0 | CT191: 0 | CU191: 0
B192: 180 | CH192: -1 | CI192: 0 | CJ192: 0 | CK192: 0 | CL192: 0 | CM192: 0 | CN192: 0 | CO192: 0 | CP192: 0 | CQ192: 0 | CR192: 0 | CS192: 0 | CT192: 0 | CU192: 0
B193: 181 | CH193: -1 | CI193: 0 | CJ193: 0 | CK193: 0 | CL193: 0 | CM193: 0 | CN193: 0 | CO193: 0 | CP193: 0 | CQ193: 0 | CR193: 0 | CS193: 0 | CT193: 0 | CU193: 0
B194: 182 | CH194: -1 | CI194: 0 | CJ194: 0 | CK194: 0 | CL194: 0 | CM194: 0 | CN194: 0 | CO194: 0 | CP194: 0 | CQ194: 0 | CR194: 0 | CS194: 0 | CT194: 0 | CU194: 0
B195: 183 | CH195: -1 | CI195: 0 | CJ195: 0 | CK195: 0 | CL195: 0 | CM195: 0 | CN195: 0 | CO195: 0 | CP195: 0 | CQ195: 0 | CR195: 0 | CS195: 0 | CT195: 0 | CU195: 0
B196: 184 | CH196: -1 | CI196: 0 | CJ196: 0 | CK196: 0 | CL196: 0 | CM196: 0 | CN196: 0 | CO196: 0 | CP196: 0 | CQ196: 0 | CR196: 0 | CS196: 0 | CT196: 0 | CU196: 0
B197: 185 | CH197: -1 | CI197: 0 | CJ197: 0 | CK197: 0 | CL197: 0 | CM197: 0 | CN197: 0 | CO197: 0 | CP197: 0 | CQ197: 0 | CR197: 0 | CS197: 0 | CT197: 0 | CU197: 0
B198: 186 | CH198: -1 | CI198: 0 | CJ198: 0 | CK198: 0 | CL198: 0 | CM198: 0 | CN198: 0 | CO198: 0 | CP198: 0 | CQ198: 0 | CR198: 0 | CS198: 0 | CT198: 0 | CU198: 0
B199: 187 | CH199: -1 | CI199: 0 | CJ199: 0 | CK199: 0 | CL199: 0 | CM199: 0 | CN199: 0 | CO199: 0 | CP199: 0 | CQ199: 0 | CR199: 0 | CS199: 0 | CT199: 0 | CU199: 0
B200: 188 | CH200: -1 | CI200: 0 | CJ200: 0 | CK200: 0 | CL200: 0 | CM200: 0 | CN200: 0 | CO200: 0 | CP200: 0 | CQ200: 0 | CR200: 0 | CS200: 0 | CT200: 0 | CU200: 0
B201: 189 | CH201: -1 | CI201: 0 | CJ201: 0 | CK201: 0 | CL201: 0 | CM201: 0 | CN201: 0 | CO201: 0 | CP201: 0 | CQ201: 0 | CR201: 0 | CS201: 0 | CT201: 0 | CU201: 0
B202: 190 | CH202: -1 | CI202: 0 | CJ202: 0 | CK202: 0 | CL202: 0 | CM202: 0 | CN202: 0 | CO202: 0 | CP202: 0 | CQ202: 0 | CR202: 0 | CS202: 0 | CT202: 0 | CU202: 0
... 228 more rows

Sheet Class B2 (hidden)
A1: B2
B4: Test No./Bench No. | I4: Date of test: | K4: Continuous braking | L4: mmax: | V4: =B4 -> Test No./Bench No. | X4: =IF($F$4<>0,$F$4,"---") -> --- | AB4: =IF($J$4<>0,$J$4,"---") -> ---
B5: Brake Pad | L5: mmin: | N5: max. Dm/min
I6: Disc: | J6: Ø / Width: | K6: Material: | L6: Manufacturer: | N6: =IF($CG$20=0,"Head complete","Missing entry(s)") -> Missing entry(s) | V6: Brake pad: | X6: =IF($F$5<>0,(F5&" "&"("&F6&" - "&G6&")"),"---") -> --- | AB6: =B8 -> UIC 541-3 Class B2
B7: Densitiy | C7: Net area | F7: Type | G7: Batch | BK7: Checks and intermediate results (not included in print-out) | BQ7: Bedding | CI7: Calculation of deviation class
B8: UIC 541-3 Class B2 | V8: Brake disc: | X8: =IF($J$7<>0,$J$7,"---") -> --- | Z8: =IF($K$7<>0,$K$7,"---") -> --- | AB8: =IF($L$7<>0,$L$7,"---") -> --- | BQ8: Start row | BR8: 13
BQ9: Events | BR9: =COUNTIF($C$13:$C$212,">0") -> 40
B10: Bedding | F10: Weighing results in g | G10: Brake appl. no. | H10: wet=1 | I10: Brake Priority | J10: Speed v [km/h] | K10: FB [kN] | L10: Braked mass per disc [t] | M10: mm | N10: Max. disc temp. [°C] | O10: Anmerk. | X10: Diameter / width | Z10: Material | AB10: Manufacturer | BQ10: to 100% | BR10: =ADDRESS(($BR$8+$BR$9)-1,3) -> $C$52 | BS10: =($BR$8+$BR$9)-1 -> 52 | CI10: km/h | CW10: Cell Formatting
B11: (min. 15 entries) | BQ11: to 30% | BR11: =IF(BT16=1,ADDRESS(BS11,3),"") -> $C$24 | BS11: =IF(BT16=1,BR25+12,"") -> 24 | BT11: =($BR$8+ROUNDUP($BR$9*0.3,0))-1 -> 24 | CH11: Summe | CW11: Bedding | CY11: Stop in TB (0=out) | CZ11: Bedding in TB? | DA11: Valid entry ym?
B12: No. | C12: mm | R12: Energy in kJ | BK12: Data plausibility check | BQ12: from 30% | BR12: =ADDRESS(BS12,3) -> $C$25 | BS12: =BR26+12 -> 25 | BT12: =($BR$8+ROUNDUP($BR$9*0.3,0)) -> 25 | CG12: Head | CH12: Deviation | CI12: 400 | CJ12: 350 | CK12: 300 | CL12: 250 | CM12: 220 | CN12: 200 | CO12: 160 | CP12: 140 | CQ12: 120 | CR12: 100 | CS12: 80 | CT12: 70 | CU12: 50
B13: 1 | C13: 0.35 | F13: Share of friction brake during ED, 160 to 100 km/h | G13: 1 | H13: 0 | I13: 4 | J13: 160 | K13: 7.5 | L13: 3 | M13: 0.35 | N13: 20 | R13: =0.5*L13*(J13/3.6)^2-0.5*L13*(100/3.6)^2 -> 1805.6 | BQ13: Nominal | BR13: =IF($BR$9>=5,AVERAGEIFS($C$13:$C$212,$B$13:$B$212,"<="&$BR$9,$B$13:$B$212,">"&$BR$9-5),"n<5") -> 0.35 | CH13: =IF(OR(ISERROR(SUM(CI13:CU13)),$I13<1),"-1",SUM(CI13:CU13)) -> 6 | CI13: =IF($J13=CI$12,MATCH(ROUND($M13,3),$BM$50:$BZ$50,1)-1,0)+IF(AND($J13=CI$12,ROUND($M13,3)>$AP$61),1,0) -> 0 | CJ13: =IF($J13=CJ$12,MATCH(ROUND($M13,3),$BM$51:$BZ$51,1)-1,0)+IF(AND($J13=CJ$12,ROUND($M13,3)>$AP$62),1,0) -> 0 | CK13: =IF($J13=CK$12,MATCH(ROUND($M13,3),$BM$52:$BZ$52,1)-1,0)+IF(AND($J13=CK$12,ROUND($M13,3)>$AP$63),1,0) -> 0 | CL13: =IF($J13=CL$12,MATCH(ROUND($M13,3),$BM$53:$BZ$53,1)-1,0)+IF(AND($J13=CL$12,ROUND($M13,3)>$AP$64),1,0) -> 0 | CM13: =IF($J13=CM$12,MATCH(ROUND($M13,3),$BM$54:$BZ$54,1)-1,0)+IF(AND($J13=CM$12,ROUND($M13,3)>$AP$65),1,0) -> 0 | CN13: =IF($J13=CN$12,MATCH(ROUND($M13,3),$BM$55:$BZ$55,1)-1,0)+IF(AND($J13=CN$12,ROUND($M13,3)>$AP$66),1,0) -> 0 | CO13: =IF($J13=CO$12,MATCH(ROUND($M13,3),$BM$56:$BZ$56,1)-1,0)+IF(AND($J13=CO$12,ROUND($M13,3)>$AP$67),1,0) -> 6 | CP13: =IF($J13=CP$12,MATCH(ROUND($M13,3),$BM$57:$BZ$57,1)-1,0)+IF(AND($J13=CP$12,ROUND($M13,3)>$AP$68),1,0) -> 0 | CQ13: =IF($J13=CQ$12,MATCH(ROUND($M13,3),$BM$58:$BZ$58,1)-1,0)+IF(AND($J13=CQ$12,ROUND($M13,3)>$AP$69),1,0) -> 0 | CR13: =IF($J13=CR$12,MATCH(ROUND($M13,3),$BM$59:$BZ$59,1)-1,0)+IF(AND($J13=CR$12,ROUND($M13,3)>$AP$70),1,0) -> 0 | CS13: =IF($J13=CS$12,MATCH(ROUND($M13,3),$BM$60:$BZ$60,1)-1,0)+IF(AND($J13=CS$12,ROUND($M13,3)>$AP$71),1,0) -> 0 | CT13: =IF($J13=CT$12,MATCH(ROUND($M13,3),$BM$61:$BZ$61,1)-1,0)+IF(AND($J13=CT$12,ROUND($M13,3)>$AP$72),1,0) -> 0 | CU13: =IF($J13=CU$12,MATCH(ROUND($M13,3),$BM$62:$BZ$62,1)-1,0)+IF(AND($J13=CU$12,ROUND($M13,3)>$AP$73),1,0) -> 0 | CW13: =IF($C13>0,$B13,#N/A) -> 1 | CX13: =IF($C13>0,ROUND($C13,3),#N/A) -> 0.35 | CY13: =IF(I13>0,IF(OR(AND($I13=1,$CH13>=5,$CH13<=8),AND(I13=2,$CH13>=4,$CH13<=9),AND($I13=3,$CH13>=3,$CH13<=10),AND($I13=4,$CH13>=2,$CH13<=11)),1,IF(OR(AND($I13=1,OR($CH13=4,$CH13=9)),AND($I13=2,OR($CH13=3,$CH13=10)),AND($I13=3,OR($CH13=2,$CH13=11)),AND($I13=4,OR($CH13=1,$CH13=12))),2,0)),#N/A) -> 1 | CZ13: =IF($C13>0,IF(OR(AND($B13>=$BR$24,$B13<=$BR$25,OR($C13>$BS$24,$C13<$BT$24)),AND($B13>=$BR$26,$B13<=$BR$27,OR($C13>$BS$26,$C13<$BT$26))),0,1),#N/A) -> 1 | DA13: =IF($I13>0,IF(AND(ISNUMBER(M13),$M13>0),1,0),"") -> 1
B14: 2 | C14: 0.35 | G14: 2 | H14: 0 | I14: 4 | J14: 160 | K14: 12 | L14: 3 | M14: 0.35 | N14: 20 | R14: =0.5*L14*(J14/3.6)^2-0.5*L14*(100/3.6)^2 -> 1805.6 | CH14: 6 | CI14: 0 | CJ14: 0 | CK14: 0 | CL14: 0 | CM14: 0 | CN14: 0 | CO14: 6 | CP14: 0 | CQ14: 0 | CR14: 0 | CS14: 0 | CT14: 0 | CU14: 0 | CW14: 2 | CX14: 0.35 | CY14: 1 | CZ14: =IF($C14>0,IF(OR(AND($B14>=$BR$24,$B14<=$BR$25,OR($C14>$BS$24,$C14<$BT$24)),AND($B14>=$BR$26,$B14<=$BR$27,OR($C14>$BS$26,$C14<$BT$26))),0,1),#N/A) -> 1 | DA14: =IF($I14>0,IF(AND(ISNUMBER(M14),$M14>0),1,0),"") -> 1
B15: 3 | C15: 0.35 | G15: 3 | H15: 0 | I15: 4 | J15: 160 | K15: 7.5 | L15: 3 | M15: 0.35 | N15: 20 | R15: 1805.6 | BK15: =IF(BL15<>0,"failed","passed") -> passed | BL15: =IF(OR($BT$21<14,BT21-BR21<>0),">1",0) -> 0 | BM15: Missing or invalid bedding data | BQ15: >30% | BR15: =IF(BT16=1,COUNTIFS($C$23:INDIRECT($BR$11),">"&($BR$13+$BR$13*0.3)),0) -> 0 | BT15: 30% existing | CG15: =IF(COUNTA($F$4:$H$6)=4,0,1) -> 1 | CH15: 6 | CI15: 0 | CJ15: 0 | CK15: 0 | CL15: 0 | CM15: 0 | CN15: 0 | CO15: 6 | CP15: 0 | CQ15: 0 | CR15: 0 | CS15: 0 | CT15: 0 | CU15: 0 | CW15: 3 | CX15: 0.35 | CY15: 1 | CZ15: 1 | DA15: 1
B16: 4 | C16: 0.35 | G16: 4 | H16: 0 | I16: 4 | J16: 160 | K16: 12 | L16: 3 | M16: 0.35 | N16: 20 | R16: 1805.6 | BQ16: +/- 30% | BR16: =IF(BT16=1,COUNTIFS($C$23:INDIRECT($BR$11),">"&($BR$13-$BR$13*0.3),$C$23:INDIRECT($BR$11),"<"&($BR$13+$BR$13*0.3)),0) -> 2 | BS16: =ROUND(BR9*0.3,0) -> 12 | BT16: =IF(BS16<=10,0,1) -> 1 | CG16: =IF(COUNTA($J$4)=1,0,1) -> 1 | CH16: 6 | CI16: 0 | CJ16: 0 | CK16: 0 | CL16: 0 | CM16: 0 | CN16: 0 | CO16: 6 | CP16: 0 | CQ16: 0 | CR16: 0 | CS16: 0 | CT16: 0 | CU16: 0 | CW16: 4 | CX16: 0.35 | CY16: 1 | CZ16: 1 | DA16: 1
B17: 5 | C17: 0.35 | G17: 5 | H17: 0 | I17: 4 | J17: 160 | K17: 7.5 | L17: 3 | M17: 0.35 | N17: 20 | R17: 1805.6 | BK17: =IF(BL17<>0,"failed","passed") -> passed | BL17: =COUNTIFS($I$13:$I$212,">0",$M$13:$M$212,"") -> 0 | BM17: Missing or invalid entries (except Prio 0 brake applications) | BQ17: <-30% | BR17: =IF(BT16=1,COUNTIFS($C$23:INDIRECT($BR$11),"<"&($BR$13-$BR$13*0.3)),0) -> 0 | CG17: =IF(COUNTA($J$7:$K$7)=2,0,1) -> 1 | CH17: 6 | CI17: 0 | CJ17: 0 | CK17: 0 | CL17: 0 | CM17: 0 | CN17: 0 | CO17: 6 | CP17: 0 | CQ17: 0 | CR17: 0 | CS17: 0 | CT17: 0 | CU17: 0 | CW17: 5 | CX17: 0.35 | CY17: 1 | CZ17: 1 | DA17: 1
B18: 6 | C18: 0.35 | G18: 6 | H18: 0 | I18: 4 | J18: 160 | K18: 12 | L18: 3 | M18: 0.35 | N18: 20 | R18: 1805.6 | BQ18: >15% | BR18: =IF(BT19=1,COUNTIFS(INDIRECT($BR$12):INDIRECT($BR$10),">"&($BR$13+$BR$13*0.15)),0) -> 0 | BT18: 15% existing | CG18: =IF(COUNTA($L$7)=1,0,1) -> 1 | CH18: 6 | CI18: 0 | CJ18: 0 | CK18: 0 | CL18: 0 | CM18: 0 | CN18: 0 | CO18: 6 | CP18: 0 | CQ18: 0 | CR18: 0 | CS18: 0 | CT18: 0 | CU18: 0 | CW18: 6 | CX18: 0.35 | CY18: 1 | CZ18: 1 | DA18: 1
B19: 7 | C19: 0.35 | F19: Dry brake applications, minimal mass | G19: 7 | H19: 0 | I19: 1 | J19: 50 | K19: 30 | L19: 5.3 | M19: 0.35 | N19: 20 | R19: =0.5*L19*(J19/3.6)^2 -> 511.2 | BK19: =IF(BL19<>0,"failed","passed") -> passed | BL19: =COUNTIFS($I$13:$I$212,">0",$M$13:$M$212,"<0,1") -> 0 | BM19: single mm value lower 0,1 | BQ19: +/- 15% | BR19: =IF(BT19=1,COUNTIFS(INDIRECT($BR$12):INDIRECT($BR$10),">"&($BR$13-$BR$13*0.15),INDIRECT($BR$12):INDIRECT($BR$10),"<"&($BR$13+$BR$13*0.15)),0) -> 28 | BS19: =ROUND(BR9*0.7,0) -> 28 | BT19: =IF(BS19<=10,0,1) -> 1 | CG19: =IF(COUNTA($M$4:$N$5)=4,0,1) -> 1 | CH19: 6 | CI19: 0 | CJ19: 0 | CK19: 0 | CL19: 0 | CM19: 0 | CN19: 0 | CO19: 0 | CP19: 0 | CQ19: 0 | CR19: 0 | CS19: 0 | CT19: 0 | CU19: 6 | CW19: 7 | CX19: 0.35 | CY19: 1 | CZ19: 1 | DA19: 1
B20: 8 | C20: 0.35 | G20: 8 | H20: 0 | I20: 1 | J20: 80 | K20: 30 | L20: 5.3 | M20: 0.35 | N20: 20 | R20: 1308.6 | BQ20: <-15% | BR20: =IF(BT19=1,COUNTIFS(INDIRECT($BR$12):INDIRECT($BR$10),"<"&($BR$13-$BR$13*0.15)),0) -> 0 | CG20: =SUM($CG$15:$CG$19) -> 5 | CH20: 6 | CI20: 0 | CJ20: 0 | CK20: 0 | CL20: 0 | CM20: 0 | CN20: 0 | CO20: 0 | CP20: 0 | CQ20: 0 | CR20: 0 | CS20: 6 | CT20: 0 | CU20: 0 | CW20: 8 | CX20: 0.35 | CY20: 1 | CZ20: 1 | DA20: 1
B21: 9 | C21: 0.35 | G21: 9 | H21: 0 | I21: 1 | J21: 120 | K21: 30 | L21: 5.3 | M21: 0.35 | N21: 20 | R21: 2944.4 | BK21: =IF(BL21<>0,"failed","passed") -> passed | BL21: =COUNTIFS($I$13:$I$212,">0",$M$13:$M$212,">0,6") -> 0 | BM21: single mm value higher 0,6 | BQ21: Check | BR21: =SUM($BR$15:$BR$20)+10 -> 40 | BS21: Amount of Entries: | BT21: =COUNTIFS(($C$13:$C$212),">0") -> 40 | CG21: =IF($CG$20>0,"Kopf un - vollständig","Kopf vollständig") -> Kopf un - vollständig | CH21: 6 | CI21: 0 | CJ21: 0 | CK21: 0 | CL21: 0 | CM21: 0 | CN21: 0 | CO21: 0 | CP21: 0 | CQ21: 6 | CR21: 0 | CS21: 0 | CT21: 0 | CU21: 0 | CW21: 9 | CX21: 0.35 | CY21: 1 | CZ21: 1 | DA21: 1
B22: 10 | C22: 0.35 | G22: 10 | H22: 0 | I22: 1 | J22: 140 | K22: 30 | L22: 5.3 | M22: 0.35 | N22: 20 | R22: 4007.7 | BQ22: Result | BR22: =IF($BR$21<>$BR$9,"error",IF($BR$9<=14,"not evaluable",IF($BR$15+$BR$17+$BR$18+$BR$20=0,"passed","failed"))) -> passed | CH22: 6 | CI22: 0 | CJ22: 0 | CK22: 0 | CL22: 0 | CM22: 0 | CN22: 0 | CO22: 0 | CP22: 6 | CQ22: 0 | CR22: 0 | CS22: 0 | CT22: 0 | CU22: 0 | CW22: 10 | CX22: 0.35 | CY22: 1 | CZ22: 1 | DA22: 1
B23: 11 | C23: 0.35 | G23: 11 | H23: 0 | I23: 1 | J23: 160 | K23: 30 | L23: 5.3 | M23: 0.35 | N23: 20 | R23: 5234.6 | BK23: =IF($BL$23=Info!I13,"passed","failed") -> passed | BL23: =$W$72 -> 146 | BM23: ="Sum all entries ="&TEXT(Info!I13,0) -> Sum all entries =146 | CH23: 6 | CI23: 0 | CJ23: 0 | CK23: 0 | CL23: 0 | CM23: 0 | CN23: 0 | CO23: 6 | CP23: 0 | CQ23: 0 | CR23: 0 | CS23: 0 | CT23: 0 | CU23: 0 | CW23: 11 | CX23: 0.35 | CY23: 1 | CZ23: 1 | DA23: 1
B24: 12 | C24: 0.35 | G24: 13 | H24: 0 | I24: 4 | J24: 50 | K24: 20 | L24: 5.3 | M24: 0.35 | N24: 20 | R24: 511.2 | BQ24: 30% lines | BR24: =IF(BT16=1,11,-1) -> 11 | BS24: =IF(BR24>0,$BR$13+$BR$13*0.3,"") -> 0.455 | BT24: =IF(BR24>0,$BR$13-$BR$13*0.3,"") -> 0.245 | CH24: 6 | CI24: 0 | CJ24: 0 | CK24: 0 | CL24: 0 | CM24: 0 | CN24: 0 | CO24: 0 | CP24: 0 | CQ24: 0 | CR24: 0 | CS24: 0 | CT24: 0 | CU24: 6 | CW24: 12 | CX24: 0.35 | CY24: 1 | CZ24: 1 | DA24: 1
B25: 13 | C25: 0.35 | G25: 14 | H25: 0 | I25: 4 | J25: 80 | K25: 20 | L25: 5.3 | M25: 0.35 | N25: 20 | R25: 1308.6 | BR25: =IF(BT16=1,BS16,-1) -> 12 | BS25: =IF(BR25>0,$BR$13+$BR$13*0.3,"") -> 0.455 | BT25: =IF(BR24>0,$BR$13-$BR$13*0.3,"") -> 0.245 | CH25: 6 | CI25: 0 | CJ25: 0 | CK25: 0 | CL25: 0 | CM25: 0 | CN25: 0 | CO25: 0 | CP25: 0 | CQ25: 0 | CR25: 0 | CS25: 6 | CT25: 0 | CU25: 0 | CW25: 13 | CX25: 0.35 | CY25: 1 | CZ25: 1 | DA25: 1
B26: 14 | C26: 0.35 | G26: 15 | H26: 0 | I26: 4 | J26: 120 | K26: 20 | L26: 5.3 | M26: 0.35 | N26: 20 | R26: 2944.4 | BK26: =IF(OR($BK$15="failed",$BK$17="failed",$BK$19="failed",$BK$21="failed",$BK$23="failed"),"failed","passed") -> passed | BQ26: 15% lines | BR26: =IF(AND(BT16=1,BT19=1),$BR$25+1,IF(AND(BT16=0,BT19=1),11,-1)) -> 13 | BS26: =IF(BR26>0,$BR$13+$BR$13*0.15,"") -> 0.4025 | BT26: =IF(BR26>0,$BR$13-$BR$13*0.15,"") -> 0.2975 | CG26: Transfor - mation | CH26: 6 | CI26: 0 | CJ26: 0 | CK26: 0 | CL26: 0 | CM26: 0 | CN26: 0 | CO26: 0 | CP26: 0 | CQ26: 6 | CR26: 0 | CS26: 0 | CT26: 0 | CU26: 0 | CW26: 14 | CX26: 0.35 | CY26: 1 | CZ26: 1 | DA26: 1
B27: 15 | C27: 0.35 | G27: 16 | H27: 0 | I27: 4 | J27: 140 | K27: 20 | L27: 5.3 | M27: 0.35 | N27: 20 | R27: 4007.7 | BR27: =IF($BR$26>10,$BR$9,-1) -> 40 | BS27: =IF(BR26>0,$BR$13+$BR$13*0.15,"") -> 0.4025 | BT27: =IF(BR26>0,$BR$13-$BR$13*0.15,"") -> 0.2975 | CH27: 6 | CI27: 0 | CJ27: 0 | CK27: 0 | CL27: 0 | CM27: 0 | CN27: 0 | CO27: 0 | CP27: 6 | CQ27: 0 | CR27: 0 | CS27: 0 | CT27: 0 | CU27: 0 | CW27: 15 | CX27: 0.35 | CY27: 1 | CZ27: 1 | DA27: 1
B28: 16 | C28: 0.35 | G28: 17 | H28: 0 | I28: 4 | J28: 160 | K28: 20 | L28: 5.3 | M28: 0.35 | N28: 20 | R28: 5234.6 | CH28: 6 | CI28: 0 | CJ28: 0 | CK28: 0 | CL28: 0 | CM28: 0 | CN28: 0 | CO28: 6 | CP28: 0 | CQ28: 0 | CR28: 0 | CS28: 0 | CT28: 0 | CU28: 0 | CW28: 16 | CX28: 0.35 | CY28: 1 | CZ28: 1 | DA28: 1
B29: 17 | C29: 0.35 | G29: 19 | H29: 0 | I29: 4 | J29: 50 | K29: 10 | L29: 5.3 | M29: 0.35 | N29: 20 | R29: 511.2 | BP29: Average coefficient of friction per Prio and speed | CH29: 6 | CI29: 0 | CJ29: 0 | CK29: 0 | CL29: 0 | CM29: 0 | CN29: 0 | CO29: 0 | CP29: 0 | CQ29: 0 | CR29: 0 | CS29: 0 | CT29: 0 | CU29: 6 | CW29: 17 | CX29: 0.35 | CY29: 1 | CZ29: 1 | DA29: 1
B30: 18 | C30: 0.35 | G30: 20 | H30: 0 | I30: 4 | J30: 80 | K30: 10 | L30: 5.3 | M30: 0.35 | N30: 20 | R30: 1308.6 | BP30: Speed | BQ30: Prio 1 | BR30: Prio 2 | BS30: Prio 3 | BT30: Prio 4 | CG30: ym | CH30: 6 | CI30: 0 | CJ30: 0 | CK30: 0 | CL30: 0 | CM30: 0 | CN30: 0 | CO30: 0 | CP30: 0 | CQ30: 0 | CR30: 0 | CS30: 6 | CT30: 0 | CU30: 0 | CW30: 18 | CX30: 0.35 | CY30: 1 | CZ30: 1 | DA30: 1
B31: 19 | C31: 0.35 | G31: 21 | H31: 0 | I31: 4 | J31: 120 | K31: 10 | L31: 5.3 | M31: 0.35 | N31: 20 | R31: 2944.4 | BK31: Average cefficient of friction | BM31: 400 | BN31: >0 | BO31: >0 | BP31: 400 | BQ31: =IF(ISERROR(AVERAGEIFS($M$13:$M$212,$H$13:$H$212,"<>1",$I$13:$I$212,"=1",$J$13:$J$212,$BM31,$K$13:$K$212,$BN31,$L$13:$L$212,$BO31)),"---",AVERAGEIFS($M$13:$M$212,$H$13:$H$212,"<>1",$I$13:$I$212,"=1",$J$13:$J$212,$BM31,$K$13:$K$212,$BN31,$L$13:$L$212,$BO31)) -> --- | BR31: =IF(ISERROR(AVERAGEIFS($M$13:$M$212,$H$13:$H$212,"<>1",$I$13:$I$212,"=2",$J$13:$J$212,$BM31,$K$13:$K$212,$BN31,$L$13:$L$212,$BO31)),"---",AVERAGEIFS($M$13:$M$212,$H$13:$H$212,"<>1",$I$13:$I$212,"=2",$J$13:$J$212,$BM31,$K$13:$K$212,$BN31,$L$13:$L$212,$BO31)) -> --- | BS31: =IF(ISERROR(AVERAGEIFS($M$13:$M$212,$H$13:$H$212,"<>1",$I$13:$I$212,"=3",$J$13:$J$212,$BM31,$K$13:$K$212,$BN31,$L$13:$L$212,$BO31)),"---",AVERAGEIFS($M$13:$M$212,$H$13:$H$212,"<>1",$I$13:$I$212,"=3",$J$13:$J$212,$BM31,$K$13:$K$212,$BN31,$L$13:$L$212,$BO31)) -> --- | BT31: =IF(ISERROR(AVERAGEIFS($M$13:$M$212,$H$13:$H$212,"<>1",$I$13:$I$212,"=4",$J$13:$J$212,$BM31,$K$13:$K$212,$BN31,$L$13:$L$212,$BO31)),"---",AVERAGEIFS($M$13:$M$212,$H$13:$H$212,"<>1",$I$13:$I$212,"=4",$J$13:$J$212,$BM31,$K$13:$K$212,$BN31,$L$13:$L$212,$BO31)) -> --- | CG31: mm | CH31: 6 | CI31: 0 | CJ31: 0 | CK31: 0 | CL31: 0 | CM31: 0 | CN31: 0 | CO31: 0 | CP31: 0 | CQ31: 6 | CR31: 0 | CS31: 0 | CT31: 0 | CU31: 0 | CW31: 19 | CX31: 0.35 | CY31: 1 | CZ31: 1 | DA31: 1
B32: 20 | C32: 0.35 | G32: 22 | H32: 0 | I32: 4 | J32: 140 | K32: 10 | L32: 5.3 | M32: 0.35 | N32: 20 | R32: 4007.7 | BM32: 350 | BN32: >0 | BO32: >0 | BP32: 350 | BQ32: --- | BR32: --- | BS32: --- | BT32: --- | CH32: 6 | CI32: 0 | CJ32: 0 | CK32: 0 | CL32: 0 | CM32: 0 | CN32: 0 | CO32: 0 | CP32: 6 | CQ32: 0 | CR32: 0 | CS32: 0 | CT32: 0 | CU32: 0 | CW32: 20 | CX32: 0.35 | CY32: 1 | CZ32: 1 | DA32: 1
B33: 21 | C33: 0.35 | G33: 23 | H33: 0 | I33: 4 | J33: 160 | K33: 10 | L33: 5.3 | M33: 0.35 | N33: 20 | R33: 5234.6 | BM33: 300 | BN33: >0 | BO33: >0 | BP33: 300 | BQ33: --- | BR33: --- | BS33: --- | BT33: --- | CH33: 6 | CI33: 0 | CJ33: 0 | CK33: 0 | CL33: 0 | CM33: 0 | CN33: 0 | CO33: 6 | CP33: 0 | CQ33: 0 | CR33: 0 | CS33: 0 | CT33: 0 | CU33: 0 | CW33: 21 | CX33: 0.35 | CY33: 1 | CZ33: 1 | DA33: 1
B34: 22 | C34: 0.35 | F34: Wet brake applications, min. mass | G34: 27 | H34: 1 | I34: 2 | J34: 50 | K34: 30 | L34: 5.3 | M34: 0.35 | N34: 20 | R34: 511.2 | BM34: 250 | BN34: >0 | BO34: >0 | BP34: 250 | BQ34: --- | BR34: --- | BS34: --- | BT34: --- | CH34: 6 | CI34: 0 | CJ34: 0 | CK34: 0 | CL34: 0 | CM34: 0 | CN34: 0 | CO34: 0 | CP34: 0 | CQ34: 0 | CR34: 0 | CS34: 0 | CT34: 0 | CU34: 6 | CW34: 22 | CX34: 0.35 | CY34: 1 | CZ34: 1 | DA34: 1
B35: 23 | C35: 0.35 | G35: 28 | H35: 1 | I35: 2 | J35: 80 | K35: 30 | L35: 5.3 | M35: 0.35 | N35: 20 | R35: 1308.6 | BM35: 220 | BN35: >0 | BO35: >0 | BP35: 220 | BQ35: --- | BR35: --- | BS35: --- | BT35: --- | CG35: Criteria for contious brake application fullfilled? | CH35: 6 | CI35: 0 | CJ35: 0 | CK35: 0 | CL35: 0 | CM35: 0 | CN35: 0 | CO35: 0 | CP35: 0 | CQ35: 0 | CR35: 0 | CS35: 6 | CT35: 0 | CU35: 0 | CW35: 23 | CX35: 0.35 | CY35: 1 | CZ35: 1 | DA35: 1
B36: 24 | C36: 0.35 | G36: 29 | H36: 1 | I36: 2 | J36: 120 | K36: 30 | L36: 5.3 | M36: 0.35 | N36: 20 | R36: 2944.4 | BM36: 200 | BN36: >0 | BO36: >0 | BP36: 200 | BQ36: --- | BR36: --- | BS36: --- | BT36: --- | CH36: 6 | CI36: 0 | CJ36: 0 | CK36: 0 | CL36: 0 | CM36: 0 | CN36: 0 | CO36: 0 | CP36: 0 | CQ36: 6 | CR36: 0 | CS36: 0 | CT36: 0 | CU36: 0 | CW36: 24 | CX36: 0.35 | CY36: 1 | CZ36: 1 | DA36: 1
B37: 25 | C37: 0.35 | G37: 30 | H37: 1 | I37: 2 | J37: 140 | K37: 30 | L37: 5.3 | M37: 0.35 | N37: 20 | R37: 4007.7 | BM37: 160 | BN37: >0 | BO37: >0 | BP37: 160 | BQ37: 0.35 | BR37: 0.35 | BS37: 0.35 | BT37: 0.35 | CH37: 6 | CI37: 0 | CJ37: 0 | CK37: 0 | CL37: 0 | CM37: 0 | CN37: 0 | CO37: 0 | CP37: 6 | CQ37: 0 | CR37: 0 | CS37: 0 | CT37: 0 | CU37: 0 | CW37: 25 | CX37: 0.35 | CY37: 1 | CZ37: 1 | DA37: 1
B38: 26 | C38: 0.35 | G38: 31 | H38: 1 | I38: 4 | J38: 50 | K38: 20 | L38: 5.3 | M38: 0.35 | N38: 20 | R38: 511.2 | BM38: 140 | BN38: >0 | BO38: >0 | BP38: 140 | BQ38: 0.35 | BR38: 0.35 | BS38: --- | BT38: 0.35 | CH38: 6 | CI38: 0 | CJ38: 0 | CK38: 0 | CL38: 0 | CM38: 0 | CN38: 0 | CO38: 0 | CP38: 0 | CQ38: 0 | CR38: 0 | CS38: 0 | CT38: 0 | CU38: 6 | CW38: 26 | CX38: 0.35 | CY38: 1 | CZ38: 1 | DA38: 1
B39: 27 | C39: 0.35 | G39: 32 | H39: 1 | I39: 4 | J39: 80 | K39: 20 | L39: 5.3 | M39: 0.35 | N39: 20 | R39: 1308.6 | BM39: 120 | BN39: >0 | BO39: >0 | BP39: 120 | BQ39: 0.35 | BR39: 0.35 | BS39: 0.35 | BT39: 0.35 | CH39: 6 | CI39: 0 | CJ39: 0 | CK39: 0 | CL39: 0 | CM39: 0 | CN39: 0 | CO39: 0 | CP39: 0 | CQ39: 0 | CR39: 0 | CS39: 6 | CT39: 0 | CU39: 0 | CW39: 27 | CX39: 0.35 | CY39: 1 | CZ39: 1 | DA39: 1
B40: 28 | C40: 0.35 | G40: 33 | H40: 1 | I40: 4 | J40: 120 | K40: 20 | L40: 5.3 | M40: 0.35 | N40: 20 | R40: 2944.4 | BM40: 100 | BN40: >0 | BO40: >0 | BP40: 100 | BQ40: --- | BR40: --- | BS40: --- | BT40: --- | CH40: 6 | CI40: 0 | CJ40: 0 | CK40: 0 | CL40: 0 | CM40: 0 | CN40: 0 | CO40: 0 | CP40: 0 | CQ40: 6 | CR40: 0 | CS40: 0 | CT40: 0 | CU40: 0 | CW40: 28 | CX40: 0.35 | CY40: 1 | CZ40: 1 | DA40: 1
B41: 29 | C41: 0.35 | G41: 34 | H41: 1 | I41: 4 | J41: 140 | K41: 20 | L41: 5.3 | M41: 0.35 | N41: 20 | R41: 4007.7 | BM41: 80 | BN41: >0 | BO41: >0 | BP41: 80 | BQ41: 0.35 | BR41: 0.35 | BS41: --- | BT41: 0.35 | CH41: 6 | CI41: 0 | CJ41: 0 | CK41: 0 | CL41: 0 | CM41: 0 | CN41: 0 | CO41: 0 | CP41: 6 | CQ41: 0 | CR41: 0 | CS41: 0 | CT41: 0 | CU41: 0 | CW41: 29 | CX41: 0.35 | CY41: 1 | CZ41: 1 | DA41: 1
B42: 30 | C42: 0.35 | F42: Dry brake applications to dry the brake pad | G42: 35 | H42: 0 | I42: 4 | J42: 120 | K42: 30 | L42: 8 | M42: 0.35 | N42: 20 | R42: 4444.4 | BM42: 70 | BN42: >0 | BO42: >0 | BP42: 70 | BQ42: --- | BR42: --- | BS42: 0.35 | BT42: --- | CG42: TRUE | CH42: 6 | CI42: 0 | CJ42: 0 | CK42: 0 | CL42: 0 | CM42: 0 | CN42: 0 | CO42: 0 | CP42: 0 | CQ42: 6 | CR42: 0 | CS42: 0 | CT42: 0 | CU42: 0 | CW42: 30 | CX42: 0.35 | CY42: 1 | CZ42: 1 | DA42: 1
B43: 31 | C43: 0.35 | G43: 36 | H43: 0 | I43: 4 | J43: 120 | K43: 30 | L43: 8 | M43: 0.35 | N43: 20 | R43: 4444.4 | BM43: 50 | BN43: >0 | BO43: >0 | BP43: 50 | BQ43: 0.35 | BR43: 0.35 | BS43: --- | BT43: 0.35 | CH43: 6 | CI43: 0 | CJ43: 0 | CK43: 0 | CL43: 0 | CM43: 0 | CN43: 0 | CO43: 0 | CP43: 0 | CQ43: 6 | CR43: 0 | CS43: 0 | CT43: 0 | CU43: 0 | CW43: 31 | CX43: 0.35 | CY43: 1 | CZ43: 1 | DA43: 1
B44: 32 | C44: 0.35 | G44: 37 | H44: 0 | I44: 4 | J44: 120 | K44: 30 | L44: 8 | M44: 0.35 | N44: 20 | R44: 4444.4 | BK44: Average: | BM44: >=50 | BN44: >0 | BO44: >0 | BP44: >=50 | BQ44: 0.35 | BR44: 0.35 | BS44: 0.35 | BT44: 0.35 | CG44: =IF(ISERROR(SEARCH("WAHR",$CG$42)),"0",SEARCH("WAHR",$CG$42)) -> 1 | CH44: 6 | CI44: 0 | CJ44: 0 | CK44: 0 | CL44: 0 | CM44: 0 | CN44: 0 | CO44: 0 | CP44: 0 | CQ44: 6 | CR44: 0 | CS44: 0 | CT44: 0 | CU44: 0 | CW44: 32 | CX44: 0.35 | CY44: 1 | CZ44: 1 | DA44: 1
B45: 33 | C45: 0.35 | G45: 38 | H45: 0 | I45: 4 | J45: 120 | K45: 30 | L45: 8 | M45: 0.35 | N45: 20 | R45: 4444.4 | CH45: =IF(OR(ISERROR(SUM(CI45:CU45)),$I45<1),"-1",SUM(CI45:CU45)) -> 6 | CI45: 0 | CJ45: 0 | CK45: 0 | CL45: 0 | CM45: 0 | CN45: 0 | CO45: 0 | CP45: 0 | CQ45: 6 | CR45: 0 | CS45: 0 | CT45: 0 | CU45: 0 | CW45: 33 | CX45: 0.35 | CY45: 1 | CZ45: 1 | DA45: 1
B46: 34 | C46: 0.35 | G46: 39 | H46: 0 | I46: 4 | J46: 120 | K46: 30 | L46: 8 | M46: 0.35 | N46: 20 | R46: 4444.4 | CH46: 6 | CI46: 0 | CJ46: 0 | CK46: 0 | CL46: 0 | CM46: 0 | CN46: 0 | CO46: 0 | CP46: 0 | CQ46: 6 | CR46: 0 | CS46: 0 | CT46: 0 | CU46: 0 | CW46: 34 | CX46: 0.35 | CY46: 1 | CZ46: 1 | DA46: 1
B47: 35 | C47: 0.35 | G47: 40 | H47: 0 | I47: 4 | J47: 120 | K47: 30 | L47: 8 | M47: 0.35 | N47: 20 | R47: 4444.4 | BK47: Numbering | BM47: 0 | BN47: 1 | BO47: 2 | BP47: 3 | BQ47: 4 | BR47: 5 | BS47: 6 | BT47: 7 | BU47: 8 | BV47: 9 | BW47: 10 | BX47: 11 | BY47: 12 | BZ47: 13 | CG47: Checksum Bedding Start | CH47: 6 | CI47: 0 | CJ47: 0 | CK47: 0 | CL47: 0 | CM47: 0 | CN47: 0 | CO47: 0 | CP47: 0 | CQ47: 6 | CR47: 0 | CS47: 0 | CT47: 0 | CU47: 0 | CW47: 35 | CX47: 0.35 | CY47: 1 | CZ47: 1 | DA47: 1
B48: 36 | C48: 0.35 | G48: 41 | H48: 0 | I48: 4 | J48: 120 | K48: 30 | L48: 8 | M48: 0.35 | N48: 20 | R48: 4444.4 | BK48: % | BL48: Leerfeld | BM48: <-30% | BN48: -0.3 | BO48: -0.25 | BP48: -0.2 | BQ48: -0.15 | BR48: -0.1 | BS48: -0.05 | BT48: 0.05 | BU48: 0.1 | BV48: 0.15 | BW48: 0.2 | BX48: 0.25 | BY48: 0.3 | BZ48: >30% | CH48: 6 | CI48: 0 | CJ48: 0 | CK48: 0 | CL48: 0 | CM48: 0 | CN48: 0 | CO48: 0 | CP48: 0 | CQ48: 6 | CR48: 0 | CS48: 0 | CT48: 0 | CU48: 0 | CW48: 36 | CX48: 0.35 | CY48: 1 | CZ48: 1 | DA48: 1
B49: 37 | C49: 0.35 | G49: 42 | H49: 0 | I49: 4 | J49: 120 | K49: 30 | L49: 8 | M49: 0.35 | N49: 20 | R49: 4444.4 | BK49: km/h | CH49: 6 | CI49: 0 | CJ49: 0 | CK49: 0 | CL49: 0 | CM49: 0 | CN49: 0 | CO49: 0 | CP49: 0 | CQ49: 6 | CR49: 0 | CS49: 0 | CT49: 0 | CU49: 0 | CW49: 37 | CX49: 0.35 | CY49: 1 | CZ49: 1 | DA49: 1
B50: 38 | C50: 0.35 | G50: 43 | H50: 0 | I50: 4 | J50: 120 | K50: 30 | L50: 8 | M50: 0.35 | N50: 20 | R50: 4444.4 | BK50: 400 | BM50: 0.001 | BN50: =$AP61*0.7 -> 0.245 | BO50: =$AP61*0.75 -> 0.2625 | BP50: =$AP61*0.8 -> 0.28 | BQ50: =$AP61*0.85 -> 0.2975 | BR50: =$AP61*0.9 -> 0.315 | BS50: =$AP61*0.95 -> 0.3325 | BT50: =$AP61*1.05 -> 0.3675 | BU50: =$AP61*1.1 -> 0.385 | BV50: =$AP61*1.15 -> 0.4025 | BW50: =$AP61*1.2 -> 0.42 | BX50: =$AP61*1.25 -> 0.4375 | BY50: =$AP61*1.3 -> 0.455 | BZ50: 1 | CH50: 6 | CI50: 0 | CJ50: 0 | CK50: 0 | CL50: 0 | CM50: 0 | CN50: 0 | CO50: 0 | CP50: 0 | CQ50: 6 | CR50: 0 | CS50: 0 | CT50: 0 | CU50: 0 | CW50: 38 | CX50: 0.35 | CY50: 1 | CZ50: 1 | DA50: 1
B51: 39 | C51: 0.35 | G51: 44 | H51: 0 | I51: 4 | J51: 120 | K51: 30 | L51: 8 | M51: 0.35 | N51: 20 | R51: 4444.4 | BK51: 350 | BM51: 0.001 | BN51: 0.245 | BO51: 0.2625 | BP51: 0.28 | BQ51: 0.2975 | BR51: 0.315 | BS51: 0.3325 | BT51: 0.3675 | BU51: 0.385 | BV51: 0.4025 | BW51: 0.42 | BX51: 0.4375 | BY51: 0.455 | BZ51: 1 | CH51: 6 | CI51: 0 | CJ51: 0 | CK51: 0 | CL51: 0 | CM51: 0 | CN51: 0 | CO51: 0 | CP51: 0 | CQ51: 6 | CR51: 0 | CS51: 0 | CT51: 0 | CU51: 0 | CW51: 39 | CX51: 0.35 | CY51: 1 | CZ51: 1 | DA51: 1
B52: 40 | C52: 0.35 | F52: Dry brake applications, medium mass | G52: 45 | H52: 0 | I52: 1 | J52: 50 | K52: 44 | L52: 8 | M52: 0.35 | N52: 20 | R52: 771.6 | BK52: 300 | BM52: 0.001 | BN52: 0.245 | BO52: 0.2625 | BP52: 0.28 | BQ52: 0.2975 | BR52: 0.315 | BS52: 0.3325 | BT52: 0.3675 | BU52: 0.385 | BV52: 0.4025 | BW52: 0.42 | BX52: 0.4375 | BY52: 0.455 | BZ52: 1 | CG52: =IF($BR$21=$BT$21,1,0) -> 1 | CH52: 6 | CI52: 0 | CJ52: 0 | CK52: 0 | CL52: 0 | CM52: 0 | CN52: 0 | CO52: 0 | CP52: 0 | CQ52: 0 | CR52: 0 | CS52: 0 | CT52: 0 | CU52: 6 | CW52: 40 | CX52: 0.35 | CY52: 1 | CZ52: 1 | DA52: 1
B53: 41 | G53: 46 | H53: 0 | I53: 1 | J53: 80 | K53: 44 | L53: 8 | M53: 0.35 | N53: 20 | R53: 1975.3 | BK53: 250 | BM53: 0.001 | BN53: 0.245 | BO53: 0.2625 | BP53: 0.28 | BQ53: 0.2975 | BR53: 0.315 | BS53: 0.3325 | BT53: 0.3675 | BU53: 0.385 | BV53: 0.4025 | BW53: 0.42 | BX53: 0.4375 | BY53: 0.455 | BZ53: 1 | CH53: 6 | CI53: 0 | CJ53: 0 | CK53: 0 | CL53: 0 | CM53: 0 | CN53: 0 | CO53: 0 | CP53: 0 | CQ53: 0 | CR53: 0 | CS53: 6 | CT53: 0 | CU53: 0 | CY53: 1 | DA53: 1
B54: 42 | G54: 47 | H54: 0 | I54: 1 | J54: 120 | K54: 44 | L54: 8 | M54: 0.35 | N54: 20 | R54: 4444.4 | BK54: 220 | BM54: 0.001 | BN54: 0.245 | BO54: 0.2625 | BP54: 0.28 | BQ54: 0.2975 | BR54: 0.315 | BS54: 0.3325 | BT54: 0.3675 | BU54: 0.385 | BV54: 0.4025 | BW54: 0.42 | BX54: 0.4375 | BY54: 0.455 | BZ54: 1 | CH54: 6 | CI54: 0 | CJ54: 0 | CK54: 0 | CL54: 0 | CM54: 0 | CN54: 0 | CO54: 0 | CP54: 0 | CQ54: 6 | CR54: 0 | CS54: 0 | CT54: 0 | CU54: 0 | CY54: 1 | DA54: 1
B55: 43 | G55: 48 | H55: 0 | I55: 1 | J55: 140 | K55: 44 | L55: 8 | M55: 0.35 | N55: 20 | R55: 6049.4 | AO55: Nominal line (Priority 1) | BK55: 200 | BM55: 0.001 | BN55: 0.245 | BO55: 0.2625 | BP55: 0.28 | BQ55: 0.2975 | BR55: 0.315 | BS55: 0.3325 | BT55: 0.3675 | BU55: 0.385 | BV55: 0.4025 | BW55: 0.42 | BX55: 0.4375 | BY55: 0.455 | BZ55: 1 | CH55: 6 | CI55: 0 | CJ55: 0 | CK55: 0 | CL55: 0 | CM55: 0 | CN55: 0 | CO55: 0 | CP55: 6 | CQ55: 0 | CR55: 0 | CS55: 0 | CT55: 0 | CU55: 0 | CY55: 1 | DA55: 1
B56: 44 | G56: 49 | H56: 0 | I56: 1 | J56: 160 | K56: 44 | L56: 8 | M56: 0.35 | N56: 20 | R56: 7901.2 | V56: Tolerance Band | W56: Priority | AA56: Bedding 30% | AB56: Bedding 15% | AC56: Continuous Braking | BK56: 160 | BM56: 0.001 | BN56: 0.245 | BO56: 0.2625 | BP56: 0.28 | BQ56: 0.2975 | BR56: 0.315 | BS56: 0.3325 | BT56: 0.3675 | BU56: 0.385 | BV56: 0.4025 | BW56: 0.42 | BX56: 0.4375 | BY56: 0.455 | BZ56: 1 | CH56: 6 | CI56: 0 | CJ56: 0 | CK56: 0 | CL56: 0 | CM56: 0 | CN56: 0 | CO56: 6 | CP56: 0 | CQ56: 0 | CR56: 0 | CS56: 0 | CT56: 0 | CU56: 0 | CY56: 1 | DA56: 1
B57: 45 | G57: 51 | H57: 0 | I57: 1 | J57: 50 | K57: 44 | L57: 8 | M57: 0.35 | N57: 20 | R57: 771.6 | W57: 1 | X57: 2 | Y57: 3 | Z57: 4 | AO57: Formula | AP57: =CONCATENATE($AT$62," v + ",$AT$64) -> 2,23242269776831E-34 v + 0,35 | BK57: 140 | BM57: 0.001 | BN57: 0.245 | BO57: 0.2625 | BP57: 0.28 | BQ57: 0.2975 | BR57: 0.315 | BS57: 0.3325 | BT57: 0.3675 | BU57: 0.385 | BV57: 0.4025 | BW57: 0.42 | BX57: 0.4375 | BY57: 0.455 | BZ57: 1 | CH57: 6 | CI57: 0 | CJ57: 0 | CK57: 0 | CL57: 0 | CM57: 0 | CN57: 0 | CO57: 0 | CP57: 0 | CQ57: 0 | CR57: 0 | CS57: 0 | CT57: 0 | CU57: 6 | CY57: 1 | DA57: 1
B58: 46 | G58: 52 | H58: 0 | I58: 1 | J58: 80 | K58: 44 | L58: 8 | M58: 0.35 | N58: 20 | R58: 1975.3 | V58: mm > 30% | W58: =COUNTIFS($CH$13:$CH$212,13,$I$13:$I$212,W$57) -> 0 | X58: =COUNTIFS($CH$13:$CH$212,13,$I$13:$I$212,X$57) -> 0 | Y58: =COUNTIFS($CH$13:$CH$212,13,$I$13:$I$212,Y$57) -> 0 | Z58: =COUNTIFS($CH$13:$CH$212,13,$I$13:$I$212,Z$57) -> 0 | AA58: =$BR$15 -> 0 | AB58: =$BR$18 -> 0 | AC58: Enter friction values for cont. braking in M4, M5 and N4 | BK58: 120 | BM58: 0.001 | BN58: 0.245 | BO58: 0.2625 | BP58: 0.28 | BQ58: 0.2975 | BR58: 0.315 | BS58: 0.3325 | BT58: 0.3675 | BU58: 0.385 | BV58: 0.4025 | BW58: 0.42 | BX58: 0.4375 | BY58: 0.455 | BZ58: 1 | CH58: 6 | CI58: 0 | CJ58: 0 | CK58: 0 | CL58: 0 | CM58: 0 | CN58: 0 | CO58: 0 | CP58: 0 | CQ58: 0 | CR58: 0 | CS58: 6 | CT58: 0 | CU58: 0 | CY58: 1 | DA58: 1
B59: 47 | G59: 53 | H59: 0 | I59: 1 | J59: 120 | K59: 44 | L59: 8 | M59: 0.35 | N59: 20 | R59: 4444.4 | V59: 30…25% | W59: =COUNTIFS($CH$13:$CH$212,12,$I$13:$I$212,W$57) -> 0 | X59: =COUNTIFS($CH$13:$CH$212,12,$I$13:$I$212,X$57) -> 0 | Y59: =COUNTIFS($CH$13:$CH$212,12,$I$13:$I$212,Y$57) -> 0 | Z59: =COUNTIFS($CH$13:$CH$212,12,$I$13:$I$212,Z$57) -> 0 | AA59: =$BR$16 -> 2 | AO59: Speed [km/h] | AP59: mm,NL (value of NL) | BK59: 100 | BM59: 0.001 | BN59: 0.245 | BO59: 0.2625 | BP59: 0.28 | BQ59: 0.2975 | BR59: 0.315 | BS59: 0.3325 | BT59: 0.3675 | BU59: 0.385 | BV59: 0.4025 | BW59: 0.42 | BX59: 0.4375 | BY59: 0.455 | BZ59: 1 | CH59: 6 | CI59: 0 | CJ59: 0 | CK59: 0 | CL59: 0 | CM59: 0 | CN59: 0 | CO59: 0 | CP59: 0 | CQ59: 6 | CR59: 0 | CS59: 0 | CT59: 0 | CU59: 0 | CY59: 1 | DA59: 1
B60: 48 | G60: 54 | H60: 0 | I60: 1 | J60: 140 | K60: 44 | L60: 8 | M60: 0.35 | N60: 20 | R60: 6049.4 | V60: 25…20% | W60: =COUNTIFS($CH$13:$CH$212,11,$I$13:$I$212,W$57) -> 0 | X60: =COUNTIFS($CH$13:$CH$212,11,$I$13:$I$212,X$57) -> 0 | Y60: =COUNTIFS($CH$13:$CH$212,11,$I$13:$I$212,Y$57) -> 0 | Z60: =COUNTIFS($CH$13:$CH$212,11,$I$13:$I$212,Z$57) -> 0 | AR60: slope in 1/(100 km/h) (a) | AT60: =$AT$62*100 -> 2.232422698e-32 | BK60: 80 | BM60: 0.001 | BN60: 0.245 | BO60: 0.2625 | BP60: 0.28 | BQ60: 0.2975 | BR60: 0.315 | BS60: 0.3325 | BT60: 0.3675 | BU60: 0.385 | BV60: 0.4025 | BW60: 0.42 | BX60: 0.4375 | BY60: 0.455 | BZ60: 1 | CH60: 6 | CI60: 0 | CJ60: 0 | CK60: 0 | CL60: 0 | CM60: 0 | CN60: 0 | CO60: 0 | CP60: 6 | CQ60: 0 | CR60: 0 | CS60: 0 | CT60: 0 | CU60: 0 | CY60: 1 | DA60: 1
B61: 49 | G61: 55 | H61: 0 | I61: 1 | J61: 160 | K61: 44 | L61: 8 | M61: 0.35 | N61: 20 | R61: 7901.2 | V61: 20…15% | W61: =COUNTIFS($CH$13:$CH$212,10,$I$13:$I$212,W$57) -> 0 | X61: =COUNTIFS($CH$13:$CH$212,10,$I$13:$I$212,X$57) -> 0 | Y61: =COUNTIFS($CH$13:$CH$212,10,$I$13:$I$212,Y$57) -> 0 | Z61: =COUNTIFS($CH$13:$CH$212,10,$I$13:$I$212,Z$57) -> 0 | AO61: 400 | AP61: =$AT$62*$AO61+$AT$64 -> 0.35 | AW61: =IF(COUNTIF($J$13:$J$147,$AO61)>0,"Ja","Nein") -> Nein | BK61: 70 | BM61: 0.001 | BN61: 0.245 | BO61: 0.2625 | BP61: 0.28 | BQ61: 0.2975 | BR61: 0.315 | BS61: 0.3325 | BT61: 0.3675 | BU61: 0.385 | BV61: 0.4025 | BW61: 0.42 | BX61: 0.4375 | BY61: 0.455 | BZ61: 1 | CH61: 6 | CI61: 0 | CJ61: 0 | CK61: 0 | CL61: 0 | CM61: 0 | CN61: 0 | CO61: 6 | CP61: 0 | CQ61: 0 | CR61: 0 | CS61: 0 | CT61: 0 | CU61: 0 | CY61: 1 | DA61: 1
B62: 50 | G62: 57 | H62: 0 | I62: 1 | J62: 50 | K62: 44 | L62: 8 | M62: 0.35 | N62: 20 | R62: 771.6 | V62: 15…10% | W62: =COUNTIFS($CH$13:$CH$212,9,$I$13:$I$212,W$57) -> 0 | X62: =COUNTIFS($CH$13:$CH$212,9,$I$13:$I$212,X$57) -> 0 | Y62: =COUNTIFS($CH$13:$CH$212,9,$I$13:$I$212,Y$57) -> 0 | Z62: =COUNTIFS($CH$13:$CH$212,9,$I$13:$I$212,Z$57) -> 0 | AB62: =$BR$19 -> 28 | AC62: =IF(AND($M$4<=0.5,$M$5>=0.25,$N$4<=0.05),"passed",IF(OR($M$4="",$M$5="",$N$4=""),"no values","failed")) -> no values | AO62: 350 | AP62: 0.35 | AR62: slope in 1/(km/h) | AT62: =SLOPE(IF(ISNUMBER($CM$217:$CM$428),$CM$217:$CM$428),IF(ISNUMBER($CJ$217:$CJ$428),$CJ$217:$CJ$428)) -> 2.232422698e-34 | AW62: Nein | BK62: 50 | BM62: 0.001 | BN62: 0.245 | BO62: 0.2625 | BP62: 0.28 | BQ62: 0.2975 | BR62: 0.315 | BS62: 0.3325 | BT62: 0.3675 | BU62: 0.385 | BV62: 0.4025 | BW62: 0.42 | BX62: 0.4375 | BY62: 0.455 | BZ62: 1 | CH62: 6 | CI62: 0 | CJ62: 0 | CK62: 0 | CL62: 0 | CM62: 0 | CN62: 0 | CO62: 0 | CP62: 0 | CQ62: 0 | CR62: 0 | CS62: 0 | CT62: 0 | CU62: 6 | CY62: 1 | DA62: 1
B63: 51 | G63: 58 | H63: 0 | I63: 1 | J63: 80 | K63: 44 | L63: 8 | M63: 0.35 | N63: 20 | R63: 1975.3 | V63: 10…5% | W63: =COUNTIFS($CH$13:$CH$212,8,$I$13:$I$212,W$57) -> 0 | X63: =COUNTIFS($CH$13:$CH$212,8,$I$13:$I$212,X$57) -> 0 | Y63: =COUNTIFS($CH$13:$CH$212,8,$I$13:$I$212,Y$57) -> 0 | Z63: =COUNTIFS($CH$13:$CH$212,8,$I$13:$I$212,Z$57) -> 0 | AC63: Wear during cont. braking + stop in mm | AO63: 300 | AP63: 0.35 | AW63: Nein | CH63: 6 | CI63: 0 | CJ63: 0 | CK63: 0 | CL63: 0 | CM63: 0 | CN63: 0 | CO63: 0 | CP63: 0 | CQ63: 0 | CR63: 0 | CS63: 6 | CT63: 0 | CU63: 0 | CY63: 1 | DA63: 1
B64: 52 | G64: 59 | H64: 0 | I64: 1 | J64: 120 | K64: 44 | L64: 8 | M64: 0.35 | N64: 20 | R64: 4444.4 | V64: 5...-5% | W64: =COUNTIFS($CH$13:$CH$212,7,$I$13:$I$212,W$57)+COUNTIFS($CH$13:$CH$212,6,$I$13:$I$212,W$57) -> 26 | X64: =COUNTIFS($CH$13:$CH$212,7,$I$13:$I$212,X$57)+COUNTIFS($CH$13:$CH$212,6,$I$13:$I$212,X$57) -> 30 | Y64: =COUNTIFS($CH$13:$CH$212,7,$I$13:$I$212,Y$57)+COUNTIFS($CH$13:$CH$212,6,$I$13:$I$212,Y$57) -> 12 | Z64: =COUNTIFS($CH$13:$CH$212,7,$I$13:$I$212,Z$57)+COUNTIFS($CH$13:$CH$212,6,$I$13:$I$212,Z$57) -> 78 | AO64: 250 | AP64: 0.35 | AR64: axis intercept (b) | AT64: =INTERCEPT(IF(ISNUMBER($CM$217:$CM$428),$CM$217:$CM$428),IF(ISNUMBER($CJ$217:$CJ$428),$CJ$217:$CJ$428)) -> 0.35 | AW64: Nein | CH64: 6 | CI64: 0 | CJ64: 0 | CK64: 0 | CL64: 0 | CM64: 0 | CN64: 0 | CO64: 0 | CP64: 0 | CQ64: 6 | CR64: 0 | CS64: 0 | CT64: 0 | CU64: 0 | CY64: 1 | DA64: 1
B65: 53 | G65: 60 | H65: 0 | I65: 1 | J65: 140 | K65: 44 | L65: 8 | M65: 0.35 | N65: 20 | R65: 6049.4 | V65: -5…-10% | W65: =COUNTIFS($CH$13:$CH$212,5,$I$13:$I$212,W$57) -> 0 | X65: =COUNTIFS($CH$13:$CH$212,5,$I$13:$I$212,X$57) -> 0 | Y65: =COUNTIFS($CH$13:$CH$212,5,$I$13:$I$212,Y$57) -> 0 | Z65: =COUNTIFS($CH$13:$CH$212,5,$I$13:$I$212,Z$57) -> 0 | AO65: 220 | AP65: 0.35 | AW65: Nein | CH65: 6 | CI65: 0 | CJ65: 0 | CK65: 0 | CL65: 0 | CM65: 0 | CN65: 0 | CO65: 0 | CP65: 6 | CQ65: 0 | CR65: 0 | CS65: 0 | CT65: 0 | CU65: 0 | CY65: 1 | DA65: 1
B66: 54 | G66: 61 | H66: 0 | I66: 1 | J66: 160 | K66: 44 | L66: 8 | M66: 0.35 | N66: 20 | R66: 7901.2 | V66: -10…-15% | W66: =COUNTIFS($CH$13:$CH$212,4,$I$13:$I$212,W$57) -> 0 | X66: =COUNTIFS($CH$13:$CH$212,4,$I$13:$I$212,X$57) -> 0 | Y66: =COUNTIFS($CH$13:$CH$212,4,$I$13:$I$212,Y$57) -> 0 | Z66: =COUNTIFS($CH$13:$CH$212,4,$I$13:$I$212,Z$57) -> 0 | AC66: =IF(OR($F$135="",$F$137="",$B$6="",$C$6=""),"no values",IF(AND(($F$135-$F$137)>0,$B$6>0,$C$6>0),(($F$135-$F$137)/$B$6*1/(2*$C$6)*10),"invalid")) -> no values | AO66: 200 | AP66: 0.35 | AW66: Nein | CH66: 6 | CI66: 0 | CJ66: 0 | CK66: 0 | CL66: 0 | CM66: 0 | CN66: 0 | CO66: 6 | CP66: 0 | CQ66: 0 | CR66: 0 | CS66: 0 | CT66: 0 | CU66: 0 | CY66: 1 | DA66: 1
B67: 55 | G67: 63 | H67: 0 | I67: 4 | J67: 50 | K67: 30 | L67: 8 | M67: 0.35 | N67: 20 | R67: 771.6 | V67: -15…-20% | W67: =COUNTIFS($CH$13:$CH$212,3,$I$13:$I$212,W$57) -> 0 | X67: =COUNTIFS($CH$13:$CH$212,3,$I$13:$I$212,X$57) -> 0 | Y67: =COUNTIFS($CH$13:$CH$212,3,$I$13:$I$212,Y$57) -> 0 | Z67: =COUNTIFS($CH$13:$CH$212,3,$I$13:$I$212,Z$57) -> 0 | AB67: =$BR$20 -> 0 | AC67: Information | AO67: 160 | AP67: 0.35 | AR67: Criteria for nominal line | AW67: Ja | CH67: 6 | CI67: 0 | CJ67: 0 | CK67: 0 | CL67: 0 | CM67: 0 | CN67: 0 | CO67: 0 | CP67: 0 | CQ67: 0 | CR67: 0 | CS67: 0 | CT67: 0 | CU67: 6 | CY67: 1 | DA67: 1
B68: 56 | G68: 64 | H68: 0 | I68: 4 | J68: 80 | K68: 30 | L68: 8 | M68: 0.35 | N68: 20 | R68: 1975.3 | V68: -20…-25% | W68: =COUNTIFS($CH$13:$CH$212,2,$I$13:$I$212,W$57) -> 0 | X68: =COUNTIFS($CH$13:$CH$212,2,$I$13:$I$212,X$57) -> 0 | Y68: =COUNTIFS($CH$13:$CH$212,2,$I$13:$I$212,Y$57) -> 0 | Z68: =COUNTIFS($CH$13:$CH$212,2,$I$13:$I$212,Z$57) -> 0 | AC68: Energy in MJ | AO68: 140 | AP68: 0.35 | AW68: Ja | CH68: 6 | CI68: 0 | CJ68: 0 | CK68: 0 | CL68: 0 | CM68: 0 | CN68: 0 | CO68: 0 | CP68: 0 | CQ68: 0 | CR68: 0 | CS68: 6 | CT68: 0 | CU68: 0 | CY68: 1 | DA68: 1
B69: 57 | G69: 65 | H69: 0 | I69: 4 | J69: 120 | K69: 30 | L69: 8 | M69: 0.35 | N69: 20 | R69: 4444.4 | V69: -25…-30% | W69: =COUNTIFS($CH$13:$CH$212,1,$I$13:$I$212,W$57) -> 0 | X69: =COUNTIFS($CH$13:$CH$212,1,$I$13:$I$212,X$57) -> 0 | Y69: =COUNTIFS($CH$13:$CH$212,1,$I$13:$I$212,Y$57) -> 0 | Z69: =COUNTIFS($CH$13:$CH$212,1,$I$13:$I$212,Z$57) -> 0 | AC69: =R172 -> 667.8 | AO69: 120 | AP69: 0.35 | AR69: Limits 0,28-0,47 | AT69: =IF(AND($CO$432>=$CH$432,$CO$432<=$CI$432,$CO$433>=$CH$433,$CO$433<=$CI$433),"passed","failed") -> passed | AW69: Ja | CH69: 6 | CI69: 0 | CJ69: 0 | CK69: 0 | CL69: 0 | CM69: 0 | CN69: 0 | CO69: 0 | CP69: 0 | CQ69: 6 | CR69: 0 | CS69: 0 | CT69: 0 | CU69: 0 | CY69: 1 | DA69: 1
B70: 58 | G70: 66 | H70: 0 | I70: 4 | J70: 140 | K70: 30 | L70: 8 | M70: 0.35 | N70: 20 | R70: 6049.4 | V70: mm < -30% | W70: =COUNTIFS($CH$13:$CH$212,0,$I$13:$I$212,W$57) -> 0 | X70: =COUNTIFS($CH$13:$CH$212,0,$I$13:$I$212,X$57) -> 0 | Y70: =COUNTIFS($CH$13:$CH$212,0,$I$13:$I$212,Y$57) -> 0 | Z70: =COUNTIFS($CH$13:$CH$212,0,$I$13:$I$212,Z$57) -> 0 | AA70: =$BR$17 -> 0 | AC70: Average wear in g/100 MJ | AO70: 100 | AP70: =$AT$62*$AO$70+$AT$64 -> 0.35 | AW70: Nein | CH70: 6 | CI70: 0 | CJ70: 0 | CK70: 0 | CL70: 0 | CM70: 0 | CN70: 0 | CO70: 0 | CP70: 6 | CQ70: 0 | CR70: 0 | CS70: 0 | CT70: 0 | CU70: 0 | CY70: 1 | DA70: 1
B71: 59 | G71: 67 | H71: 0 | I71: 4 | J71: 160 | K71: 30 | L71: 8 | M71: 0.35 | N71: 20 | R71: 7901.2 | V71: Sum Column | W71: =SUM(W$58:W$70) -> 26 | X71: =SUM(X$58:X$70) -> 30 | Y71: =SUM(Y$58:Y$70) -> 12 | Z71: =SUM(Z$58:Z$70) -> 78 | AA71: =SUM(AA58:AA70) -> 2 | AB71: =SUM(AB58:AB70) -> 28 | AO71: 80 | AP71: =$AT$62*$AO$71+$AT$64 -> 0.35 | AR71: Difference <0,15 | AT71: =IF(ABS($CO$433-$CO$432)<=0.15,"passed","failed") -> passed | AW71: Ja | CH71: 6 | CI71: 0 | CJ71: 0 | CK71: 0 | CL71: 0 | CM71: 0 | CN71: 0 | CO71: 6 | CP71: 0 | CQ71: 0 | CR71: 0 | CS71: 0 | CT71: 0 | CU71: 0 | CY71: 1 | DA71: 1
B72: 60 | G72: 69 | H72: 0 | I72: 4 | J72: 50 | K72: 14 | L72: 8 | M72: 0.35 | N72: 20 | R72: 771.6 | V72: Sum all | W72: =SUM(W71:Z71) -> 146 | AA72: =TEXT(SUM(AA71:AB71),"0")&" (+10)" -> 30 (+10) | AC72: =IF(($F$12-$F$159)>0,($F$12-$F$159)/$AC$69*100,IF(OR($F$12="",$F$159=""),"no values","invalid")) -> no values | AO72: 70 | AP72: =$AT$62*$AO$72+$AT$64 -> 0.35 | AW72: Ja | CH72: 6 | CI72: 0 | CJ72: 0 | CK72: 0 | CL72: 0 | CM72: 0 | CN72: 0 | CO72: 0 | CP72: 0 | CQ72: 0 | CR72: 0 | CS72: 0 | CT72: 0 | CU72: 6 | CY72: 1 | DA72: 1
B73: 61 | G73: 70 | H73: 0 | I73: 4 | J73: 80 | K73: 14 | L73: 8 | M73: 0.35 | N73: 20 | R73: 1975.3 | AO73: 50 | AP73: =$AT$62*$AO$73+$AT$64 -> 0.35 | AW73: Ja | CH73: 6 | CI73: 0 | CJ73: 0 | CK73: 0 | CL73: 0 | CM73: 0 | CN73: 0 | CO73: 0 | CP73: 0 | CQ73: 0 | CR73: 0 | CS73: 6 | CT73: 0 | CU73: 0 | CY73: 1 | DA73: 1
B74: 62 | G74: 71 | H74: 0 | I74: 4 | J74: 120 | K74: 14 | L74: 8 | M74: 0.35 | N74: 20 | R74: 4444.4 | V74: Priority | W74: 1 | X74: 2-4 | AA74: Bedding | AC74: Contin. | CH74: 6 | CI74: 0 | CJ74: 0 | CK74: 0 | CL74: 0 | CM74: 0 | CN74: 0 | CO74: 0 | CP74: 0 | CQ74: 6 | CR74: 0 | CS74: 0 | CT74: 0 | CU74: 0 | CY74: 1 | DA74: 1
B75: 63 | G75: 72 | H75: 0 | I75: 4 | J75: 140 | K75: 14 | L75: 8 | M75: 0.35 | N75: 20 | R75: 6049.4 | V75: Result | W75: =IF(OR(OR(SUM($W$70,$W$69,$W$68,$W$67,$W$61,$W$60,$W$59,$W$58)>0),(SUM($W$62,$W$66)>ROUND(0.12*W71,0)),(SUM($W$66)>ROUND(0.06*W71,0))),"failed","passed") -> passed | X75: =IF(OR(OR(SUM($X$58:$X$60,$Y$58,$Y$59,$Z$58,$X$68:$X$70,$Y$69,$Y$70,$Z$70)>0),(SUM($X$67,$Y$68,$Z$69,$Z$59,$Y$60,$X$61)>(ROUND(0.1*(SUM($Y$71,$Z$71,$X$71)),0))),(SUM($Z$69,$Y$68,$X$67)>(ROUND(0.05*SUM($Z$71,$Y$71,$X$71),0)))),"failed","passed") -> passed | AA75: =IF(OR(SUM($AA$58,$AB$58,$AB$67,$AA$70)>0,$BK$15="failed"),"failed","passed") -> passed | AC75: =IF(AND($M$4<=0.5,$M$5>=0.25,$N$4<=0.05),"passed","failed") -> failed | CH75: 6 | CI75: 0 | CJ75: 0 | CK75: 0 | CL75: 0 | CM75: 0 | CN75: 0 | CO75: 0 | CP75: 6 | CQ75: 0 | CR75: 0 | CS75: 0 | CT75: 0 | CU75: 0 | CY75: 1 | DA75: 1
B76: 64 | G76: 73 | H76: 0 | I76: 4 | J76: 160 | K76: 14 | L76: 8 | M76: 0.35 | N76: 20 | R76: 7901.2 | CH76: 6 | CI76: 0 | CJ76: 0 | CK76: 0 | CL76: 0 | CM76: 0 | CN76: 0 | CO76: 6 | CP76: 0 | CQ76: 0 | CR76: 0 | CS76: 0 | CT76: 0 | CU76: 0 | CY76: 1 | DA76: 1
B77: 65 | F77: Wet brake applications, medium mass | G77: 75 | H77: 1 | I77: 2 | J77: 50 | K77: 44 | L77: 8 | M77: 0.35 | N77: 20 | R77: 771.6 | V77: UIC test | W77: =IF(AND($AA$75="passed",$W$75="passed",$X$75="passed",$AC$75="passed",$AC$77="passed",$Z$77="passed"),"passed","failed") -> failed | Y77: Nominal line | Z77: =IF(AND($AT$69="passed",$AT$71="passed"),"passed","failed") -> passed | AB77: Plausibility | AC77: =$BK$26 -> passed | AN77: Report | AQ77: Checked | AT77: Released | CH77: =IF(OR(ISERROR(SUM(CI77:CU77)),$I77<1),"-1",SUM(CI77:CU77)) -> 6 | CI77: =IF($J77=CI$12,MATCH(ROUND($M77,3),$BM$50:$BZ$50,1)-1,0)+IF(AND($J77=CI$12,ROUND($M77,3)>$AP$61),1,0) -> 0 | CJ77: =IF($J77=CJ$12,MATCH(ROUND($M77,3),$BM$51:$BZ$51,1)-1,0)+IF(AND($J77=CJ$12,ROUND($M77,3)>$AP$62),1,0) -> 0 | CK77: =IF($J77=CK$12,MATCH(ROUND($M77,3),$BM$52:$BZ$52,1)-1,0)+IF(AND($J77=CK$12,ROUND($M77,3)>$AP$63),1,0) -> 0 | CL77: =IF($J77=CL$12,MATCH(ROUND($M77,3),$BM$53:$BZ$53,1)-1,0)+IF(AND($J77=CL$12,ROUND($M77,3)>$AP$64),1,0) -> 0 | CM77: =IF($J77=CM$12,MATCH(ROUND($M77,3),$BM$54:$BZ$54,1)-1,0)+IF(AND($J77=CM$12,ROUND($M77,3)>$AP$65),1,0) -> 0 | CN77: =IF($J77=CN$12,MATCH(ROUND($M77,3),$BM$55:$BZ$55,1)-1,0)+IF(AND($J77=CN$12,ROUND($M77,3)>$AP$66),1,0) -> 0 | CO77: =IF($J77=CO$12,MATCH(ROUND($M77,3),$BM$56:$BZ$56,1)-1,0)+IF(AND($J77=CO$12,ROUND($M77,3)>$AP$67),1,0) -> 0 | CP77: =IF($J77=CP$12,MATCH(ROUND($M77,3),$BM$57:$BZ$57,1)-1,0)+IF(AND($J77=CP$12,ROUND($M77,3)>$AP$68),1,0) -> 0 | CQ77: =IF($J77=CQ$12,MATCH(ROUND($M77,3),$BM$58:$BZ$58,1)-1,0)+IF(AND($J77=CQ$12,ROUND($M77,3)>$AP$69),1,0) -> 0 | CR77: =IF($J77=CR$12,MATCH(ROUND($M77,3),$BM$59:$BZ$59,1)-1,0)+IF(AND($J77=CR$12,ROUND($M77,3)>$AP$70),1,0) -> 0 | CS77: =IF($J77=CS$12,MATCH(ROUND($M77,3),$BM$60:$BZ$60,1)-1,0)+IF(AND($J77=CS$12,ROUND($M77,3)>$AP$71),1,0) -> 0 | CT77: =IF($J77=CT$12,MATCH(ROUND($M77,3),$BM$61:$BZ$61,1)-1,0)+IF(AND($J77=CT$12,ROUND($M77,3)>$AP$72),1,0) -> 0 | CU77: =IF($J77=CU$12,MATCH(ROUND($M77,3),$BM$62:$BZ$62,1)-1,0)+IF(AND($J77=CU$12,ROUND($M77,3)>$AP$73),1,0) -> 6 | CW77: =IF($C77>0,$B77,#N/A) ->  | CX77: =IF($C77>0,ROUND($C77,3),#N/A) ->  | CY77: =IF(I77>0,IF(OR(AND($I77=1,$CH77>=5,$CH77<=8),AND(I77=2,$CH77>=4,$CH77<=9),AND($I77=3,$CH77>=3,$CH77<=10),AND($I77=4,$CH77>=2,$CH77<=11)),1,IF(OR(AND($I77=1,OR($CH77=4,$CH77=9)),AND($I77=2,OR($CH77=3,$CH77=10)),AND($I77=3,OR($CH77=2,$CH77=11)),AND($I77=4,OR($CH77=1,$CH77=12))),2,0)),#N/A) -> 1 | DA77: 1
B78: 66 | G78: 76 | H78: 1 | I78: 2 | J78: 80 | K78: 44 | L78: 8 | M78: 0.35 | N78: 20 | R78: =0.5*L78*(J78/3.6)^2 -> 1975.3 | CH78: 6 | CI78: 0 | CJ78: 0 | CK78: 0 | CL78: 0 | CM78: 0 | CN78: 0 | CO78: 0 | CP78: 0 | CQ78: 0 | CR78: 0 | CS78: 6 | CT78: 0 | CU78: 0 | CY78: 1 | CZ78: =IF($C78>0,IF(OR(AND($B78>=$BR$24,$B78<=$BR$25,OR($C78>$BS$24,$C78<$BT$24)),AND($B78>=$BR$26,$B78<=$BR$27,OR($C78>$BS$26,$C78<$BT$26))),0,1),#N/A) ->  | DA78: =IF($I78>0,IF(AND(ISNUMBER(M78),$M78>0),1,0),"") -> 1
B79: 67 | G79: 77 | H79: 1 | I79: 2 | J79: 120 | K79: 44 | L79: 8 | M79: 0.35 | N79: 20 | R79: 4444.4 | CH79: 6 | CI79: 0 | CJ79: 0 | CK79: 0 | CL79: 0 | CM79: 0 | CN79: 0 | CO79: 0 | CP79: 0 | CQ79: 6 | CR79: 0 | CS79: 0 | CT79: 0 | CU79: 0 | CY79: 1 | DA79: 1
B80: 68 | G80: 78 | H80: 1 | I80: 2 | J80: 140 | K80: 44 | L80: 8 | M80: 0.35 | N80: 20 | R80: 6049.4 | CH80: 6 | CI80: 0 | CJ80: 0 | CK80: 0 | CL80: 0 | CM80: 0 | CN80: 0 | CO80: 0 | CP80: 6 | CQ80: 0 | CR80: 0 | CS80: 0 | CT80: 0 | CU80: 0 | CY80: 1 | DA80: 1
B81: 69 | G81: 79 | H81: 1 | I81: 4 | J81: 50 | K81: 30 | L81: 8 | M81: 0.35 | N81: 20 | R81: 771.6 | CH81: 6 | CI81: 0 | CJ81: 0 | CK81: 0 | CL81: 0 | CM81: 0 | CN81: 0 | CO81: 0 | CP81: 0 | CQ81: 0 | CR81: 0 | CS81: 0 | CT81: 0 | CU81: 6 | CY81: 1 | DA81: 1
B82: 70 | G82: 80 | H82: 1 | I82: 4 | J82: 80 | K82: 30 | L82: 8 | M82: 0.35 | N82: 20 | R82: 1975.3 | CH82: 6 | CI82: 0 | CJ82: 0 | CK82: 0 | CL82: 0 | CM82: 0 | CN82: 0 | CO82: 0 | CP82: 0 | CQ82: 0 | CR82: 0 | CS82: 6 | CT82: 0 | CU82: 0 | CY82: 1 | DA82: 1
B83: 71 | G83: 81 | H83: 1 | I83: 4 | J83: 120 | K83: 30 | L83: 8 | M83: 0.35 | N83: 20 | R83: 4444.4 | CH83: 6 | CI83: 0 | CJ83: 0 | CK83: 0 | CL83: 0 | CM83: 0 | CN83: 0 | CO83: 0 | CP83: 0 | CQ83: 6 | CR83: 0 | CS83: 0 | CT83: 0 | CU83: 0 | CY83: 1 | DA83: 1
B84: 72 | G84: 82 | H84: 1 | I84: 4 | J84: 140 | K84: 30 | L84: 8 | M84: 0.35 | N84: 20 | R84: 6049.4 | CH84: 6 | CI84: 0 | CJ84: 0 | CK84: 0 | CL84: 0 | CM84: 0 | CN84: 0 | CO84: 0 | CP84: 6 | CQ84: 0 | CR84: 0 | CS84: 0 | CT84: 0 | CU84: 0 | CY84: 1 | DA84: 1
B85: 73 | G85: 83 | H85: 1 | I85: 2 | J85: 50 | K85: 44 | L85: 8 | M85: 0.35 | N85: 20 | R85: 771.6 | CH85: 6 | CI85: 0 | CJ85: 0 | CK85: 0 | CL85: 0 | CM85: 0 | CN85: 0 | CO85: 0 | CP85: 0 | CQ85: 0 | CR85: 0 | CS85: 0 | CT85: 0 | CU85: 6 | CY85: 1 | DA85: 1
B86: 74 | G86: 84 | H86: 1 | I86: 2 | J86: 80 | K86: 44 | L86: 8 | M86: 0.35 | N86: 20 | R86: 1975.3 | CH86: 6 | CI86: 0 | CJ86: 0 | CK86: 0 | CL86: 0 | CM86: 0 | CN86: 0 | CO86: 0 | CP86: 0 | CQ86: 0 | CR86: 0 | CS86: 6 | CT86: 0 | CU86: 0 | CY86: 1 | DA86: 1
B87: 75 | G87: 85 | H87: 1 | I87: 2 | J87: 120 | K87: 44 | L87: 8 | M87: 0.35 | N87: 20 | R87: 4444.4 | CH87: 6 | CI87: 0 | CJ87: 0 | CK87: 0 | CL87: 0 | CM87: 0 | CN87: 0 | CO87: 0 | CP87: 0 | CQ87: 6 | CR87: 0 | CS87: 0 | CT87: 0 | CU87: 0 | CY87: 1 | DA87: 1
B88: 76 | G88: 86 | H88: 1 | I88: 2 | J88: 140 | K88: 44 | L88: 8 | M88: 0.35 | N88: 20 | R88: 6049.4 | CH88: 6 | CI88: 0 | CJ88: 0 | CK88: 0 | CL88: 0 | CM88: 0 | CN88: 0 | CO88: 0 | CP88: 6 | CQ88: 0 | CR88: 0 | CS88: 0 | CT88: 0 | CU88: 0 | CY88: 1 | DA88: 1
B89: 77 | G89: 87 | H89: 1 | I89: 2 | J89: 50 | K89: 44 | L89: 8 | M89: 0.35 | N89: 20 | R89: 771.6 | CH89: 6 | CI89: 0 | CJ89: 0 | CK89: 0 | CL89: 0 | CM89: 0 | CN89: 0 | CO89: 0 | CP89: 0 | CQ89: 0 | CR89: 0 | CS89: 0 | CT89: 0 | CU89: 6 | CY89: 1 | DA89: 1
B90: 78 | G90: 88 | H90: 1 | I90: 2 | J90: 80 | K90: 44 | L90: 8 | M90: 0.35 | N90: 20 | R90: 1975.3 | CH90: 6 | CI90: 0 | CJ90: 0 | CK90: 0 | CL90: 0 | CM90: 0 | CN90: 0 | CO90: 0 | CP90: 0 | CQ90: 0 | CR90: 0 | CS90: 6 | CT90: 0 | CU90: 0 | CY90: 1 | DA90: 1
B91: 79 | G91: 89 | H91: 1 | I91: 2 | J91: 120 | K91: 44 | L91: 8 | M91: 0.35 | N91: 20 | R91: 4444.4 | CH91: 6 | CI91: 0 | CJ91: 0 | CK91: 0 | CL91: 0 | CM91: 0 | CN91: 0 | CO91: 0 | CP91: 0 | CQ91: 6 | CR91: 0 | CS91: 0 | CT91: 0 | CU91: 0 | CY91: 1 | DA91: 1
B92: 80 | G92: 90 | H92: 1 | I92: 2 | J92: 140 | K92: 44 | L92: 8 | M92: 0.35 | N92: 20 | R92: 6049.4 | CH92: 6 | CI92: 0 | CJ92: 0 | CK92: 0 | CL92: 0 | CM92: 0 | CN92: 0 | CO92: 0 | CP92: 6 | CQ92: 0 | CR92: 0 | CS92: 0 | CT92: 0 | CU92: 0 | CY92: 1 | DA92: 1
B93: 81 | F93: Dry brake applications to dry the brake pad | G93: 91 | H93: 0 | I93: 4 | J93: 120 | K93: 30 | L93: 8 | M93: 0.35 | N93: 20 | R93: 4444.4 | CH93: 6 | CI93: 0 | CJ93: 0 | CK93: 0 | CL93: 0 | CM93: 0 | CN93: 0 | CO93: 0 | CP93: 0 | CQ93: 6 | CR93: 0 | CS93: 0 | CT93: 0 | CU93: 0 | CY93: 1 | DA93: 1
B94: 82 | G94: 92 | H94: 0 | I94: 4 | J94: 120 | K94: 30 | L94: 8 | M94: 0.35 | N94: 20 | R94: 4444.4 | CH94: 6 | CI94: 0 | CJ94: 0 | CK94: 0 | CL94: 0 | CM94: 0 | CN94: 0 | CO94: 0 | CP94: 0 | CQ94: 6 | CR94: 0 | CS94: 0 | CT94: 0 | CU94: 0 | CY94: 1 | DA94: 1
B95: 83 | G95: 93 | H95: 0 | I95: 4 | J95: 120 | K95: 30 | L95: 8 | M95: 0.35 | N95: 20 | R95: 4444.4 | CH95: 6 | CI95: 0 | CJ95: 0 | CK95: 0 | CL95: 0 | CM95: 0 | CN95: 0 | CO95: 0 | CP95: 0 | CQ95: 6 | CR95: 0 | CS95: 0 | CT95: 0 | CU95: 0 | CY95: 1 | DA95: 1
B96: 84 | G96: 94 | H96: 0 | I96: 4 | J96: 120 | K96: 30 | L96: 8 | M96: 0.35 | N96: 20 | R96: 4444.4 | CH96: 6 | CI96: 0 | CJ96: 0 | CK96: 0 | CL96: 0 | CM96: 0 | CN96: 0 | CO96: 0 | CP96: 0 | CQ96: 6 | CR96: 0 | CS96: 0 | CT96: 0 | CU96: 0 | CY96: 1 | DA96: 1
B97: 85 | G97: 95 | H97: 0 | I97: 4 | J97: 120 | K97: 30 | L97: 8 | M97: 0.35 | N97: 20 | R97: 4444.4 | CH97: 6 | CI97: 0 | CJ97: 0 | CK97: 0 | CL97: 0 | CM97: 0 | CN97: 0 | CO97: 0 | CP97: 0 | CQ97: 6 | CR97: 0 | CS97: 0 | CT97: 0 | CU97: 0 | CY97: 1 | DA97: 1
B98: 86 | G98: 96 | H98: 0 | I98: 4 | J98: 120 | K98: 30 | L98: 8 | M98: 0.35 | N98: 20 | R98: 4444.4 | CH98: 6 | CI98: 0 | CJ98: 0 | CK98: 0 | CL98: 0 | CM98: 0 | CN98: 0 | CO98: 0 | CP98: 0 | CQ98: 6 | CR98: 0 | CS98: 0 | CT98: 0 | CU98: 0 | CY98: 1 | DA98: 1
B99: 87 | G99: 97 | H99: 0 | I99: 4 | J99: 120 | K99: 30 | L99: 8 | M99: 0.35 | N99: 20 | R99: 4444.4 | CH99: 6 | CI99: 0 | CJ99: 0 | CK99: 0 | CL99: 0 | CM99: 0 | CN99: 0 | CO99: 0 | CP99: 0 | CQ99: 6 | CR99: 0 | CS99: 0 | CT99: 0 | CU99: 0 | CY99: 1 | DA99: 1
B100: 88 | G100: 98 | H100: 0 | I100: 4 | J100: 120 | K100: 30 | L100: 8 | M100: 0.35 | N100: 20 | R100: 4444.4 | CH100: 6 | CI100: 0 | CJ100: 0 | CK100: 0 | CL100: 0 | CM100: 0 | CN100: 0 | CO100: 0 | CP100: 0 | CQ100: 6 | CR100: 0 | CS100: 0 | CT100: 0 | CU100: 0 | CY100: 1 | DA100: 1
B101: 89 | G101: 99 | H101: 0 | I101: 4 | J101: 120 | K101: 30 | L101: 8 | M101: 0.35 | N101: 20 | R101: 4444.4 | CH101: 6 | CI101: 0 | CJ101: 0 | CK101: 0 | CL101: 0 | CM101: 0 | CN101: 0 | CO101: 0 | CP101: 0 | CQ101: 6 | CR101: 0 | CS101: 0 | CT101: 0 | CU101: 0 | CY101: 1 | DA101: 1
B102: 90 | G102: 100 | H102: 0 | I102: 4 | J102: 120 | K102: 30 | L102: 8 | M102: 0.35 | N102: 20 | R102: 4444.4 | CH102: 6 | CI102: 0 | CJ102: 0 | CK102: 0 | CL102: 0 | CM102: 0 | CN102: 0 | CO102: 0 | CP102: 0 | CQ102: 6 | CR102: 0 | CS102: 0 | CT102: 0 | CU102: 0 | CY102: 1 | DA102: 1
B103: 91 | F103: Dry brake applications, maximum mass | G103: 101 | H103: 0 | I103: 1 | J103: 50 | K103: 55 | L103: 10 | M103: 0.35 | N103: 20 | R103: 964.5 | CH103: 6 | CI103: 0 | CJ103: 0 | CK103: 0 | CL103: 0 | CM103: 0 | CN103: 0 | CO103: 0 | CP103: 0 | CQ103: 0 | CR103: 0 | CS103: 0 | CT103: 0 | CU103: 6 | CY103: 1 | DA103: 1
B104: 92 | G104: 102 | H104: 0 | I104: 1 | J104: 80 | K104: 55 | L104: 10 | M104: 0.35 | N104: 20 | R104: 2469.1 | CH104: 6 | CI104: 0 | CJ104: 0 | CK104: 0 | CL104: 0 | CM104: 0 | CN104: 0 | CO104: 0 | CP104: 0 | CQ104: 0 | CR104: 0 | CS104: 6 | CT104: 0 | CU104: 0 | CY104: 1 | DA104: 1
B105: 93 | G105: 103 | H105: 0 | I105: 1 | J105: 120 | K105: 55 | L105: 10 | M105: 0.35 | N105: 20 | R105: 5555.6 | CH105: 6 | CI105: 0 | CJ105: 0 | CK105: 0 | CL105: 0 | CM105: 0 | CN105: 0 | CO105: 0 | CP105: 0 | CQ105: 6 | CR105: 0 | CS105: 0 | CT105: 0 | CU105: 0 | CY105: 1 | DA105: 1
B106: 94 | G106: 104 | H106: 0 | I106: 1 | J106: 140 | K106: 55 | L106: 10 | M106: 0.35 | N106: 20 | R106: 7561.7 | CH106: 6 | CI106: 0 | CJ106: 0 | CK106: 0 | CL106: 0 | CM106: 0 | CN106: 0 | CO106: 0 | CP106: 6 | CQ106: 0 | CR106: 0 | CS106: 0 | CT106: 0 | CU106: 0 | CY106: 1 | DA106: 1
B107: 95 | G107: 105 | H107: 0 | I107: 1 | J107: 160 | K107: 55 | L107: 10 | M107: 0.35 | N107: 20 | R107: 9876.5 | CH107: 6 | CI107: 0 | CJ107: 0 | CK107: 0 | CL107: 0 | CM107: 0 | CN107: 0 | CO107: 6 | CP107: 0 | CQ107: 0 | CR107: 0 | CS107: 0 | CT107: 0 | CU107: 0 | CY107: 1 | DA107: 1
B108: 96 | G108: 107 | H108: 0 | I108: 4 | J108: 50 | K108: 36 | L108: 10 | M108: 0.35 | N108: 20 | R108: 964.5 | CH108: 6 | CI108: 0 | CJ108: 0 | CK108: 0 | CL108: 0 | CM108: 0 | CN108: 0 | CO108: 0 | CP108: 0 | CQ108: 0 | CR108: 0 | CS108: 0 | CT108: 0 | CU108: 6 | CY108: 1 | DA108: 1
B109: 97 | G109: 108 | H109: 0 | I109: 4 | J109: 80 | K109: 36 | L109: 10 | M109: 0.35 | N109: 20 | R109: 2469.1 | CH109: =IF(OR(ISERROR(SUM(CI109:CU109)),$I109<1),"-1",SUM(CI109:CU109)) -> 6 | CI109: 0 | CJ109: 0 | CK109: 0 | CL109: 0 | CM109: 0 | CN109: 0 | CO109: 0 | CP109: 0 | CQ109: 0 | CR109: 0 | CS109: 6 | CT109: 0 | CU109: 0 | CY109: 1 | DA109: 1
B110: 98 | G110: 109 | H110: 0 | I110: 4 | J110: 120 | K110: 36 | L110: 10 | M110: 0.35 | N110: 20 | R110: 5555.6 | CH110: 6 | CI110: 0 | CJ110: 0 | CK110: 0 | CL110: 0 | CM110: 0 | CN110: 0 | CO110: 0 | CP110: 0 | CQ110: 6 | CR110: 0 | CS110: 0 | CT110: 0 | CU110: 0 | CY110: 1 | DA110: 1
B111: 99 | G111: 110 | H111: 0 | I111: 4 | J111: 140 | K111: 36 | L111: 10 | M111: 0.35 | N111: 20 | R111: 7561.7 | CH111: 6 | CI111: 0 | CJ111: 0 | CK111: 0 | CL111: 0 | CM111: 0 | CN111: 0 | CO111: 0 | CP111: 6 | CQ111: 0 | CR111: 0 | CS111: 0 | CT111: 0 | CU111: 0 | CY111: 1 | DA111: 1
B112: 100 | G112: 111 | H112: 0 | I112: 4 | J112: 160 | K112: 36 | L112: 10 | M112: 0.35 | N112: 20 | R112: 9876.5 | CH112: 6 | CI112: 0 | CJ112: 0 | CK112: 0 | CL112: 0 | CM112: 0 | CN112: 0 | CO112: 6 | CP112: 0 | CQ112: 0 | CR112: 0 | CS112: 0 | CT112: 0 | CU112: 0 | CY112: 1 | DA112: 1
B113: 101 | G113: 113 | H113: 0 | I113: 4 | J113: 50 | K113: 18 | L113: 10 | M113: 0.35 | N113: 20 | R113: 964.5 | CH113: 6 | CI113: 0 | CJ113: 0 | CK113: 0 | CL113: 0 | CM113: 0 | CN113: 0 | CO113: 0 | CP113: 0 | CQ113: 0 | CR113: 0 | CS113: 0 | CT113: 0 | CU113: 6 | CY113: 1 | DA113: 1
B114: 102 | G114: 114 | H114: 0 | I114: 4 | J114: 80 | K114: 18 | L114: 10 | M114: 0.35 | N114: 20 | R114: 2469.1 | CH114: 6 | CI114: 0 | CJ114: 0 | CK114: 0 | CL114: 0 | CM114: 0 | CN114: 0 | CO114: 0 | CP114: 0 | CQ114: 0 | CR114: 0 | CS114: 6 | CT114: 0 | CU114: 0 | CY114: 1 | DA114: 1
B115: 103 | G115: 115 | H115: 0 | I115: 4 | J115: 120 | K115: 18 | L115: 10 | M115: 0.35 | N115: 20 | R115: 5555.6 | CH115: 6 | CI115: 0 | CJ115: 0 | CK115: 0 | CL115: 0 | CM115: 0 | CN115: 0 | CO115: 0 | CP115: 0 | CQ115: 6 | CR115: 0 | CS115: 0 | CT115: 0 | CU115: 0 | CY115: 1 | DA115: 1
B116: 104 | G116: 116 | H116: 0 | I116: 4 | J116: 140 | K116: 18 | L116: 10 | M116: 0.35 | N116: 20 | R116: 7561.7 | CH116: 6 | CI116: 0 | CJ116: 0 | CK116: 0 | CL116: 0 | CM116: 0 | CN116: 0 | CO116: 0 | CP116: 6 | CQ116: 0 | CR116: 0 | CS116: 0 | CT116: 0 | CU116: 0 | CY116: 1 | DA116: 1
B117: 105 | G117: 117 | H117: 0 | I117: 4 | J117: 160 | K117: 18 | L117: 10 | M117: 0.35 | N117: 20 | R117: 9876.5 | CH117: 6 | CI117: 0 | CJ117: 0 | CK117: 0 | CL117: 0 | CM117: 0 | CN117: 0 | CO117: 6 | CP117: 0 | CQ117: 0 | CR117: 0 | CS117: 0 | CT117: 0 | CU117: 0 | CY117: 1 | DA117: 1
B118: 106 | F118: Wet brake applications, maximum mass | G118: 119 | H118: 1 | I118: 2 | J118: 50 | K118: 55 | L118: 10 | M118: 0.35 | N118: 20 | R118: 964.5 | CH118: 6 | CI118: 0 | CJ118: 0 | CK118: 0 | CL118: 0 | CM118: 0 | CN118: 0 | CO118: 0 | CP118: 0 | CQ118: 0 | CR118: 0 | CS118: 0 | CT118: 0 | CU118: 6 | CY118: 1 | DA118: 1
B119: 107 | G119: 120 | H119: 1 | I119: 2 | J119: 80 | K119: 55 | L119: 10 | M119: 0.35 | N119: 20 | R119: 2469.1 | CH119: 6 | CI119: 0 | CJ119: 0 | CK119: 0 | CL119: 0 | CM119: 0 | CN119: 0 | CO119: 0 | CP119: 0 | CQ119: 0 | CR119: 0 | CS119: 6 | CT119: 0 | CU119: 0 | CY119: 1 | DA119: 1
B120: 108 | G120: 121 | H120: 1 | I120: 2 | J120: 120 | K120: 55 | L120: 10 | M120: 0.35 | N120: 20 | R120: 5555.6 | CH120: 6 | CI120: 0 | CJ120: 0 | CK120: 0 | CL120: 0 | CM120: 0 | CN120: 0 | CO120: 0 | CP120: 0 | CQ120: 6 | CR120: 0 | CS120: 0 | CT120: 0 | CU120: 0 | CY120: 1 | DA120: 1
B121: 109 | G121: 122 | H121: 1 | I121: 2 | J121: 140 | K121: 55 | L121: 10 | M121: 0.35 | N121: 20 | R121: 7561.7 | CH121: 6 | CI121: 0 | CJ121: 0 | CK121: 0 | CL121: 0 | CM121: 0 | CN121: 0 | CO121: 0 | CP121: 6 | CQ121: 0 | CR121: 0 | CS121: 0 | CT121: 0 | CU121: 0 | CY121: 1 | DA121: 1
B122: 110 | G122: 123 | H122: 1 | I122: 4 | J122: 50 | K122: 36 | L122: 10 | M122: 0.35 | N122: 20 | R122: 964.5 | CH122: 6 | CI122: 0 | CJ122: 0 | CK122: 0 | CL122: 0 | CM122: 0 | CN122: 0 | CO122: 0 | CP122: 0 | CQ122: 0 | CR122: 0 | CS122: 0 | CT122: 0 | CU122: 6 | CY122: 1 | DA122: 1
B123: 111 | G123: 124 | H123: 1 | I123: 4 | J123: 80 | K123: 36 | L123: 10 | M123: 0.35 | N123: 20 | R123: 2469.1 | CH123: 6 | CI123: 0 | CJ123: 0 | CK123: 0 | CL123: 0 | CM123: 0 | CN123: 0 | CO123: 0 | CP123: 0 | CQ123: 0 | CR123: 0 | CS123: 6 | CT123: 0 | CU123: 0 | CY123: 1 | DA123: 1
B124: 112 | G124: 125 | H124: 1 | I124: 4 | J124: 120 | K124: 36 | L124: 10 | M124: 0.35 | N124: 20 | R124: 5555.6 | CH124: 6 | CI124: 0 | CJ124: 0 | CK124: 0 | CL124: 0 | CM124: 0 | CN124: 0 | CO124: 0 | CP124: 0 | CQ124: 6 | CR124: 0 | CS124: 0 | CT124: 0 | CU124: 0 | CY124: 1 | DA124: 1
B125: 113 | G125: 126 | H125: 1 | I125: 4 | J125: 140 | K125: 36 | L125: 10 | M125: 0.35 | N125: 20 | R125: 7561.7 | CH125: 6 | CI125: 0 | CJ125: 0 | CK125: 0 | CL125: 0 | CM125: 0 | CN125: 0 | CO125: 0 | CP125: 6 | CQ125: 0 | CR125: 0 | CS125: 0 | CT125: 0 | CU125: 0 | CY125: 1 | DA125: 1
B126: 114 | F126: Dry brake applications to dry the brake pad | G126: 127 | H126: 0 | I126: 3 | J126: 120 | K126: 55 | L126: 10 | M126: 0.35 | N126: 20 | R126: 5555.6 | CH126: 6 | CI126: 0 | CJ126: 0 | CK126: 0 | CL126: 0 | CM126: 0 | CN126: 0 | CO126: 0 | CP126: 0 | CQ126: 6 | CR126: 0 | CS126: 0 | CT126: 0 | CU126: 0 | CY126: 1 | DA126: 1
B127: 115 | G127: 128 | H127: 0 | I127: 3 | J127: 120 | K127: 55 | L127: 10 | M127: 0.35 | N127: 20 | R127: 5555.6 | CH127: 6 | CI127: 0 | CJ127: 0 | CK127: 0 | CL127: 0 | CM127: 0 | CN127: 0 | CO127: 0 | CP127: 0 | CQ127: 6 | CR127: 0 | CS127: 0 | CT127: 0 | CU127: 0 | CY127: 1 | DA127: 1
B128: 116 | G128: 129 | H128: 0 | I128: 3 | J128: 120 | K128: 55 | L128: 10 | M128: 0.35 | N128: 20 | R128: 5555.6 | CH128: 6 | CI128: 0 | CJ128: 0 | CK128: 0 | CL128: 0 | CM128: 0 | CN128: 0 | CO128: 0 | CP128: 0 | CQ128: 6 | CR128: 0 | CS128: 0 | CT128: 0 | CU128: 0 | CY128: 1 | DA128: 1
B129: 117 | G129: 130 | H129: 0 | I129: 3 | J129: 120 | K129: 55 | L129: 10 | M129: 0.35 | N129: 20 | R129: 5555.6 | CH129: 6 | CI129: 0 | CJ129: 0 | CK129: 0 | CL129: 0 | CM129: 0 | CN129: 0 | CO129: 0 | CP129: 0 | CQ129: 6 | CR129: 0 | CS129: 0 | CT129: 0 | CU129: 0 | CY129: 1 | DA129: 1
B130: 118 | G130: 131 | H130: 0 | I130: 3 | J130: 120 | K130: 55 | L130: 10 | M130: 0.35 | N130: 20 | R130: 5555.6 | CH130: 6 | CI130: 0 | CJ130: 0 | CK130: 0 | CL130: 0 | CM130: 0 | CN130: 0 | CO130: 0 | CP130: 0 | CQ130: 6 | CR130: 0 | CS130: 0 | CT130: 0 | CU130: 0 | CY130: 1 | DA130: 1
B131: 119 | G131: 132 | H131: 0 | I131: 3 | J131: 120 | K131: 55 | L131: 10 | M131: 0.35 | N131: 20 | R131: 5555.6 | CH131: 6 | CI131: 0 | CJ131: 0 | CK131: 0 | CL131: 0 | CM131: 0 | CN131: 0 | CO131: 0 | CP131: 0 | CQ131: 6 | CR131: 0 | CS131: 0 | CT131: 0 | CU131: 0 | CY131: 1 | DA131: 1
B132: 120 | G132: 133 | H132: 0 | I132: 3 | J132: 120 | K132: 55 | L132: 10 | M132: 0.35 | N132: 20 | R132: 5555.6 | CH132: 6 | CI132: 0 | CJ132: 0 | CK132: 0 | CL132: 0 | CM132: 0 | CN132: 0 | CO132: 0 | CP132: 0 | CQ132: 6 | CR132: 0 | CS132: 0 | CT132: 0 | CU132: 0 | CY132: 1 | DA132: 1
B133: 121 | G133: 134 | H133: 0 | I133: 3 | J133: 120 | K133: 55 | L133: 10 | M133: 0.35 | N133: 20 | R133: 5555.6 | CH133: 6 | CI133: 0 | CJ133: 0 | CK133: 0 | CL133: 0 | CM133: 0 | CN133: 0 | CO133: 0 | CP133: 0 | CQ133: 6 | CR133: 0 | CS133: 0 | CT133: 0 | CU133: 0 | CY133: 1 | DA133: 1
B134: 122 | G134: 135 | H134: 0 | I134: 3 | J134: 120 | K134: 55 | L134: 10 | M134: 0.35 | N134: 20 | R134: 5555.6 | CH134: 6 | CI134: 0 | CJ134: 0 | CK134: 0 | CL134: 0 | CM134: 0 | CN134: 0 | CO134: 0 | CP134: 0 | CQ134: 6 | CR134: 0 | CS134: 0 | CT134: 0 | CU134: 0 | CY134: 1 | DA134: 1
B135: 123 | G135: 136 | H135: 0 | I135: 3 | J135: 120 | K135: 55 | L135: 10 | M135: 0.35 | N135: 20 | R135: 5555.6 | CH135: 6 | CI135: 0 | CJ135: 0 | CK135: 0 | CL135: 0 | CM135: 0 | CN135: 0 | CO135: 0 | CP135: 0 | CQ135: 6 | CR135: 0 | CS135: 0 | CT135: 0 | CU135: 0 | CY135: 1 | DA135: 1
B136: 124 | F136: Cont. 72 kW | G136: 137 | H136: 0 | I136: 0 | J136: 70 | M136: 0.35 | N136: 20 | R136: =72*12*60 -> 51840 | CH136: -1 | CI136: 0 | CJ136: 0 | CK136: 0 | CL136: 0 | CM136: 0 | CN136: 0 | CO136: 0 | CP136: 0 | CQ136: 0 | CR136: 0 | CS136: 0 | CT136: 6 | CU136: 0
B137: 125 | G137: 138 | H137: 0 | I137: 3 | J137: 70 | K137: 55 | L137: 10 | M137: 0.35 | N137: 20 | R137: 1890.4 | CH137: 6 | CI137: 0 | CJ137: 0 | CK137: 0 | CL137: 0 | CM137: 0 | CN137: 0 | CO137: 0 | CP137: 0 | CQ137: 0 | CR137: 0 | CS137: 0 | CT137: 6 | CU137: 0 | CY137: 1 | DA137: 1
B138: 126 | F138: Dry brake applications to regenerate the brake pads | G138: 139 | H138: 0 | I138: 4 | J138: 120 | K138: 36 | L138: 10 | M138: 0.35 | N138: 20 | R138: 5555.6 | CH138: 6 | CI138: 0 | CJ138: 0 | CK138: 0 | CL138: 0 | CM138: 0 | CN138: 0 | CO138: 0 | CP138: 0 | CQ138: 6 | CR138: 0 | CS138: 0 | CT138: 0 | CU138: 0 | CY138: 1 | DA138: 1
B139: 127 | G139: 140 | H139: 0 | I139: 4 | J139: 120 | K139: 36 | L139: 10 | M139: 0.35 | N139: 20 | R139: 5555.6 | CH139: 6 | CI139: 0 | CJ139: 0 | CK139: 0 | CL139: 0 | CM139: 0 | CN139: 0 | CO139: 0 | CP139: 0 | CQ139: 6 | CR139: 0 | CS139: 0 | CT139: 0 | CU139: 0 | CY139: 1 | DA139: 1
B140: 128 | G140: 141 | H140: 0 | I140: 4 | J140: 120 | K140: 36 | L140: 10 | M140: 0.35 | N140: 20 | R140: 5555.6 | CH140: 6 | CI140: 0 | CJ140: 0 | CK140: 0 | CL140: 0 | CM140: 0 | CN140: 0 | CO140: 0 | CP140: 0 | CQ140: 6 | CR140: 0 | CS140: 0 | CT140: 0 | CU140: 0 | CY140: 1 | DA140: 1
B141: 129 | G141: 142 | H141: 0 | I141: 4 | J141: 120 | K141: 36 | L141: 10 | M141: 0.35 | N141: 20 | R141: 5555.6 | CH141: =IF(OR(ISERROR(SUM(CI141:CU141)),$I141<1),"-1",SUM(CI141:CU141)) -> 6 | CI141: =IF($J141=CI$12,MATCH(ROUND($M141,3),$BM$50:$BZ$50,1)-1,0)+IF(AND($J141=CI$12,ROUND($M141,3)>$AP$61),1,0) -> 0 | CJ141: =IF($J141=CJ$12,MATCH(ROUND($M141,3),$BM$51:$BZ$51,1)-1,0)+IF(AND($J141=CJ$12,ROUND($M141,3)>$AP$62),1,0) -> 0 | CK141: =IF($J141=CK$12,MATCH(ROUND($M141,3),$BM$52:$BZ$52,1)-1,0)+IF(AND($J141=CK$12,ROUND($M141,3)>$AP$63),1,0) -> 0 | CL141: =IF($J141=CL$12,MATCH(ROUND($M141,3),$BM$53:$BZ$53,1)-1,0)+IF(AND($J141=CL$12,ROUND($M141,3)>$AP$64),1,0) -> 0 | CM141: =IF($J141=CM$12,MATCH(ROUND($M141,3),$BM$54:$BZ$54,1)-1,0)+IF(AND($J141=CM$12,ROUND($M141,3)>$AP$65),1,0) -> 0 | CN141: =IF($J141=CN$12,MATCH(ROUND($M141,3),$BM$55:$BZ$55,1)-1,0)+IF(AND($J141=CN$12,ROUND($M141,3)>$AP$66),1,0) -> 0 | CO141: =IF($J141=CO$12,MATCH(ROUND($M141,3),$BM$56:$BZ$56,1)-1,0)+IF(AND($J141=CO$12,ROUND($M141,3)>$AP$67),1,0) -> 0 | CP141: =IF($J141=CP$12,MATCH(ROUND($M141,3),$BM$57:$BZ$57,1)-1,0)+IF(AND($J141=CP$12,ROUND($M141,3)>$AP$68),1,0) -> 0 | CQ141: =IF($J141=CQ$12,MATCH(ROUND($M141,3),$BM$58:$BZ$58,1)-1,0)+IF(AND($J141=CQ$12,ROUND($M141,3)>$AP$69),1,0) -> 6 | CR141: =IF($J141=CR$12,MATCH(ROUND($M141,3),$BM$59:$BZ$59,1)-1,0)+IF(AND($J141=CR$12,ROUND($M141,3)>$AP$70),1,0) -> 0 | CS141: =IF($J141=CS$12,MATCH(ROUND($M141,3),$BM$60:$BZ$60,1)-1,0)+IF(AND($J141=CS$12,ROUND($M141,3)>$AP$71),1,0) -> 0 | CT141: =IF($J141=CT$12,MATCH(ROUND($M141,3),$BM$61:$BZ$61,1)-1,0)+IF(AND($J141=CT$12,ROUND($M141,3)>$AP$72),1,0) -> 0 | CU141: =IF($J141=CU$12,MATCH(ROUND($M141,3),$BM$62:$BZ$62,1)-1,0)+IF(AND($J141=CU$12,ROUND($M141,3)>$AP$73),1,0) -> 0 | CW141: =IF($C141>0,$B141,#N/A) ->  | CX141: =IF($C141>0,ROUND($C141,3),#N/A) ->  | CY141: =IF(I141>0,IF(OR(AND($I141=1,$CH141>=5,$CH141<=8),AND(I141=2,$CH141>=4,$CH141<=9),AND($I141=3,$CH141>=3,$CH141<=10),AND($I141=4,$CH141>=2,$CH141<=11)),1,IF(OR(AND($I141=1,OR($CH141=4,$CH141=9)),AND($I141=2,OR($CH141=3,$CH141=10)),AND($I141=3,OR($CH141=2,$CH141=11)),AND($I141=4,OR($CH141=1,$CH141=12))),2,0)),#N/A) -> 1 | DA141: 1
B142: 130 | G142: 143 | H142: 0 | I142: 4 | J142: 120 | K142: 36 | L142: 10 | M142: 0.35 | N142: 20 | R142: =0.5*L142*(J142/3.6)^2 -> 5555.6 | CH142: 6 | CI142: 0 | CJ142: 0 | CK142: 0 | CL142: 0 | CM142: 0 | CN142: 0 | CO142: 0 | CP142: 0 | CQ142: 6 | CR142: 0 | CS142: 0 | CT142: 0 | CU142: 0 | CY142: 1 | CZ142: =IF($C142>0,IF(OR(AND($B142>=$BR$24,$B142<=$BR$25,OR($C142>$BS$24,$C142<$BT$24)),AND($B142>=$BR$26,$B142<=$BR$27,OR($C142>$BS$26,$C142<$BT$26))),0,1),#N/A) ->  | DA142: =IF($I142>0,IF(AND(ISNUMBER(M142),$M142>0),1,0),"") -> 1
B143: 131 | G143: 144 | H143: 0 | I143: 4 | J143: 120 | K143: 36 | L143: 10 | M143: 0.35 | N143: 20 | R143: 5555.6 | CH143: 6 | CI143: 0 | CJ143: 0 | CK143: 0 | CL143: 0 | CM143: 0 | CN143: 0 | CO143: 0 | CP143: 0 | CQ143: 6 | CR143: 0 | CS143: 0 | CT143: 0 | CU143: 0 | CY143: 1 | DA143: 1
B144: 132 | G144: 145 | H144: 0 | I144: 4 | J144: 120 | K144: 36 | L144: 10 | M144: 0.35 | N144: 20 | R144: 5555.6 | CH144: 6 | CI144: 0 | CJ144: 0 | CK144: 0 | CL144: 0 | CM144: 0 | CN144: 0 | CO144: 0 | CP144: 0 | CQ144: 6 | CR144: 0 | CS144: 0 | CT144: 0 | CU144: 0 | CY144: 1 | DA144: 1
B145: 133 | G145: 146 | H145: 0 | I145: 4 | J145: 120 | K145: 36 | L145: 10 | M145: 0.35 | N145: 20 | R145: 5555.6 | CH145: 6 | CI145: 0 | CJ145: 0 | CK145: 0 | CL145: 0 | CM145: 0 | CN145: 0 | CO145: 0 | CP145: 0 | CQ145: 6 | CR145: 0 | CS145: 0 | CT145: 0 | CU145: 0 | CY145: 1 | DA145: 1
B146: 134 | G146: 147 | H146: 0 | I146: 4 | J146: 120 | K146: 36 | L146: 10 | M146: 0.35 | N146: 20 | R146: 5555.6 | CH146: 6 | CI146: 0 | CJ146: 0 | CK146: 0 | CL146: 0 | CM146: 0 | CN146: 0 | CO146: 0 | CP146: 0 | CQ146: 6 | CR146: 0 | CS146: 0 | CT146: 0 | CU146: 0 | CY146: 1 | DA146: 1
